Workbook

Sheet AER only (hidden)
B1: Data in these columns used for data validation and database purposes.
B2: Date last modified: | C2: 2017-01-16 | D2: added (Albury and Victora) for AGN
C3: 2016-10-17 | D3: updated TransGrid's correct legal name, corrected TasNetworks (T) to June financial year
C4: 2017-02-01 | D4: inserted Power and Water, added NRs (dms_FeederCat_1 and dms_FeederCat_2)
C5: 2017-03-03 | D5: inserted AEMO as a business | AB5: FOR ELECTRICITY BUSINESSES ONLY
C6: 2018-03-28 | D6: major changes to accommodate STPIS
C7: Template Version | D7: 5 | AB7: Feeder Types | AF7: TasNetworks (D) | AG7: MAIFI flag | AH7: Feeder Names
AB8: CBD | AC8: Urban | AD8: Short rural | AE8: long rural | AF8: EXTRA
B9: dms_TradingName_List | C9: dms_TradingNameFull_List | D9: dms_ABN_List | E9: dms_JurisdictionList | F9: dms_Sector_List | G9: dms_Segment_List | H9: dms_FormControl_List | I9: dms_RPT_List | J9: dms_RPTMonth_List | K9: dms_CRCPlength_List | L9: dms_FRCPlength_List | M9: dms_663_List | N9: dms_DeterminationRef_List | O9: dms_Addr1_List | P9: dms_Addr2_List | Q9: dms_Suburb_List | R9: dms_State_List | S9: dms_PostCode_List | T9: dms_PAddr1_List | U9: dms_PAddr2_List | V9: dms_PSuburb_List | W9: dms_PState_List | X9: dms_PPostCode_List | Y9: dms_ContactName1_List | Z9: dms_ContactPh1_List | AA9: dms_ContactEmail_List | AB9: dms_CBD_flag | AC9: dms_Urban_flag | AD9: dms_ShortRural_flag | AE9: dms_LongRural_flag | AF9: dms_FeederType_5_flag | AG9: dms_MAIFI_flag_List | AH9: dms_FeederName_1 | AI9: dms_FeederName_2 | AJ9: dms_FeederName_3 | AK9: dms_FeederName_4 | AL9: dms_FeederName_5 | AM9: dms_Public_Lighting_List | AN9: Column1
B10: ActewAGL Distribution | C10: ActewAGL Distribution | D10: 76670568688 | E10: ACT | F10: Electricity | G10: Distribution | H10: Revenue cap | I10: Financial | J10: June | K10: 5 | L10: 5 | M10: 5 | N10: 2014-19 Distribution Determination | O10: 40 Bunda Street | Q10: CANBERRA | R10: ACT | S10: 2600 | T10: GPO BOX 366 | V10: CANBERRA | W10: ACT | X10: 2601 | AB10: NO | AC10: YES | AD10: YES | AE10: NO | AF10: NO | AH10: CBD | AI10: Urban | AJ10: Short rural | AK10: Long rural | AM10: NO | AN10: ActewAGL Distribution
B11: ActewAGL Distribution (Tx Assets) | C11: ActewAGL Distribution (Tx Assets) | D11: 76670568688 | E11: ACT | F11: Electricity | G11: Distribution | H11: Revenue cap | I11: Financial | J11: June | K11: 5 | L11: 5 | M11: 5 | N11: distribution determination | O11: 40 Bunda Street | Q11: CANBERRA | R11: ACT | S11: 2600 | T11: GPO BOX 366 | V11: CANBERRA | W11: ACT | X11: 2601 | AB11: NO | AC11: YES | AD11: YES | AE11: NO | AF11: NO | AH11: CBD | AI11: Urban | AJ11: Short rural | AK11: Long rural | AM11: NO | AN11: ActewAGL Distribution (Tx Assets)
B12: ActewAGL Gas | C12: ActewAGL Gas | D12: 76670568688 | E12: ACT | F12: Gas | G12: Distribution | H12: Weighted average price cap | I12: Financial | J12: June | K12: 5 | L12: 5 | M12: x | O12: 40 Bunda Street | Q12: CANBERRA | R12: ACT | S12: 2600 | T12: GPO BOX 366 | V12: CANBERRA | W12: ACT | X12: 2601 | AB12: NO | AC12: NO | AD12: NO | AE12: NO | AF12: NO | AH12: CBD | AI12: Urban | AJ12: Short rural | AK12: Long rural | AM12: NO | AN12: ActewAGL Gas
B13: AEMO | C13: Australian Energy Market Operator Ltd | D13: 94072010327 | E13: Vic | F13: Electricity | G13: Transmission | H13: - | I13: Financial | J13: March | K13: 5 | L13: 5 | M13: x | N13: - | O13: Level 22 | P13: 530 Collins Street | Q13: MELBOURNE | R13: VIC | S13: 3000 | T13: GPO Box 2008 | V13: MELBOURNE | W13: VIC | X13: 3001 | AB13: NO | AC13: NO | AD13: NO | AE13: NO | AF13: NO | AH13: CBD | AI13: Urban | AJ13: Short rural | AK13: Long rural | AM13: NO | AN13: AEMO
B14: AGN (Albury and Victoria) | C14: Australian Gas Networks Limited (reporting data for Albury and Victoria) | D14: 19078551685 | E14: Vic | F14: Gas | G14: Distribution | H14: Weighted average price cap | I14: Calendar | J14: December | K14: 5 | L14: 5 | M14: x | O14: Level 6 | P14: 400 King William Street | Q14: ADELAIDE | R14: SA | S14: 5000 | T14: PO Box 6468 | U14: Halifax Street | V14: ADELAIDE | W14: SA | X14: 5000 | AB14: NO | AC14: NO | AD14: NO | AE14: NO | AF14: NO | AH14: CBD | AI14: Urban | AJ14: Short rural | AK14: Long rural | AM14: NO | AN14: AGN (Albury)
B15: AGN (Albury) | C15: Australian Gas Networks Limited (reporting data for Albury) | D15: 19078551685 | E15: Vic | F15: Gas | G15: Distribution | H15: Weighted average price cap | I15: Calendar | J15: December | K15: 5 | L15: 5 | M15: x | O15: Level 6 | P15: 400 King William Street | Q15: ADELAIDE | R15: SA | S15: 5000 | T15: PO Box 6468 | U15: Halifax Street | V15: ADELAIDE | W15: SA | X15: 5000 | AB15: NO | AC15: NO | AD15: NO | AE15: NO | AF15: NO | AH15: CBD | AI15: Urban | AJ15: Short rural | AK15: Long rural | AM15: NO
B16: AGN (SA) | C16: Australian Gas Networks Limited (reporting data for SA) | D16: 19078551685 | E16: SA | F16: Gas | G16: Distribution | H16: Weighted average price cap | I16: Financial | J16: June | K16: 5 | L16: 5 | M16: 5 | N16: distribution determination | O16: Level 6 | P16: 400 King William Street | Q16: ADELAIDE | R16: SA | S16: 5000 | T16: PO Box 6468 | U16: Halifax Street | V16: ADELAIDE | W16: SA | X16: 5000 | AB16: NO | AC16: NO | AD16: NO | AE16: NO | AF16: NO | AH16: CBD | AI16: Urban | AJ16: Short rural | AK16: Long rural | AM16: NO | AN16: AGN (SA)
B17: AGN (Victoria) | C17: Australian Gas Networks Limited (reporting data for Victoria) | D17: 19078551685 | E17: Vic | F17: Gas | G17: Distribution | H17: Weighted average price cap | I17: Calendar | J17: December | K17: 5 | L17: 5 | M17: x | O17: Level 6 | P17: 400 King William Street | Q17: ADELAIDE | R17: SA | S17: 5000 | T17: PO Box 6468 | U17: Halifax Street | V17: ADELAIDE | W17: SA | X17: 5000 | AB17: NO | AC17: NO | AD17: NO | AE17: NO | AF17: NO | AH17: CBD | AI17: Urban | AJ17: Short rural | AK17: Long rural | AM17: NO | AN17: AGN (Victoria)
B18: Amadeus | C18: APT Pipelines (NT) Pty Ltd | D18: 39009737393 | E18: NT | F18: Gas | G18: Transmission | H18: Weighted average price cap | I18: Financial | J18: June | K18: 5 | L18: 5 | M18: x | N18: n/a | O18: Level 19, HSBC Building | P18: 580 George Street | Q18: SYDNEY | R18: NSW | S18: 2000 | T18: Level 19, HSBC Building | U18: 580 George Street | V18: SYDNEY | W18: NSW | X18: 2000 | AB18: NO | AC18: NO | AD18: NO | AE18: NO | AF18: NO | AH18: CBD | AI18: Urban | AJ18: Short rural | AK18: Long rural | AM18: NO | AN18: Amadeus
B19: APA GasNet | C19: APA GasNet Australia (Operations) Pty Ltd | D19: 065083009 | E19: Vic | F19: Gas | G19: Transmission | H19: Weighted average price cap | I19: Calendar | J19: December | K19: 5 | L19: 5 | M19: x | O19: Level 19, HSBC Building | P19: 580 George Street | Q19: SYDNEY | R19: NSW | S19: 2000 | T19: PO Box R41 | V19: ROYAL EXCHANGE | W19: NSW | X19: 1225 | AB19: NO | AC19: NO | AD19: NO | AE19: NO | AF19: NO | AH19: CBD | AI19: Urban | AJ19: Short rural | AK19: Long rural | AM19: NO | AN19: APA GasNet
B20: Ausgrid | C20: Ausgrid | D20: 78508211731 | E20: NSW | F20: Electricity | G20: Distribution | H20: Revenue cap | I20: Financial | J20: June | K20: 5 | L20: 5 | M20: 5 | N20: 2014-19 Distribution Determination | O20: 570 George St | Q20: SYDNEY | R20: NSW | S20: 2000 | T20: GPO Box 4009 | V20: SYDNEY | W20: NSW | X20: 2001 | AB20: YES | AC20: YES | AD20: YES | AE20: YES | AF20: NO | AH20: CBD | AI20: Urban | AJ20: Short rural | AK20: Long rural | AM20: YES | AN20: Ausgrid
B21: Ausgrid (Tx Assets) | C21: Ausgrid (Tx Assets) | D21: 67505337385 | E21: NSW | F21: Electricity | G21: Distribution | H21: Revenue cap | I21: Financial | J21: June | K21: 5 | L21: 5 | M21: 5 | N21: distribution determination | O21: 570 George St | Q21: SYDNEY | R21: NSW | S21: 2000 | T21: GPO Box 4009 | V21: SYDNEY | W21: NSW | X21: 2001 | AB21: YES | AC21: YES | AD21: YES | AE21: YES | AF21: NO | AH21: CBD | AI21: Urban | AJ21: Short rural | AK21: Long rural | AM21: NO | AN21: Ausgrid (Tx Assets)
B22: AusNet (D) | C22: AusNet Electricity Services Pty Ltd | D22: 91064651118 | E22: Vic | F22: Electricity | G22: Distribution | H22: Revenue cap | I22: Calendar | J22: December | K22: 5 | L22: 5 | M22: 2 | N22: 2016-20 Distribution Determination | O22: Level 32 | P22: 2 Southbank Boulevard | Q22: SOUTHBANK | R22: Vic | S22: 3006 | T22: Locked Bag 14051 | V22: MELBOURNE CITY MAIL CENTRE | W22: VIC | X22: 8001 | AC22: YES | AD22: YES | AE22: YES | AF22: NO | AH22: CBD | AI22: Urban | AJ22: Short rural | AK22: Long rural | AM22: YES | AN22: AusNet (D)
B23: AusNet (Gas) | C23: AusNet Gas Services | D23: 086015036 | E23: Vic | F23: Gas | G23: Distribution | H23: Weighted average price cap | I23: Calendar | J23: December | K23: 5 | L23: 5 | M23: X | O23: Level 19, HSBC Building | P23: 580 George Street | Q23: SYDNEY | R23: NSW | S23: 2000 | T23: PO Box R41 | V23: ROYAL EXCHANGE | W23: NSW | X23: 1225 | AB23: NO | AC23: NO | AD23: NO | AE23: NO | AF23: NO | AH23: CBD | AI23: Urban | AJ23: Short rural | AK23: Long rural | AM23: NO | AN23: AusNet (Gas)
B24: AusNet (T) | C24: Ausnet Services (Transmission) Ltd | D24: 48116124362 | E24: Vic | F24: Electricity | G24: Transmission | H24: Revenue cap | I24: Financial | J24: March | K24: 5 | L24: 5 | M24: 2 | N24: transmission determination | O24: Level 32 | P24: 2 Southbank Boulevard | Q24: SOUTHBANK | R24: Vic | S24: 3006 | T24: Locked Bag 14051 | V24: MELBOURNE CITY MAIL CENTRE | W24: Vic | X24: 8001 | AB24: NO | AC24: NO | AD24: NO | AE24: NO | AF24: NO | AH24: CBD | AI24: Urban | AJ24: Short rural | AK24: Long rural | AM24: NO | AN24: AusNet (T)
B25: Australian Distribution Co. | C25: Australian Distribution Co. | D25: 11222333444 | E25: - | F25: Electricity | G25: Distribution | H25: Revenue cap | I25: Financial | J25: June | K25: 5 | L25: 5 | M25: 2 | N25: distribution determination | O25: 123 Straight Street | Q25: SYDNEY | R25: NSW | S25: 2000 | T25: PO Box 123 | V25: SYDNEY | W25: NSW | X25: 2000 | AB25: NO | AC25: NO | AD25: NO | AE25: NO | AF25: NO | AH25: CBD | AI25: Urban | AJ25: Short rural | AK25: Long rural | AM25: YES | AN25: Australian Distribution Co.
B26: Australian Distribution Co. (Vic) | C26: Australian Distribution Co. (Victoria) | D26: 11222333444 | E26: Vic | F26: Electricity | G26: Distribution | H26: Revenue cap | I26: Calendar | J26: December | K26: 5 | L26: 5 | M26: 2 | N26: distribution determination | O26: 123 Straight Street | Q26: MELBOURNE | R26: Vic | S26: 3000 | T26: PO Box 123 | V26: MELBOURNE | W26: VIC | X26: 3000 | AB26: NO | AC26: NO | AD26: NO | AE26: NO | AF26: NO | AH26: CBD | AI26: Urban | AJ26: Short rural | AK26: Long rural | AM26: YES | AN26: Australian Distribution Co. (Vic)
B27: Australian Transmission Co. | C27: Australian Transmission Co. | D27: 11222333444 | E27: - | F27: Electricity | G27: Transmission | H27: Revenue cap | I27: Financial | J27: June | K27: 5 | L27: 5 | M27: 5 | N27: transmission determination | O27: 123 Straight Street | Q27: SYDNEY | R27: NSW | S27: 2000 | T27: PO Box 123 | V27: SYDNEY | W27: NSW | X27: 2000 | AB27: NO | AC27: NO | AD27: NO | AE27: NO | AF27: NO | AH27: CBD | AI27: Urban | AJ27: Short rural | AK27: Long rural | AM27: NO | AN27: Australian Transmission Co.
B28: Central Ranges Pipeline (D) | C28: Central Ranges Pipeline Pty Ltd | D28: 108218355 | E28: NSW | F28: Gas | G28: Distribution | H28: Weighted average price cap | I28: Financial | J28: June | K28: 15 | L28: 5 | M28: 5 | N28: distribution determination | O28: Level 19 | P28: 580 George Street | Q28: SYDNEY | R28: NSW | S28: 2000 | T28: PO Box R41 | V28: ROYAL EXCHANGE | W28: NSW | X28: 1225 | AB28: NO | AC28: NO | AD28: NO | AE28: NO | AF28: NO | AH28: CBD | AI28: Urban | AJ28: Short rural | AK28: Long rural | AM28: NO
B29: Central Ranges Pipeline (T) | C29: Central Ranges Pipeline Pty Ltd | D29: 108218355 | E29: NSW | F29: Gas | G29: Distribution | H29: Weighted average price cap | I29: Financial | J29: June | K29: 14 | L29: 5 | M29: 5 | N29: transmission determination | O29: Level 19 | P29: 580 George Street | Q29: SYDNEY | R29: NSW | S29: 2000 | T29: PO Box R41 | V29: ROYAL EXCHANGE | W29: NSW | X29: 1225 | AB29: NO | AC29: NO | AD29: NO | AE29: NO | AF29: NO | AH29: CBD | AI29: Urban | AJ29: Short rural | AK29: Long rural | AM29: NO
B30: CitiPower | C30: CitiPower | D30: 76064651056 | E30: Vic | F30: Electricity | G30: Distribution | H30: Revenue cap | I30: Calendar | J30: December | K30: 5 | L30: 5 | M30: 2 | N30: 2016-20 Distribution Determination | O30: 40 Market Street | Q30: MELBOURNE | R30: Vic | S30: 3000 | T30: Locked Bag 14090 | V30: MELBOURNE | W30: VIC | X30: 8001 | AB30: YES | AC30: YES | AD30: NO | AE30: NO | AF30: NO | AH30: CBD | AI30: Urban | AJ30: Short rural | AK30: Long rural | AM30: YES | AN30: CitiPower
B31: Directlink | C31: Directlink | D31: 16779340889 | E31: Qld | F31: Electricity | G31: Transmission | H31: Revenue cap | I31: Financial | J31: June | K31: 9 | L31: 5 | M31: 5 | N31: transmission determination | O31: Level 19, HSBC Building | P31: 580 George Street | Q31: SYDNEY | R31: NSW | S31: 2000 | T31: PO Box R41 | V31: ROYAL EXCHANGE | W31: NSW | X31: 1225 | AB31: NO | AC31: NO | AD31: NO | AE31: NO | AF31: NO | AH31: CBD | AI31: Urban | AJ31: Short rural | AK31: Long rural | AM31: NO | AN31: Directlink
B32: ElectraNet | C32: ElectraNet | D32: 41094482416 | E32: SA | F32: Electricity | G32: Transmission | H32: Revenue cap | I32: Financial | J32: June | K32: 5 | L32: 5 | M32: 5 | N32: transmission determination | O32: 52-55 East Terrace | P32: Rymill Park | Q32: ADELAIDE | R32: SA | S32: 5000 | T32: PO Box 7096 | U32: Hutt Street Post Office | V32: ADELAIDE | W32: SA | X32: 5000 | AB32: NO | AC32: NO | AD32: NO | AE32: NO | AF32: NO | AH32: CBD | AI32: Urban | AJ32: Short rural | AK32: Long rural | AM32: NO | AN32: ElectraNet
B33: Endeavour Energy | C33: Endeavour Energy | D33: 11247365823 | E33: NSW | F33: Electricity | G33: Distribution | H33: Revenue cap | I33: Financial | J33: June | K33: 5 | L33: 5 | M33: 5 | N33: 2014-19 Distribution Determination | O33: 51 Huntingwood Drive | Q33: HUNTINGWOOD | R33: NSW | S33: 2148 | T33: PO Box 811 | V33: SEVEN HILLS | W33: NSW | X33: 1730 | AB33: NO | AC33: YES | AD33: YES | AE33: YES | AF33: NO | AH33: CBD | AI33: Urban | AJ33: Short rural | AK33: Long rural | AM33: YES | AN33: Endeavour Energy
B34: Energex | C34: Energex | D34: 40078849055 | E34: Qld | F34: Electricity | G34: Distribution | H34: Revenue cap | I34: Financial | J34: June | K34: 5 | L34: 5 | M34: 5 | N34: 2015-20 Distribution Determination | O34: 26 Reddacliff Street | Q34: NEWSTEAD | R34: Qld | S34: 4006 | T34: 26 Reddacliff Street | V34: NEWSTEAD | W34: QLD | X34: 4006 | AB34: YES | AC34: YES | AD34: YES | AE34: NO | AF34: NO | AH34: CBD | AI34: Urban | AJ34: Short rural | AK34: Long rural | AM34: YES | AN34: Energex
B35: Ergon Energy | C35: Ergon Energy | D35: 50087646062 | E35: Qld | F35: Electricity | G35: Distribution | H35: Revenue cap | I35: Financial | J35: June | K35: 5 | L35: 5 | M35: 5 | N35: 2015-20 Distribution Determination | O35: 22 Walker Street | Q35: TOWNSVILLE | R35: Qld | S35: 4810 | T35: Po Box 264 | V35: FORTITUDE VALLEY | W35: QLD | X35: 4006 | AB35: NO | AC35: YES | AD35: YES | AE35: YES | AF35: NO | AH35: CBD | AI35: Urban | AJ35: Short rural | AK35: Long rural | AM35: YES | AN35: Ergon Energy
B36: Essential Energy | C36: Essential Energy | D36: 37428185226 | E36: NSW | F36: Electricity | G36: Distribution | H36: Revenue cap | I36: Financial | J36: June | K36: 5 | L36: 5 | M36: 5 | N36: 2014-19 Distribution Determination | O36: 8 Buller Street | Q36: PORT MACQUARIE | R36: NSW | S36: 2444 | T36: PO Box 5730 | V36: PORT MACQUARIE | W36: NSW | X36: 2444 | AB36: NO | AC36: NO | AD36: YES | AE36: YES | AF36: NO | AH36: CBD | AI36: Urban | AJ36: Short rural | AK36: Long rural | AM36: YES | AN36: Essential Energy
B37: Jemena Electricity | C37: Jemena Electricity | D37: 82064651083 | E37: Vic | F37: Electricity | G37: Distribution | H37: Revenue cap | I37: Calendar | J37: December | K37: 5 | L37: 5 | M37: 2 | N37: 2016-20 Distribution Determination | O37: Level 16 | P37: 567 Collins Street | Q37: MELBOURNE | R37: VIC | S37: 3000 | T37: PO Box 16182 | V37: MELBOURNE | W37: VIC | X37: 8001 | AB37: NO | AC37: NO | AD37: YES | AE37: NO | AF37: NO | AH37: CBD | AI37: Urban | AJ37: Short rural | AK37: Long rural | AM37: YES | AN37: Jemena Electricity
B38: JGN | C38: Jemena Gas Networks (NSW) Ltd | D38: 003 004 322 | E38: NSW | F38: Gas | G38: Distribution | H38: Weighted average price cap | I38: Financial | J38: June | K38: 5 | L38: 5 | AB38: NO | AC38: NO | AD38: NO | AE38: NO | AF38: NO | AH38: CBD | AI38: Urban | AJ38: Short rural | AK38: Long rural | AM38: NO | AN38: JGN
B39: Multinet Gas | C39: Multinet Gas (DB No.1) Pty Ltd (ACN 086 026 986), Multinet Gas (DB No.2) Pty Ltd (ACN 086 230 122) | D39: 086026986 | E39: Vic | F39: Gas | G39: Distribution | H39: Weighted average price cap | I39: Calendar | J39: December | K39: 5 | L39: 5 | M39: x | O39: 43-45 Centreway | Q39: MT WAVERLEY | R39: Vic | S39: 3149 | AB39: NO | AC39: NO | AD39: NO | AE39: NO | AF39: NO | AH39: CBD | AI39: Urban | AJ39: Short rural | AK39: Long rural | AM39: NO | AN39: Multinet Gas
B40: Murraylink | C40: Murraylink | D40: 79181207909 | E40: SA | F40: Electricity | G40: Transmission | H40: Revenue cap | I40: Financial | J40: June | K40: 5 | L40: 5 | M40: 5 | N40: transmission determination | O40: Level 19 | P40: 580 George Street | Q40: SYDNEY | R40: NSW | S40: 2000 | T40: PO Box R41 | V40: ROYAL EXCHANGE | W40: NSW | X40: 1225 | AB40: NO | AC40: NO | AD40: NO | AE40: NO | AF40: NO | AH40: CBD | AI40: Urban | AJ40: Short rural | AK40: Long rural | AM40: NO | AN40: Murraylink
B41: Power and Water | C41: Power and Water Corporation | D41: 15947352360 | E41: NT | F41: Electricity | G41: Distribution | H41: Revenue cap | I41: Financial | J41: June | K41: 5 | L41: 5 | M41: x | N41: distribution determination | O41: GPO Box 1921 | Q41: DARWIN | R41: NT | S41: 801 | T41: GPO Box 1921 | V41: DARWIN | W41: NT | X41: 801 | AB41: YES | AC41: YES | AD41: YES | AE41: YES | AF41: NO | AH41: CBD | AI41: Urban | AJ41: Short rural | AK41: Long rural | AM41: NO | AN41: Power and Water
B42: Powercor Australia | C42: Powercor Australia | D42: 89064651109 | E42: Vic | F42: Electricity | G42: Distribution | H42: Revenue cap | I42: Calendar | J42: December | K42: 5 | L42: 5 | M42: 2 | N42: 2016-20 Distribution Determination | O42: 40 Market Street | Q42: MELBOURNE | R42: Vic | S42: 3000 | T42: Locked bag 14090 | V42: MELBOURNE | W42: VIC | X42: 8001 | AD42: YES | AE42: YES | AF42: NO | AH42: CBD | AI42: Urban | AJ42: Short rural | AK42: Long rural | AM42: YES | AN42: Powercor Australia
B43: Powerlink | C43: Queensland Electricity Transmission Corporation Limited trading as Powerlink Queensland | D43: 82078849233 | E43: Qld | F43: Electricity | G43: Transmission | H43: Revenue cap | I43: Financial | J43: June | K43: 5 | L43: 5 | M43: 5 | N43: transmission determination | O43: 33 Harold St | Q43: VIRGINIA | R43: Qld | S43: 4014 | T43: PO Box 1193 | V43: VIRGINIA | W43: QLD | X43: 4014 | AB43: NO | AC43: NO | AD43: NO | AE43: NO | AF43: NO | AH43: CBD | AI43: Urban | AJ43: Short rural | AK43: Long rural | AM43: NO | AN43: Powerlink
B44: Roma to Brisbane Pipeline | C44: APT Petroleum Pipelines Limited t/a Roma to Brisbane Pipeline | D44: 009 737 393 | E44: Qld | F44: Gas | G44: Transmission | H44: Weighted average price cap | I44: Financial | J44: June | K44: 5 | L44: 5 | M44: x | N44: n/a | O44: 580 George Street | Q44: SYDNEY | R44: NSW | S44: 2000 | T44: PO Box R41 | V44: ROYAL EXCHANGE | W44: NSW | X44: 1225 | AB44: NO | AC44: NO | AD44: NO | AE44: NO | AF44: NO | AH44: CBD | AI44: Urban | AJ44: Short rural | AK44: Long rural | AM44: NO | AN44: Roma to Brisbane Pipeline
B45: SA Power Networks | C45: SA Power Networks | D45: 13332330749 | E45: SA | F45: Electricity | G45: Distribution | H45: Revenue cap | I45: Financial | J45: June | K45: 5 | L45: 5 | M45: 5 | N45: 2015-20 Distribution Determination | O45: 1 Anzac Highway | Q45: KESWICK | R45: SA | S45: 5035 | T45: GPO Box 77 | V45: ADELAIDE | W45: SA | X45: 5000 | AB45: NO | AC45: NO | AD45: YES | AE45: YES | AF45: NO | AH45: CBD | AI45: Urban | AJ45: Short rural | AK45: Long rural | AM45: NO | AN45: SA Power Networks
B46: TasNetworks (D) | C46: TasNetworks (D) | D46: 24167357299 | E46: Tas | F46: Electricity | G46: Distribution | H46: Revenue cap | I46: Financial | J46: June | K46: 5 | L46: 5 | M46: 5 | N46: distribution determination | O46: 1-7 Maria Street | Q46: LENAH VALLEY | R46: Tas | S46: 7008 | T46: PO Box 606 | V46: MOONAH | W46: Tas | X46: 7009 | AB46: YES | AC46: YES | AD46: YES | AE46: YES | AF46: YES | AH46: Critical Infrastructure | AI46: High density commercial | AJ46: Urban | AK46: High density rural | AL46: Low density rural | AM46: YES | AN46: TasNetworks (D)
B47: TasNetworks (T) | C47: TasNetworks (T) | D47: 24167357299 | E47: Tas | F47: Electricity | G47: Transmission | H47: Revenue cap | I47: Financial | J47: June | K47: 5 | L47: 5 | M47: 5 | N47: transmission determination | O47: 1-7 Maria Street | Q47: LENAH VALLEY | R47: Tas | S47: 7008 | T47: PO Box 606 | V47: MOONAH | W47: Tas | X47: 7009 | AB47: NO | AC47: NO | AD47: NO | AE47: NO | AF47: NO | AH47: CBD | AI47: Urban | AJ47: Short rural | AK47: Long rural | AM47: NO | AN47: TasNetworks (T)
B48: TransGrid | C48: NSW Electricity Networks Operations Pty Ltd trading as TransGrid | D48: 70 250 995 390 | E48: NSW | F48: Electricity | G48: Transmission | H48: Revenue cap | I48: Financial | J48: June | K48: 4 | L48: 5 | M48: 5 | N48: transmission determination | O48: 180 Thomas Street | Q48: SYDNEY | R48: NSW | S48: 2000 | T48: PO Box A1000 | V48: SYDNEY SOUTH | W48: NSW | X48: 1235 | AB48: NO | AC48: NO | AD48: NO | AE48: NO | AF48: NO | AH48: CBD | AI48: Urban | AJ48: Short rural | AK48: Long rural | AM48: NO | AN48: TransGrid
B49: United Energy | C49: United Energy | D49: 70064651029 | E49: Vic | F49: Electricity | G49: Distribution | H49: Revenue cap | I49: Calendar | J49: December | K49: 5 | L49: 5 | M49: 2 | N49: 2016-20 Distribution Determination | O49: Level 3 | P49: 6 Nexus Court | Q49: MULGRAVE | R49: Vic | S49: 3149 | T49: PO Box 449 | V49: MOUNT WAVERLEY | W49: VIC | X49: 3170 | AB49: NO | AC49: NO | AD49: YES | AE49: NO | AF49: NO | AH49: CBD | AI49: Urban | AJ49: Short rural | AK49: Long rural | AM49: YES | AN49: United Energy
Y52: For EB & Reset RINs only | AD52: For AARs only
B53: The Reg Year Ending (dms_RYE) must be set to the last year of the regulatory period. For forecast data is is usually (FRCP_y5) for actual it is a single year (CRY). For historical actual data the RYE will need to be set manually in the business details sheet by setting the dms_Multiyear_flag to 1 and putting the correct value in 'dms_Specified_FinalYear. See cells C67:C68 | G53: =IF(dms_RPT="financial",VALUE(LEFT(CRCP_y1,4)-1)&"-"&TEXT(VALUE(RIGHT(CRCP_y1,2)-1),"00"),VALUE(LEFT(CRCP_y1,4)-1)) -> 2014-15 | N53: Drop down selector box for CA & Reset RINs. | O53: For CA & Reset RINs only | Y53: for DNSP only | AD53: For DNSPs only | AJ53: Reason for interruption | AK53: dms_Reason_Interruption_Detailed | AL53: dms_Reason_Interruption | AM53: dms_STPIS_Exclusion_List | AN53: dms_020301_ProjectType_List | AO53: dms_020302_ProjectType_List
B54: dms_Model_List | C54: DELETE NR 'CRY' IF NOT AN ANNUAL RIN (EB, CA , ARR) | E54: dms_RYE_Formula_Result | N54: dms_0203_ProjectType | O54: dms_020303_01_UOM | P54: dms_020501_01_UOM | Q54: dms_020501_02_UOM | R54: dms_020501_03_UOM | S54: dms_020501_04_UOM | T54: dms_020603_01_UOM | U54: dms_020701_01_UOM | V54: dms_020701_02_UOM | W54: dms_040102_01_UOM | X54: dms_040102_04_UOM | Y54: dms_030601_01_UOM | Z54: dms_030601_02_UOM | AA54: dms_030701_01_UOM | AB54: dms_030702_01_UOM | AC54: dms_030703_01_UOM | AD54: dms_030605_UOM | AE54: dms_03060703_UOM | AJ54: Animal | AK54: Animal impact | AL54: Animal | AM54: Weather | AN54: New substation establishment | AO54: New line on new route - single circuit
B55: ARR | C55: ANNUAL REPORTING STATEMENT | E55: =LEFT(dms_SingleYear_FinalYear_Result,2)&RIGHT(dms_SingleYear_FinalYear_Result,2) -> 2018 | F55: =LEFT(dms_SingleYear_FinalYear_Result,2)&RIGHT(dms_SingleYear_FinalYear_Result,2) | H55: Formula errors are OK | N55: New line on new route - single circuit | O55: Circuit line length in km | P55: 0's | Q55: 0's | R55: 0's | S55: 0's | T55: 0's | U55: km | V55: km | W55: 0's | X55: days | Y55: minutes/customer | Z55: minutes/customer | AA55: Customer / km | AB55: % | AC55: km | AD55: number | AE55: number | AK55: Animal nesting/burrowing, etc and other | AL55: Asset failure | AM55: Equipment failure | AN55: Capacity upgrade | AO55: New line on new route - dual circuit
B56: CA | C56: CATEGORY ANALYSIS | E56: =LEFT(dms_SingleYear_FinalYear_Result,2)&RIGHT(dms_SingleYear_FinalYear_Result,2) -> 2018 | F56: =LEFT(dms_SingleYear_FinalYear_Result,2)&RIGHT(dms_SingleYear_FinalYear_Result,2) | H56: Formula errors are OK | N56: New line on new route - dual circuit | O56: Circuit line length in km | P56: 0's | Q56: 0's | R56: 0's | S56: 0's | T56: 0's | U56: 0's | V56: 0's | W56: 0's | X56: 0's | Y56: minutes/customer | Z56: minutes/customer | AA56: MWh/customer | AB56: Number of spans | AD56: number | AE56: number | AK56: Other | AL56: Other | AM56: Operational error | AN56: Voltage upgrade | AO56: New line on new route - other
B57: CPI | C57: CPI | N57: New line on new route - other | O57: Circuit line length in km | P57: MVA added | Q57: MVA added | R57: MVA added | S57: MVA added | T57: 0's | U57: km | V57: km | W57: 0's | X57: $0s | Y57: interruptions/customer | Z57: interruptions/customer | AA57: kVA / customer | AB57: Number of spans | AD57: number | AE57: number | AJ57: Asset failure | AK57: LV | AL57: Overloads | AM57: Vegetation | AN57: Other | AO57: Line rebuild over existing route - single circuit
B58: EB | C58: ECONOMIC BENCHMARKING | E58: =LEFT(dms_SingleYear_FinalYear_Result,2)&RIGHT(dms_SingleYear_FinalYear_Result,2) -> 2018 | F58: =LEFT(dms_SingleYear_FinalYear_Result,2)&RIGHT(dms_SingleYear_FinalYear_Result,2) | H58: Formula errors are OK | N58: Line rebuild over existing route - single circuit | O58: Circuit line length in km | P58: 0's | Q58: 0's | R58: 0's | S58: 0's | T58: 0's | U58: km | V58: km | W58: $0s | X58: 0's | Y58: interruptions/customer | Z58: interruptions/customer | AB58: Number of spans | AD58: number | AE58: number | AK58: Distribution substation | AL58: Planned | AM58: Animals | AO58: Line rebuild over existing route - dual circuit
B59: PTRM | C59: POST TAX REVENUE MODEL | E59: =LEFT(dms_MultiYear_FinalYear_Result,2)&RIGHT(dms_MultiYear_FinalYear_Result,2) -> 2025 | F59: =LEFT(dms_MultiYear_FinalYear_Result,2)&RIGHT(dms_MultiYear_FinalYear_Result,2) | N59: Line rebuild over existing route - dual circuit | O59: Number | P59: total spend $0s | Q59: total spend $0s | R59: total spend $0s | S59: total spend $0s | T59: (per cent) | U59: 0's | V59: 0's | AB59: Number of spans | AD59: number | AE59: (per cent) | AK59: HV | AL59: Network business | AM59: Third party impacts | AO59: Reconductor - Single circuit
B60: Reset | C60: REGULATORY REPORTING STATEMENT | E60: =LEFT(dms_MultiYear_FinalYear_Result,2)&RIGHT(dms_MultiYear_FinalYear_Result,2) -> 2025 | F60: =LEFT(dms_MultiYear_FinalYear_Result,2)&RIGHT(dms_MultiYear_FinalYear_Result,2) | H60: Formula errors are OK | N60: Reconductor - Single circuit | O60: Number | P60: net circuit km added | Q60: net circuit km added | R60: net circuit km added | S60: net circuit km added | U60: years | V60: years | AB60: Years | AD60: number | AK60: Zone substation | AL60: Third party | AM60: Transmission failure | AO60: Reconductor - Dual circuit
B61: RFM | C61: ROLL FORWARD MODEL | E61: =LEFT(dms_CRCP_FinalYear_Result,2)&RIGHT(dms_CRCP_FinalYear_Result,2) -> 2018 | F61: =LEFT(dms_CRCP_FinalYear_Result,2)&RIGHT(dms_CRCP_FinalYear_Result,2) | N61: Reconductor - Dual circuit | O61: Number | P61: total spend $0s | Q61: total spend $0s | R61: total spend $0s | S61: total spend $0s | AB61: Years | AD61: number | AK61: Subtransmission | AL61: Unknown | AM61: Load shedding | AO61: Reconductor - Other
B62: WACC | C62: WEIGHTED AVERAGE COST OF CAPITAL | E62: =LEFT(dms_MultiYear_FinalYear_Result,2)&RIGHT(dms_MultiYear_FinalYear_Result,2) -> 2025 | F62: =LEFT(dms_MultiYear_FinalYear_Result,2)&RIGHT(dms_MultiYear_FinalYear_Result,2) | N62: Other | P62: net circuit km added | Q62: net circuit km added | R62: net circuit km added | S62: net circuit km added | AB62: Trees | AD62: number | AJ62: Other | AK62: insert description of 'other' | AL62: Vegetation | AM62: Inter-distributor connection failure | AO62: Line upgrade - raising/retensoring
P63: total spend $0s | Q63: total spend $0s | R63: total spend $0s | S63: total spend $0s | AB63: Trees | AD63: number | AJ63: Overloads | AK63: - | AL63: Weather | AM63: Other | AO63: Line upgrade - voltage upgrade
B64: dms_DataQuality_List | P64: 0's | R64: $0s | AB64: Defects | AD64: number | AJ64: Planned | AK64: - | AL64: 2 - STPIS Exclusion (3.3)(a) | AO64: Line upgrade - capacity
B65: Actual | P65: 0's | AB65: Defects | AD65: number | AJ65: Network business | AK65: Network error | AL65: 3 - STPIS Exclusion (3.3)(a) | AO65: String spare circuit
B66: Estimate | P66: 0's | AB66: Spans | AD66: number | AK66: Switching and protection error | AL66: 4 - STPIS Exclusion (3.3)(a) | AO66: Other
B67: Consolidated | P67: $0s | AB67: km | AD67: (per cent) | AJ67: Third party | AK67: Fire | AL67: 5 - STPIS Exclusion (3.3)(a)
B68: Recast | AB68: Spans | AD68: (per cent) | AK68: Other | AL68: 6 - STPIS Exclusion (3.3)(a)
B69: Public | AK69: Dig-in | AL69: 7 - STPIS Exclusion (3.3)(a)
AK70: Unauthorised access
B71: For all files either AER or business needs to be able to specify the type of submission | C71: For PTRM & RFM templates we must provide a choice in case they change their form of control - otherwise it is drawn from the business specific lookup table above. | O71: For PTRM files - this field set the text for the named range "DMS_Xfactor" which in all cases is simply the text "x factors" - this saves putting in each old gas PTRM file | Y71: for TNSP only | AK71: Vehicle impact
B72: dms_SourceList | C72: dms_FormControl_Choices | O72: DMS_Xfactor | Y72: dms_030601_01_UOM | AA72: dms_030701_01_UOM | AB72: dms_030702_01_UOM | AJ72: Unknown | AK72: Unknown
B73: After appeal | C73: Revenue cap | O73: x factors | Y73: % | AA73: Number of spans | AB73: km | AJ73: Vegetation | AK73: Blow-in/Fall-in - NSP responsibility
B74: Draft decision | C74: Revenue yield | Y74: number | AA74: Years | AB74: % | AK74: Grow-in - NSP responsibility
B75: Final decision | C75: Weighted average price cap | Y75: number | AA75: Trees | AB75: km | AK75: Blow-in/Fall-in - Other responsible party
B76: PTRM update 1 | Y76: % | AA76: Defects | AB76: number | AK76: Grow-in - Other responsible party
B77: PTRM update 2 | Y77: number | AA77: Number of spans | AJ77: Weather
B78: PTRM update 3 | Y78: number | AA78: km | AJ78: 2 - STPIS Exclusion (3.3)(a)
B79: PTRM update 4 | Y79: % | AA79: km | AJ79: 3 - STPIS Exclusion (3.3)(a)
B80: PTRM update 5 | Y80: number | AA80: Number of spans | AJ80: 4 - STPIS Exclusion (3.3)(a)
B81: PTRM update 6 | Y81: number | AJ81: 5 - STPIS Exclusion (3.3)(a)
B82: PTRM update 7 | Y82: % | AJ82: 6 - STPIS Exclusion (3.3)(a)
B83: Regulatory proposal | Y83: number | AJ83: 7 - STPIS Exclusion (3.3)(a)
B84: Reporting | Y84: %
B85: Revised regulatory proposal | Y85: number
Y86: %
Y87: number
B91: These are indeces and lookup values for various dates. All step from the value placed in FRCP_y1 on the business and other details worksheet | C91: =IF(dms_FifthFeeder_flag_NSP="NO","This NSP has only 4 feeder categories","This NSP has 5 feeder categories") -> This NSP has only 4 feeder categories | L91: These date tables are currently used in the Recast templates to provide column headings and conditional formatting
B92: dms_FRCPlength_Num_List | C92: dms_FinalYear_List | D92: dms_CRCPlength_Num_List | E92: dms_CFinalYear_List | F92: dms_FRCP_years | H92: dms_CRCP_years | J92: dms_CRCP_index | L92: CRY from input cell on business sheet | M92: CRY - financial | N92: dms_FinYears | O92: CRY calendar | P92: dms_CalYears | Y92: These "row descriptions" are the column headings in the various templates but become row descriptions in the ETL process
B93: 1 | C93: dms_FRCP_y1 | D93: 1 | E93: CRCP_y1 | F93: =FRCP_y1 -> 2020-21 | G93: dms_FRCP_y1 | H93: =IF(dms_RPT="financial",VALUE(LEFT(dms_FRCP_y1,4)-1)&"-"&TEXT(VALUE(MID(dms_FRCP_y1,3,2)),"00"),VALUE(LEFT(dms_FRCP_y1,4)-1)) -> 2019-20 | I93: dms_CRCP_yZ | J93: 1 | L93: =CRY -> 2017-18 | M93: =VALUE(LEFT(CRY,4))&"-"&TEXT(MID(CRY,3,2)+1,"00") -> 2017-18 | N93: dms_CRYf_y1 | O93: =VALUE(LEFT(CRY,4)+1) -> 2018 | P93: dms_CRYc_y1 | Z93: Table 6.3 sustained interruptions - row descriptions
B94: 2 | C94: dms_FRCP_y2 | D94: 2 | E94: CRCP_y2 | F94: =IF(dms_RPT="financial",VALUE(LEFT(dms_FRCP_y1,4)+1)&"-"&TEXT(VALUE(RIGHT(dms_FRCP_y1,2)+1),"00"),VALUE(LEFT(dms_FRCP_y1,4)+1)) -> 2021-22 | G94: dms_FRCP_y2 | H94: =IF(dms_RPT="financial",VALUE(LEFT(dms_CRCP_yZ,4)-1)&"-"&TEXT(VALUE(MID(dms_CRCP_yZ,3,2)),"00"),VALUE(LEFT(dms_CRCP_yZ,4)-1)) -> 2018-19 | I94: dms_CRCP_yY | J94: 2 | M94: =VALUE(LEFT(dms_CRYf_y1,4)+1)&"-"&TEXT(MID(dms_CRYf_y1,3,2)+2,"00") -> 2018-19 | N94: dms_CRYf_y2 | O94: =VALUE(LEFT(dms_CRYc_y1,4)+1) -> 2019 | P94: dms_CRYc_y2 | Z94: dms_060301_CustNo_Affected_Row | AA94: dms_060301_Avg_Duration_Sustained_Int_Row | AB94: dms_060301_Effect_unplanned_SAIDI_Row | AC94: dms_060301_Effect_unplanned_SAIFI_Row
B95: 3 | C95: =IF(dms_Model="ARR",15,9) | D95: 3 | E95: =IF(dms_Model="ARR",15,9) | F95: =IF(dms_RPT="financial",VALUE(LEFT(dms_FRCP_y2,4)+1)&"-"&TEXT(VALUE(RIGHT(dms_FRCP_y2,2)+1),"00"),VALUE(LEFT(dms_FRCP_y2,4)+1)) -> 2022-23 | G95: dms_FRCP_y3 | H95: =IF(dms_RPT="financial",VALUE(LEFT(dms_CRCP_yY,4)-1)&"-"&TEXT(VALUE(MID(dms_CRCP_yY,3,2)),"00"),VALUE(LEFT(dms_CRCP_yY,4)-1)) -> 2017-18 | I95: dms_CRCP_yX | J95: 3 | M95: =VALUE(LEFT(dms_CRYf_y2,4)+1)&"-"&TEXT(MID(dms_CRYf_y2,3,2)+2,"00") -> 2019-20 | N95: dms_CRYf_y3 | O95: =VALUE(LEFT(dms_CRYc_y2,4)+1) -> 2020 | P95: dms_CRYc_y3 | Z95: Number of customers affected by the interruption | AA95: Average duration of sustained customer interruption | AB95: Effect on unplanned SAIDI | AC95: Effect on unplanned SAIFI
B96: 4 | C96: dms_FRCP_y4 | D96: 4 | E96: CRCP_y4 | F96: =IF(dms_RPT="financial",VALUE(LEFT(dms_FRCP_y3,4)+1)&"-"&TEXT(VALUE(RIGHT(dms_FRCP_y3,2)+1),"00"),VALUE(LEFT(dms_FRCP_y3,4)+1)) -> 2023-24 | G96: dms_FRCP_y4 | H96: =IF(dms_RPT="financial",VALUE(LEFT(dms_CRCP_yX,4)-1)&"-"&TEXT(VALUE(MID(dms_CRCP_yX,3,2)),"00"),VALUE(LEFT(dms_CRCP_yX,4)-1)) -> 2016-17 | I96: dms_CRCP_yW | J96: 4 | M96: =VALUE(LEFT(dms_CRYf_y3,4)+1)&"-"&TEXT(MID(dms_CRYf_y3,3,2)+2,"00") -> 2020-21 | N96: dms_CRYf_y4 | O96: =VALUE(LEFT(dms_CRYc_y3,4)+1) -> 2021 | P96: dms_CRYc_y4
B97: 5 | C97: dms_FRCP_y5 | D97: 5 | E97: CRCP_y5 | F97: =IF(dms_RPT="financial",VALUE(LEFT(dms_FRCP_y4,4)+1)&"-"&TEXT(VALUE(RIGHT(dms_FRCP_y4,2)+1),"00"),VALUE(LEFT(dms_FRCP_y4,4)+1)) -> 2024-25 | G97: dms_FRCP_y5 | H97: =IF(dms_RPT="financial",VALUE(LEFT(dms_CRCP_yW,4)-1)&"-"&TEXT(VALUE(MID(dms_CRCP_yW,3,2)),"00"),VALUE(LEFT(dms_CRCP_yW,4)-1)) -> 2015-16 | I97: dms_CRCP_yV | J97: 5 | M97: =VALUE(LEFT(dms_CRYf_y4,4)+1)&"-"&TEXT(MID(dms_CRYf_y4,3,2)+2,"00") -> 2021-22 | N97: dms_CRYf_y5 | O97: =VALUE(LEFT(dms_CRYc_y4,4)+1) -> 2022 | P97: dms_CRYc_y5
B98: 6 | C98: dms_FRCP_y6 | D98: 6 | E98: CRCP_y6 | F98: =IF(dms_RPT="financial",VALUE(LEFT(dms_FRCP_y5,4)+1)&"-"&TEXT(VALUE(RIGHT(dms_FRCP_y5,2)+1),"00"),VALUE(LEFT(dms_FRCP_y5,4)+1)) -> 2025-26 | G98: dms_FRCP_y6 | H98: =IF(dms_RPT="financial",VALUE(LEFT(dms_CRCP_yV,4)-1)&"-"&TEXT(VALUE(MID(dms_CRCP_yV,3,2)),"00"),VALUE(LEFT(dms_CRCP_yV,4)-1)) -> 2014-15 | I98: dms_CRCP_yU | J98: 6 | M98: =VALUE(LEFT(dms_CRYf_y5,4)+1)&"-"&TEXT(MID(dms_CRYf_y5,3,2)+2,"00") -> 2022-23 | N98: dms_CRYf_y6 | O98: =VALUE(LEFT(dms_CRYc_y5,4)+1) -> 2023 | P98: dms_CRYc_y6
B99: 7 | C99: dms_FRCP_y7 | D99: 7 | E99: CRCP_y7 | F99: =IF(dms_RPT="financial",VALUE(LEFT(dms_FRCP_y6,4)+1)&"-"&TEXT(VALUE(RIGHT(dms_FRCP_y6,2)+1),"00"),VALUE(LEFT(dms_FRCP_y6,4)+1)) -> 2026-27 | G99: dms_FRCP_y7 | H99: =IF(dms_RPT="financial",VALUE(LEFT(dms_CRCP_yU,4)-1)&"-"&TEXT(VALUE(MID(dms_CRCP_yU,3,2)),"00"),VALUE(LEFT(dms_CRCP_yU,4)-1)) -> 2013-14 | I99: dms_CRCP_yT | J99: 7 | M99: =VALUE(LEFT(dms_CRYf_y6,4)+1)&"-"&TEXT(MID(dms_CRYf_y6,3,2)+2,"00") -> 2023-24 | N99: dms_CRYf_y7 | O99: =VALUE(LEFT(dms_CRYc_y6,4)+1) -> 2024 | P99: dms_CRYc_y7 | Z99: Table 6.1 telephone answering - row descriptions and start date
B100: 8 | C100: dms_FRCP_y8 | D100: 8 | E100: CRCP_y8 | F100: =IF(dms_RPT="financial",VALUE(LEFT(dms_FRCP_y7,4)+1)&"-"&TEXT(VALUE(RIGHT(dms_FRCP_y7,2)+1),"00"),VALUE(LEFT(dms_FRCP_y7,4)+1)) -> 2027-28 | G100: dms_FRCP_y8 | H100: =IF(dms_RPT="financial",VALUE(LEFT(dms_CRCP_yT,4)-1)&"-"&TEXT(VALUE(MID(dms_CRCP_yT,3,2)),"00"),VALUE(LEFT(dms_CRCP_yT,4)-1)) -> 2012-13 | I100: dms_CRCP_yS | J100: 8 | M100: =VALUE(LEFT(dms_CRYf_y7,4)+1)&"-"&TEXT(MID(dms_CRYf_y7,3,2)+2,"00") -> 2024-25 | N100: dms_CRYf_y8 | O100: =VALUE(LEFT(dms_CRYc_y7,4)+1) -> 2025 | P100: dms_CRYc_y8 | Z100: dms_060101_Rows | AA100: dms_060102_Rows | AB100: dms_060101_StartDateTxt
B101: 9 | C101: dms_FRCP_y9 | D101: 9 | E101: CRCP_y9 | F101: =IF(dms_RPT="financial",VALUE(LEFT(dms_FRCP_y8,4)+1)&"-"&TEXT(VALUE(RIGHT(dms_FRCP_y8,2)+1),"00"),VALUE(LEFT(dms_FRCP_y8,4)+1)) -> 2028-29 | G101: dms_FRCP_y9 | H101: =IF(dms_RPT="financial",VALUE(LEFT(dms_CRCP_yS,4)-1)&"-"&TEXT(VALUE(MID(dms_CRCP_yS,3,2)),"00"),VALUE(LEFT(dms_CRCP_yS,4)-1)) -> 2011-12 | I101: dms_CRCP_yR | J101: 9 | M101: =VALUE(LEFT(dms_CRYf_y8,4)+1)&"-"&TEXT(MID(dms_CRYf_y8,3,2)+2,"00") -> 2025-26 | N101: dms_CRYf_y9 | O101: =VALUE(LEFT(dms_CRYc_y8,4)+1) -> 2026 | P101: dms_CRYc_y9 | Z101: Total number of calls (after removing excluded events) | AA101: Number of calls answered within 30 seconds (after excluding excluded events) | AB101: =dms_060701_StartDateTxt -> 1-Jul-2017
B102: 10 | C102: =IFERROR(IF(dms_Model="ARR",(MAX(0,dms_0608_LastRow-dms_0608_OffsetRows)),"not an ARR"),"6.8 not present") | D102: 10 | E102: =IFERROR(IF(dms_Model="ARR",(MAX(0,dms_0608_LastRow-dms_0608_OffsetRows)),"not an ARR"),"6.8 not present") | F102: =IF(dms_RPT="financial",VALUE(LEFT(dms_FRCP_y9,4)+1)&"-"&TEXT(VALUE(RIGHT(dms_FRCP_y9,2)+1),"00"),VALUE(LEFT(dms_FRCP_y9,4)+1)) -> 2029-30 | G102: dms_FRCP_y10 | H102: =IF(dms_RPT="financial",VALUE(LEFT(dms_CRCP_yR,4)-1)&"-"&TEXT(VALUE(MID(dms_CRCP_yR,3,2)),"00"),VALUE(LEFT(dms_CRCP_yR,4)-1)) -> 2010-11 | I102: dms_CRCP_yQ | J102: 10 | M102: =VALUE(LEFT(dms_CRYf_y9,4)+1)&"-"&TEXT(MID(dms_CRYf_y9,3,2)+2,"00") -> 2026-27 | N102: dms_CRYf_y10 | O102: =VALUE(LEFT(dms_CRYc_y9,4)+1) -> 2027 | P102: dms_CRYc_y10
B103: 11 | C103: dms_FRCP_y11 | D103: 11 | E103: CRCP_y11 | F103: =IF(dms_RPT="financial",VALUE(LEFT(dms_FRCP_y10,4)+1)&"-"&TEXT(VALUE(RIGHT(dms_FRCP_y10,2)+1),"00"),VALUE(LEFT(dms_FRCP_y10,4)+1)) -> 2030-31 | G103: dms_FRCP_y11 | H103: =IF(dms_RPT="financial",VALUE(LEFT(dms_CRCP_yQ,4)-1)&"-"&TEXT(VALUE(MID(dms_CRCP_yQ,3,2)),"00"),VALUE(LEFT(dms_CRCP_yQ,4)-1)) -> 2009-10 | I103: dms_CRCP_yP | J103: 11 | M103: =VALUE(LEFT(dms_CRYf_y10,4)+1)&"-"&TEXT(MID(dms_CRYf_y10,3,2)+2,"00") -> 2027-28 | N103: dms_CRYf_y11 | O103: =VALUE(LEFT(dms_CRYc_y10,4)+1) -> 2028 | P103: dms_CRYc_y11
B104: 12 | C104: dms_FRCP_y12 | D104: 12 | E104: CRCP_y12 | F104: =IF(dms_RPT="financial",VALUE(LEFT(dms_FRCP_y11,4)+1)&"-"&TEXT(VALUE(RIGHT(dms_FRCP_y11,2)+1),"00"),VALUE(LEFT(dms_FRCP_y11,4)+1)) -> 2031-32 | G104: dms_FRCP_y12 | H104: =IF(dms_RPT="financial",VALUE(LEFT(dms_CRCP_yP,4)-1)&"-"&TEXT(VALUE(MID(dms_CRCP_yP,3,2)),"00"),VALUE(LEFT(dms_CRCP_yP,4)-1)) -> 2008-09 | I104: dms_CRCP_yO | J104: 12 | M104: =VALUE(LEFT(dms_CRYf_y11,4)+1)&"-"&TEXT(MID(dms_CRYf_y11,3,2)+2,"00") -> 2028-29 | N104: dms_CRYf_y12 | O104: =VALUE(LEFT(dms_CRYc_y11,4)+1) -> 2029 | P104: dms_CRYc_y12
B105: 13 | C105: dms_FRCP_y13 | D105: 13 | E105: CRCP_y13 | F105: =IF(dms_RPT="financial",VALUE(LEFT(dms_FRCP_y12,4)+1)&"-"&TEXT(VALUE(RIGHT(dms_FRCP_y12,2)+1),"00"),VALUE(LEFT(dms_FRCP_y12,4)+1)) -> 2032-33 | G105: dms_FRCP_y13 | H105: =IF(dms_RPT="financial",VALUE(LEFT(dms_CRCP_yO,4)-1)&"-"&TEXT(VALUE(MID(dms_CRCP_yO,3,2)),"00"),VALUE(LEFT(dms_CRCP_yO,4)-1)) -> 2007-08 | I105: dms_CRCP_yN | J105: 13 | M105: =VALUE(LEFT(dms_CRYf_y12,4)+1)&"-"&TEXT(MID(dms_CRYf_y12,3,2)+2,"00") -> 2029-30 | N105: dms_CRYf_y13 | O105: =VALUE(LEFT(dms_CRYc_y12,4)+1) -> 2030 | P105: dms_CRYc_y13 | AE105: dms_0603_FeederList | AF105: =INDEX(dms_FeederName_1,MATCH(dms_TradingName,dms_TradingName_List)) -> CBD | AG105: =INDEX(dms_FeederName_2,MATCH(dms_TradingName,dms_TradingName_List)) -> Urban | AH105: =INDEX(dms_FeederName_3,MATCH(dms_TradingName,dms_TradingName_List)) -> Short rural | AI105: =INDEX(dms_FeederName_4,MATCH(dms_TradingName,dms_TradingName_List)) -> Long rural
B106: 14 | C106: dms_FRCP_y14 | D106: 14 | E106: CRCP_y14 | F106: =IF(dms_RPT="financial",VALUE(LEFT(dms_FRCP_y13,4)+1)&"-"&TEXT(VALUE(RIGHT(dms_FRCP_y13,2)+1),"00"),VALUE(LEFT(dms_FRCP_y13,4)+1)) -> 2033-34 | G106: dms_FRCP_y14 | H106: =IF(dms_RPT="financial",VALUE(LEFT(dms_CRCP_yN,4)-1)&"-"&TEXT(VALUE(MID(dms_CRCP_yN,3,2)),"00"),VALUE(LEFT(dms_CRCP_yN,4)-1)) -> 2006-07 | I106: dms_CRCP_yM | J106: 14 | M106: =VALUE(LEFT(dms_CRYf_y13,4)+1)&"-"&TEXT(MID(dms_CRYf_y13,3,2)+2,"00") -> 2030-31 | N106: dms_CRYf_y14 | O106: =VALUE(LEFT(dms_CRYc_y13,4)+1) -> 2031 | P106: dms_CRYc_y14 | Z106: Table 6.7.1 - daily performance data - unplanned - MAIFI -- row descriptions and header named range values
B107: 15 | C107: dms_FRCP_y15 | D107: 15 | E107: CRCP_y15 | F107: =IF(dms_RPT="financial",VALUE(LEFT(dms_FRCP_y14,4)+1)&"-"&TEXT(VALUE(RIGHT(dms_FRCP_y14,2)+1),"00"),VALUE(LEFT(dms_FRCP_y14,4)+1)) -> 2034-35 | G107: dms_FRCP_y15 | H107: =IF(dms_RPT="financial",VALUE(LEFT(dms_CRCP_yM,4)-1)&"-"&TEXT(VALUE(MID(dms_CRCP_yM,3,2)),"00"),VALUE(LEFT(dms_CRCP_yM,4)-1)) -> 2005-06 | I107: dms_CRCP_yL | J107: 15 | M107: =VALUE(LEFT(dms_CRYf_y14,4)+1)&"-"&TEXT(MID(dms_CRYf_y14,3,2)+2,"00") -> 2031-32 | N107: dms_CRYf_y15 | O107: =VALUE(LEFT(dms_CRYc_y14,4)+1) -> 2032 | P107: dms_CRYc_y15 | Z107: These headings (Lists) are determined from the INDEX/MATCH function on the NSP selected on the Business & other details sheet
M108: =VALUE(LEFT(dms_CRYf_y15,4)+1)&"-"&TEXT(MID(dms_CRYf_y15,3,2)+2,"00") -> 2032-33 | N108: dms_CRYf_y16 | O108: =VALUE(LEFT(dms_CRYc_y15,4)+1) -> 2033 | P108: dms_CRYc_y16 | Y108: dms_060701_Feeder_Header_Lvl4 | Z108: =INDEX(dms_FeederName_1,MATCH(dms_TradingName,dms_TradingName_List)) -> CBD | AA108: =INDEX(dms_FeederName_1,MATCH(dms_TradingName,dms_TradingName_List)) -> CBD | AB108: =INDEX(dms_FeederName_2,MATCH(dms_TradingName,dms_TradingName_List)) -> Urban | AC108: =INDEX(dms_FeederName_2,MATCH(dms_TradingName,dms_TradingName_List)) -> Urban | AD108: =INDEX(dms_FeederName_3,MATCH(dms_TradingName,dms_TradingName_List)) -> Short rural | AE108: =INDEX(dms_FeederName_3,MATCH(dms_TradingName,dms_TradingName_List)) -> Short rural | AF108: =INDEX(dms_FeederName_4,MATCH(dms_TradingName,dms_TradingName_List)) -> Long rural | AG108: =INDEX(dms_FeederName_4,MATCH(dms_TradingName,dms_TradingName_List)) -> Long rural | AH108: =IF((INDEX(dms_FeederName_5,MATCH(dms_TradingName,dms_TradingName_List))=0),"Network",(INDEX(dms_FeederName_5,MATCH(dms_TradingName,dms_TradingName_List)))) -> Network | AI108: =IF((INDEX(dms_FeederName_5,MATCH(dms_TradingName,dms_TradingName_List))=0),"Network",(INDEX(dms_FeederName_5,MATCH(dms_TradingName,dms_TradingName_List)))) -> Network | AJ108: Network | AK108: Network
B109: These are drop down lists for businesses to select the correct FRCP_y1 on the business and other details worksheet. This also populates the column headings in the worksheets | M109: =VALUE(LEFT(dms_CRYf_y16,4)+1)&"-"&TEXT(MID(dms_CRYf_y16,3,2)+2,"00") -> 2033-34 | N109: dms_CRYf_y17 | O109: =VALUE(LEFT(dms_CRYc_y16,4)+1) -> 2034 | P109: dms_CRYc_y17
B110: dms_RCP_fyear_list | C110: dms_CRY_ListF | D110: dms_CRY_ListC | E110: dms_RCP_cyear_list | F110: dms_FRCP_fyear_list | G110: dms_FRCP_ListF | H110: dms_FRCP_ListC | I110: dms_FRCP_cyear_list | M110: =VALUE(LEFT(dms_CRYf_y17,4)+1)&"-"&TEXT(MID(dms_CRYf_y17,3,2)+2,"00") -> 2034-35 | N110: dms_CRYf_y18 | O110: =VALUE(LEFT(dms_CRYc_y17,4)+1) -> 2035 | P110: dms_CRYc_y18 | Y110: dms_060701_Rows | Z110: All events | AA110: After removing excluded events | AB110: All events | AC110: After removing excluded events | AD110: All events | AE110: After removing excluded events | AF110: All events | AG110: After removing excluded events | AH110: All events | AI110: After removing excluded events | AJ110: All events | AK110: After removing excluded events
B111: dms_fy1 | C111: 2005-06 | D111: 2006 | E111: dms_cy1 | F111: dms_frcp_fy1 | G111: 2010-11 | H111: 2011 | I111: dms_crcp_cy1 | M111: =VALUE(LEFT(dms_CRYf_y18,4)+1)&"-"&TEXT(MID(dms_CRYf_y18,3,2)+2,"00") -> 2035-36 | N111: dms_CRYf_y19 | O111: =VALUE(LEFT(dms_CRYc_y18,4)+1) -> 2036 | P111: dms_CRYc_y19 | Z111: the number of column headings changes from 10 to 12 depending on the number of feeder categories for the NSP
B112: dms_fy2 | C112: 2006-07 | D112: 2007 | E112: dms_cy2 | F112: dms_frcp_fy2 | G112: 2011-12 | H112: 2012 | I112: dms_crcp_cy2 | M112: =VALUE(LEFT(dms_CRYf_y19,4)+1)&"-"&TEXT(MID(dms_CRYf_y19,3,2)+2,"00") -> 2036-37 | N112: dms_CRYf_y20 | O112: =VALUE(LEFT(dms_CRYc_y19,4)+1) -> 2037 | P112: dms_CRYc_y20
B113: dms_fy3 | C113: 2007-08 | D113: 2008 | E113: dms_cy3 | F113: dms_frcp_fy3 | G113: 2012-13 | H113: 2013 | I113: dms_crcp_cy3
B114: dms_fy4 | C114: 2008-09 | D114: 2009 | E114: dms_cy4 | F114: dms_frcp_fy4 | G114: 2013-14 | H114: 2014 | I114: dms_crcp_cy4
B115: dms_fy5 | C115: 2009-10 | D115: 2010 | E115: dms_cy5 | F115: dms_frcp_fy5 | G115: 2014-15 | H115: 2015 | I115: dms_crcp_cy5
B116: dms_fy6 | C116: 2010-11 | D116: 2011 | E116: dms_cy6 | F116: dms_frcp_fy6 | G116: 2015-16 | H116: 2016 | I116: dms_crcp_cy6 | Z116: Table 6.8.1 - row descriptions
B117: dms_fy7 | C117: 2011-12 | D117: 2012 | E117: dms_cy7 | F117: dms_frcp_fy7 | G117: 2016-17 | H117: 2017 | I117: dms_crcp_cy7 | Z117: dms_060801_01_Rows | AA117: dms_060801_02_Rows | AB117: dms_060801_03_Rows | AC117: dms_060801_04_Rows
B118: dms_fy8 | C118: 2012-13 | D118: 2013 | E118: dms_cy8 | F118: dms_frcp_fy8 | G118: 2017-18 | H118: 2018 | I118: dms_crcp_cy8 | L118: 2005-06 | M118: 2006 | Z118: Number of interruptions | AA118: Duration of interruptions | AB118: Total unplanned minutes off supply | AC118: Effect on unplanned MAIFI
B119: dms_fy9 | C119: 2013-14 | D119: 2014 | E119: dms_cy9 | F119: dms_frcp_fy9 | G119: 2018-19 | H119: 2019 | I119: dms_crcp_cy9 | L119: 2006-07 | M119: 2007
B120: dms_fy10 | C120: 2014-15 | D120: 2015 | E120: dms_cy10 | F120: dms_frcp_fy10 | G120: 2019-20 | H120: 2020 | I120: dms_crcp_cy10 | L120: 2007-08 | M120: 2008
B121: dms_fy11 | C121: 2015-16 | D121: 2016 | E121: dms_cy11 | F121: dms_frcp_fy11 | G121: 2020-21 | H121: 2021 | I121: dms_crcp_cy11 | L121: 2008-09 | M121: 2009
B122: dms_fy12 | C122: 2016-17 | D122: 2017 | E122: dms_cy12 | F122: dms_frcp_fy12 | G122: 2021-22 | H122: 2022 | I122: dms_crcp_cy12 | L122: 2009-10 | M122: 2010
B123: dms_fy13 | C123: 2017-18 | D123: 2018 | E123: dms_cy13 | F123: dms_frcp_fy13 | G123: 2022-23 | H123: 2023 | I123: dms_crcp_cy13 | L123: 2010-11 | M123: 2011 | Z123: Table 7.9.4 - market impact component - row descriptions
B124: dms_fy14 | C124: 2018-19 | D124: 2019 | E124: dms_cy14 | F124: dms_frcp_fy14 | G124: 2023-24 | H124: 2024 | I124: dms_crcp_cy14 | L124: 2011-12 | M124: 2012 | Y124: dms_070904_01_Rows | Z124: without exclusions | AA124: with exclusions
B125: dms_fy15 | C125: 2019-20 | D125: 2020 | E125: dms_cy15 | F125: dms_frcp_fy15 | G125: 2024-25 | H125: 2025 | I125: dms_crcp_cy15 | L125: 2012-13 | M125: 2013
B126: dms_fy16 | C126: 2020-21 | D126: 2021 | E126: dms_cy16 | L126: 2013-14 | M126: 2014
B127: dms_fy17 | C127: 2021-22 | D127: 2022 | E127: dms_cy17 | L127: 2014-15 | M127: 2015
B128: dms_fy18 | C128: 2022-23 | D128: 2023 | E128: dms_cy18 | L128: 2015-16 | M128: 2016
B129: dms_fy19 | C129: 2023-24 | D129: 2024 | E129: dms_cy19 | L129: 2016-17 | M129: 2017 | Z129: Use this to add to existing files
B130: dms_fy20 | C130: 2024-25 | D130: 2025 | E130: dms_cy20 | L130: 2017-18 | M130: 2018 | Z130: ARR's 6.8 STPIS exclusions
L131: 2018-19 | M131: 2019 | Z131: dms_060801_Event_Date | AA131: dms_060801_OutageID | AB131: dms_060801_FeederID | AC131: dms_060801_FeederClass | AD131: dms_060801_CauseID | AE131: dms_060801_01_Values | AF131: dms_060801_02_Values | AG131: dms_060801_03_Values | AH131: dms_060801_Excl_Cat | AI131: dms_060801_04_Values
L132: 2019-20 | M132: 2020
L133: 2020-21 | M133: 2021
L134: 2021-22 | M134: 2022 | Z134: CA 6.3 sustained interruptions
L135: 2022-23 | M135: 2023 | Z135: dms_060301_Event_Date | AA135: dms_060301_Event_Time | AB135: dms_060301_AssetID | AC135: dms_060301_FeederClass | AD135: dms_060301_Reason | AE135: dms_060301_DetailedReason | AF135: dms_060301_CustNo_Affected_Values | AG135: dms_060301_Avg_Duration_Sustained_Int_Values | AH135: dms_060301_Effect_unplanned_SAIDI_Values | AI135: dms_060301_Effect_unplanned_SAIFI_Values | AJ135: dms_060301_MED
L136: 2023-24 | M136: 2024
L137: 2024-25 | M137: 2025
L138: 2025-26 | M138: 2026
L139: 2026-27 | M139: 2027
L140: 2027-28 | M140: 2028
L141: 2028-29 | M141: 2029
L142: 2029-30 | M142: 2030
L143: 2030-31 | M143: 2031
L144: 2031-32 | M144: 2032
L145: 2032-33 | M145: 2033
L146: 2033-34 | M146: 2034
L147: 2034-35 | M147: 2035
L148: 2035-36 | M148: 2036

Sheet Instructions
B2: =CONCATENATE(dms_Segment," Network Service Provider") -> Distribution Network Service Provider
B3: Annual Reporting RIN Template
C4: =CONCATENATE("This template is to be used by ",dms_TradingName," to fulfil its reporting obligations to the AER.") -> This template is to be used by Power and Water to fulfil its reporting obligations to the AER.
C5: INSTRUCTIONS
C6: Complete the Business & other details worksheet before entering data or values in any other worksheets. The Business & other details worksheet is linked to other worksheets within the workbook and automatically generates certain column headings and conditional formatting.
C8: Identifying CONFIDENTIAL INFORMATION: Please use the macro at the top of each worksheet to identify confidential information.
C9: -Do this by selecting the cell or cells that contain confidential information and then run the Mark selection CONFIDENTIAL macro. This will format the cells a specific colour that is identified by the AER's database which in turn marks that information as confidential. -To reverse this, select the cell or cells and run the Return selection to NON-CONFIDENTIAL macro.
C11: UNITS OF MEASURE All amounts are to be unrounded and reported on a one for one basis: that is 1000 is to be entered as '1000'. Applicable units of measure may be identified in the table column headings or row descriptors.
C13: COLOUR CODING OF INPUT / NON-INPUT CELLS:
D14: Yellow = Input cell (mandatory)
D15: Darker yellow = input cell (mandatory)
D16: Orange = input cell (if data available)
D17: Grey = Not applicable/No inputs required
D18: PLEASE DO NOT ENTER TEXT into cells that are to contain numeric data.
C21: WORKSHEET NAVIGATION Many tables in the worksheets have been "grouped" to allow for easy navigation. To ungroup or group data use the outline symbols in the left margin of excel (for Row groupings) or above the columns (for column groupings).
C23: RETURNING COMPLETED RESPONSES Please return four (4) files - using the locked template - to the AER: 1. A confidential version which must contain a complete set of all responses with confidential information marked using the Mark selection CONFIDENTIAL macro. 2. An actual and an estimate version with confidential information marked using the Mark selection CONFIDENTIAL macro and which has been completed using the locked template file provided by the AER. 3. A public version with confidential information either removed completely or aggregated in some form together with writtten consent to disclose the public version of the response. Use the drop down box on the Business and other details worksheet to identify the file as either confidential ('consolidated') or public. If the confidential and public versions of the consolidated file are exactly the same, only the public version of the file needs to be submitted to the AER.
C25: SUBMITTING AMENDED DATA TO THE AER If an NSP wishes to correct data previously submitted to the AER it should resubmit that data using the original completed submission as the starting point. Please make any necessary changes to the data. Data that is not being amended should be left unchanged. NSPs must identify the reason for the amendments in the Amendment Reason box on the Business and other details worksheet. NSPs may provide further details regarding any amendments in the Amendments worksheet. .
C26: NSP may use Amended Data macro to highlight cells that contain amended data. NB: if data is also CONFIDENTIAL, re-apply the Confidentiality macro after applying the Amended macro
C27: Please resubmit two (2) files - a confidential version and a public version of the amended submission to the AER

Sheet Contents
B1: REGULATORY REPORTING STATEMENT
B2: =INDEX(dms_TradingNameFull_List,MATCH(dms_TradingName,dms_TradingName_List)) -> Power and Water Corporation
B3: =CONCATENATE((LOOKUP(dms_Model,dms_Model_List,dms_Worksheet_List))&" "&CRY) -> CATEGORY ANALYSIS 2017-18
B4: CONTENTS
E7: 1. Business details | L7: 2. Expenditure
E27: 4. Alternative control services | L27: 5. Network information | S27: 6. Service & quality
L34: 8. Capex | S34: 9. TAX

Sheet Business & other details
B1: =IF(dms_DataQuality="backcast",INDEX(dms_Worksheet_List,MATCH(dms_Model,dms_Model_List))&" BACKCAST",INDEX(dms_Worksheet_List,MATCH(dms_Model,dms_Model_List))) -> CATEGORY ANALYSIS
B2: =INDEX(dms_TradingNameFull_List,MATCH(dms_TradingName,dms_TradingName_List)) -> Power and Water Corporation
B3: =IF(SUM(dms_SingleYear_Model)>0,CONCATENATE(CRY),CONCATENATE(FRCP_y1," to ",dms_MultiYear_FinalYear_Result)) -> 2017-18
B4: BUSINESS & OTHER DETAILS
B7: Instructions
B8: Complete the following business details regulatory template before entering data or values in any other regulatory template. This regulatory template is linked to other cells within the spreadsheet and automatically generates column headings and conditional formatting to distinguish business specific input and non-input cells.
B10: SUBMISSION PARTICULARS INPUT SHEETS
B12: ENTITY DETAILS
B14: Short name | C14: Power and Water | F14: Select business name from drop down list first
B15: ACN / ABN | C15: =INDEX(dms_ABN_List,MATCH(dms_TradingName,dms_TradingName_List)) -> 15947352360
B18: Business address | C18: Address 1 | E18: =INDEX(dms_Addr1_List,MATCH(dms_TradingName,dms_TradingName_List)) -> GPO Box 1921
D19: Address 2 | E19: =IF(ISBLANK(INDEX(dms_Addr2_List,MATCH(dms_TradingName,dms_TradingName_List))),"",(INDEX(dms_Addr2_List,MATCH(dms_TradingName,dms_TradingName_List)))) -> 
C20: Suburb | E20: =INDEX(dms_Suburb_List,MATCH(dms_TradingName,dms_TradingName_List)) -> DARWIN
D21: State | E21: =INDEX(dms_State_List,MATCH(dms_TradingName,dms_TradingName_List)) -> NT | F21: p/code | G21: =INDEX(dms_PostCode_List,MATCH(dms_TradingName,dms_TradingName_List)) -> 801
B23: Postal address | C23: Address 1 | E23: =INDEX(dms_PAddr1_List,MATCH(dms_TradingName,dms_TradingName_List)) -> GPO Box 1921
D24: Address 2 | E24: =IF(ISBLANK(INDEX(dms_PAddr2_List,MATCH(dms_TradingName,dms_TradingName_List))),"",(INDEX(dms_PAddr2_List,MATCH(dms_TradingName,dms_TradingName_List)))) -> 
C25: Suburb | E25: =INDEX(dms_PSuburb_List,MATCH(dms_TradingName,dms_TradingName_List)) -> DARWIN
D26: State | E26: =INDEX(dms_PState_List,MATCH(dms_TradingName,dms_TradingName_List)) -> NT | F26: p/code | G26: =INDEX(dms_PPostCode_List,MATCH(dms_TradingName,dms_TradingName_List)) -> 801
B29: Contact name/s | C29: Jodi Triggs
B30: Contact phone/s
B31: Contact email address/s
B33: REGULATORY CONTROL PERIODS
B35: Forthcoming regulatory control period | C35: 2020-21 | D35: =dms_FRCP_y2 -> 2021-22 | E35: =dms_FRCP_y3 -> 2022-23 | F35: =dms_FRCP_y4 -> 2023-24 | G35: =dms_FRCP_y5 -> 2024-25
C36: =dms_FRCP_y6 -> 2025-26 | D36: =dms_FRCP_y7 -> 2026-27 | E36: =dms_FRCP_y8 -> 2027-28 | F36: =dms_FRCP_y9 -> 2028-29 | G36: =dms_FRCP_y10 -> 2029-30
B39: Current regulatory control period | C39: =dms_CRCP_FirstYear_Result -> 2015-16 | D39: =IF(dms_RPT="financial",VALUE(LEFT(CRCP_y1,4)+1)&"-"&TEXT(MID(CRCP_y1,3,2)+2,"00"),VALUE(LEFT(CRCP_y1,4)+1)) -> 2016-17 | E39: =IF(dms_RPT="financial",VALUE(LEFT(CRCP_y1,4)+2)&"-"&TEXT(VALUE(MID(CRCP_y1,3,2)+3),"00"),VALUE(LEFT(CRCP_y1,4)+2)) -> 2017-18 | F39: =IF(dms_RPT="financial",VALUE(LEFT(CRCP_y1,4)+3)&"-"&TEXT(MID(CRCP_y1,3,2)+4,"00"),VALUE(LEFT(CRCP_y1,4)+3)) -> 2018-19 | G39: =IF(dms_RPT="financial",VALUE(LEFT(CRCP_y1,4)+4)&"-"&TEXT(MID(CRCP_y1,3,2)+5,"00"),VALUE(LEFT(CRCP_y1,4)+4)) -> 2019-20
C40: =IF(dms_RPT="financial",VALUE(LEFT(CRCP_y1,4)+5)&"-"&TEXT(MID(CRCP_y1,3,2)+6,"00"),VALUE(LEFT(CRCP_y1,4)+5)) -> 2020-21 | D40: =IF(dms_RPT="financial",VALUE(LEFT(CRCP_y1,4)+6)&"-"&TEXT(MID(CRCP_y1,3,2)+7,"00"),VALUE(LEFT(CRCP_y1,4)+6)) -> 2021-22 | E40: =IF(dms_RPT="financial",VALUE(LEFT(CRCP_y1,4)+7)&"-"&TEXT(MID(CRCP_y1,3,2)+8,"00"),VALUE(LEFT(CRCP_y1,4)+7)) -> 2022-23 | F40: =IF(dms_RPT="financial",VALUE(LEFT(CRCP_y1,4)+8)&"-"&TEXT(MID(CRCP_y1,3,2)+9,"00"),VALUE(LEFT(CRCP_y1,4)+8)) -> 2023-24 | G40: =IF(dms_RPT="financial",VALUE(LEFT(CRCP_y1,4)+9)&"-"&TEXT(MID(CRCP_y1,3,2)+10,"00"),VALUE(LEFT(CRCP_y1,4)+9)) -> 2024-25
C41: =IF(dms_RPT="financial",VALUE(LEFT(CRCP_y1,4)+10)&"-"&TEXT(MID(CRCP_y1,3,2)+11,"00"),VALUE(LEFT(CRCP_y1,4)+10)) -> 2025-26 | D41: =IF(dms_RPT="financial",VALUE(LEFT(CRCP_y1,4)+11)&"-"&TEXT(MID(CRCP_y1,3,2)+12,"00"),VALUE(LEFT(CRCP_y1,4)+11)) -> 2026-27 | E41: =IF(dms_RPT="financial",VALUE(LEFT(CRCP_y1,4)+12)&"-"&TEXT(MID(CRCP_y1,3,2)+13,"00"),VALUE(LEFT(CRCP_y1,4)+12)) -> 2027-28 | F41: =IF(dms_RPT="financial",VALUE(LEFT(CRCP_y1,4)+13)&"-"&TEXT(MID(CRCP_y1,3,2)+14,"00"),VALUE(LEFT(CRCP_y1,4)+13)) -> 2028-29 | G41: =IF(dms_RPT="financial",VALUE(LEFT(CRCP_y1,4)+14)&"-"&TEXT(MID(CRCP_y1,3,2)+15,"00"),VALUE(LEFT(CRCP_y1,4)+14)) -> 2029-30
B44: Previous regulatory control period | C44: =IF(dms_RPT="financial",VALUE(LEFT(PRCP_y2,4)-1)&"-"&TEXT(VALUE(MID(PRCP_y2,3,2)),"00"),VALUE(LEFT(PRCP_y2,4)-1)) -> 2010-11 | D44: =IF(dms_RPT="financial",VALUE(LEFT(PRCP_y3,4)-1)&"-"&TEXT(VALUE(MID(PRCP_y3,3,2)),"00"),VALUE(LEFT(PRCP_y3,4)-1)) -> 2011-12 | E44: =IF(dms_RPT="financial",VALUE(LEFT(PRCP_y4,4)-1)&"-"&TEXT(VALUE(MID(PRCP_y4,3,2)),"00"),VALUE(LEFT(PRCP_y4,4)-1)) -> 2012-13 | F44: =IF(dms_RPT="financial",VALUE(LEFT(PRCP_y5,4)-1)&"-"&TEXT(VALUE(RIGHT(PRCP_y5,2)-1),"00"),VALUE(LEFT(PRCP_y5,4)-1)) -> 2013-14 | G44: =IF(dms_RPT="financial",VALUE(LEFT(CRCP_y1,4)-1)&"-"&TEXT(VALUE(RIGHT(CRCP_y1,2)-1),"00"),VALUE(LEFT(CRCP_y1,4)-1)) -> 2014-15
B48: Commencing regulatory year | C48: 2017-18 | D48: CRY
B50: Last completed regulatory year | C50: 2017-18 | D50: dms_FinalYear
C54: IF THIS IS AN ABC RIN - make sure the the named range CRY is applied and the named range dms_dollar_nom_UOM is applied
C55: IF THIS IS A RESET RIN - make sure the named ranges CRY and dms_dollar_nom_UOM are NOT present in the workbook
C56: FOR ABC RINS THAT SPAN MULTIPLE YEARS - make sure MultiYear Flag is set and final year entered as required
B58: Source | C58: Reporting | E58: Please select the correct submission type from the dropdown list.
B59: Data quality (actual, estimate, public, consolidated) | C59: Consolidated | E59: Use Consolidated for Consolidated Confidential version Use Public for Consolidated Public version
B60: Amended RIN submission - amendment reason | C60: 20190906 - updated confidentiality for 4.2.2 D19/138370
B61: Submission Date | C61: 2019-09-06 | D61: dms_SubmissionDate | E61: Please enter date this file submitted to AER (dd/mm/yyyy)
B62: EBSS - First application of scheme in forthcoming period? | C62: No
B63: Sector | C63: =INDEX(dms_Sector_List,MATCH(dms_TradingName,dms_TradingName_List)) -> Electricity | D63: dms_Sector | E63: =INDEX(dms_Sector_List,MATCH(dms_TradingName,dms_TradingName_List))
B64: Segment | C64: =INDEX(dms_Segment_List,MATCH(dms_TradingName,dms_TradingName_List)) -> Distribution | D64: dms_Segment | E64: =INDEX(dms_Segment_List,MATCH(dms_TradingName,dms_TradingName_List))
B65: Regulatory Year Ending | C65: =IF(dms_MultiYear_Flag=1,LEFT(dms_Specified_FinalYear,2)&RIGHT(dms_Specified_FinalYear,2),INDEX(dms_RYE_Formula_Result,MATCH(dms_Model,dms_Model_List))) -> 2018 | D65: dms_RYE | E65: =IF(dms_MultiYear_Flag=1,LEFT(dms_Specified_FinalYear,2)&RIGHT(dms_Specified_FinalYear,2),INDEX(dms_RYE_Formula_Result,MATCH(dms_Model,dms_Model_List)))
B66: Reporting Period Type | C66: =INDEX(dms_RPT_List,MATCH(dms_TradingName,dms_TradingName_List)) -> Financial | D66: dms_RPT | E66: =INDEX(dms_RPT_List,MATCH(dms_TradingName,dms_TradingName_List))
B67: Model or RIN Type | C67: CA | D67: dms_Model | E67: Drop down selection
B68: EB/CA Unit of Measure for Monetary Values | C68: $0s | D68: dms_dollar_nom_UOM | E68: If the cover sheet is attached to an ABC RIN make the NAMED RANGE on this field is set
B69: Security Classification | C69: Public | D69: dms_Classification | E69: Always Public
B70: Jurisdiction | C70: =INDEX(dms_JurisdictionList,MATCH(dms_TradingName,dms_TradingName_List)) -> NT | D70: dms_Jurisdiction | E70: =INDEX(dms_JurisdictionList,MATCH(dms_TradingName,dms_TradingName_List))
B71: FOR RESET RINS
B72: CRY-1 | C72: =VALUE(LEFT(CRY,4)-1) -> 2016 | D72: dms_Left_CRY_minus1 | E72: =VALUE(LEFT(CRY,4)-1) | G72: Not used in Reset RINS but may be useful in other cases
B73: Dollar $ real month | C73: =INDEX(dms_RPTMonth_List,MATCH(dms_TradingName,dms_TradingName_List)) -> June | D73: dms_RPTMonth | E73: =INDEX(dms_RPTMonth_List,MATCH(dms_TradingName,dms_TradingName_List))
B74: Dollar $ real (the last month before the FRCP_y1) | C74: =IF(SUM(dms_SingleYear_Model)>0,CONCATENATE(dms_RPTMonth)&" "&VALUE((LEFT(CRY,2))&RIGHT(CRY,2)),CONCATENATE(dms_RPTMonth)&" "&VALUE((LEFT(dms_CRCP_FinalYear_Result,2)&RIGHT(dms_CRCP_FinalYear_Result,2)))) -> June 2018 | D74: dms_DollarReal | E74: =IF(SUM(dms_SingleYear_Model)>0,CONCATENATE(dms_RPTMonth)&" "&VALUE((LEFT(CRY,2))&RIGHT(CRY,2)),CONCATENATE(dms_RPTMonth)&" "&VALUE((LEFT(dms_CRCP_FinalYear_Result,2)&RIGHT(dms_CRCP_FinalYear_Result,2))))
B75: Dollar $ real previous year (PRCP_y5) | C75: =IF(SUM(dms_SingleYear_Model)>0,CONCATENATE(dms_RPTMonth)&" "&VALUE(((LEFT(CRY,2))&RIGHT(CRY,2))-1),CONCATENATE(dms_RPTMonth)&" "&VALUE(((LEFT(dms_CRCP_FirstYear_Result,2)&RIGHT(dms_CRCP_FirstYear_Result,2))))-1) -> June 2017 | D75: dms_DollarReal_Prev | E75: =IF(SUM(dms_SingleYear_Model)>0,CONCATENATE(dms_RPTMonth)&" "&VALUE(((LEFT(CRY,2))&RIGHT(CRY,2))-1),CONCATENATE(dms_RPTMonth)&" "&VALUE(((LEFT(dms_CRCP_FirstYear_Result,2)&RIGHT(dms_CRCP_FirstYear_Result,2))))-1)
B76: FOR PTRM/ RFMs
B77: Form of control | C77: =INDEX(dms_FormControl_List,MATCH(dms_TradingName,dms_TradingName_List)) -> Revenue cap | D77: dms_FormControl | E77: =INDEX(dms_FormControl_List,MATCH(dms_TradingName,dms_TradingName_List))
B78: FOR EB RINS
B79: Calendar Year for table 3.6 data | C79: =VALUE(dms_RYE)-1 -> 2017 | D79: dms_0306_Year | E79: =VALUE(dms_RYE)-1
B80: FOR ABC RINS THAT SPAN MULTIPLE YEARS
B81: Is this a multi year ABC RIN? | C81: No
B82: Backcast Multiyear EB, CA or ARR? | C82: =IF(dms_MultiYear_ResponseFlag="No",0,1) -> 0 | D82: dms_MultiYear_Flag | E82: This is set from the answer provided above
C83: =IF(dms_MultiYear_Flag=1,"Specify Final Reg Year here eg 2016 or 2015-16","not a Multi Reg Year submission") -> not a Multi Reg Year submission | D83: dms_Specified_FinalYear | E83: The result here is returned to dms_CRCP_FinalYear_Result if response to Q in C73 is "yes" and dms_MultiYear_Flag is set to 1
B84: This block works out the various RYE's for ALL RIN types and MODELS
B85: Single Year Model T/F | C85: =IF(dms_Model="EB",1,0) -> 0 | D85: dms_EB
C86: =IF(dms_Model="CA",1,0) -> 1 | D86: dms_CA | E86: =dms_SingleYear_Model
C87: =IF(dms_Model="ARR",1,0) -> 0 | D87: dms_ARR
B88: Single Year Final Year Reference | C88: CRY | D88: dms_SingleYear_FinalYear_Ref | E88: This is the reference for EB, CA & ARR RINs
B89: Single Year Final Year Result | C89: =IFERROR(IF(SUM(dms_SingleYear_Model)<>0,(INDIRECT(dms_SingleYear_FinalYear_Ref)),"not a single year RIN"),"CRY not present") -> 2017-18 | D89: dms_SingleYear_FinalYear_Result | E89: =IFERROR(IF(SUM(dms_SingleYear_Model)<>0,(INDIRECT(dms_SingleYear_FinalYear_Ref)),"not a single year RIN"),"CRY not present")
B90: FRCP length in years | C90: =INDEX(dms_FRCPlength_List,MATCH(dms_TradingName,dms_TradingName_List)) -> 5 | D90: dms_FRCPlength_Num | E90: =INDEX(dms_FRCPlength_List,MATCH(dms_TradingName,dms_TradingName_List))
B91: Multi Year Final Year Reference | C91: =INDEX(dms_FinalYear_List,MATCH(dms_FRCPlength_Num,dms_FRCPlength_Num_List)) -> dms_FRCP_y5 | D91: dms_MultiYear_FinalYear_Ref | E91: =INDEX(dms_FinalYear_List,MATCH(dms_FRCPlength_Num,dms_FRCPlength_Num_List))
B92: Multi Year Final Year Result | C92: =IF(dms_MultiYear_Flag=0,INDIRECT(dms_MultiYear_FinalYear_Ref),dms_Specified_FinalYear) -> 2024-25 | D92: dms_MultiYear_FinalYear_Result | E92: =IF(dms_MultiYear_Flag=0,INDIRECT(dms_MultiYear_FinalYear_Ref),dms_Specified_FinalYear) | I92: Formula errors OK
B93: CRCP length in years | C93: =INDEX(dms_CRCPlength_List,MATCH(dms_TradingName,dms_TradingName_List)) -> 5 | D93: dms_CRCPlength_Num | E93: =INDEX(dms_CRCPlength_List,MATCH(dms_TradingName,dms_TradingName_List))
B94: CRCP Final Year Reference | C94: =INDEX(dms_CFinalYear_List,MATCH(dms_CRCPlength_Num,dms_CRCPlength_Num_List)) -> CRCP_y5 | D94: dms_CRCP_FinalYear_Ref | E94: =INDEX(dms_CFinalYear_List,MATCH(dms_CRCPlength_Num,dms_CRCPlength_Num_List))
B95: CRCP First Year Result | C95: =INDEX(dms_CRCP_years,MATCH(dms_CRCPlength_Num,dms_CRCP_index)) -> 2015-16 | D95: dms_CRCP_FirstYear_Result | E95: =INDEX(dms_CRCP_years,MATCH(dms_CRCPlength_Num,dms_CRCP_index))
B96: CRCP Final Year Result | C96: =IF(dms_MultiYear_Flag=0,(IF(SUM(dms_SingleYear_Model)>0,CRY,dms_CRCP_yZ)),dms_Specified_FinalYear) -> 2017-18 | D96: dms_CRCP_FinalYear_Result | E96: =IF(dms_MultiYear_Flag=0,(IF(SUM(dms_SingleYear_Model)>0,CRY,dms_CRCP_yZ)),dms_Specified_FinalYear)
B97: FOR CA RINS
B98: How many rows in tables 6.3 sustained interruptions? | C98: =IF(dms_Model<>"CA","not a CA","Is a CA") -> Is a CA | D98: dms_060301_MaxRows only returns a valid value when cover sheet is attached to a CA file
B99: Table 6.3.1 - last row reference | C99: =IFERROR(IF(dms_Model="CA", LOOKUP(2,1/(dms_060301_Avg_Duration_Sustained_Int_Values<>""), (ROW(dms_060301_Avg_Duration_Sustained_Int_Values))), "not a CA"),"no data in 6.3 or 6.3 not present") -> 15 | D99: dms_060301_LastRow | E99: =IFERROR(IF(dms_Model="CA",LOOKUP(2,1/(dms_060301_Avg_Duration_Sustained_Int_Values<>""),(ROW(dms_060301_Avg_Duration_Sustained_Int_Values))),"not a CA"),"6.3 not present")
B100: Table 6.3.1 - max number rows | C100: =IFERROR(IF(dms_Model="CA",(dms_060301_LastRow-14),"not a CA"),"no data in 6.3 or 6.3 not present") -> 1 | D100: dms_060301_MaxRows | E100: =IFERROR(IF(dms_Model="CA",(dms_060301_LastRow-14),"not a CA"),"6.3 not present")
B101: Table 6.6.3 - Public lighting repair - no. business days | C101: =INDEX(dms_663_List,MATCH(dms_TradingName,dms_TradingName_List)) -> x | D101: dms_663 | E101: =INDEX(dms_663_List,MATCH(dms_TradingName,dms_TradingName_List))
B102: FOR ARR or RESET RINS
B103: How many rows in tables 6.1 or 6.7? (leap year?) | C103: insert dms_LeapYear NR if required | D103: dms_LeapYear is used to determine dms_060701_Max_Rows BUT it is only found on worksheet 6.1 or 6.7 and the date value in the cell is used to determine whether it is a leap year
B104: Is dms_LeapYear named range present? | C104: =IFERROR(IF(dms_LeapYear,"yes"),"no") -> no
B105: Table 6.7.1 - includes a leap year? | C105: =IFERROR(IF(MONTH(DATE(YEAR(dms_LeapYear),2,29))=2,"is a leap year","not a leap year"), "dms_LeapYear not present") -> dms_LeapYear not present | D105: dms_LeapYear_Result | E105: =IFERROR(IF(MONTH(DATE(YEAR(dms_LeapYear),2,29))=2,"is a leap year","not a leap year"),"dms_LeapYear not present")
B106: Table 6.7.1 - Last row (leap year/ non leap year) | C106: =IFERROR(IF(dms_Model="ARR", IF(dms_LeapYear_Result="is a leap year",366,365), (IF(dms_Model="Reset", (IF(dms_LeapYear_Result="is a leap year",1827,1826)), "not a relevant RIN type"))), "dms_LeapYear in either 6.1 or 6.7 not present") -> not a relevant RIN type | D106: dms_060701_MaxRows | E106: =IFERROR(IF(dms_Model="ARR",IF(dms_LeapYear_Result="is a leap year",366,365),(IF(dms_Model="Reset",(IF(dms_LeapYear_Result="is a leap year",1827,1826)),"not a relevant RIN type"))),"dms_LeapYear in either 6.1 or 6.7 not present")
B107: How many columns in 6.7? (4 or 5 feeder categories) | C107: =IF(dms_FifthFeeder_flag_NSP="NO","This NSP has only 4 feeder categories","This NSP has 5 feeder categories") -> This NSP has only 4 feeder categories
B108: Table 6.7.1 - Last column (# of feeder categories > 4) | C108: =IF(dms_FifthFeeder_flag_NSP="NO",10,12) -> 10 | D108: dms_060701_MaxCols | E108: =IF(dms_FifthFeeder_flag_NSP="NO",8,10)
B109: Table 6.7.1 - Number of offset rows | C109: =IF(dms_Model="ARR",15,9) -> 9 | D109: dms_060701_OffsetRows | E109: =IF(dms_Model="ARR",15,9)
B110: Start date for telephone answering in 6.1 or 6.7? | E110: Using 060701 as naming standard not 060101
B111: Table 6.1.1 and 6.7.1 - Start Date as Text | C111: =IF(SUM(dms_SingleYear_Model)>0,(CONCATENATE(IF(LEN(CRY)=4,"1-Jan-","1-Jul-"),LEFT(CRY,4))),(CONCATENATE(IF(LEN(CRCP_y4)=4,"1-Jan-","1-Jul-"),LEFT(CRCP_y4,4)))) -> 1-Jul-2017 | D111: dms_060701_StartDateTxt | E111: =IF(SUM(dms_SingleYear_Model)>1,(CONCATENATE(IF(LEN(CRY)=4,"1-Jan-","1-Jul-"),LEFT(CRY,4))),(CONCATENATE(IF(LEN(CRCP_y4)=4,"1-Jan-","1-Jul-"),LEFT(CRCP_y4,4))))
B112: Table 6.1.1 and 6.7.1 - Start Date as Date Value | C112: =DATEVALUE(dms_060701_StartDateTxt) -> 42917 | D112: dms_060701_StartDateVal | E112: =DATEVALUE(dms_060701_StartDateTxt)
B113: FOR ARRs
B114: How many rows in table 6.8? | C114: insert dms_060801_StartCell NR if required | D114: dms_060801_StartCell is only found on worksheet 6.8 and is used to determine the starting date for the date range
B115: Table 6.8 - Number of offset rows | C115: =IFERROR(IF(dms_Model="ARR",(ROW(dms_060801_StartCell)-1),"not an ARR"),"6.8 not present") -> not an ARR | D115: dms_0608_OffsetRows | E115: =IFERROR(IF(dms_Model="ARR",(ROW(dms_060801_StartCell)-1),"not an ARR"),"6.8 not present")
B116: Table 6.8 - Last row | C116: =IFERROR(IF(dms_060801_StartCell<>"",IF(dms_Model="ARR",(LOOKUP(2,1/(dms_060801_01_Values<>""),(ROW(dms_060801_01_Values)))),"not an ARR"),0),"6.8 not present") -> 6.8 not present | D116: dms_0608_LastRow | E116: =IFERROR(IF(dms_060801_StartCell<>"",IF(dms_Model="ARR",(LOOKUP(2,1/(dms_060801_01_Values<>""),(ROW(dms_060801_01_Values)))),"not an ARR"),0),"6.8 not present")
B117: Table 6.8 - MaxRows | C117: =IFERROR(IF(dms_Model="ARR",(MAX(0,dms_0608_LastRow-dms_0608_OffsetRows)),"not an ARR"),"6.8 not present") -> not an ARR | D117: dms_060801_MaxRows | E117: =IFERROR(IF(dms_Model="ARR",(MAX(0,dms_0608_LastRow-dms_0608_OffsetRows)),"not an ARR"),"6.8 not present")
B118: FOR TNSP RESET RINS
B119: Table 7.9.4 only appears in TNSPs Reset RIN
B120: Table 7.9.4 - first year | C120: =LEFT(PRCP_y3,4) -> 2012 | D120: dms_070904_Start_Year | E120: =LEFT(PRCP_y3,4)
B121: FOR SUBSET FILES
B122: Is this Submission File a Subset File | C122: NO | D122: dms_Partial
B123: MISC
B124: Distribution Determination Reference | C124: =INDEX(dms_DeterminationRef_List,MATCH(dms_TradingName,dms_TradingName_List)) -> distribution determination | D124: dms_DeterminationRef
B125: Public lighting NSP? | C125: =INDEX(dms_Public_Lighting_List,MATCH(dms_TradingName,dms_TradingName_List)) -> NO | D125: dms_Public_Lighting | E125: =INDEX(dms_Public_Lighting_List,MATCH(dms_TradingName,dms_TradingName_List))
B126: CBD Feeder for this business | C126: =INDEX(dms_CBD_flag,MATCH(dms_TradingName,dms_TradingName_List)) -> YES | D126: dms_CBD_flag_NSP
B127: Urban Feeder for this business | C127: =INDEX(dms_Urban_flag,MATCH(dms_TradingName,dms_TradingName_List)) -> YES | D127: dms_Urban_flag_NSP
B128: Short rural Feeder for this business | C128: =INDEX(dms_ShortRural_flag,MATCH(dms_TradingName,dms_TradingName_List)) -> YES | D128: dms_ShortRural_flag_NSP
B129: Long rural Feeder for this business | C129: =INDEX(dms_LongRural_flag,MATCH(dms_TradingName,dms_TradingName_List)) -> YES | D129: dms_LongRural_flag_NSP
B130: Fifth Feeder Category (eg. TasNetworks (D)) | C130: =INDEX(dms_FeederType_5_flag,MATCH(dms_TradingName,dms_TradingName_List)) -> NO | D130: dms_FifthFeeder_flag_NSP | E130: =INDEX(dms_FeederType_5_flag,MATCH(dms_TradingName,dms_TradingName_List))
B132: DISCARD FILES
B133: discard this record? | C133: NO | D133: dms_DISCARD | E133: If record is to be discarded from DB set this flag to YES
B135: USES NAMED RANGES FLAG | C135: yes | D135: dms_Defined_Names_Used
B137: REGULATORY YEARS FOR MULTI RYE SUBMISSIONS
B138: Multiple RYE flag | C138: NO | D138: dms_Multi_RYE_flag
C139: Manually specify RYE | D139: Named ranges to apply
C140: 2013 | D140: dms_RYE_01
C141: 2014 | D141: dms_RYE_02
C142: 2015 | D142: dms_RYE_03
C143: 2016 | D143: dms_RYE_04
C144: 2017 | D144: dms_RYE_05

Sheet 2.1 Expenditure summary
B1: REGULATORY REPORTING STATEMENT
B2: =INDEX(dms_TradingNameFull_List,MATCH(dms_TradingName,dms_TradingName_List)) -> Power and Water Corporation
B3: =CONCATENATE("CATEGORY ANALYSIS ", CRY) -> CATEGORY ANALYSIS 2017-18
B4: 2.1 EXPENDITURE SUMMARY & RECONCILIATION
B6: There are EIGHT tables on this worksheet - see the Instructions sheet on how to group or ungroup tables.
B8: 2.1.1 - STANDARD CONTROL SERVICES CAPEX
C9: EXPENDITURE ($0's)
C10: =CRY -> 2017-18
B11: Replacement expenditure | C11: 18664842
B12: Connections | C12: 2622909
B13: Augmentation Expenditure | C13: 17626042
B14: Non-network | C14: 4098856
B15: capitalised network overheads | C15: 8183999
B16: capitalised corporate overheads | C16: 3048697
B17: Metering | C17: 0
B18: Public Lighting | C18: 0
B25: balancing item | C25: 47062
B26: capcons (included in the above) | C26: 11825296
B27: TOTAL GROSS CAPEX (includes capcons) | C27: =+SUM(C11:C25) -> 54292407
B29: 2.1.2 - STANDARD CONTROL SERVICES OPEX
C30: EXPENDITURE ($0's)
C31: =CRY -> 2017-18
B32: Vegetation management | C32: 4110818
B33: Maintenance | C33: 14092166
B34: Emergency response | C34: 8947734
B35: Non-network | C35: 7139659
B36: Network overheads | C36: 37977440
B37: Corporate overheads | C37: 13381113
B38: Metering | C38: 0
B39: Public Lighting | C39: 0
B46: balancing tem | C46: 102069
B47: TOTAL OPEX | C47: =+SUM(C32:C46) -> 85750999
B49: 2.1.3 - ALTERNATIVE CONTROL SERVICES CAPEX
C50: EXPENDITURE ($0's)
C51: =CRY -> 2017-18
B52: Connections | C52: 0
B53: Capitalised network overheads | C53: 303490.36
B54: Capitalised corporate overheads | C54: 380100.8
B55: Metering | C55: 3447199.51
B56: Public lighting | C56: 0
B57: Fee and quoted | C57: 28661.19
B58: Non-network | C58: 366118.32
B64: balancing tem | C64: 0
B65: TOTAL CAPEX | C65: =+SUM(C52:C64) -> 4525570.18
B67: 2.1.4 - ALTERNATIVE CONTROL SERVICES OPEX
C68: EXPENDITURE ($0's)
C69: =CRY -> 2017-18
B70: Connections | C70: 507355.73
B71: Network overheads | C71: 2165072
B72: Corporate overheads | C72: 1668310
B73: Metering | C73: 3645825.98
B74: Public lighting | C74: 0
B75: Fee and quoted | C75: 2936483.13
B76: Non-network | C76: 482576.26
B82: balancing tem | C82: 0
B83: TOTAL OPEX | C83: =+SUM(C70:C82) -> 11405623.1
B85: 2.1.5 - DUAL FUNCTION ASSETS CAPEX
C86: EXPENDITURE ($0's)
C87: =CRY -> 2017-18
B88: Replacement expenditure | C88: 0
B89: Connections | C89: 0
B90: Augmentation Expenditure | C90: 0
B91: Non-network | C91: 0
B92: Capitalised network overheads | C92: 0
B93: Capitalised corporate overheads | C93: 0
B100: balancing tem | C100: 0
B101: capcons (included in the above) | C101: 0
B102: TOTAL GROSS CAPEX (includes capcons) | C102: =SUM(C88:C100) -> 0
B104: 2.1.6 - DUAL FUNCTION ASSETS OPEX
C105: EXPENDITURE ($0's)
C106: =CRY -> 2017-18
B107: Vegetation management | C107: 0
B108: Maintenance | C108: 0
B109: Emergency response | C109: 0
B110: Non-network | C110: 0
B111: Network overheads | C111: 0
B112: Corporate overheads | C112: 0
B113: Metering | C113: 0
B119: balancing tem | C119: 0
B120: TOTAL OPEX | C120: =SUM(C107:C119) -> 0
B122: 2.1.7 - STANDARD CONTROL SERVICES CAPCONS
C123: EXPENDITURE ($0's)
C124: =CRY -> 2017-18
B125: Replacement expenditure | C125: 0
B126: Connections | C126: 8726992.78
B127: Augmentation Expenditure | C127: 3098303.15
B128: Non-network | C128: 0
B129: Capitalised network overheads | C129: 0
B130: Capitalised corporate overheads | C130: 0
B131: Metering | C131: 0
B132: Public Lighting | C132: 0
B140: TOTAL CAPCONS | C140: =+SUM(C125:C139) -> 11825295.93
B142: 2.1.8 - STANDARD CONTROL SERVICES CAPITALISED OVERHEADS
C143: EXPENDITURE ($0's)
C144: =CRY -> 2017-18
B145: Vegetation management | C145: 0
B146: Maintenance | C146: 0
B147: Emergency response | C147: 0
B148: Non-network | C148: 0
B149: Metering | C149: 0
B150: Public Lighting | C150: 0
B157: capcons (included in the above) | C157: 0
B158: TOTAL CAPITALISED OVERHEADS | C158: =+SUM(C145:C156) -> 0

Sheet 2.2 Repex
B1: REGULATORY REPORTING STATEMENT
B2: =INDEX(dms_TradingNameFull_List,MATCH(dms_TradingName,dms_TradingName_List)) -> Power and Water Corporation
B3: =CONCATENATE("CATEGORY ANALYSIS ", CRY) -> CATEGORY ANALYSIS 2017-18
B4: 2.2 REPEX
B6: There are TWO tables on this worksheet. These tables have been 'grouped' (and sub-grouped) for ease of navigation. See the Instructions sheet on how to group or ungroup tables.
B8: 2.2.1 - REPLACEMENT EXPENDITURE, VOLUMES AND ASSET FAILURES BY ASSET CATEGORY
B9: EXPENDITURE
E10: EXPENDITURE ($0's)
B11: ASSET GROUP | C11: ASSET CATEGORY | E11: =CRY -> 2017-18
B12: POLES BY: HIGHEST OPERATING VOLTAGE ; MATERIAL TYPE | C12: ˂ = 1 kV; Wood - replacement of staked pole | E12: 0
C13: ˂ = 1 kV; Wood - replacement of unstaked pole | E13: 0
C14: > 1 kV & < = 11 kV; Wood - replacement of staked pole | E14: 0
C15: > 1 kV & < = 11 kV; Wood - replacement of unstaked pole | E15: 0
C16: ˃ 11 kV & < = 22 kV; Wood - replacement of staked pole | E16: 0
C17: ˃ 11 kV & < = 22 kV; Wood - replacement of unstaked pole | E17: 0
C18: > 22 kV & < = 66 kV; Wood - replacement of staked pole | E18: 0
C19: > 22 kV & < = 66 kV; Wood - replacement of unstaked pole | E19: 0
C20: > 66 kV & < = 132 kV; Wood - replacement of staked pole | E20: 0
C21: > 66 kV & < = 132 kV; Wood - replacement of unstaked pole | E21: 0
C22: > 132 kV; Wood - replacement of staked pole | E22: 0
C23: > 132 kV; Wood - replacement of unstaked pole | E23: 0
C24: ˂ = 1 kV; Concrete | E24: 0
C25: > 1 kV & < = 11 kV; Concrete | E25: 0
C26: ˃ 11 kV & < = 22 kV; Concrete | E26: 0
C27: > 22 kV & < = 66 kV; Concrete | E27: 0
C28: > 66 kV & < = 132 kV; Concrete | E28: 0
C29: > 132 kV; Concrete | E29: 0
C30: ˂ = 1 kV; Steel | E30: 719677
C31: > 1 kV & < = 11 kV; Steel | E31: 404061
C32: ˃ 11 kV & < = 22 kV; Steel | E32: 234826
C33: > 22 kV & < = 66 kV; Steel | E33: 111385
C34: > 66 kV & < = 132 kV; Steel | E34: 0
C35: > 132 kV; Steel | E35: 0
C36: Other | E36: 0
B37: POLE TOP STRUCTURES BY: HIGHEST OPERATING VOLTAGE | C37: ˂ = 1 kV | E37: 24036
C38: > 1 kV & < = 11 kV | E38: 287644
C39: ˃ 11 kV & < = 22 kV | E39: 439647
C40: > 22 kV & < = 66 kV | E40: 73923
C41: > 66 kV & < = 132 kV | E41: 0
C42: > 132 kV | E42: 0
C43: Other | E43: 0
B44: STAKING WOODEN POLES BY: HIGHEST OPERATING VOLTAGE | C44: ˂ = 1 Kv | E44: 0
C45: > 1 kV & < = 11 kV | E45: 0
C46: ˃ 11 kV & < = 22 kV | E46: 0
C47: > 22 kV & < = 66 kV | E47: 0
C48: > 66 kV & < = 132 kV | E48: 0
C49: > 132 kV | E49: 0
B50: OVERHEAD CONDUCTORS BY: HIGHEST OPERATING VOLTAGE; NUMBER OF PHASES (AT HV) | C50: ˂ = 1 kV | E50: 441005
C51: > 1 kV & < = 11 kV | E51: 990221
C52: ˃ 11 kV & < = 22 kV ; SWER | E52: 0
C53: ˃ 11 kV & < = 22 kV ; Single-Phase | E53: 0
C54: ˃ 11 kV & < = 22 kV ; Multiple-Phase | E54: 191059
C55: > 22 kV & < = 66 kV | E55: 0
C56: > 66 kV & < = 132 kV | E56: 0
C57: > 132 kV | E57: 0
C58: Other | E58: 0
B59: UNDERGROUND CABLES BY: HIGHEST OPERATING VOLTAGE | C59: ˂ = 1 kV | E59: 294624
C60: > 1 kV & < = 11 kV | E60: 2584815
C61: > 11 kV & < = 22 kV | E61: 74620
C62: > 22 kV & < = 33 kV | E62: 0
C63: > 33 kV & < = 66 kV | E63: 77736
C64: > 66 kV & < = 132 kV | E64: 0
C65: > 132 kV | E65: 0
C66: Other | E66: 0
B67: SERVICE LINES BY: CONNECTION VOLTAGE; CUSTOMER TYPE; CONNECTION COMPLEXITY | C67: ˂ = 11 kV ; Residential ; Simple Type | E67: 0
C68: ˂ = 11 kV ; Commercial & Industrial ; Simple Type | E68: 0
C69: ˂ = 11 kV ; Residential ; Complex Type | E69: 0
C70: ˂ = 11 kV ; Commercial & Industrial ; Complex Type | E70: 0
C71: ˂ = 11 kV ; Subdivision ; Complex Type | E71: 0
C72: > 11 kV & < = 22 kV ; Commercial & Industrial | E72: 0
C73: > 11 kV & < = 22 kV ; Subdivision | E73: 0
C74: > 22 kV & < = 33 kV ; Commercial & Industrial | E74: 0
C75: > 22 kV & < = 33 kV ; Subdivision | E75: 0
C76: > 33 kV & < = 66 kV ; Commercial & Industrial | E76: 0
C77: > 33 kV & < = 66 kV ; Subdivision | E77: 0
C78: > 66 kV & < = 132 kV ; Commercial & Industrial | E78: 0
C79: > 66 kV & < = 132 kV ; Subdivision | E79: 0
C80: > 132 kV ; Commercial & Industrial | E80: 0
C81: > 132 kV ; Subdivision | E81: 0
C82: Other | E82: 0
B83: TRANSFORMERS BY: MOUNTING TYPE; HIGHEST OPERATING VOLTAGE ; AMPERE RATING; NUMBER OF PHASES (AT LV) | C83: Pole Mounted ; < = 22kV ; < = 60 kVA ; Single Phase | E83: 77820
C84: Pole Mounted ; < = 22kV ; > 60 kVA and < = 600 kVA ; Single Phase | E84: 45269
C85: Pole Mounted ; < = 22kV ; > 600 kVA ; Single Phase | E85: 0
C86: Pole Mounted ; < = 22kV ; < = 60 kVA ; Multiple Phase | E86: 114665
C87: Pole Mounted ; < = 22kV ; > 60 kVA and < = 600 kVA ; Multiple Phase | E87: 957677
C88: Pole Mounted ; < = 22kV ; > 600 kVA ; Multiple Phase | E88: 65664
C89: Kiosk Mounted ; < = 22kV ; < = 60 kVA ; Single Phase | E89: 9371
C90: Kiosk Mounted ; < = 22kV ; > 60 kVA and < = 600 kVA ; Single Phase | E90: 41761
C91: Kiosk Mounted ; < = 22kV ; > 600 kVA ; Single Phase | E91: 0
C92: Kiosk Mounted ; < = 22kV ; < = 60 kVA ; Multiple Phase | E92: 0
C93: Kiosk Mounted ; < = 22kV ; > 60 kVA and < = 600 kVA ; Multiple Phase | E93: 1467231
C94: Kiosk Mounted ; < = 22kV ; > 600 kVA ; Multiple Phase | E94: 11658
C95: Ground Outdoor / Indoor Chamber Mounted; ˂ 22 kV ; < = 60 kVA ; Single Phase | E95: 0
C96: Ground Outdoor / Indoor Chamber Mounted; ˂ 22 kV ; > 60 kVA and < = 600 kVA ; Single Phase | E96: 0
C97: Ground Outdoor / Indoor Chamber Mounted; ˂ 22 kV ; > 600 kVA ; Single Phase | E97: 0
C98: Ground Outdoor / Indoor Chamber Mounted; ˂ 22 kV ; < = 60 kVA ; Multiple Phase | E98: 0
C99: Ground Outdoor / Indoor Chamber Mounted; ˂ 22 kV ; > 60 kVA and < = 600 kVA ; Multiple Phase | E99: 639344
C100: Ground Outdoor / Indoor Chamber Mounted; ˂ 22 kV ; > 600 kVA ; Multiple Phase | E100: 324819
C101: Ground Outdoor / Indoor Chamber Mounted; > = 22 kV & < = 33 kV ; < = 15 MVA | E101: 0
C102: Ground Outdoor / Indoor Chamber Mounted; > = 22 kV & < = 33 kV ; > 15 MVA and < = 40 MVA | E102: 0
C103: Ground Outdoor / Indoor Chamber Mounted; > = 22 kV & < = 33 kV ; > 40 MVA | E103: 0
C104: Ground Outdoor / Indoor Chamber Mounted; > 33 kV & < = 66 kV ; < = 15 MVA | E104: 0
C105: Ground Outdoor / Indoor Chamber Mounted; > 33 kV & < = 66 kV ; > 15 MVA and < = 40 MVA | E105: 219088
C106: Ground Outdoor / Indoor Chamber Mounted; > 33 kV & < = 66 kV ; > 40 MVA | E106: 0
C107: Ground Outdoor / Indoor Chamber Mounted; > 66 kV & < = 132 kV ; < = 100 MVA | E107: 0
C108: Ground Outdoor / Indoor Chamber Mounted; > 66 kV & < = 132 kV ; > 100 MVA | E108: 0
C109: Ground Outdoor / Indoor Chamber Mounted; > 132 kV ; < = 100 MVA | E109: 0
C110: Ground Outdoor / Indoor Chamber Mounted; > 132 kV ; > 100 MVA | E110: 0
C111: Other | E111: 0
B112: SWITCHGEAR BY: HIGHEST OPERATING VOLTAGE ; SWITCH FUNCTION | C112: ˂ = 11 kV ; FUSE | E112: 0
C113: ˂ = 11 kV ; Switch | E113: 3139249
C114: ˂ = 11 kV ; Circuit Breaker | E114: 0
C115: > 11 kV & < = 22 kV ; Switch | E115: 194845
C116: > 11 kV & < = 22 kV ; Circuit Breaker | E116: 174227
C117: > 22 kV & < = 33 kV ; Switch | E117: 0
C118: > 22 kV & < = 33 kV ; Circuit Breaker | E118: 0
C119: > 33 kV & < = 66 kV ; Switch | E119: 99988
C120: > 33 kV & < = 66 kV ; Circuit Breaker | E120: 454161
C121: > 66 kV & < = 132 kV ; Switch | E121: 0
C122: > 66 kV & < = 132 kV ; Circuit Breaker | E122: 29996
C123: > 132 kV ; Switch | E123: 0
C124: > 132 kV ; Circuit Breaker | E124: 0
C125: Other | E125: 0
B126: PUBLIC LIGHTING BY: ASSET TYPE ; LIGHTING OBLIGATION | C126: Luminaires ; Major Road | E126: 0
C127: Luminaires ; Minor Road | E127: 0
C128: Brackets ; Major Road | E128: 0
C129: Brackets ; Minor Road | E129: 0
C130: Lamps ; Major Road | E130: 0
C131: Lamps ; Minor Road | E131: 0
C132: Poles / Columns ; Major Road | E132: 0
C133: Poles / Columns ; Minor Road | E133: 0
C134: Other | E134: 0
B135: SCADA, NETWORK CONTROL AND PROTECTION SYSTEMS BY: FUNCTION | C135: Field Devices | E135: 795589
C136: Local Network Wiring Assets | E136: 116019
C137: Communications Network Assets | E137: 357939
C138: Master Station Assets | E138: 0
C139: Communications Site Infrastructure | E139: 0
C140: Communications Linear Assets | E140: 0
C141: AFLC | E141: 0
C142: Other | E142: 0
B143: OTHER BY: DNSP DEFINED | C143: Buildings | E143: 102805
C144: Instrument Transformers | E144: 108969
C145: Metering Units | E145: 52235
C146: Pillars | E146: 605245
C147: Substation Auxiliary Plant | E147: 330353
C148: Voltage Regulators | E148: 102597
C149: Civil and Grounds | E149: 284533
C150: Fire Systems | E150: 320
C151: Power Transformer Refurbishment | E151: 78890
C152: Tower Refurbishment | E152: 713234
B165: ASSET REPLACEMENTS
E166: VOLUMES (0's)
B167: ASSET GROUP | C167: ASSET CATEGORY | E167: =CRY -> 2017-18
B168: POLES BY: HIGHEST OPERATING VOLTAGE ; MATERIAL TYPE | C168: ˂ = 1 kV; Wood - Staked | E168: 0
C169: ˂ = 1 kV; Wood - Unstaked | E169: 0
C170: > 1 kV & < = 11 kV; Wood - Staked | E170: 0
C171: > 1 kV & < = 11 kV; Wood - Unstaked | E171: 0
C172: ˃ 11 kV & < = 22 kV; Wood - Staked | E172: 0
C173: ˃ 11 kV & < = 22 kV; Wood - Unstaked | E173: 0
C174: > 22 kV & < = 66 kV; Wood - Staked | E174: 0
C175: > 22 kV & < = 66 kV; Wood - Unstaked | E175: 0
C176: > 66 kV & < = 132 kV; Wood - Staked | E176: 0
C177: > 66 kV & < = 132 kV; Wood - Untaked | E177: 0
C178: > 132 kV; Wood - Staked | E178: 0
C179: > 132 kV; Wood - Unstaked | E179: 0
C180: ˂ = 1 kV; Concrete | E180: 0
C181: > 1 kV & < = 11 kV; Concrete | E181: 0
C182: ˃ 11 kV & < = 22 kV; Concrete | E182: 0
C183: > 22 kV & < = 66 kV; Concrete | E183: 0
C184: > 66 kV & < = 132 kV; Concrete | E184: 0
C185: > 132 kV; Concrete | E185: 0
C186: ˂ = 1 kV; Steel | E186: 37
C187: > 1 kV & < = 11 kV; Steel | E187: 12
C188: ˃ 11 kV & < = 22 kV; Steel | E188: 14
C189: > 22 kV & < = 66 kV; Steel | E189: 0
C190: > 66 kV & < = 132 kV; Steel | E190: 0
C191: > 132 kV; Steel | E191: 0
C192: Other | E192: 0
B193: POLE TOP STRUCTURES BY: HIGHEST OPERATING VOLTAGE | C193: ˂ = 1 kV | E193: 22
C194: > 1 kV & < = 11 kV | E194: 178
C195: ˃ 11 kV & < = 22 kV | E195: 291
C196: > 22 kV & < = 66 kV | E196: 8
C197: > 66 kV & < = 132 kV | E197: 0
C198: > 132 kV | E198: 0
C199: Other | E199: 0
B200: STAKING WOODEN POLES BY: HIGHEST OPERATING VOLTAGE | C200: ˂ = 1 Kv | E200: 0
C201: > 1 kV & < = 11 kV | E201: 0
C202: ˃ 11 kV & < = 22 kV | E202: 0
C203: > 22 kV & < = 66 kV | E203: 0
C204: > 66 kV & < = 132 kV | E204: 0
C205: > 132 kV | E205: 0
B206: OVERHEAD CONDUCTORS BY: HIGHEST OPERATING VOLTAGE; NUMBER OF PHASES (AT HV) | C206: ˂ = 1 kV | E206: 3.2
C207: > 1 kV & < = 11 kV | E207: 4.8
C208: ˃ 11 kV & < = 22 kV ; SWER | E208: 0
C209: ˃ 11 kV & < = 22 kV ; Single-Phase | E209: 0
C210: ˃ 11 kV & < = 22 kV ; Multiple-Phase | E210: 0.5
C211: > 22 kV & < = 66 kV | E211: 0
C212: > 66 kV & < = 132 kV | E212: 0
C213: > 132 kV | E213: 0
C214: Other | E214: 0
... 287 more rows

Sheet 2.3(a) Augex
B1: REGULATORY REPORTING STATEMENT
B2: =INDEX(dms_TradingNameFull_List,MATCH(dms_TradingName,dms_TradingName_List)) -> Power and Water Corporation
B3: =CONCATENATE("CATEGORY ANALYSIS ", CRY) -> CATEGORY ANALYSIS 2017-18
B4: 2.3 AUGEX PROJECT DATA
B7: There are TWO tables on this worksheet - each has been 'grouped' (and sub-grouped) for easy navigation. Both rows and columns have been grouped. See the Instructions sheet on how to group or ungroup tables.
B9: 2.3.1 - AUGEX ASSET DATA - SUBTRANSMISSION SUBSTATIONS, SWITCHING STATIONS AND ZONE SUBSTATIONS
B10: NOTE: DNSP MUST PROVIDE EXPENDITURE INFORMATION ON A PROJECT CLOSE BASIS.
B11: AUG231_1 | C11: AUG231_2 | D11: AUG231_3 | E11: AUG231_4 | F11: AUG231_5 | G11: AUG231_6 | H11: ED_AUG231_00001 | I11: ED_AUG231_00002 | J11: ED_AUG231_00003 | K11: ED_AUG231_00004 | L11: ED_AUG231_00005 | M11: ED_AUG231_00006 | N11: ED_AUG231_00007 | O11: ED_AUG231_00008 | P11: ED_AUG231_00009 | Q11: ED_AUG231_00010 | R11: ED_AUG231_00011 | U11: ED_AUG231_00012 | V11: ED_AUG231_00013 | W11: ED_AUG231_00014 | X11: ED_AUG231_00015 | Y11: ED_AUG231_00016 | Z11: ED_AUG231_00017 | AA11: ED_AUG231_00018 | AB11: ED_AUG231_00019 | AC11: ED_AUG231_00020 | AD11: ED_AUG231_00021 | AE11: ED_AUG231_00022 | AF11: ED_AUG231_00023
B12: PROJECT DESCRIPTION AND CHANGES | L12: PLANT AND EQUIPMENT EXPENDITURE AND VOLUME | X12: OTHER EXPENDITURE | Z12: TOTAL DIRECT EXPENDITURE ($0's) | AA12: YEARS INCURRED | AB12: ALL RELATED PARTY CONTRACTS | AD12: ALL NON RELATED PARTYCONTRACTS | AE12: LAND AND EASEMENTS
B13: SUBSTATION ID | C13: SUBSTATION TYPE (drop down) | D13: PROJECT ID | E13: PROJECT TYPE (drop down) | F13: PROJECT TRIGGER (drop down) | G13: VOLTAGE (KV) | H13: SUBSTATION RATING NORMAL CYCLIC (MVA) | J13: SUBSTATION RATING N-1 EMERGENCY (MVA) | L13: TRANSFORMERS | O13: SWITCHGEAR | Q13: CAPACITORS | U13: OTHER PLANT ITEM | V13: INSTALLATION (LABOUR) | X13: CIVIL WORKS | Y13: OTHER DIRECT | AB13: RELATED PARTY MARGINS | AC13: TOTAL | AE13: LAND PURCHASE | AF13: EASEMENTS
H14: PRE | I14: POST | J14: PRE | K14: POST | L14: UNITS ADDED | M14: MVA ADDED | N14: EXPENDITURE ($0's) | O14: UNITS ADDED | P14: EXPENDITURE ($0's) | Q14: MVAR ADDED | R14: EXPENDITURE ($0's) | U14: EXPENDITURE ($0's) | V14: VOLUME | W14: EXPENDITURE ($0's) | X14: EXPENDITURE ($0's) | AB14: EXPENDITURE ($0's) | AE14: EXPENDITURE ($0's)
B15: No Material projects in this category | C15: 0 | D15: 0 | E15: 0 | F15: 0 | G15: 0 | H15: 0 | I15: 0 | J15: 0 | K15: 0 | L15: 0 | M15: 0 | N15: 0 | O15: 0 | P15: 0 | Q15: 0 | R15: 0 | U15: 0 | V15: 0 | W15: 0 | X15: 0 | Y15: 0 | Z15: =SUM(N15,P15,R15,U15,W15,X15,Y15) -> 0 | AA15: 0 | AB15: 0 | AC15: 0 | AD15: 0 | AE15: 0 | AF15: 0
Z16: 0
Z17: 0
Z18: 0
Z19: 0
Z20: 0
Z21: 0
Z22: 0
Z23: 0
Z24: 0
Z25: 0
Z26: 0
Z27: 0
Z28: 0
Z29: 0
Z30: 0
Z31: 0
Z32: 0
Z33: 0
Z34: 0
Z35: 0
Z36: 0
Z37: 0
Z38: 0
Z39: 0
Z40: 0
Z41: 0
Z42: 0
Z43: 0
Z44: 0
Z45: 0
Z46: 0
Z47: =SUM(N47,P47,R47,U47,W47,X47,Y47) -> 0
Z48: 0
Z49: 0
Z50: 0
Z51: 0
Z52: 0
Z53: 0
Z54: 0
Z55: 0
Z56: 0
Z57: 0
Z58: 0
Z59: 0
Z60: 0
Z61: 0
Z62: 0
Z63: 0
Z64: 0
Z65: 0
Z66: 0
D67: Non material projects - [actual] | Z67: 221978 | AA67: 2014-15 to 2017-18 | AE67: 0 | AF67: 0
B70: AUG232_1 | C70: AUG232_2 | D70: AUG232_3 | E70: AUG232_4 | F70: AUG232_5 | G70: AUG232_6 | H70: ED_AUG232_00001 | I70: ED_AUG232_00002 | J70: ED_AUG232_00003 | K70: ED_AUG232_00004 | L70: ED_AUG232_00005 | M70: ED_AUG232_00006 | N70: ED_AUG232_00007 | O70: ED_AUG232_00008 | P70: ED_AUG232_00009 | Q70: ED_AUG232_00010 | R70: ED_AUG232_00011 | S70: ED_AUG232_00012 | T70: ED_AUG232_00013 | U70: ED_AUG232_00014 | V70: ED_AUG232_00015 | W70: ED_AUG232_00016 | X70: ED_AUG232_00017 | Y70: ED_AUG232_00018 | Z70: ED_AUG232_00019 | AA70: ED_AUG232_00020 | AB70: ED_AUG232_00021
B71: 2.3.2 - AUGEX ASSET DATA - SUBTRANSMISSION LINES
B72: NOTE: DNSP MUST PROVIDE EXPENDITURE INFORMATION ON A PROJECT CLOSE BASIS.
B73: PROJECT DESCRIPTION AND CHANGES | L73: PLANT AND EQUIPMENT EXPENDITURE AND VOLUME | X73: OTHER EXPENDITURE | Z73: TOTAL DIRECT EXPENDITURE ($0's) | AA73: YEARS INCURRED | AB73: ALL RELATED PARTY CONTRACTS | AD73: ALL NON RELATED PARTYCONTRACTS | AE73: LAND AND EASEMENTS
B74: LINE ID | C74: PROJECT ID | D74: PROJECT TYPE | E74: PROJECT TRIGGER | F74: PROJECT TRIGGER (drop down) | G74: VOLTAGE (KV) | H74: ROUTE LINE LENGTH ADDED | L74: POLES/TOWERS (INCLUDING STRUCTURES, AND CIVIL WORKS) | O74: OVERHEAD LINES | R74: UNDERGROUND CABLES | U74: OTHER PLANT ITEM | V74: INSTALLATION (LABOUR) | X74: CIVIL WORKS | Y74: OTHER DIRECT | AB74: RELATED PARTY MARGINS | AC74: TOTAL | AE74: LAND PURCHASE | AF74: EASEMENTS
H75: KM ADDED | L75: POLES/TOWERS ADDED | M75: POLES/TOWERS UPGRADED | N75: EXPENDITURE ($0's) | O75: CIRCUIT KM ADDED | P75: CIRCUIT KM UPGRADED | Q75: EXPENDITURE ($0's) | R75: CIRCUIT KM ADDED | S75: CIRCUIT KM UPGRADED | T75: EXPENDITURE ($0's) | U75: EXPENDITURE ($0's) | V75: VOLUME | W75: EXPENDITURE ($0's) | X75: EXPENDITURE ($0's) | AB75: EXPENDITURE ($0's) | AE75: EXPENDITURE ($0's)
B76: 132 CI-HC A and B | C76: PRD30003 | D76: Line rebuild over existing rout - dual circuit | F76: Other | G76: 132 | H76: 0 | I76: 0 | M76: 6 | N76: 2980970 | O76: 0 | P76: 4.2 | Q76: 1930714 | R76: 0 | S76: 0 | T76: 0 | U76: 0 | V76: 24327 | W76: 2811801 | X76: 913325 | Y76: 0 | Z76: =SUM(N76,Q76,T76,U76,W76,X76,Y76) -> 8636810 | AA76: 2011-12 to 2017-18 | AB76: 0 | AC76: 0 | AD76: 8063662 | AE76: 52084 | AF76: 0 | AH76: New line on new route - single circuit
Z77: 0 | AH77: New line on new route - dual circuit
Z78: 0 | AH78: New line on new route - other
Z79: 0 | AH79: Line rebuild over existing route - single circuit
Z80: 0 | AH80: Line rebuild over existing route - dual circuit
Z81: 0 | AH81: Reconductor - Single circuit
Z82: 0 | AH82: Reconductor - Dual circuit
Z83: 0 | AH83: Reconductor - Other
Z84: 0 | AH84: Line upgrade - raising/retensoring
Z85: 0 | AH85: Line upgrade - voltage upgrade
Z86: 0 | AH86: Line upgrade - capacity
Z87: 0 | AH87: String spare circuit
Z88: 0 | AH88: Other
Z89: 0
Z90: 0
Z91: 0
Z92: 0
Z93: 0
Z94: 0
Z95: 0
Z96: 0
Z97: 0
Z98: 0
Z99: 0
Z100: 0
Z101: 0
Z102: 0
Z103: 0
Z104: 0
Z105: 0
Z106: 0
Z107: 0
Z108: =SUM(N108,Q108,T108,U108,W108,X108,Y108) -> 0
Z109: 0
Z110: 0
Z111: 0
Z112: 0
Z113: 0
Z114: 0
Z115: 0
Z116: 0
Z117: 0
Z118: 0
Z119: 0
Z120: 0
Z121: 0
Z122: 0
Z123: 0
Z124: 0
Z125: 0
Z126: 0
Z127: 0
Z128: 0
Z129: 0
C130: Non material projects - [actual] | Z130: 136080 | AA130: 2015-16 to 2017-18 | AE130: 0 | AF130: 0

Sheet 2.3(b) Augex
B1: REGULATORY REPORTING STATEMENT
B2: =INDEX(dms_TradingNameFull_List,MATCH(dms_TradingName,dms_TradingName_List)) -> Power and Water Corporation
B3: =CONCATENATE("CATEGORY ANALYSIS ", CRY) -> CATEGORY ANALYSIS 2017-18
B4: 2.3 AUGEX PROJECT DATA
B6: There are FOUR tables on this worksheet. These tables have been 'grouped' (and sub-grouped) for easy navigation. See the Instructions sheet on how to group or ungroup tables.
B8: NOTE: DNSP MUST PROVIDE EXPENDITURE INFORMATION ON AN AS INCURRED BASIS.
B9: 2.3.3 - AUGEX DATA - HV/LV FEEDERS AND DISTRIBUTION SUBSTATIONS
B10: PROJECT TYPE | C10: Units | D10: VOLUME (0's)
D11: =CRY -> 2017-18
B12: DESCRIPTOR METRICS - UNITS ADDED
B13: HV Feeder Augmentations - Overhead Lines | C13: Circuit Line Length in KM | D13: 0
B14: HV Feeder Augmentations - Underground Cables | C14: Circuit Line Length in KM | D14: 0
B15: LV Feeder Augmentations - Overhead Lines | C15: Circuit Line Length in KM | D15: 0
B16: LV Feeder Augmentations - Underground Cables | C16: Circuit Line Length in KM | D16: 0
B17: Distribution Substation Augmentations - Pole Mounted | C17: Number | D17: 4
B18: Distribution Substation Augmentations - Ground Mounted | C18: Number | D18: 0
B19: Distribution Substation Augmentations - Indoor | C19: Number | D19: 0
B20: DESCRIPTOR METRICS - UNITS UPGRADED
B21: HV Feeder Augmentations - Overhead Lines | C21: Circuit Line Length in KM | D21: 0
B22: HV Feeder Augmentations - Underground Cables | C22: Circuit Line Length in KM | D22: 0
B23: LV Feeder Augmentations - Overhead Lines | C23: Circuit Line Length in KM | D23: 0
B24: LV Feeder Augmentations - Underground Cables | C24: Circuit Line Length in KM | D24: 0
B25: Distribution Substation Augmentations - Pole Mounted | C25: Number | D25: 1
B26: Distribution Substation Augmentations - Ground Mounted | C26: Number | D26: 0
B27: Distribution Substation Augmentations - Indoor | C27: Number | D27: 0
B29: COST METRICS
B30: TOTAL DIRECT EXPENDITURE - Project Type | D30: EXPENDITURE ($0's)
D31: =CRY -> 2017-18
B32: HV Feeder Augmentations - Overhead Lines | D32: 0
B33: HV Feeder Augmentations - Underground Cables | D33: 0
B34: HV Feeder Non-Material Projects | D34: 1153235
B35: LV Feeder Augmentations - Overhead Lines | D35: 0
B36: LV Feeder Augmentations - Underground Cables | D36: 0
B37: LV Feeder Non-Material Projects | D37: 109651
B38: Distribution Substation Augmentations - Pole Mounted | D38: 167283
B39: Distribution Substation Augmentations - Ground Mounted | D39: 0
B40: Distribution Substation Augmentations - Indoor | D40: 0
B44: 2.3.4 - AUGEX - TOTAL EXPENDITURE
B45: AUGMENTATION CAPEX (as incurred) | D45: EXPENDITURE ($0's)
D46: =CRY -> 2017-18
B47: Subtransmission Substations, Switching Stations, Zone Substations | D47: 5994274
B48: Subtransmission Lines | D48: 8769622
B49: HV Feeders | D49: 1153235
B50: HV Feeders - Land Purchases and Easements | D50: 0
B51: Distribution Substations | D51: 167283
B52: Distribution Substations - Land Purchases And Easements | D52: 0
B53: LV Feeders | D53: 109651
B54: LV Feeders - Land Purchases And Easements | D54: 0
B55: Other Assets | D55: 1431977
B58: 2.3.5 - AUGEX - BY DRIVER
B59: AUGMENTATION CAPEX (as incurred) | D59: EXPENDITURE ($0's)
D60: =CRY -> 2017-18
B61: "Greenfield" driven augex (network expansion capex) | D61: 4150532
B62: Reinforcement driven augex (augmentation of the existing network) | D62: 13475510
B65: 2.3.6 - AUGEX - GREENFIELDS DRIVER
B66: AUGMENTATION CAPEX (as incurred) | D66: EXPENDITURE ($0's)
D67: =CRY -> 2017-18
B68: Subtransmission Substations, Switching Stations, Zone Substations | D68: 619661
B69: Subtransmission Lines | D69: 2478643
B70: HV Feeders | D70: 25544
B71: HV Feeders - Land Purchases and Easements | D71: 0
B72: Distribution Substations | D72: 0
B73: Distribution Substations - Land Purchases And Easements | D73: 0
B74: LV Feeders | D74: 0
B75: LV Feeders - Land Purchases And Easements | D75: 0
B76: Other Assets | D76: 1026685

Sheet 2.5 Connections
B1: REGULATORY REPORTING STATEMENT
B2: =INDEX(dms_TradingNameFull_List,MATCH(dms_TradingName,dms_TradingName_List)) -> Power and Water Corporation
B3: =CONCATENATE("CATEGORY ANALYSIS ", CRY) -> CATEGORY ANALYSIS 2017-18
B4: 2.5 CONNECTIONS
B6: There are THREE tables on this worksheet - each has been 'grouped' (and sub-grouped) for easy navigation. See the Instructions sheet on how to group or ungroup tables.
B8: 2.5.1 - DESCRIPTOR METRICS
B9: VOLUMES AND EXPENDITURE - ALL
E10: VOLUMES AND EXPENDITURE
D11: Units | E11: =CRY -> 2017-18
B12: RESIDENTIAL | C12: Underground connections | D12: 0's | E12: 117
C13: Overhead connections | D13: 0's | E13: 94
C14: Distribution substation installed (MVA added) | D14: MVA | E14: 0.43
C15: Distribution substations installed | D15: 0's | E15: 6
C16: Distribution substation installed (total spend $0's) | D16: total spend $0s | E16: 149415
C17: Augmentation HV (net circuit KM added) | D17: KM | E17: 0.2
C18: Augmentation HV (total spend $0's) | D18: total spend $0s | E18: 62238
C19: Augmentation LV (net circuit KM added) | D19: KM | E19: 0.5
C20: Augmentation LV (total spend $0's) | D20: total spend $0s | E20: 142237
C21: Mean days to connect residential customer with LV single phase connection | D21: 0's | E21: 3
C22: Volume of GSL breaches for residential customers | D22: 0's | E22: 656
C23: Volume of customer complaints relating to connection services | D23: 0's | E23: 27
C24: GSL payments | D24: $0s | E24: 42120
B25: COMMERCIAL/INDUSTRIAL | C25: Underground connections | D25: 0's | E25: 58
C26: Overhead connections | D26: 0's | E26: 12
C27: Distribution substation installed (MVA added) | D27: MVA | E27: 5
C28: Distribution substations installed (0's) | D28: 0's | E28: 20
C29: Distribution substation installed (total spend ($0's) | D29: total spend $0s | E29: 1188795
C30: Augmentation HV (net circuit KM added) | D30: KM | E30: 0.2
C31: Augmentation HV (total spend $0's) | D31: total spend $0s | E31: 274168
C32: Augmentation LV (net circuit KM added) | D32: KM | E32: 0.5
C33: Augmentation LV (total spend $0's) | D33: total spend $0s | E33: 196997
B34: SUBDIVISION | C34: Underground connections | D34: 0's | E34: 404
C35: Overhead connections | D35: 0's | E35: 2
C36: Distribution substation installed (MVA added) | D36: MVA | E36: 0
C37: Distribution substations installed | D37: 0's | E37: 5
C38: Distribution substation installed (total spend $0's) | D38: total spend $0s | E38: 192543
C39: Augmentation HV (net circuit KM added) | D39: KM | E39: 0
C40: Augmentation HV (total spend $0's) | D40: total spend $0s | E40: 109754
C41: Augmentation LV (net circuit KM added) | D41: KM | E41: 1
C42: Augmentation LV (total spend $0's) | D42: total spend $0s | E42: 306760
C43: Cost per lot ($) | D43: $0s | E43: 29003
B44: EMBEDDED GENERATION | C44: Underground connections | D44: 0's | E44: 1157
C45: Overhead connections | D45: 0's | E45: 841
C46: Distribution substation installed (MVA added) | D46: MVA | E46: 0
C47: Distribution substations installed | D47: 0's | E47: 0
C48: Distribution substation installed (total spend $0's) | D48: total spend $0s | E48: 0
C49: Augmentation HV (net circuit KM added) | D49: KM | E49: 0
C50: Augmentation HV (total spend $0's) | D50: total spend $0s | E50: 0
C51: Augmentation LV (net circuit KM added) | D51: KM | E51: 0
C52: Augmentation LV (total spend $0's) | D52: total spend $0s | E52: 0
B54: VOLUMES AND EXPENDITURE - STANDARD CONTROL SERVICES
E55: VOLUMES AND EXPENDITURE
D56: Units | E56: =CRY -> 2017-18
B57: RESIDENTIAL | C57: Underground connections | D57: 0's | E57: 117
C58: Overhead connections | D58: 0's | E58: 94
C59: Distribution substation installed (MVA added) | D59: MVA | E59: 0
C60: Distribution substations installed | D60: 0's | E60: 6
C61: Distribution substation installed (total spend $0's) | D61: total spend $0s | E61: 149415
C62: Augmentation HV (net circuit KM added) | D62: KM | E62: 0
C63: Augmentation HV (total spend $0's) | D63: total spend $0s | E63: 62238
C64: Augmentation LV (net circuit KM added) | D64: KM | E64: 0
C65: Augmentation LV (total spend $0's) | D65: total spend $0s | E65: 142237
C66: Mean days to connect residential customer with LV single phase connection | D66: 0's | E66: 3
C67: Volume of GSL breaches for residential customers | D67: 0's | E67: 656
C68: Volume of customer complaints relating to connection services | D68: 0's | E68: 27
C69: GSL payments | D69: $0s | E69: 42120
B70: COMMERCIAL/INDUSTRIAL | C70: Underground connections | D70: 0's | E70: 58
C71: Overhead connections | D71: 0's | E71: 12
C72: Distribution substation installed (MVA added) | D72: MVA | E72: 5
C73: Distribution substations installed (0's) | D73: 0's | E73: 20
C74: Distribution substation installed (total spend ($0's) | D74: total spend $0s | E74: 1188795
C75: Augmentation HV (net circuit KM added) | D75: KM | E75: 0
C76: Augmentation HV (total spend $0's) | D76: total spend $0s | E76: 274168
C77: Augmentation LV (net circuit KM added) | D77: KM | E77: 1
C78: Augmentation LV (total spend $0's) | D78: total spend $0s | E78: 196997
B79: SUBDIVISION | C79: Underground connections | D79: 0's | E79: 404
C80: Overhead connections | D80: 0's | E80: 2
C81: Distribution substation installed (MVA added) | D81: MVA | E81: 0
C82: Distribution substations installed | D82: 0's | E82: 5
C83: Distribution substation installed (total spend $0's) | D83: total spend $0s | E83: 192543
C84: Augmentation HV (net circuit KM added) | D84: KM | E84: 0
C85: Augmentation HV (total spend $0's) | D85: total spend $0s | E85: 109754
C86: Augmentation LV (net circuit KM added) | D86: KM | E86: 1
C87: Augmentation LV (total spend $0's) | D87: total spend $0s | E87: 306760
C88: Cost per lot ($) | D88: $0s | E88: 29003
B89: EMBEDDED GENERATION | C89: Underground connections | D89: 0's | E89: 1157
C90: Overhead connections | D90: 0's | E90: 841
C91: Distribution substation installed (MVA added) | D91: MVA | E91: 0
C92: Distribution substations installed | D92: 0's | E92: 0
C93: Distribution substation installed (total spend $0's) | D93: total spend $0s | E93: 0
C94: Augmentation HV (net circuit KM added) | D94: KM | E94: 0
C95: Augmentation HV (total spend $0's) | D95: total spend $0s | E95: 0
C96: Augmentation LV (net circuit KM added) | D96: KM | E96: 0
C97: Augmentation LV (total spend $0's) | D97: total spend $0s | E97: 0
B100: 2.5.2 - COST METRICS BY CONNECTION CLASSIFICATION
B101: EXPENDITURE - ALL
E102: EXPENDITURE ($0's)
E103: =CRY -> 2017-18
B104: RESIDENTIAL | C104: Simple connection LV | E104: 77223
C105: Complex connection LV | E105: 33572
C106: Complex connection HV | E106: 243096
B107: COMMERCIAL/INDUSTRIAL | C107: Simple connection LV | E107: 131561
C108: Complex connection HV (customer connected at LV, minor HV works) | E108: 1528401
C109: Complex connection HV (customer connected at LV, upstream asset works) | E109: 0
C110: Complex connection HV (customer connected at HV) | E110: 0
C111: Complex connection sub-transmission | E111: 0
B112: SUBDIVISION | C112: Complex connection LV | E112: 261007
C113: Complex connection HV (no upstream asset works) | E113: 348050
C114: Complex connection HV (with upstream asset works) | E114: 0
B115: EMBEDDED GENERATION | C115: Simple connection LV | E115: 0
C116: Complex connection HV (small capacity) | E116: 0
C117: Complex connection HV (large capacity) | E117: 0
B119: EXPENDITURE - STANDARD CONTROL SERVICES
E120: EXPENDITURE ($0's)
E121: =CRY -> 2017-18
B122: RESIDENTIAL | C122: Simple connection LV | E122: 77223
C123: Complex connection LV | E123: 33572
C124: Complex connection HV | E124: 243096
B125: COMMERCIAL/INDUSTRIAL | C125: Simple connection LV | E125: 131561
C126: Complex connection HV (customer connected at LV, minor HV works) | E126: 1528401
C127: Complex connection HV (customer connected at LV, upstream asset works) | E127: 0
C128: Complex connection HV (customer connected at HV) | E128: 0
C129: Complex connection sub-transmission | E129: 0
B130: SUBDIVISION | C130: Complex connection LV | E130: 261007
C131: Complex connection HV (no upstream asset works) | E131: 348050
C132: Complex connection HV (with upstream asset works) | E132: 0
B133: EMBEDDED GENERATION | C133: Simple connection LV | E133: 0
C134: Complex connection HV (small capacity) | E134: 0
C135: Complex connection HV (large capacity) | E135: 0
B137: EXPENDITURE - STANDARD CONTROL SERVICES - CAPITAL CONTRIBUTIONS
E138: EXPENDITURE ($0's)
E139: =CRY -> 2017-18
B140: RESIDENTIAL | C140: Simple connection LV | E140: 0
C141: Complex connection LV | E141: 0
C142: Complex connection HV | E142: 98842
B143: COMMERCIAL/INDUSTRIAL | C143: Simple connection LV | E143: 10808
C144: Complex connection HV (customer connected at LV, minor HV works) | E144: 1514102
C145: Complex connection HV (customer connected at LV, upstream asset works) | E145: 838623
C146: Complex connection HV (customer connected at HV) | E146: 975013
C147: Complex connection sub-transmission | E147: 0
B148: SUBDIVISION | C148: Complex connection LV | E148: 498455
C149: Complex connection HV (no upstream asset works) | E149: 913699
C150: Complex connection HV (with upstream asset works) | E150: 3877449
B151: EMBEDDED GENERATION | C151: Simple connection LV | E151: 0
C152: Complex connection HV (small capacity) | E152: 0
C153: Complex connection HV (large capacity) | E153: 0
B156: 2.5.3 - VOLUMES BY CONNECTION CLASSIFICATION
B157: NEW CONNECTIONS - ALL
E158: VOLUMES (0's)
E159: =CRY -> 2017-18
B160: RESIDENTIAL | C160: Simple connection LV | E160: 201
C161: Complex connection LV | E161: 2
C162: Complex connection HV | E162: 8
B163: COMMERCIAL/INDUSTRIAL | C163: Simple connection LV | E163: 30
C164: Complex connection HV (customer connected at LV, minor HV works) | E164: 40
C165: Complex connection HV (customer connected at LV, upstream asset works) | E165: 0
C166: Complex connection HV (customer connected at HV) | E166: 0
C167: Complex connection sub-transmission | E167: 0
B168: SUBDIVISION | C168: Complex connection LV | E168: 394
C169: Complex connection HV (no upstream asset works) | E169: 12
C170: Complex connection HV (with upstream asset works) | E170: 0
B171: EMBEDDED GENERATION | C171: Simple connection LV | E171: 1998
C172: Complex connection HV (small capacity) | E172: 0
C173: Complex connection HV (large capacity) | E173: 0
B175: NEW CONNECTIONS - STANDARD CONTROL SERVICES
E176: VOLUMES (0's)
E177: =CRY -> 2017-18
B178: RESIDENTIAL | C178: Simple connection LV | E178: 201
C179: Complex connection LV | E179: 2
C180: Complex connection HV | E180: 8
B181: COMMERCIAL/INDUSTRIAL | C181: Simple connection LV | E181: 30
C182: Complex connection HV (customer connected at LV, minor HV works) | E182: 40
C183: Complex connection HV (customer connected at LV, upstream asset works) | E183: 0
C184: Complex connection HV (customer connected at HV) | E184: 0
C185: Complex connection sub-transmission | E185: 0
B186: SUBDIVISION | C186: Complex connection LV | E186: 394
C187: Complex connection HV (no upstream asset works) | E187: 12
C188: Complex connection HV (with upstream asset works) | E188: 0
B189: EMBEDDED GENERATION | C189: Simple connection LV | E189: 1998
C190: Complex connection HV (small capacity) | E190: 0
C191: Complex connection HV (large capacity) | E191: 0
B193: EXISTING CONNECTIONS
E194: VOLUMES (0's)
E195: =CRY -> 2017-18
B196: RESIDENTIAL | C196: Simple connection LV | E196: 64155
C197: Complex connection LV | E197: 279
C198: Complex connection HV | E198: 0
B199: COMMERCIAL/INDUSTRIAL | C199: Simple connection LV | E199: 10115
C200: Complex connection HV (customer connected at LV, minor HV works) | E200: 1220
C201: Complex connection HV (customer connected at LV, upstream asset works) | E201: 567
C202: Complex connection HV (customer connected at HV) | E202: 47
C203: Complex connection sub-transmission | E203: 0
B204: SUBDIVISION | C204: Complex connection LV | E204: 0
C205: Complex connection HV (no upstream asset works) | E205: 0
C206: Complex connection HV (with upstream asset works) | E206: 0
B207: EMBEDDED GENERATION | C207: Simple connection LV | E207: 8890
C208: Complex connection HV (small capacity) | E208: 3
C209: Complex connection HV (large capacity) | E209: 0

Sheet 2.6 Non-network
B1: REGULATORY REPORTING STATEMENT
B2: =INDEX(dms_TradingNameFull_List,MATCH(dms_TradingName,dms_TradingName_List)) -> Power and Water Corporation
B3: =CONCATENATE("CATEGORY ANALYSIS ", CRY) -> CATEGORY ANALYSIS 2017-18
B4: 2.6 NON NETWORK EXPENDITURE
B6: There are THREE tables on this worksheet - each has been 'grouped' (and sub-grouped) for easy navigation. See the Instructions sheet on how to group or ungroup tables.
B8: 2.6.1 - NON-NETWORK EXPENDITURE
F9: EXPENDITURE ($0's)
B10: SERVICE SUBCATEGORY | C10: ASSET CATEGORY | F10: =CRY -> 2017-18
B11: OPEX
B12: IT & COMMUNICATIONS | C12: Total | F12: 1655419.05
B13: MOTOR VEHICLES | C13: Car | F13: 646231.64
C14: Light commercial vehicle | F14: 2015392.79
C15: Elevated work platform (LCV) | F15: 0
C16: Elevated work platform (HCV) | F16: 1044022.54
C17: Heavy commercial vehicle | F17: 924321.42
B18: BUILDINGS AND PROPERTY | C18: Total buildings and property expenditure | F18: 1336847.78
B19: OTHER | C19: Other expenditure | F19: 0
B20: OTHER - DNSP nominated
B43: CAPEX
B44: IT & COMMUNICATIONS | C44: Total | F44: 2949776.36
B45: MOTOR VEHICLES | C45: Car | F45: 0
C46: Light commercial vehicle | F46: 7968.88
C47: Elevated work platform (LCV) | F47: 0
C48: Elevated work platform (HCV) | F48: 0
C49: Heavy commercial vehicle | F49: 1080.51
B50: BUILDINGS AND PROPERTY | C50: Total buildings and property expenditure | F50: 478369.7
B51: OTHER | C51: Other expenditure | F51: 399647.6
B52: OTHER - DNSP nominated | C52: Test Equipment | F52: 244990.82
C53: Tools | F53: 383140.39
B78: 2.6.3 - ANNUAL DESCRIPTOR METRICS
B79: IT & COMMUNICATIONS
F80: VOLUMES (0's)
F81: =CRY -> 2017-18
B82: Employee numbers | F82: 413.03
B83: User numbers | F83: 745.31
B84: Number of devices | F84: 969.41
B86: MOTOR VEHICLES
F87: VOLUMES / %
B88: ASSET CATEGORY | C88: DESCRIPTOR METRIC | E88: Units | F88: =CRY -> 2017-18
B89: CAR | C89: Average kilometres travelled | E89: 0's | F89: 13982.19
C90: Number purchased | E90: 0's | F90: 0
C91: Number leased | E91: 0's | F91: 71.83
C92: Number in fleet | E92: 0's | F92: 71.83
C93: Proportion of total fleet expenditure allocated as regulatory expenditure | E93: (per cent) | F93: 0.743
B94: LIGHT COMMERCIAL VEHICLE | C94: Average kilometres travelled | E94: 0's | F94: 20612.34
C95: Number purchased | E95: 0's | F95: 0.92
C96: Number leased | E96: 0's | F96: 140.08
C97: Number in fleet | E97: 0's | F97: 141
C98: Proportion of total fleet expenditure allocated as regulatory expenditure | E98: (per cent) | F98: 0.5623
B99: ELEVATED WORK PLATFORM (LCV) | C99: Average kilometres travelled | E99: 0's | F99: 0
C100: Number purchased | E100: 0's | F100: 0
C101: Number leased | E101: 0's | F101: 0
C102: Number in fleet | E102: 0's | F102: 0
C103: Proportion of total fleet expenditure allocated as regulatory expenditure | E103: (per cent) | F103: 0
B104: ELEVATED WORK PLATFORM (HCV) | C104: Average kilometres travelled | E104: 0's | F104: 16310.88
C105: Number purchased | E105: 0's | F105: 0
C106: Number leased | E106: 0's | F106: 19.42
C107: Number in fleet | E107: 0's | F107: 19.42
C108: Proportion of total fleet expenditure allocated as regulatory expenditure | E108: (per cent) | F108: 1
B109: HEAVY COMMERCIAL VEHICLE | C109: Average kilometres travelled | E109: 0's | F109: 12434.5
C110: Number purchased | E110: 0's | F110: 1
C111: Number leased | E111: 0's | F111: 29
C112: Number in fleet | E112: 0's | F112: 30
C113: Proportion of total fleet expenditure allocated as regulatory expenditure | E113: (per cent) | F113: 0.8071
B117: 2.6.4 - INFORMATION & COMMUNICATIONS TECHNOLOGY - CAPEX BY PURPOSE
F118: EXPENDITURE ($0's)
F119: =CRY -> 2017-18
B120: ICT CAPABILITY GROWTH
B121: Audio Visual | F121: 44334.42
B122: Business Analytics | F122: 77184.1
B123: Mobility | F123: 1091.31
B124: Outage Management Systems | F124: 1028824.64
B125: Portable Radio | F125: 29365.03
B126: Miscelleanous | F126: 11507.51
B127: ICT ASSET EXTENSIONS
B128: Miscelleanous | F128: 16260.21
B134: ICT ASSET REMEDIATION
B141: ICT ASSET REPLACEMENT
B142: 400 MHZ Band Relocation | F142: 1741209.13

Sheet 2.7 Vegetation management
B1: REGULATORY REPORTING STATEMENT
B2: =INDEX(dms_TradingNameFull_List,MATCH(dms_TradingName,dms_TradingName_List)) -> Power and Water Corporation
B3: =CONCATENATE("CATEGORY ANALYSIS ", CRY) -> CATEGORY ANALYSIS 2017-18
B4: 2.7 VEGETATION MANAGEMENT
B6: There are THREE tables on this worksheet. Each has been 'grouped' (and sub-grouped) for easy navigation. See the Instructions sheet on how to group and ungroup data.
B8: 2.7.1 - DESCRIPTOR METRICS BY ZONE
B9: URBAN AND CBD
B10: ZONES | C10: ASSET | D10: Units | E10: VOLUMES (0's)
E11: =CRY -> 2017-18
B12: ZONE 1 | C12: Route line length within zone | D12: KM | E12: 259
C13: Number of maintenance spans | D13: 0's | E13: 3518
C14: Total length of maintenance spans | D14: KM | E14: 126
C15: Length of vegetation corridors | D15: KM | E15: 1
C16: Average number of trees per maintenance span | D16: 0's | E16: 3.5
C17: Average frequency of cutting cycle | D17: years | E17: 0.5
B18: ZONE 2 | C18: Route line length within zone | D18: KM | E18: 35
C19: Number of maintenance spans | D19: 0's | E19: 552
C20: Total length of maintenance spans | D20: KM | E20: 20
C21: Length of vegetation corridors | D21: KM | E21: 1
C22: Average number of trees per maintenance span | D22: 0's | E22: 3.4
C23: Average frequency of cutting cycle | D23: years | E23: 0.5
B24: ZONE 3 | C24: Route line length within zone | D24: KM | E24: 34
C25: Number of maintenance spans | D25: 0's | E25: 0
C26: Total length of maintenance spans | D26: KM | E26: 0
C27: Length of vegetation corridors | D27: KM | E27: 0
C28: Average number of trees per maintenance span | D28: 0's | E28: 0
C29: Average frequency of cutting cycle | D29: years | E29: 1.5
B30: ZONE 4 | C30: Route line length within zone | D30: KM | E30: 75
C31: Number of maintenance spans | D31: 0's | E31: 0
C32: Total length of maintenance spans | D32: KM | E32: 0
C33: Length of vegetation corridors | D33: KM | E33: 0
C34: Average number of trees per maintenance span | D34: 0's | E34: 0
C35: Average frequency of cutting cycle | D35: years | E35: 1.5
B36: ZONE 5 | C36: Route line length within zone | D36: KM
C37: Number of maintenance spans | D37: 0's
C38: Total length of maintenance spans | D38: KM
C39: Length of vegetation corridors | D39: KM
C40: Average number of trees per maintenance span | D40: 0's
C41: Average frequency of cutting cycle | D41: years
B42: ZONE 6 | C42: Route line length within zone | D42: KM
C43: Number of maintenance spans | D43: 0's
C44: Total length of maintenance spans | D44: KM
C45: Length of vegetation corridors | D45: KM
C46: Average number of trees per maintenance span | D46: 0's
C47: Average frequency of cutting cycle | D47: years
B48: ZONE 7 | C48: Route line length within zone | D48: KM
C49: Number of maintenance spans | D49: 0's
C50: Total length of maintenance spans | D50: KM
C51: Length of vegetation corridors | D51: KM
C52: Average number of trees per maintenance span | D52: 0's
C53: Average frequency of cutting cycle | D53: years
B54: ZONE 8 | C54: Route line length within zone | D54: KM
C55: Number of maintenance spans | D55: 0's
C56: Total length of maintenance spans | D56: KM
C57: Length of vegetation corridors | D57: KM
C58: Average number of trees per maintenance span | D58: 0's
C59: Average frequency of cutting cycle | D59: years
B60: ZONE 9 | C60: Route line length within zone | D60: KM
C61: Number of maintenance spans | D61: 0's
C62: Total length of maintenance spans | D62: KM
C63: Length of vegetation corridors | D63: KM
C64: Average number of trees per maintenance span | D64: 0's
C65: Average frequency of cutting cycle | D65: years
B66: ZONE 10 | C66: Route line length within zone | D66: KM
C67: Number of maintenance spans | D67: 0's
C68: Total length of maintenance spans | D68: KM
C69: Length of vegetation corridors | D69: KM
C70: Average number of trees per maintenance span | D70: 0's
C71: Average frequency of cutting cycle | D71: years
B72: ZONE 11 | C72: Route line length within zone | D72: KM
C73: Number of maintenance spans | D73: 0's
C74: Total length of maintenance spans | D74: KM
C75: Length of vegetation corridors | D75: KM
C76: Average number of trees per maintenance span | D76: 0's
C77: Average frequency of cutting cycle | D77: years
B78: ZONE 12 | C78: Route line length within zone | D78: KM
C79: Number of maintenance spans | D79: 0's
C80: Total length of maintenance spans | D80: KM
C81: Length of vegetation corridors | D81: KM
C82: Average number of trees per maintenance span | D82: 0's
C83: Average frequency of cutting cycle | D83: years
B84: ZONE 13 | C84: Route line length within zone | D84: KM
C85: Number of maintenance spans | D85: 0's
C86: Total length of maintenance spans | D86: KM
C87: Length of vegetation corridors | D87: KM
C88: Average number of trees per maintenance span | D88: 0's
C89: Average frequency of cutting cycle | D89: years
B90: ZONE 14 | C90: Route line length within zone | D90: KM
C91: Number of maintenance spans | D91: 0's
C92: Total length of maintenance spans | D92: KM
C93: Length of vegetation corridors | D93: KM
C94: Average number of trees per maintenance span | D94: 0's
C95: Average frequency of cutting cycle | D95: years
B96: ZONE 15 | C96: Route line length within zone | D96: KM
C97: Number of maintenance spans | D97: 0's
C98: Total length of maintenance spans | D98: KM
C99: Length of vegetation corridors | D99: KM
C100: Average number of trees per maintenance span | D100: 0's
C101: Average frequency of cutting cycle | D101: years
B102: ZONE 16 | C102: Route line length within zone | D102: KM
C103: Number of maintenance spans | D103: 0's
C104: Total length of maintenance spans | D104: KM
C105: Length of vegetation corridors | D105: KM
C106: Average number of trees per maintenance span | D106: 0's
C107: Average frequency of cutting cycle | D107: years
B108: ZONE 17 | C108: Route line length within zone | D108: KM
C109: Number of maintenance spans | D109: 0's
C110: Total length of maintenance spans | D110: KM
C111: Length of vegetation corridors | D111: KM
C112: Average number of trees per maintenance span | D112: 0's
C113: Average frequency of cutting cycle | D113: years
B114: ZONE 18 | C114: Route line length within zone | D114: KM
C115: Number of maintenance spans | D115: 0's
C116: Total length of maintenance spans | D116: KM
C117: Length of vegetation corridors | D117: KM
C118: Average number of trees per maintenance span | D118: 0's
C119: Average frequency of cutting cycle | D119: years
B121: RURAL
B122: ZONES | C122: ASSET | D122: Units | E122: VOLUMES (0's)
E123: =CRY -> 2017-18
B124: =IF(ISBLANK(B12),"",B12) -> ZONE 1 | C124: Route line length within zone | D124: KM | E124: 2334
C125: Number of maintenance spans | D125: 0's | E125: 7777
C126: Total length of maintenance spans | D126: KM | E126: 704
C127: Length of vegetation corridors | D127: KM | E127: 254
C128: Average number of trees per maintenance span | D128: 0's | E128: 4.3
C129: Average frequency of cutting cycle | D129: years | E129: 0.5
B130: =IF(ISBLANK(B18),"",B18) -> ZONE 2 | C130: Route line length within zone | D130: KM | E130: 1150
C131: Number of maintenance spans | D131: 0's | E131: 2492
C132: Total length of maintenance spans | D132: KM | E132: 281
C133: Length of vegetation corridors | D133: KM | E133: 365
C134: Average number of trees per maintenance span | D134: 0's | E134: 5.3
C135: Average frequency of cutting cycle | D135: years | E135: 0.5
B136: =IF(ISBLANK(B24),"",B24) -> ZONE 3 | C136: Route line length within zone | D136: KM | E136: 327
C137: Number of maintenance spans | D137: 0's | E137: 0
C138: Total length of maintenance spans | D138: KM | E138: 0
C139: Length of vegetation corridors | D139: KM | E139: 0
C140: Average number of trees per maintenance span | D140: 0's | E140: 0
C141: Average frequency of cutting cycle | D141: years | E141: 1.5
B142: =IF(ISBLANK(B30),"",B30) -> ZONE 4 | C142: Route line length within zone | D142: KM | E142: 506
C143: Number of maintenance spans | D143: 0's | E143: 0
C144: Total length of maintenance spans | D144: KM | E144: 0
C145: Length of vegetation corridors | D145: KM | E145: 0
C146: Average number of trees per maintenance span | D146: 0's | E146: 0
C147: Average frequency of cutting cycle | D147: years | E147: 1.5
B148: =IF(ISBLANK(B36),"",B36) -> ZONE 5 | C148: Route line length within zone | D148: KM
C149: Number of maintenance spans | D149: 0's
C150: Total length of maintenance spans | D150: KM
C151: Length of vegetation corridors | D151: KM
C152: Average number of trees per maintenance span | D152: 0's
C153: Average frequency of cutting cycle | D153: years
B154: =IF(ISBLANK(B42),"",B42) -> ZONE 6 | C154: Route line length within zone | D154: KM
C155: Number of maintenance spans | D155: 0's
C156: Total length of maintenance spans | D156: KM
C157: Length of vegetation corridors | D157: KM
C158: Average number of trees per maintenance span | D158: 0's
C159: Average frequency of cutting cycle | D159: years
B160: =IF(ISBLANK(B48),"",B48) -> ZONE 7 | C160: Route line length within zone | D160: KM
C161: Number of maintenance spans | D161: 0's
C162: Total length of maintenance spans | D162: KM
C163: Length of vegetation corridors | D163: KM
C164: Average number of trees per maintenance span | D164: 0's
C165: Average frequency of cutting cycle | D165: years
B166: =IF(ISBLANK(B54),"",B54) -> ZONE 8 | C166: Route line length within zone | D166: KM
C167: Number of maintenance spans | D167: 0's
C168: Total length of maintenance spans | D168: KM
C169: Length of vegetation corridors | D169: KM
C170: Average number of trees per maintenance span | D170: 0's
C171: Average frequency of cutting cycle | D171: years
B172: =IF(ISBLANK(B60),"",B60) -> ZONE 9 | C172: Route line length within zone | D172: KM
C173: Number of maintenance spans | D173: 0's
C174: Total length of maintenance spans | D174: KM
C175: Length of vegetation corridors | D175: KM
C176: Average number of trees per maintenance span | D176: 0's
C177: Average frequency of cutting cycle | D177: years
B178: =IF(ISBLANK(B66),"",B66) -> ZONE 10 | C178: Route line length within zone | D178: KM
C179: Number of maintenance spans | D179: 0's
C180: Total length of maintenance spans | D180: KM
C181: Length of vegetation corridors | D181: KM
C182: Average number of trees per maintenance span | D182: 0's
C183: Average frequency of cutting cycle | D183: years
B184: =IF(ISBLANK(B72),"",B72) -> ZONE 11 | C184: Route line length within zone | D184: KM
C185: Number of maintenance spans | D185: 0's
C186: Total length of maintenance spans | D186: KM
C187: Length of vegetation corridors | D187: KM
C188: Average number of trees per maintenance span | D188: 0's
C189: Average frequency of cutting cycle | D189: years
B190: =IF(ISBLANK(B78),"",B78) -> ZONE 12 | C190: Route line length within zone | D190: KM
C191: Number of maintenance spans | D191: 0's
C192: Total length of maintenance spans | D192: KM
C193: Length of vegetation corridors | D193: KM
C194: Average number of trees per maintenance span | D194: 0's
C195: Average frequency of cutting cycle | D195: years
B196: =IF(ISBLANK(B84),"",B84) -> ZONE 13 | C196: Route line length within zone | D196: KM
C197: Number of maintenance spans | D197: 0's
C198: Total length of maintenance spans | D198: KM
C199: Length of vegetation corridors | D199: KM
C200: Average number of trees per maintenance span | D200: 0's
C201: Average frequency of cutting cycle | D201: years
B202: =IF(ISBLANK(B90),"",B90) -> ZONE 14 | C202: Route line length within zone | D202: KM
C203: Number of maintenance spans | D203: 0's
... 200 more rows

Sheet 2.8 Maintenance
B1: REGULATORY REPORTING STATEMENT
B2: =INDEX(dms_TradingNameFull_List,MATCH(dms_TradingName,dms_TradingName_List)) -> Power and Water Corporation
B3: =CONCATENATE("CATEGORY ANALYSIS ", CRY) -> CATEGORY ANALYSIS 2017-18
B4: 2.8 MAINTENANCE
B6: There are TWO tables on this worksheet. It has been 'grouped' (and sub-grouped) for easy navigation. See the Instructions sheet on how to group or ungroup data.
B8: 2.8.1 - DESCRIPTOR METRICS FOR ROUTINE AND NON-ROUTINE MAINTENANCE
B9: ASSET QUANTITY AT YEAR END
F10: VOLUME | H10: AVERAGE AGE OF ASSET GROUP | I10: INSPECTION CYCLE (YEARS) | J10: MAINTENANCE CYCLE (YEARS)
F11: (0's)
B12: MAINTENANCE ACTIVITY | C12: MAINTENANCE ASSET CATEGORY | D12: ASSET QUANTITY | E12: Units | F12: =CRY -> 2017-18 | H12: =CRY -> 2017-18
B13: Pole top, overhead line & service line maintenance | C13: Pole tops and overhead lines | D13: Number of poles | E13: Number | F13: 44966 | H13: 30 | I13: 3 | J13: 0
C14: Service lines | D14: Number of customers | E14: Number | F14: 55683 | H14: 27 | I14: 0 | J14: 0
B15: Pole inspection and treatment | C15: All poles | D15: Number of poles | E15: Number | F15: 44966 | H15: 30 | I15: 3 | J15: 0
B16: Overhead asset inspection | C16: All overhead assets | D16: Line patrolled (route KM) | E16: KM | F16: 5428 | H16: 29 | I16: 3 | J16: 0
B17: Network underground cable maintenance: by voltage | C17: LV - 11 to 22 KV | D17: Length (KM) | E17: KM | F17: 1586 | H17: 22 | I17: 0 | J17: 0
C18: 33 KV and above | D18: Length (KM) | E18: KM | F18: 35 | H18: 15 | I18: 0 | J18: 0
B19: Network underground cable maintenance: by location | C19: Cbd | D19: Length (KM) | E19: KM | F19: 73 | H19: 29 | I19: 0 | J19: 0
C20: Non-CBD | D20: Length (KM) | E20: KM | F20: 1548 | H20: 23 | I20: 0 | J20: 0
B21: Distribution substation equipment & property maintenance | C21: Distribution substation transformers | D21: Number of installed transformers | E21: Number | F21: 4757 | H21: 18 | I21: 3 | J21: 0
C22: Distribution substation switchgear (within-substations and stand-alone switchgear) | D22: Number of switches | E22: Number | F22: 6368 | H22: 23 | I22: 3 | J22: 0
C23: Distribution substation - other equipment | D23: Earth mat | E23: Number | F23: 1928 | H23: 21 | I23: 3 | J23: 6
C24: Distribution substation - property | D24: Number of distribution substation properties maintained | E24: Number | F24: 343 | H24: 21 | I24: 3 | J24: 0
B25: Zone substation equipment maintenance | C25: Transformers - zone substation | D25: Number | E25: Number | F25: 69 | H25: 22 | I25: 0.08 | J25: 6
C26: Transformers - distribution | D26: Number of distribution transformers within zone substation | E26: Number | F26: 0 | H26: 0 | I26: 0 | J26: 0
C27: Transformers - HV | D27: Number of HV transformers | E27: Number | F27: 0 | H27: 0 | I27: 0 | J27: 0
C28: Zone substation - other equipment | D28: Other ZSS assets | F28: 1175 | H28: 18 | I28: 0.08 | J28: 3
B29: Zone substation property maintenance | C29: All zone substation properties | D29: Number of zone substation properties maintained | E29: Number | F29: 36 | H29: 28 | I29: 0.08 | J29: 0.08
B30: Public lighting maintenance | C30: Minor roads | D30: Number of public lights maintained | E30: Number | F30: 0 | H30: 0 | I30: 0 | J30: 0
C31: Major roads | D31: Number of public lights maintained | E31: Number | F31: 0 | H31: 0 | I31: 0 | J31: 0
B32: SCADA & network control maintenance | C32: SCADA & network control | D32: Number of systems | E32: Number | F32: 110 | H32: 10 | I32: 3 | J32: 1
B33: Protection systems maintenance | C33: Protection systems | D33: Number of systems | E33: Number | F33: 1310 | H33: 12 | I33: 0 | J33: 3
B34: Subtransmission asset maintenance | C34: Subtransmission asset maintenance - for DNSPs with dual function assets | D34: 0 | F34: 0 | H34: 0 | I34: 0 | J34: 0
B35: Various assets | C35: includes rates, electricity, communications equip, metering | D35: Various | E35: Number | F35: 0 | H35: 0 | I35: 0 | J35: 0
B36: Ground clearance - access tracks | C36: Access tracks | D36: Number | E36: Number | F36: 0 | H36: 0 | I36: 0 | J36: 0
B37: Other | C37: Pillars | D37: Number of pillars | F37: 7431 | H37: 18 | I37: 10 | J37: 0
C38: Communications | D38: Number of assets | F38: 761 | H38: 10 | I38: 3 | J38: 0
B48: ASSET QUANTITY INSPECTED / MAINTAINED
F49: VOLUME
F50: (0's)
B51: MAINTENANCE ACTIVITY | C51: MAINTENANCE ASSET CATEGORY | D51: ASSET QUANTITY | E51: Units | F51: =CRY -> 2017-18
B52: Pole top, overhead line & service line maintenance | C52: Pole tops and overhead lines | D52: Number of poles | E52: Number | F52: 15182
C53: Service lines | D53: Number of customers | E53: Number | F53: 6
B54: Pole inspection and treatment | C54: All poles | D54: Number of poles | E54: Number | F54: 14989
B55: Overhead asset inspection | C55: All overhead assets | D55: Line patrolled (route KM) | E55: KM | F55: 1809
B56: Network underground cable maintenance: by voltage | C56: LV - 11 to 22 KV | D56: Length (KM) | E56: KM | F56: 32
C57: 33 KV and above | D57: Length (KM) | E57: KM | F57: 1
B58: Network underground cable maintenance: by location | C58: Cbd | D58: Length (KM) | E58: KM | F58: 1
C59: Non-CBD | D59: Length (KM) | E59: KM | F59: 32
B60: Distribution substation equipment & property maintenance | C60: Distribution substation transformers | D60: Number of installed transformers | E60: Number | F60: 2114
C61: Distribution substation switchgear (within-substations and stand-alone switchgear) | D61: Number of switches | E61: Number | F61: 2395
C62: Distribution substation - other equipment | D62: Earth mat | E62: Number | F62: 156
C63: Distribution substation - property | D63: Number of distribution substation properties maintained | E63: Number | F63: 126
B64: Zone substation equipment maintenance | C64: Transformers - zone substation | D64: Number | E64: Number | F64: 1062
C65: Transformers - distribution | D65: Number of distribution transformers within zone substation | E65: Number | F65: 0
C66: Transformers - HV | D66: Number of HV transformers | E66: Number | F66: 0
C67: Zone substation - other equipment | D67: =IF(ISBLANK(D28),"",D28) -> Other ZSS assets | E67: =IF(ISBLANK(E28),"",E28) ->  | F67: 14957
B68: Zone substation property maintenance | C68: All zone substation properties | D68: Number of zone substation properties maintained | E68: Number | F68: 826
B69: Public lighting maintenance | C69: Minor roads | D69: Number of public lights maintained | E69: Number | F69: 0
C70: Major roads | D70: Number of public lights maintained | E70: Number | F70: 0
B71: SCADA & network control maintenance | C71: SCADA & network control | D71: Number of systems | E71: Number | F71: 159
B72: Protection systems maintenance | C72: Protection systems | D72: Number of systems | E72: Number | F72: 174
B73: Subtransmission asset maintenance | C73: Subtransmission asset maintenance - for DNSPs with dual function assets | D73: =IF(ISBLANK(D34),"",D34) -> 0 | E73: =IF(ISBLANK(E34),"",E34) ->  | F73: 0
B74: Various assets | C74: includes rates, electricity, communications equip, metering | D74: Various | E74: Number | F74: 0
B75: Ground clearance - access tracks | C75: Access tracks | D75: Number | E75: Number | F75: 0
B76: Other | C76: =IF(ISBLANK(C37),"",C37) -> Pillars | D76: Number of pillars | F76: 752
C77: Communications | D77: Number of assets | F77: 379
B89: 2.8.2 - COST METRICS FOR ROUTINE AND NON-ROUTINE MAINTENANCE
B90: ROUTINE MAINTENANCE
F91: EXPENDITURE
F92: ($0'S)
B93: MAINTENANCE ACTIVITY | C93: MAINTENANCE ASSET CATEGORY | D93: ASSET QUANTITY | E93: Units | F93: =CRY -> 2017-18
B94: Pole top, overhead line & service line maintenance | C94: Pole tops and overhead lines | D94: Number of poles | E94: Number | F94: 147968
C95: Service lines | D95: Number of customers | E95: Number | F95: 0
B96: Pole inspection and treatment | C96: All poles | D96: Number of poles | E96: Number | F96: 106238
B97: Overhead asset inspection | C97: All overhead assets | D97: Line patrolled (route KM) | E97: KM | F97: 174413
B98: Network underground cable maintenance: by voltage | C98: LV - 11 to 22 KV | D98: Length (KM) | E98: KM | F98: 40689
C99: 33 KV and above | D99: Length (KM) | E99: KM | F99: 0
B100: Network underground cable maintenance: by location | C100: Cbd | D100: Length (KM) | E100: KM | F100: 3112
C101: Non-CBD | D101: Length (KM) | E101: KM | F101: 37578
B102: Distribution substation equipment & property maintenance | C102: Distribution substation transformers | D102: Number of installed transformers | E102: Number | F102: 339209
C103: Distribution substation switchgear (within-substations and stand-alone switchgear) | D103: Number of switches | E103: Number | F103: 394395
C104: Distribution substation - other equipment | D104: Earth mat | E104: Number | F104: 136770
C105: Distribution substation - property | D105: Number of distribution substation properties maintained | E105: Number | F105: 18410
B106: Zone substation equipment maintenance | C106: Transformers - zone substation | D106: Number | E106: Number | F106: 298529
C107: Transformers - distribution | D107: Number of distribution transformers within zone substation | E107: Number | F107: 0
C108: Transformers - HV | D108: Number of HV transformers | E108: Number | F108: 0
C109: Zone substation - other equipment | D109: =IF(ISBLANK(D28),"",D28) -> Other ZSS assets | E109: =IF(ISBLANK(E28),"",E28) ->  | F109: 813713
B110: Zone substation property maintenance | C110: All zone substation properties | D110: Number of zone substation properties maintained | E110: Number | F110: 454205
B111: Public lighting maintenance | C111: Minor roads | D111: Number of public lights maintained | E111: Number | F111: 0
C112: Major roads | D112: Number of public lights maintained | E112: Number | F112: 0
B113: SCADA & network control maintenance | C113: SCADA & network control | D113: Number of systems | E113: Number | F113: 78409
B114: Protection systems maintenance | C114: Protection systems | D114: Number of systems | E114: Number | F114: 317821
B115: Subtransmission asset maintenance | C115: Subtransmission asset maintenance - for DNSPs with dual function assets | D115: =IF(ISBLANK(D34),"",D34) -> 0 | E115: =IF(ISBLANK(E34),"",E34) ->  | F115: 0
B116: Various assets | C116: includes rates, electricity, communications equip, metering | D116: Various | E116: Number | F116: 0
B117: Ground clearance - access tracks | C117: Access tracks | D117: Number | E117: Number | F117: 0
B118: Other | C118: =IF(ISBLANK(C37),"",C37) -> Pillars | D118: Number of pillars | F118: 161545
C119: Communications | D119: Number of assets | F119: 154751
B129: NON-ROUTINE MAINTENANCE
F130: EXPENDITURE
F131: ($0'S)
B132: MAINTENANCE ACTIVITY | C132: MAINTENANCE ASSET CATEGORY | D132: ASSET QUANTITY | E132: Units | F132: =CRY -> 2017-18
B133: Pole top, overhead line & service line maintenance | C133: Pole tops and overhead lines | D133: Number of poles | E133: Number | F133: 1247923
C134: Service lines | D134: Number of customers | E134: Number | F134: 48153
B135: Pole inspection and treatment | C135: All poles | D135: Number of poles | E135: Number | F135: 0
B136: Overhead asset inspection | C136: All overhead assets | D136: Line patrolled (route KM) | E136: KM | F136: 0
B137: Network underground cable maintenance: by voltage | C137: LV - 11 to 22 KV | D137: Length (KM) | E137: KM | F137: 609464
C138: 33 KV and above | D138: Length (KM) | E138: KM | F138: 3489
B139: Network underground cable maintenance: by location | C139: Cbd | D139: Length (KM) | E139: KM | F139: 21297
C140: Non-CBD | D140: Length (KM) | E140: KM | F140: 591656
B141: Distribution substation equipment & property maintenance | C141: Distribution substation transformers | D141: Number of installed transformers | E141: Number | F141: 2128371
C142: Distribution substation switchgear (within-substations and stand-alone switchgear) | D142: Number of switches | E142: Number | F142: 691959
C143: Distribution substation - other equipment | D143: Earth mat | E143: Number | F143: 708905
C144: Distribution substation - property | D144: Number of distribution substation properties maintained | E144: Number | F144: 95005
B145: Zone substation equipment maintenance | C145: Transformers - zone substation | D145: Number | E145: Number | F145: 1005550
C146: Transformers - distribution | D146: Number of distribution transformers within zone substation | E146: Number | F146: 0
C147: Transformers - HV | D147: Number of HV transformers | E147: Number | F147: 0
C148: Zone substation - other equipment | D148: =IF(ISBLANK(D28),"",D28) -> Other ZSS assets | E148: =IF(ISBLANK(E28),"",E28) ->  | F148: 1149554
B149: Zone substation property maintenance | C149: All zone substation properties | D149: Number of zone substation properties maintained | E149: Number | F149: 799420
B150: Public lighting maintenance | C150: Minor roads | D150: Number of public lights maintained | E150: Number | F150: 0
C151: Major roads | D151: Number of public lights maintained | E151: Number | F151: 0
B152: SCADA & network control maintenance | C152: SCADA & network control | D152: Number of systems | E152: Number | F152: 331541
B153: Protection systems maintenance | C153: Protection systems | D153: Number of systems | E153: Number | F153: 661808
B154: Subtransmission asset maintenance | C154: Subtransmission asset maintenance - for DNSPs with dual function assets | D154: =IF(ISBLANK(D34),"",D34) -> 0 | E154: =IF(ISBLANK(E34),"",E34) ->  | F154: 0
B155: Various assets | C155: includes rates, electricity, communications equip, metering | D155: Various | E155: Number | F155: 0
B156: Ground clearance - access tracks | C156: Access tracks | D156: Number | E156: Number | F156: 0
B157: Other | C157: =IF(ISBLANK(C37),"",C37) -> Pillars | D157: Number of pillars | F157: 598284
C158: Communications | D158: Number of assets | F158: 375673

Sheet 2.9 Emergency Response
B1: REGULATORY REPORTING STATEMENT
B2: =INDEX(dms_TradingNameFull_List,MATCH(dms_TradingName,dms_TradingName_List)) -> Power and Water Corporation
B3: =CONCATENATE("CATEGORY ANALYSIS ", CRY) -> CATEGORY ANALYSIS 2017-18
B4: 2.9 EMERGENCY RESPONSE
B6: There is ONE table on this worksheet. It has been 'sub-grouped' for easy navigation. See the Instructions sheet on how to group or ungroup data.
B8: 2.9.1 - EMERGENCY RESPONSE EXPENDITURE (OPEX)
C9: EXPENDITURE ($0's)
C10: =CRY -> 2017-18
B11: (A) TOTAL EMERGENCY RESPONSE EXPENDITURE
B12: Total Expenditure | C12: 8947734
B13: (B) MAJOR EVENTS O&M EXPENDITURE
B14: Cyclone Marcus | C14: 2732798
B15: Tennant Creek UFLS | C15: 0
B57: (C) MAJOR EVENT DAYS O&M EXPENDITURE
B58: Sunday, 18 March 2018 | C58: 160455
B59: Monday, 19 March 2018 | C59: 147823
B60: Tuesday, 20 March 2018 | C60: 162392
B61: Wednesday, 21 March 2018 | C61: 139312
B62: Thursday, 22 March 2018 | C62: 126377
B63: Friday, 23 March 2018 | C63: 105775
B64: Saturday, 24 March 2018 | C64: 80095
B65: Sunday, 25 March 2018 | C65: 82388
B66: Monday, 26 March 2018 | C66: 161082
B67: Tuesday, 27 March 2018 | C67: 86799
B68: Wednesday, 28 March 2018 | C68: 92565
B69: Thursday, 29 March 2018 | C69: 128141
B70: Friday, 30 March 2018 | C70: 334515
B71: Saturday, 31 March 2018 | C71: 0
B72: Sunday, 1 April 2018 | C72: 366
B73: Monday, 2 April 2018 | C73: 806
B74: Tuesday, 3 April 2018 | C74: 53275
B75: Wednesday, 4 April 2018 | C75: 9141
B76: Thursday, 5 April 2018 | C76: 43294
B77: Friday, 6 April 2018 | C77: 26543
B78: Saturday, 7 April 2018 | C78: 779
B79: Sunday, 8 April 2018 | C79: 5129
B80: Monday, 9 April 2018 | C80: 46525
B81: Tuesday, 10 April 2018 | C81: 94520
B82: Wednesday, 11 April 2018 | C82: 8308
B83: Thursday, 12 April 2018 | C83: 16657
B84: Friday, 13 April 2018 | C84: 16627
B85: Saturday, 14 April 2018 | C85: 0
B86: Sunday, 15 April 2018 | C86: 0
B87: Monday, 16 April 2018 | C87: 38499
B88: Tuesday, 17 April 2018 | C88: 44405
B89: Wednesday, 18 April 2018 | C89: 9297
B90: Thursday, 19 April 2018 | C90: 8368
B91: Friday, 20 April 2018 | C91: 12597
B92: Saturday, 21 April 2018 | C92: (141)
B93: Sunday, 22 April 2018 | C93: 0
B94: Monday, 23 April 2018 | C94: 31691
B95: Tuesday, 24 April 2018 | C95: 18247
B96: Wednesday, 25 April 2018 | C96: 0
B97: Thursday, 26 April 2018 | C97: 25442
B98: Friday, 27 April 2018 | C98: 10390
B99: Saturday, 28 April 2018 | C99: 0
B100: Sunday, 29 April 2018 | C100: 0
B101: Monday, 30 April 2018 | C101: 22223
B102: Tuesday, 1 May 2018 | C102: 12908
B103: Wednesday, 2 May 2018 | C103: 26449
B104: Thursday, 3 May 2018 | C104: 0
B105: Friday, 4 May 2018 | C105: 85
B106: Saturday, 5 May 2018 | C106: 0
B107: Sunday, 6 May 2018 | C107: 1374
B108: Monday, 7 May 2018 | C108: 0
B109: Tuesday, 8 May 2018 | C109: 32153
B110: Wednesday, 9 May 2018 | C110: 3004
B111: Thursday, 10 May 2018 | C111: 1712
B112: Friday, 11 May 2018 | C112: 2401
B113: Saturday, 12 May 2018 | C113: 626
B114: Sunday, 13 May 2018 | C114: 0
B115: Monday, 14 May 2018 | C115: 979
B116: Tuesday, 15 May 2018 | C116: 4749
B117: Wednesday, 16 May 2018 | C117: 17330
B118: Thursday, 17 May 2018 | C118: 5527
B119: Friday, 18 May 2018 | C119: 2073
B120: Saturday, 19 May 2018 | C120: 902
B121: Sunday, 20 May 2018 | C121: 0
B122: Monday, 21 May 2018 | C122: 70408
B123: Tuesday, 22 May 2018 | C123: 24871
B124: Wednesday, 23 May 2018 | C124: 2065
B125: Thursday, 24 May 2018 | C125: 182
B126: Friday, 25 May 2018 | C126: 3082
B127: Saturday, 26 May 2018 | C127: 0
B128: Sunday, 27 May 2018 | C128: 3664
B129: Monday, 28 May 2018 | C129: 33440
B130: Tuesday, 29 May 2018 | C130: 3125
B131: Wednesday, 30 May 2018 | C131: 12100
B132: Thursday, 31 May 2018 | C132: 8341
B133: Friday, 1 June 2018 | C133: 1888
B134: Saturday, 2 June 2018 | C134: 0
B135: Sunday, 3 June 2018 | C135: 3664
B136: Monday, 4 June 2018 | C136: 4633
B137: Tuesday, 5 June 2018 | C137: 4053
B138: Wednesday, 6 June 2018 | C138: 2043
B139: Thursday, 7 June 2018 | C139: 57077
B140: Friday, 8 June 2018 | C140: (1,094)
B141: Saturday, 9 June 2018 | C141: 0
B142: Sunday, 10 June 2018 | C142: 0
B143: Monday, 11 June 2018 | C143: 0
B144: Tuesday, 12 June 2018 | C144: 929
B145: Wednesday, 13 June 2018 | C145: 0
B146: Thursday, 14 June 2018 | C146: 3448
B147: Friday, 15 June 2018 | C147: 12255
B148: Saturday, 16 June 2018 | C148: 0
B149: Sunday, 17 June 2018 | C149: 0
B150: Monday, 18 June 2018 | C150: 123
B151: Tuesday, 19 June 2018 | C151: 1206
B152: Wednesday, 20 June 2018 | C152: 5576
B153: Thursday, 21 June 2018 | C153: 1139
B154: Friday, 22 June 2018 | C154: 1666
B155: Saturday, 23 June 2018 | C155: 0
B156: Sunday, 24 June 2018 | C156: 0
B157: Monday, 25 June 2018 | C157: 921
B158: Tuesday, 26 June 2018 | C158: 4307
B159: Wednesday, 27 June 2018 | C159: 4710

Sheet 2.10 network overheads
B1: REGULATORY REPORTING STATEMENT
B2: Power and Water Corporation
B3: =CONCATENATE("CATEGORY ANALYSIS ", CRY) -> CATEGORY ANALYSIS 2017-18
B4: 2.10 OVERHEADS
B6: There are TWO tables on this worksheet. Each table has been 'grouped' for easy navigation. See the Instructions sheet on how to group or ungroup data.
B8: 2.10.1 - NETWORK OVERHEADS EXPENDITURE
D9: EXPENDITURE ($0's)
D10: =CRY -> 2017-18
B11: OPEX
B12: Standard Control Services | C12: Total | D12: 37977439.82
B13: Alternative Control Services | C13: Total | D13: 2165072.3
B14: CAPEX
B15: Standard Control Services | C15: Total | D15: 8183999.07
B16: Alternative Control Services | C16: Total | D16: 303490.36
B17: OTHER DISTRIBUTION SERVICES
B18: Negotiated Services | C18: Total | D18: 0
B19: Unregulated Services | C19: Total | D19: 1734681.51
B23: 2.10.2 - CORPORATE OVERHEADS EXPENDITURE
D24: EXPENDITURE ($0's)
D25: =CRY -> 2017-18
B26: OPEX
B27: Standard Control Services | C27: Total | D27: 13381112.63
B28: Alternative Control Services | C28: Total | D28: 1668310.19
B29: CAPEX
B30: Standard Control Services | C30: Total | D30: 3048696.56
B31: Alternative Control Services | C31: Total | D31: 380100.8
B32: OTHER DISTRIBUTION SERVICES
B33: Negotiated Services | C33: Total | D33: 0
B34: Unregulated Services | C34: Total | D34: 956089.92

Sheet 2.11 Labour
B1: REGULATORY REPORTING STATEMENT
B2: =INDEX(dms_TradingNameFull_List,MATCH(dms_TradingName,dms_TradingName_List)) -> Power and Water Corporation
B3: =CONCATENATE("CATEGORY ANALYSIS ", CRY) -> CATEGORY ANALYSIS 2017-18
B4: 2.11 LABOUR
B6: There are TWO tables on this worksheet. Each table has been 'grouped' (and sub-grouped) for easy navigation. See the Instructions sheet on how to group or ungroup data.
B8: 2.11.1 - COST METRICS PER ANNUM
B9: AVERAGE STAFFING LEVEL (ASL)
D10: VOLUME (0's)
B11: INTERNAL LABOUR | D11: =CRY -> 2017-18
B12: CORPORATE OVERHEADS | C12: Executive manager | D12: 3.79
C13: Senior manager | D13: 3.9
C14: Manager | D14: 10.73
C15: Professional | D15: 6.77
C16: Semi professional | D16: 0
C17: Support staff | D17: 26.68
C18: Intern, junior staff, apprentice | D18: 0
B19: NETWORK OVERHEADS | C19: Executive manager | D19: 2.13
C20: Senior manager | D20: 15.69
C21: Manager | D21: 33.95
C22: Professional | D22: 65.7
C23: Semi professional | D23: 6.04
C24: Support staff | D24: 49.35
C25: Intern, junior staff, apprentice | D25: 1.43
B26: NON-NETWORK LABOUR | C26: Executive manager | D26: 0
C27: Senior manager | D27: 0
C28: Manager | D28: 0
C29: Professional | D29: 0
C30: Semi professional | D30: 0
C31: Support staff | D31: 0
C32: Intern, junior staff, apprentice | D32: 0
B33: DIRECT OPEX LABOUR | C33: Skilled electrical worker | D33: 87.41
C34: Skilled non electical worker | D34: 0
C35: Apprentice | D35: 26.26
C36: Unskilled worker | D36: 0
B37: DIRECT CAPEX LABOUR | C37: Skilled electrical worker | D37: 56.29
C38: Skilled non electical worker | D38: 0
C39: Apprentice | D39: 16.91
C40: Unskilled worker | D40: 0
B42: TOTAL LABOUR EXPENDITURE
D43: EXPENDITURE ($0's)
B44: INTERNAL LABOUR | D44: =CRY -> 2017-18
B45: CORPORATE OVERHEADS | C45: Executive manager | D45: 503333.32
C46: Senior manager | D46: 680621.17
C47: Manager | D47: 1386851.25
C48: Professional | D48: 706060.44
C49: Semi professional | D49: 0
C50: Support staff | D50: 2268260.35
C51: Intern, junior staff, apprentice | D51: 0
B52: NETWORK OVERHEADS | C52: Executive manager | D52: 575229.56
C53: Senior manager | D53: 3400366.47
C54: Manager | D54: 6051258.43
C55: Professional | D55: 10718683.99
C56: Semi professional | D56: 1046118.01
C57: Support staff | D57: 4959967.98
C58: Intern, junior staff, apprentice | D58: 111775.38
B59: NON-NETWORK LABOUR | C59: Executive manager | D59: 0
C60: Senior manager | D60: 0
C61: Manager | D61: 0
C62: Professional | D62: 0
C63: Semi professional | D63: 0
C64: Support staff | D64: 0
C65: Intern, junior staff, apprentice | D65: 0
B66: DIRECT OPEX LABOUR | C66: Skilled electrical worker | D66: 14681503.31
C67: Skilled non electical worker | D67: 0
C68: Apprentice | D68: 3105921.4
C69: Unskilled worker | D69: 0
B70: DIRECT CAPEX LABOUR | C70: Skilled electrical worker | D70: 9455078.98
C71: Skilled non electical worker | D71: 0
C72: Apprentice | D72: 2000253.76
C73: Unskilled worker | D73: 0
B75: AVERAGE PRODUCTIVE WORK HOURS PER ASL
D76: VOLUME (0's)
B77: INTERNAL LABOUR | D77: =CRY -> 2017-18
B78: CORPORATE OVERHEADS | C78: Executive manager | D78: 543.66
C79: Senior manager | D79: 562.5
C80: Manager | D80: 553.88
C81: Professional | D81: 595.39
C82: Semi professional | D82: 0
C83: Support staff | D83: 580.87
C84: Intern, junior staff, apprentice | D84: 0
B85: NETWORK OVERHEADS | C85: Executive manager | D85: 921.67
C86: Senior manager | D86: 973.78
C87: Manager | D87: 868.63
C88: Professional | D88: 1014.88
C89: Semi professional | D89: 503.42
C90: Support staff | D90: 538.51
C91: Intern, junior staff, apprentice | D91: 697.61
B92: NON-NETWORK LABOUR | C92: Executive manager | D92: 0
C93: Senior manager | D93: 0
C94: Manager | D94: 0
C95: Professional | D95: 0
C96: Semi professional | D96: 0
C97: Support staff | D97: 0
C98: Intern, junior staff, apprentice | D98: 0
B99: DIRECT OPEX LABOUR | C99: Skilled electrical worker | D99: 673.05
C100: Skilled non electical worker | D100: 0
C101: Apprentice | D101: 651.65
C102: Unskilled worker | D102: 0
B103: DIRECT CAPEX LABOUR | C103: Skilled electrical worker | D103: 433.45
C104: Skilled non electical worker | D104: 0
C105: Apprentice | D105: 419.67
C106: Unskilled worker | D106: 0
B108: STAND DOWN OCCURRENCES PER ASL
D109: VOLUME (0's)
B110: INTERNAL LABOUR | D110: =CRY -> 2017-18
B111: CORPORATE OVERHEADS | C111: Executive manager | D111: 0
C112: Senior manager | D112: 0
C113: Manager | D113: 0
C114: Professional | D114: 0
C115: Semi professional | D115: 0
C116: Support staff | D116: 0
C117: Intern, junior staff, apprentice | D117: 0
B118: NETWORK OVERHEADS | C118: Executive manager | D118: 0
C119: Senior manager | D119: 0
C120: Manager | D120: 0
C121: Professional | D121: 0
C122: Semi professional | D122: 0
C123: Support staff | D123: 0
C124: Intern, junior staff, apprentice | D124: 0
B125: NON-NETWORK LABOUR | C125: Executive manager | D125: 0
C126: Senior manager | D126: 0
C127: Manager | D127: 0
C128: Professional | D128: 0
C129: Semi professional | D129: 0
C130: Support staff | D130: 0
C131: Intern, junior staff, apprentice | D131: 0
B132: DIRECT OPEX LABOUR | C132: Skilled electrical worker | D132: 0.46
C133: Skilled non electical worker | D133: 0
C134: Apprentice | D134: 0.43
C135: Unskilled worker | D135: 0
B136: DIRECT CAPEX LABOUR | C136: Skilled electrical worker | D136: 0.3
C137: Skilled non electical worker | D137: 0
C138: Apprentice | D138: 0.27
C139: Unskilled worker | D139: 0
B143: 2.11.2 - EXTRA DESCRIPTOR METRICS FOR CURRENT YEAR
B144: AVERAGE PRODUCTIVE WORK HOURS PER ASL
D145: ORDINARY TIME
D146: PER ASL (0s)
D147: =CRY -> 2017-18
B148: CORPORATE OVERHEADS | C148: Executive manager | D148: 561.73
C149: Senior manager | D149: 593.65
C150: Manager | D150: 599.04
C151: Professional | D151: 629.06
C152: Semi professional | D152: 0
C153: Support staff | D153: 610.01
C154: Intern, junior staff, apprentice | D154: 0
B155: NETWORK OVERHEADS | C155: Executive manager | D155: 1019.22
C156: Senior manager | D156: 1130.96
C157: Manager | D157: 993.84
C158: Professional | D158: 1164.63
C159: Semi professional | D159: 541.77
C160: Support staff | D160: 585.77
C161: Intern, junior staff, apprentice | D161: 749.6
B162: NON-NETWORK LABOUR | C162: Executive manager | D162: 0
C163: Senior manager | D163: 0
C164: Manager | D164: 0
C165: Professional | D165: 0
C166: Semi professional | D166: 0
C167: Support staff | D167: 0
C168: Intern, junior staff, apprentice | D168: 0
B169: DIRECT OPEX LABOUR | C169: Skilled electrical worker | D169: 804.21
C170: Skilled non electical worker | D170: 0
C171: Apprentice | D171: 791.69
C172: Unskilled worker | D172: 0
B173: DIRECT CAPEX LABOUR | C173: Skilled electrical worker | D173: 517.92
C174: Skilled non electical worker | D174: 0
C175: Apprentice | D175: 509.86
C176: Unskilled worker | D176: 0

Sheet 2.12 Input tables
B1: REGULATORY REPORTING STATEMENT
B2: =INDEX(dms_TradingNameFull_List,MATCH(dms_TradingName,dms_TradingName_List)) -> Power and Water Corporation
B3: =CONCATENATE("CATEGORY ANALYSIS ", CRY) -> CATEGORY ANALYSIS 2017-18
B4: 2.12 INPUT TABLES
B6: There are SIX tables on this worksheet. Each table has been 'grouped' (and sub-grouped) for easy navigation. See the Instructions sheet on how to group or ungroup data.
B8: 2.12 INPUT TABLES
D9: DIRECT MATERIAL EXPENDITURE | E9: DIRECT LABOUR EXPENDITURE | F9: CONTRACT EXPENDITURE | G9: OTHER EXPENDITURE | H9: RELATED PARTY CONTRACT EXPENDITURE | I9: RELATED PARTY CONTRACT MARGIN EXPENDITURE
D10: EXPENDITURE ($0's)
D11: =CRY -> 2017-18 | E11: 2017-18 | F11: 2017-18 | G11: 2017-18 | H11: 2017-18 | I11: 2017-18
B12: VEGETATION MANAGEMENT | C12: All zones | D12: 0 | E12: 228201.23 | F12: 3882616.35 | G12: 0 | H12: 0 | I12: 0
B13: MAINTENANCE | C13: All maintenance expenditure | D13: 765813.73 | E13: 10540633.47 | F13: 2785718.77 | G13: 0 | H13: 0 | I13: 0
B14: OVERHEADS | C14: Network overheads - opex | D14: 648567.42 | E14: 28464384.62 | F14: 6466190.56 | G14: 4563369.52 | H14: 0 | I14: 0
C15: Network overheads - capex | D15: 0 | E15: 8414403.51 | F15: 73085.91 | G15: 0 | H15: 0 | I15: 0
C16: Corporate overheads - opex | D16: 145614.33 | E16: 6650163.17 | F16: 2170268.67 | G16: 6083376.66 | H16: 0 | I16: 0
C17: Corporate overheads - capex | D17: 33176.16 | E17: 1515145.28 | F17: 494464.91 | G17: 1386011.02 | H17: 0 | I17: 0
B18: AUGMENTATION | C18: All augex | D18: 2472462.6 | E18: 1997276.75 | F18: 13156302.38 | G18: 0 | H18: 0 | I18: 0
B19: CONNECTIONS | C19: Simple and complex customer connections | D19: 773493.63 | E19: 1220988.67 | F19: 628426.34 | G19: 0 | H19: 0 | I19: 0
B20: EMERGENCY RESPONSE | C20: All major storms and major event days | D20: 754299.97 | E20: 7038644 | F20: 1154790.23 | G20: 0 | H20: 0 | I20: 0
B21: PUBLIC LIGHTING | C21: All public lighting services | D21: 0 | E21: 0 | F21: 0 | G21: 0 | H21: 0 | I21: 0
B22: METERING | C22: All metering services | D22: 1908436.46 | E22: 1912023.2 | F22: 2003936.7 | G22: 47251.2 | H22: 0 | I22: 0
B23: FEE-BASED SERVICES | C23: All fee-based services | D23: 14812.81 | E23: 1734756.42 | F23: 13211.06 | G23: 0 | H23: 0 | I23: 0
B24: QUOTED SERVICES | C24: All quoted services | D24: 377263.88 | E24: 1592742.75 | F24: 961091.06 | G24: 0 | H24: 0 | I24: 0
B25: REPLACEMENT | C25: All replacement expenditure | D25: 3806868.5 | E25: 7407860.46 | F25: 7450112.71 | G25: 0 | H25: 0 | I25: 0
B26: NON-NETWORK EXPENDITURE | C26: Opex | D26: 0 | E26: 0 | F26: 0 | G26: 7622235.22 | H26: 0 | I26: 0
C27: Capex | D27: 950525.14 | E27: 829206.86 | F27: 2685242.25 | G27: 0 | H27: 0 | I27: 0

Sheet 4.2 Metering
B1: REGULATORY REPORTING STATEMENT
B2: =INDEX(dms_TradingNameFull_List,MATCH(dms_TradingName,dms_TradingName_List)) -> Power and Water Corporation
B3: =CONCATENATE("CATEGORY ANALYSIS ", CRY) -> CATEGORY ANALYSIS 2017-18
B4: 4.2 METERING
B6: There are TWO tables on this worksheet. Each table has been 'grouped' (and 'sub-grouped') for easy navigation. See the Instructions sheet on how to group or ungroup data.
B8: 4.2.1 - METERING DESCRIPTOR METRIC
D9: VOLUMES (0's)
B10: Asset Category | C10: Asset Subcategory | D10: =CRY -> 2017-18
B11: Meter Type 1 | C11: Single phase meter population | D11: 0
C12: Multi phase meter population | D12: 0
C13: Current transformer connected meter population | D13: 0
C14: Direct connect meter population | D14: 0
B15: Meter Type 2 | C15: Single phase meter population | D15: 0
C16: Multi phase meter population | D16: 14
C17: Current transformer connected meter population | D17: 14
C18: Direct connect meter population | D18: 0
B19: Meter Type 3 | C19: Single phase meter population | D19: 0
C20: Multi phase meter population | D20: 326
C21: Current transformer connected meter population | D21: 318
C22: Direct connect meter population | D22: 8
B23: Meter Type 4 | C23: Single phase meter population | D23: 4545
C24: Multi phase meter population | D24: 3156
C25: Current transformer connected meter population | D25: 1725
C26: Direct connect meter population | D26: 5976
B27: Meter Type 5 | C27: Single phase meter population | D27: 0
C28: Multi phase meter population | D28: 0
C29: Current transformer connected meter population | D29: 0
C30: Direct connect meter population | D30: 0
B31: Meter Type 6 | C31: Single phase meter population | D31: 93669
C32: Multi phase meter population | D32: 5834
C33: Current transformer connected meter population | D33: 704
C34: Direct connect meter population | D34: 98799
B37: 4.2.2 - COST METRICS
D38: VOLUMES (0's) | E38: EXPENDITURE ($0's)
B39: Service Subcategory | C39: Meter Type | D39: =CRY -> 2017-18 | E39: =CRY -> 2017-18
B40: Meter purchase | C40: Meter Type 1
C41: Meter Type 2
C42: Meter Type 3
C43: Meter Type 4
C44: Meter Type 5
C45: Meter Type 6
B46: Meter testing | C46: Meter Type 1
C47: Meter Type 2
C48: Meter Type 3
C49: Meter Type 4
C50: Meter Type 5
C51: Meter Type 6
B52: Meter investigation | C52: Meter Type 1
C53: Meter Type 2
C54: Meter Type 3
C55: Meter Type 4
C56: Meter Type 5
C57: Meter Type 6
B58: Scheduled meter reading | C58: Meter Type 1
C59: Meter Type 2
C60: Meter Type 3
C61: Meter Type 4
C62: Meter Type 5
C63: Meter Type 6
B64: Special meter reading | C64: Meter Type 1
C65: Meter Type 2
C66: Meter Type 3
C67: Meter Type 4
C68: Meter Type 5
C69: Meter Type 6
B70: New meter installation | C70: Meter Type 1
C71: Meter Type 2
C72: Meter Type 3
C73: Meter Type 4
C74: Meter Type 5
C75: Meter Type 6
B76: Meter replacement | C76: Meter Type 1
C77: Meter Type 2
C78: Meter Type 3
C79: Meter Type 4
C80: Meter Type 5
C81: Meter Type 6
B82: Meter maintenance | C82: Meter Type 1
C83: Meter Type 2
C84: Meter Type 3
C85: Meter Type 4
C86: Meter Type 5
C87: Meter Type 6
B88: Remote meter reading | C88: Meter Type 4
B89: Remote meter re-configuration | C89: Meter Type 4
B90: Other metering | C90: Meter Type 1
C91: Meter Type 2
C92: Meter Type 3
C93: Meter Type 4
C94: Meter Type 5
C95: Meter Type 6
C96: Meter Type 7
B97: IT infrastructure capex | C97: Meter Type 4
B98: IT infrastructure opex | C98: Meter Type 4
B99: Communications infrastructure capex | C99: Meter Type 4
B100: Communications infrastructure opex | C100: Meter Type 4

Sheet 4.3 Fee-based services
B1: REGULATORY REPORTING STATEMENT
B2: =INDEX(dms_TradingNameFull_List,MATCH(dms_TradingName,dms_TradingName_List)) -> Power and Water Corporation
B3: =CONCATENATE("CATEGORY ANALYSIS ", CRY) -> CATEGORY ANALYSIS 2017-18
B4: 4.3 ANCILLARY SERVICES - FEE BASED SERVICES
B6: There is ONE table on this worksheet. The COLUMNS AND ROWS have been 'grouped' for easy navigation. See the Instructions sheet on how to group or ungroup data.
B8: 4.3.1 - COST METRICS FOR FEE-BASED SERVICES
B9: COMMON FEE-BASED SERVICES
C10: EXPENDITURE ($0's) | D10: VOLUMES (0's)
B11: SERVICE SUBCATEGORY | C11: =CRY -> 2017-18 | D11: =CRY -> 2017-18
B12: Energisation | C12: 0 | D12: 0
B13: De-energisation | C13: 124530.34 | D13: 2465
B14: Re-energisation | C14: 124530.34 | D14: 2465
B16: MISCELLANEOUS FEE-BASED SERVICES
B17: Disconnection - with comms (remote change) | C17: 0 | D17: 0
B18: Reconnection - with comms (remote change) | C18: 0 | D18: 0
B19: Remove and Reinstate Cable | C19: 65522 | D19: 100
B20: Provision of three phase service | C20: 53131.99 | D20: 32
B21: Standard temporary builder's connection | C21: 0 | D21: 0
B22: Temporary disconnection and reconnection | C22: 139641.06 | D22: 305
B23: Disconnection - physical disconnection of the service mains at the connection to the network (Pillar Box, Pit or Pole Top) due to action or inaction of the network user or their agent | C23: 0 | D23: 0
B24: After hours attendance charge | C24: 34046.63 | D24: 95
B25: Wasted visit fee | C25: 0 | D25: 0
B26: Special Meter Test | C26: 2495.17 | D26: 6
B27: Exchange or Replace Meter - 3 Phase # | C27: 261825.72 | D27: 345
B28: Exchange or Replace Meter - Standard # | C28: 729827.44 | D28: 1135
B29: Relocation of Meter | C29: 634.91 | D29: 2
B30: Remove Meter - Permanent removal of connection point (meter) from meter panel | C30: 10964.53 | D30: 26
B31: General Meter Inspection | C31: 178.06 | D31: 1
B32: Special Meter Read | C32: 637.28 | D32: 8
B33: Meter Program Change - no comms | C33: 89205.16 | D33: 410
B34: Meter Program Change - with comms | C34: 0 | D34: 0
B35: Meter Data Processing Services | C35: 0 | D35: 0
B36: Historical Data requests | C36: 104158.69 | D36: 493
B37: Standing Data requests | C37: 21450.99 | D37: 123
B38: Customer Transfers | C38: 0 | D38: 0
B39: Network Tariff change request | C39: 0 | D39: 0
B40: Installation of Minor Apparatus | C40: 0 | D40: 0

Sheet 4.4 Quoted services
B1: REGULATORY REPORTING STATEMENT
B2: =INDEX(dms_TradingNameFull_List,MATCH(dms_TradingName,dms_TradingName_List)) -> Power and Water Corporation
B3: =CONCATENATE("CATEGORY ANALYSIS ", CRY) -> CATEGORY ANALYSIS 2017-18
B4: 4.4 ANCILLARY SERVICES - QUOTED SERVICES
B6: There is ONE table on this worksheet. The COLUMNS have been 'grouped' for easy navigation. See the Instructions sheet on how to group or ungroup data.
B8: 4.4.1 - COST METRICS FOR QUOTED SERVICES
B9: SERVICE SUBCATEGORY | C9: EXPENDITURE ($0's) | D9: VOLUMES (0's)
C10: =CRY -> 2017-18 | D10: =CRY -> 2017-18
B11: Design related services | C11: 121603.41 | D11: 4
B12: Connection applications | C12: 256573.36 | D12: 23
B13: Access permits, oversights and facilitation | C13: 949805.63 | D13: 76
B14: Notices of arrangement and completion notices | C14: 0 | D14: 0
B15: Network related property services | C15: 8283.55 | D15: 1
B16: Site establishment services | C16: 1193.15 | D16: 1
B17: Network safety services | C17: 161191.7 | D17: 90
B18: Network tariff change request | C18: 137.68 | D18: 1
B19: Planned interruption - customer request | C19: 1861.84 | D19: 2
B20: Performance of a statutory right (access prevented) | C20: 0 | D20: 0
B21: Provision of network related training to third parties | C21: 0 | D21: 0
B22: Non-standard reporting services | C22: 1101.37 | D22: 1
B23: Services provided for retailer of last resort event | C23: 0 | D23: 0
B24: Rectification of illegal connections service | C24: 0 | D24: 0
B25: Rearrangement and connection of network assets at customer request | C25: 1429346 | D25: 180

Sheet 5.2 Asset Age Profile
B1: REGULATORY REPORTING STATEMENT
B2: =INDEX(dms_TradingNameFull_List,MATCH(dms_TradingName,dms_TradingName_List)) -> Power and Water Corporation
B3: =CONCATENATE("CATEGORY ANALYSIS ", CRY) -> CATEGORY ANALYSIS 2017-18
B4: 5.2 ASSET AGE PROFILE
B6: There is ONE table on this worksheet. Both ROWS and COLUMNS have been 'grouped' for easy navigation. See the Instructions sheet on how to group or ungroup data.
B8: 5.2.1 - ASSET AGE PROFILE
D9: ECONOMIC LIFE (YEARS) | F9: INSTALLED ASSETS -˃ QUANTITY CURRENTLY IN COMMISSION BY YEAR
B10: ASSET GROUP | C10: ASSET CATEGORY | D10: MEAN | E10: STANDARD DEVIATION | F10: =CRY -> 2017-18 | G10: =IF(dms_RPT="financial",(VALUE(LEFT(F10,4)-1)&"-"&MID(F10,3,2)),VALUE(LEFT(F10,4)-1)) -> 2016-17 | H10: 2015-16 | I10: 2014-15 | J10: 2013-14 | K10: 2012-13 | L10: 2011-12 | M10: 2010-11 | N10: 2009-10 | O10: 2008-09 | P10: 2007-08 | Q10: 2006-07 | R10: 2005-06 | S10: 2004-05 | T10: 2003-04 | U10: 2002-03 | V10: 2001-02 | W10: 2000-01 | X10: 1999-00 | Y10: 1998-99 | Z10: 1997-98 | AA10: 1996-97 | AB10: 1995-96 | AC10: 1994-95 | AD10: 1993-94 | AE10: 1992-93 | AF10: 1991-92 | AG10: 1990-91 | AH10: 1989-90 | AI10: 1988-89 | AJ10: 1987-88 | AK10: 1986-87 | AL10: 1985-86 | AM10: =IF(dms_RPT="financial",(VALUE(LEFT(AL10,4)-1)&"-"&MID(AL10,3,2)),VALUE(LEFT(AL10,4)-1)) -> 1984-85 | AN10: 1983-84 | AO10: 1982-83 | AP10: 1981-82 | AQ10: 1980-81 | AR10: 1979-80 | AS10: 1978-79 | AT10: 1977-78 | AU10: 1976-77 | AV10: 1975-76 | AW10: 1974-75 | AX10: 1973-74 | AY10: 1972-73 | AZ10: 1971-72 | BA10: 1970-71 | BB10: 1969-70 | BC10: 1968-69 | BD10: 1967-68 | BE10: 1966-67 | BF10: 1965-66 | BG10: 1964-65 | BH10: 1963-64 | BI10: 1962-63 | BJ10: 1961-62 | BK10: 1960-61 | BL10: 1959-60 | BM10: 1958-59 | BN10: 1957-58 | BO10: 1956-57 | BP10: 1955-56 | BQ10: 1954-55 | BR10: 1953-54 | BS10: =IF(dms_RPT="financial",(VALUE(LEFT(BR10,4)-1)&"-"&MID(BR10,3,2)),VALUE(LEFT(BR10,4)-1)) -> 1952-53 | BT10: 1951-52 | BU10: 1950-51 | BV10: 1949-50 | BW10: 1948-49 | BX10: 1947-48 | BY10: 1946-47 | BZ10: 1945-46 | CA10: 1944-45 | CB10: 1943-44 | CC10: 1942-43 | CD10: 1941-42 | CE10: 1940-41 | CF10: 1939-40 | CG10: 1938-39 | CH10: 1937-38 | CI10: 1936-37 | CJ10: 1935-36 | CK10: 1934-35 | CL10: 1933-34 | CM10: 1932-33 | CN10: 1931-32 | CO10: 1930-31 | CP10: 1929-30 | CQ10: 1928-29 | CR10: 1927-28 | CS10: 1926-27 | CT10: 1925-26 | CU10: 1924-25 | CV10: 1923-24 | CW10: 1922-23 | CX10: 1921-22 | CY10: =IF(dms_RPT="financial",(VALUE(LEFT(CX10,4)-1)&"-"&MID(CX10,3,2)),VALUE(LEFT(CX10,4)-1)) -> 1920-21 | CZ10: 1919-20 | DA10: 1918-19 | DB10: 1917-18 | DC10: 1916-17 | DD10: 1915-16 | DE10: 1914-15 | DF10: 1913-14 | DG10: 1912-13 | DH10: 1911-12 | DI10: 1910-11 | DJ10: 1909-10 | DK10: 1908-09 | DL10: 1907-08 | DM10: 1906-07 | DN10: 1905-06 | DO10: 1904-05 | DP10: 1903-04 | DQ10: 1902-03 | DR10: 1901-02 | DS10: 1900-01
B11: POLES BY: HIGHEST OPERATING VOLTAGE ; MATERIAL TYPE | C11: ˂ = 1 kV; Wood - Staked | D11: 0 | E11: 0 | F11: - | G11: - | H11: - | I11: - | J11: - | K11: - | L11: - | M11: - | N11: - | O11: - | P11: - | Q11: - | R11: - | S11: - | T11: - | U11: - | V11: - | W11: - | X11: - | Y11: - | Z11: - | AA11: - | AB11: - | AC11: - | AD11: - | AE11: - | AF11: - | AG11: - | AH11: - | AI11: - | AJ11: - | AK11: - | AL11: - | AM11: - | AN11: - | AO11: - | AP11: - | AQ11: - | AR11: - | AS11: - | AT11: - | AU11: - | AV11: - | AW11: - | AX11: - | AY11: - | AZ11: - | BA11: - | BB11: - | BC11: - | BD11: - | BE11: - | BF11: - | BG11: - | BH11: - | BI11: - | BJ11: - | BK11: - | BL11: - | BM11: - | BN11: - | BO11: - | BP11: - | BQ11: - | BR11: - | BS11: - | BT11: - | BU11: - | BV11: - | BW11: 0 | BX11: 0 | BY11: 0 | BZ11: 0 | CA11: 0 | CB11: 0 | CC11: 0 | CD11: 0 | CE11: 0 | CF11: 0 | CG11: 0 | CH11: 0 | CI11: 0 | CJ11: 0 | CK11: 0 | CL11: 0 | CM11: 0 | CN11: 0 | CO11: 0 | CP11: 0 | CQ11: 0 | CR11: 0 | CS11: 0 | CT11: 0 | CU11: 0 | CV11: 0 | CW11: 0 | CX11: 0 | CY11: 0 | CZ11: 0 | DA11: 0 | DB11: 0 | DC11: 0 | DD11: 0 | DE11: 0 | DF11: 0 | DG11: 0 | DH11: 0
C12: ˂ = 1 kV; Wood - Unstaked | D12: 0 | E12: 0 | F12: - | G12: - | H12: - | I12: - | J12: - | K12: - | L12: - | M12: - | N12: - | O12: - | P12: - | Q12: - | R12: - | S12: - | T12: - | U12: - | V12: - | W12: - | X12: - | Y12: - | Z12: - | AA12: - | AB12: - | AC12: - | AD12: - | AE12: - | AF12: - | AG12: - | AH12: - | AI12: - | AJ12: - | AK12: - | AL12: - | AM12: - | AN12: - | AO12: - | AP12: - | AQ12: - | AR12: - | AS12: - | AT12: - | AU12: - | AV12: - | AW12: - | AX12: - | AY12: - | AZ12: - | BA12: - | BB12: - | BC12: - | BD12: - | BE12: - | BF12: - | BG12: - | BH12: - | BI12: - | BJ12: - | BK12: - | BL12: - | BM12: - | BN12: - | BO12: - | BP12: - | BQ12: - | BR12: - | BS12: - | BT12: - | BU12: - | BV12: - | BW12: 0 | BX12: 0 | BY12: 0 | BZ12: 0 | CA12: 0 | CB12: 0 | CC12: 0 | CD12: 0 | CE12: 0 | CF12: 0 | CG12: 0 | CH12: 0 | CI12: 0 | CJ12: 0 | CK12: 0 | CL12: 0 | CM12: 0 | CN12: 0 | CO12: 0 | CP12: 0 | CQ12: 0 | CR12: 0 | CS12: 0 | CT12: 0 | CU12: 0 | CV12: 0 | CW12: 0 | CX12: 0 | CY12: 0 | CZ12: 0 | DA12: 0 | DB12: 0 | DC12: 0 | DD12: 0 | DE12: 0 | DF12: 0 | DG12: 0 | DH12: 0
C13: > 1 kV & < = 11 kV; Wood - Staked | D13: 0 | E13: 0 | F13: - | G13: - | H13: - | I13: - | J13: - | K13: - | L13: - | M13: - | N13: - | O13: - | P13: - | Q13: - | R13: - | S13: - | T13: - | U13: - | V13: - | W13: - | X13: - | Y13: - | Z13: - | AA13: - | AB13: - | AC13: - | AD13: - | AE13: - | AF13: - | AG13: - | AH13: - | AI13: - | AJ13: - | AK13: - | AL13: - | AM13: - | AN13: - | AO13: - | AP13: - | AQ13: - | AR13: - | AS13: - | AT13: - | AU13: - | AV13: - | AW13: - | AX13: - | AY13: - | AZ13: - | BA13: - | BB13: - | BC13: - | BD13: - | BE13: - | BF13: - | BG13: - | BH13: - | BI13: - | BJ13: - | BK13: - | BL13: - | BM13: - | BN13: - | BO13: - | BP13: - | BQ13: - | BR13: - | BS13: - | BT13: - | BU13: - | BV13: - | BW13: 0 | BX13: 0 | BY13: 0 | BZ13: 0 | CA13: 0 | CB13: 0 | CC13: 0 | CD13: 0 | CE13: 0 | CF13: 0 | CG13: 0 | CH13: 0 | CI13: 0 | CJ13: 0 | CK13: 0 | CL13: 0 | CM13: 0 | CN13: 0 | CO13: 0 | CP13: 0 | CQ13: 0 | CR13: 0 | CS13: 0 | CT13: 0 | CU13: 0 | CV13: 0 | CW13: 0 | CX13: 0 | CY13: 0 | CZ13: 0 | DA13: 0 | DB13: 0 | DC13: 0 | DD13: 0 | DE13: 0 | DF13: 0 | DG13: 0 | DH13: 0
C14: > 1 kV & < = 11 kV; Wood - Unstaked | D14: 0 | E14: 0 | F14: - | G14: - | H14: - | I14: - | J14: - | K14: - | L14: - | M14: - | N14: - | O14: - | P14: - | Q14: - | R14: - | S14: - | T14: - | U14: - | V14: - | W14: - | X14: - | Y14: - | Z14: - | AA14: - | AB14: - | AC14: - | AD14: - | AE14: - | AF14: - | AG14: - | AH14: - | AI14: - | AJ14: - | AK14: - | AL14: - | AM14: - | AN14: - | AO14: - | AP14: - | AQ14: - | AR14: - | AS14: - | AT14: - | AU14: - | AV14: - | AW14: - | AX14: - | AY14: - | AZ14: - | BA14: - | BB14: - | BC14: - | BD14: - | BE14: - | BF14: - | BG14: - | BH14: - | BI14: - | BJ14: - | BK14: - | BL14: - | BM14: - | BN14: - | BO14: - | BP14: - | BQ14: - | BR14: - | BS14: - | BT14: - | BU14: - | BV14: - | BW14: 0 | BX14: 0 | BY14: 0 | BZ14: 0 | CA14: 0 | CB14: 0 | CC14: 0 | CD14: 0 | CE14: 0 | CF14: 0 | CG14: 0 | CH14: 0 | CI14: 0 | CJ14: 0 | CK14: 0 | CL14: 0 | CM14: 0 | CN14: 0 | CO14: 0 | CP14: 0 | CQ14: 0 | CR14: 0 | CS14: 0 | CT14: 0 | CU14: 0 | CV14: 0 | CW14: 0 | CX14: 0 | CY14: 0 | CZ14: 0 | DA14: 0 | DB14: 0 | DC14: 0 | DD14: 0 | DE14: 0 | DF14: 0 | DG14: 0 | DH14: 0
C15: ˃ 11 kV & < = 22 kV; Wood - Staked | D15: 0 | E15: 0 | F15: - | G15: - | H15: - | I15: - | J15: - | K15: - | L15: - | M15: - | N15: - | O15: - | P15: - | Q15: - | R15: - | S15: - | T15: - | U15: - | V15: - | W15: - | X15: - | Y15: - | Z15: - | AA15: - | AB15: - | AC15: - | AD15: - | AE15: - | AF15: - | AG15: - | AH15: - | AI15: - | AJ15: - | AK15: - | AL15: - | AM15: - | AN15: - | AO15: - | AP15: - | AQ15: - | AR15: - | AS15: - | AT15: - | AU15: - | AV15: - | AW15: - | AX15: - | AY15: - | AZ15: - | BA15: - | BB15: - | BC15: - | BD15: - | BE15: - | BF15: - | BG15: - | BH15: - | BI15: - | BJ15: - | BK15: - | BL15: - | BM15: - | BN15: - | BO15: - | BP15: - | BQ15: - | BR15: - | BS15: - | BT15: - | BU15: - | BV15: - | BW15: 0 | BX15: 0 | BY15: 0 | BZ15: 0 | CA15: 0 | CB15: 0 | CC15: 0 | CD15: 0 | CE15: 0 | CF15: 0 | CG15: 0 | CH15: 0 | CI15: 0 | CJ15: 0 | CK15: 0 | CL15: 0 | CM15: 0 | CN15: 0 | CO15: 0 | CP15: 0 | CQ15: 0 | CR15: 0 | CS15: 0 | CT15: 0 | CU15: 0 | CV15: 0 | CW15: 0 | CX15: 0 | CY15: 0 | CZ15: 0 | DA15: 0 | DB15: 0 | DC15: 0 | DD15: 0 | DE15: 0 | DF15: 0 | DG15: 0 | DH15: 0
C16: ˃ 11 kV & < = 22 kV; Wood - Unstaked | D16: 0 | E16: 0 | F16: - | G16: - | H16: - | I16: - | J16: - | K16: - | L16: - | M16: - | N16: - | O16: - | P16: - | Q16: - | R16: - | S16: - | T16: - | U16: - | V16: - | W16: - | X16: - | Y16: - | Z16: - | AA16: - | AB16: - | AC16: - | AD16: - | AE16: - | AF16: - | AG16: - | AH16: - | AI16: - | AJ16: - | AK16: - | AL16: - | AM16: - | AN16: - | AO16: - | AP16: - | AQ16: - | AR16: - | AS16: - | AT16: - | AU16: - | AV16: - | AW16: - | AX16: - | AY16: - | AZ16: - | BA16: - | BB16: - | BC16: - | BD16: - | BE16: - | BF16: - | BG16: - | BH16: - | BI16: - | BJ16: - | BK16: - | BL16: - | BM16: - | BN16: - | BO16: - | BP16: - | BQ16: - | BR16: - | BS16: - | BT16: - | BU16: - | BV16: - | BW16: 0 | BX16: 0 | BY16: 0 | BZ16: 0 | CA16: 0 | CB16: 0 | CC16: 0 | CD16: 0 | CE16: 0 | CF16: 0 | CG16: 0 | CH16: 0 | CI16: 0 | CJ16: 0 | CK16: 0 | CL16: 0 | CM16: 0 | CN16: 0 | CO16: 0 | CP16: 0 | CQ16: 0 | CR16: 0 | CS16: 0 | CT16: 0 | CU16: 0 | CV16: 0 | CW16: 0 | CX16: 0 | CY16: 0 | CZ16: 0 | DA16: 0 | DB16: 0 | DC16: 0 | DD16: 0 | DE16: 0 | DF16: 0 | DG16: 0 | DH16: 0
C17: > 22 kV & < = 66 kV; Wood - Staked | D17: 0 | E17: 0 | F17: - | G17: - | H17: - | I17: - | J17: - | K17: - | L17: - | M17: - | N17: - | O17: - | P17: - | Q17: - | R17: - | S17: - | T17: - | U17: - | V17: - | W17: - | X17: - | Y17: - | Z17: - | AA17: - | AB17: - | AC17: - | AD17: - | AE17: - | AF17: - | AG17: - | AH17: - | AI17: - | AJ17: - | AK17: - | AL17: - | AM17: - | AN17: - | AO17: - | AP17: - | AQ17: - | AR17: - | AS17: - | AT17: - | AU17: - | AV17: - | AW17: - | AX17: - | AY17: - | AZ17: - | BA17: - | BB17: - | BC17: - | BD17: - | BE17: - | BF17: - | BG17: - | BH17: - | BI17: - | BJ17: - | BK17: - | BL17: - | BM17: - | BN17: - | BO17: - | BP17: - | BQ17: - | BR17: - | BS17: - | BT17: - | BU17: - | BV17: - | BW17: 0 | BX17: 0 | BY17: 0 | BZ17: 0 | CA17: 0 | CB17: 0 | CC17: 0 | CD17: 0 | CE17: 0 | CF17: 0 | CG17: 0 | CH17: 0 | CI17: 0 | CJ17: 0 | CK17: 0 | CL17: 0 | CM17: 0 | CN17: 0 | CO17: 0 | CP17: 0 | CQ17: 0 | CR17: 0 | CS17: 0 | CT17: 0 | CU17: 0 | CV17: 0 | CW17: 0 | CX17: 0 | CY17: 0 | CZ17: 0 | DA17: 0 | DB17: 0 | DC17: 0 | DD17: 0 | DE17: 0 | DF17: 0 | DG17: 0 | DH17: 0
C18: > 22 kV & < = 66 kV; Wood - Unstaked | D18: 0 | E18: 0 | F18: - | G18: - | H18: - | I18: - | J18: - | K18: - | L18: - | M18: - | N18: - | O18: - | P18: - | Q18: - | R18: - | S18: - | T18: - | U18: - | V18: - | W18: - | X18: - | Y18: - | Z18: - | AA18: - | AB18: - | AC18: - | AD18: - | AE18: - | AF18: - | AG18: - | AH18: - | AI18: - | AJ18: - | AK18: - | AL18: - | AM18: - | AN18: - | AO18: - | AP18: - | AQ18: - | AR18: - | AS18: - | AT18: - | AU18: - | AV18: - | AW18: - | AX18: - | AY18: - | AZ18: - | BA18: - | BB18: - | BC18: - | BD18: - | BE18: - | BF18: - | BG18: - | BH18: - | BI18: - | BJ18: - | BK18: - | BL18: - | BM18: - | BN18: - | BO18: - | BP18: - | BQ18: - | BR18: - | BS18: - | BT18: - | BU18: - | BV18: - | BW18: 0 | BX18: 0 | BY18: 0 | BZ18: 0 | CA18: 0 | CB18: 0 | CC18: 0 | CD18: 0 | CE18: 0 | CF18: 0 | CG18: 0 | CH18: 0 | CI18: 0 | CJ18: 0 | CK18: 0 | CL18: 0 | CM18: 0 | CN18: 0 | CO18: 0 | CP18: 0 | CQ18: 0 | CR18: 0 | CS18: 0 | CT18: 0 | CU18: 0 | CV18: 0 | CW18: 0 | CX18: 0 | CY18: 0 | CZ18: 0 | DA18: 0 | DB18: 0 | DC18: 0 | DD18: 0 | DE18: 0 | DF18: 0 | DG18: 0 | DH18: 0
C19: > 66 kV & < = 132 kV; Wood - Staked | D19: 0 | E19: 0 | F19: - | G19: - | H19: - | I19: - | J19: - | K19: - | L19: - | M19: - | N19: - | O19: - | P19: - | Q19: - | R19: - | S19: - | T19: - | U19: - | V19: - | W19: - | X19: - | Y19: - | Z19: - | AA19: - | AB19: - | AC19: - | AD19: - | AE19: - | AF19: - | AG19: - | AH19: - | AI19: - | AJ19: - | AK19: - | AL19: - | AM19: - | AN19: - | AO19: - | AP19: - | AQ19: - | AR19: - | AS19: - | AT19: - | AU19: - | AV19: - | AW19: - | AX19: - | AY19: - | AZ19: - | BA19: - | BB19: - | BC19: - | BD19: - | BE19: - | BF19: - | BG19: - | BH19: - | BI19: - | BJ19: - | BK19: - | BL19: - | BM19: - | BN19: - | BO19: - | BP19: - | BQ19: - | BR19: - | BS19: - | BT19: - | BU19: - | BV19: - | BW19: 0 | BX19: 0 | BY19: 0 | BZ19: 0 | CA19: 0 | CB19: 0 | CC19: 0 | CD19: 0 | CE19: 0 | CF19: 0 | CG19: 0 | CH19: 0 | CI19: 0 | CJ19: 0 | CK19: 0 | CL19: 0 | CM19: 0 | CN19: 0 | CO19: 0 | CP19: 0 | CQ19: 0 | CR19: 0 | CS19: 0 | CT19: 0 | CU19: 0 | CV19: 0 | CW19: 0 | CX19: 0 | CY19: 0 | CZ19: 0 | DA19: 0 | DB19: 0 | DC19: 0 | DD19: 0 | DE19: 0 | DF19: 0 | DG19: 0 | DH19: 0
C20: > 66 kV & < = 132 kV; Wood - Unstaked | D20: 0 | E20: 0 | F20: - | G20: - | H20: - | I20: - | J20: - | K20: - | L20: - | M20: - | N20: - | O20: - | P20: - | Q20: - | R20: - | S20: - | T20: - | U20: - | V20: - | W20: - | X20: - | Y20: - | Z20: - | AA20: - | AB20: - | AC20: - | AD20: - | AE20: - | AF20: - | AG20: - | AH20: - | AI20: - | AJ20: - | AK20: - | AL20: - | AM20: - | AN20: - | AO20: - | AP20: - | AQ20: - | AR20: - | AS20: - | AT20: - | AU20: - | AV20: - | AW20: - | AX20: - | AY20: - | AZ20: - | BA20: - | BB20: - | BC20: - | BD20: - | BE20: - | BF20: - | BG20: - | BH20: - | BI20: - | BJ20: - | BK20: - | BL20: - | BM20: - | BN20: - | BO20: - | BP20: - | BQ20: - | BR20: - | BS20: - | BT20: - | BU20: - | BV20: - | BW20: 0 | BX20: 0 | BY20: 0 | BZ20: 0 | CA20: 0 | CB20: 0 | CC20: 0 | CD20: 0 | CE20: 0 | CF20: 0 | CG20: 0 | CH20: 0 | CI20: 0 | CJ20: 0 | CK20: 0 | CL20: 0 | CM20: 0 | CN20: 0 | CO20: 0 | CP20: 0 | CQ20: 0 | CR20: 0 | CS20: 0 | CT20: 0 | CU20: 0 | CV20: 0 | CW20: 0 | CX20: 0 | CY20: 0 | CZ20: 0 | DA20: 0 | DB20: 0 | DC20: 0 | DD20: 0 | DE20: 0 | DF20: 0 | DG20: 0 | DH20: 0
C21: > 132 kV; Wood - Staked | D21: 0 | E21: 0 | F21: - | G21: - | H21: - | I21: - | J21: - | K21: - | L21: - | M21: - | N21: - | O21: - | P21: - | Q21: - | R21: - | S21: - | T21: - | U21: - | V21: - | W21: - | X21: - | Y21: - | Z21: - | AA21: - | AB21: - | AC21: - | AD21: - | AE21: - | AF21: - | AG21: - | AH21: - | AI21: - | AJ21: - | AK21: - | AL21: - | AM21: - | AN21: - | AO21: - | AP21: - | AQ21: - | AR21: - | AS21: - | AT21: - | AU21: - | AV21: - | AW21: - | AX21: - | AY21: - | AZ21: - | BA21: - | BB21: - | BC21: - | BD21: - | BE21: - | BF21: - | BG21: - | BH21: - | BI21: - | BJ21: - | BK21: - | BL21: - | BM21: - | BN21: - | BO21: - | BP21: - | BQ21: - | BR21: - | BS21: - | BT21: - | BU21: - | BV21: - | BW21: 0 | BX21: 0 | BY21: 0 | BZ21: 0 | CA21: 0 | CB21: 0 | CC21: 0 | CD21: 0 | CE21: 0 | CF21: 0 | CG21: 0 | CH21: 0 | CI21: 0 | CJ21: 0 | CK21: 0 | CL21: 0 | CM21: 0 | CN21: 0 | CO21: 0 | CP21: 0 | CQ21: 0 | CR21: 0 | CS21: 0 | CT21: 0 | CU21: 0 | CV21: 0 | CW21: 0 | CX21: 0 | CY21: 0 | CZ21: 0 | DA21: 0 | DB21: 0 | DC21: 0 | DD21: 0 | DE21: 0 | DF21: 0 | DG21: 0 | DH21: 0
C22: > 132 kV; Wood - Unstaked | D22: 0 | E22: 0 | F22: - | G22: - | H22: - | I22: - | J22: - | K22: - | L22: - | M22: - | N22: - | O22: - | P22: - | Q22: - | R22: - | S22: - | T22: - | U22: - | V22: - | W22: - | X22: - | Y22: - | Z22: - | AA22: - | AB22: - | AC22: - | AD22: - | AE22: - | AF22: - | AG22: - | AH22: - | AI22: - | AJ22: - | AK22: - | AL22: - | AM22: - | AN22: - | AO22: - | AP22: - | AQ22: - | AR22: - | AS22: - | AT22: - | AU22: - | AV22: - | AW22: - | AX22: - | AY22: - | AZ22: - | BA22: - | BB22: - | BC22: - | BD22: - | BE22: - | BF22: - | BG22: - | BH22: - | BI22: - | BJ22: - | BK22: - | BL22: - | BM22: - | BN22: - | BO22: - | BP22: - | BQ22: - | BR22: - | BS22: - | BT22: - | BU22: - | BV22: - | BW22: 0 | BX22: 0 | BY22: 0 | BZ22: 0 | CA22: 0 | CB22: 0 | CC22: 0 | CD22: 0 | CE22: 0 | CF22: 0 | CG22: 0 | CH22: 0 | CI22: 0 | CJ22: 0 | CK22: 0 | CL22: 0 | CM22: 0 | CN22: 0 | CO22: 0 | CP22: 0 | CQ22: 0 | CR22: 0 | CS22: 0 | CT22: 0 | CU22: 0 | CV22: 0 | CW22: 0 | CX22: 0 | CY22: 0 | CZ22: 0 | DA22: 0 | DB22: 0 | DC22: 0 | DD22: 0 | DE22: 0 | DF22: 0 | DG22: 0 | DH22: 0
C23: ˂ = 1 kV; Concrete | D23: 0 | E23: 0 | F23: - | G23: - | H23: - | I23: - | J23: - | K23: - | L23: - | M23: - | N23: - | O23: - | P23: - | Q23: - | R23: - | S23: - | T23: - | U23: - | V23: - | W23: - | X23: - | Y23: - | Z23: - | AA23: - | AB23: - | AC23: - | AD23: - | AE23: - | AF23: - | AG23: - | AH23: - | AI23: - | AJ23: - | AK23: - | AL23: - | AM23: - | AN23: - | AO23: - | AP23: - | AQ23: - | AR23: - | AS23: - | AT23: - | AU23: - | AV23: - | AW23: - | AX23: - | AY23: - | AZ23: - | BA23: - | BB23: - | BC23: - | BD23: - | BE23: - | BF23: - | BG23: - | BH23: - | BI23: - | BJ23: - | BK23: - | BL23: - | BM23: - | BN23: - | BO23: - | BP23: - | BQ23: - | BR23: - | BS23: - | BT23: - | BU23: - | BV23: - | BW23: 0 | BX23: 0 | BY23: 0 | BZ23: 0 | CA23: 0 | CB23: 0 | CC23: 0 | CD23: 0 | CE23: 0 | CF23: 0 | CG23: 0 | CH23: 0 | CI23: 0 | CJ23: 0 | CK23: 0 | CL23: 0 | CM23: 0 | CN23: 0 | CO23: 0 | CP23: 0 | CQ23: 0 | CR23: 0 | CS23: 0 | CT23: 0 | CU23: 0 | CV23: 0 | CW23: 0 | CX23: 0 | CY23: 0 | CZ23: 0 | DA23: 0 | DB23: 0 | DC23: 0 | DD23: 0 | DE23: 0 | DF23: 0 | DG23: 0 | DH23: 0
C24: > 1 kV & < = 11 kV; Concrete | D24: 0 | E24: 0 | F24: - | G24: - | H24: - | I24: - | J24: - | K24: - | L24: - | M24: - | N24: - | O24: - | P24: - | Q24: - | R24: - | S24: - | T24: - | U24: - | V24: - | W24: - | X24: - | Y24: - | Z24: - | AA24: - | AB24: - | AC24: - | AD24: - | AE24: - | AF24: - | AG24: - | AH24: - | AI24: - | AJ24: - | AK24: - | AL24: - | AM24: - | AN24: - | AO24: - | AP24: - | AQ24: - | AR24: - | AS24: - | AT24: - | AU24: - | AV24: - | AW24: - | AX24: - | AY24: - | AZ24: - | BA24: - | BB24: - | BC24: - | BD24: - | BE24: - | BF24: - | BG24: - | BH24: - | BI24: - | BJ24: - | BK24: - | BL24: - | BM24: - | BN24: - | BO24: - | BP24: - | BQ24: - | BR24: - | BS24: - | BT24: - | BU24: - | BV24: - | BW24: 0 | BX24: 0 | BY24: 0 | BZ24: 0 | CA24: 0 | CB24: 0 | CC24: 0 | CD24: 0 | CE24: 0 | CF24: 0 | CG24: 0 | CH24: 0 | CI24: 0 | CJ24: 0 | CK24: 0 | CL24: 0 | CM24: 0 | CN24: 0 | CO24: 0 | CP24: 0 | CQ24: 0 | CR24: 0 | CS24: 0 | CT24: 0 | CU24: 0 | CV24: 0 | CW24: 0 | CX24: 0 | CY24: 0 | CZ24: 0 | DA24: 0 | DB24: 0 | DC24: 0 | DD24: 0 | DE24: 0 | DF24: 0 | DG24: 0 | DH24: 0
C25: ˃ 11 kV & < = 22 kV; Concrete | D25: 0 | E25: 0 | F25: - | G25: - | H25: - | I25: - | J25: - | K25: - | L25: - | M25: - | N25: - | O25: - | P25: - | Q25: - | R25: - | S25: - | T25: - | U25: - | V25: - | W25: - | X25: - | Y25: - | Z25: - | AA25: - | AB25: - | AC25: - | AD25: - | AE25: - | AF25: - | AG25: - | AH25: - | AI25: - | AJ25: - | AK25: - | AL25: - | AM25: - | AN25: - | AO25: - | AP25: - | AQ25: - | AR25: - | AS25: - | AT25: - | AU25: - | AV25: - | AW25: - | AX25: - | AY25: - | AZ25: - | BA25: - | BB25: - | BC25: - | BD25: - | BE25: - | BF25: - | BG25: - | BH25: - | BI25: - | BJ25: - | BK25: - | BL25: - | BM25: - | BN25: - | BO25: - | BP25: - | BQ25: - | BR25: - | BS25: - | BT25: - | BU25: - | BV25: - | BW25: 0 | BX25: 0 | BY25: 0 | BZ25: 0 | CA25: 0 | CB25: 0 | CC25: 0 | CD25: 0 | CE25: 0 | CF25: 0 | CG25: 0 | CH25: 0 | CI25: 0 | CJ25: 0 | CK25: 0 | CL25: 0 | CM25: 0 | CN25: 0 | CO25: 0 | CP25: 0 | CQ25: 0 | CR25: 0 | CS25: 0 | CT25: 0 | CU25: 0 | CV25: 0 | CW25: 0 | CX25: 0 | CY25: 0 | CZ25: 0 | DA25: 0 | DB25: 0 | DC25: 0 | DD25: 0 | DE25: 0 | DF25: 0 | DG25: 0 | DH25: 0
C26: > 22 kV & < = 66 kV; Concrete | D26: 60 | E26: 7.7 | F26: 1 | G26: - | H26: - | I26: - | J26: - | K26: 1 | L26: - | M26: - | N26: - | O26: - | P26: - | Q26: - | R26: - | S26: - | T26: - | U26: - | V26: - | W26: - | X26: - | Y26: - | Z26: - | AA26: - | AB26: - | AC26: - | AD26: - | AE26: - | AF26: - | AG26: - | AH26: - | AI26: - | AJ26: - | AK26: - | AL26: - | AM26: - | AN26: - | AO26: - | AP26: - | AQ26: - | AR26: - | AS26: - | AT26: - | AU26: - | AV26: - | AW26: 68 | AX26: - | AY26: - | AZ26: - | BA26: - | BB26: - | BC26: - | BD26: - | BE26: - | BF26: - | BG26: - | BH26: - | BI26: - | BJ26: - | BK26: - | BL26: - | BM26: - | BN26: - | BO26: - | BP26: - | BQ26: - | BR26: - | BS26: - | BT26: - | BU26: - | BV26: - | BW26: 0 | BX26: 0 | BY26: 0 | BZ26: 0 | CA26: 0 | CB26: 0 | CC26: 0 | CD26: 0 | CE26: 0 | CF26: 0 | CG26: 0 | CH26: 0 | CI26: 0 | CJ26: 0 | CK26: 0 | CL26: 0 | CM26: 0 | CN26: 0 | CO26: 0 | CP26: 0 | CQ26: 0 | CR26: 0 | CS26: 0 | CT26: 0 | CU26: 0 | CV26: 0 | CW26: 0 | CX26: 0 | CY26: 0 | CZ26: 0 | DA26: 0 | DB26: 0 | DC26: 0 | DD26: 0 | DE26: 0 | DF26: 0 | DG26: 0 | DH26: 0
C27: > 66 kV & < = 132 kV; Concrete | D27: 0 | E27: 0 | F27: - | G27: - | H27: - | I27: - | J27: - | K27: - | L27: - | M27: - | N27: - | O27: - | P27: - | Q27: - | R27: - | S27: - | T27: - | U27: - | V27: - | W27: - | X27: - | Y27: - | Z27: - | AA27: - | AB27: - | AC27: - | AD27: - | AE27: - | AF27: - | AG27: - | AH27: - | AI27: - | AJ27: - | AK27: - | AL27: - | AM27: - | AN27: - | AO27: - | AP27: - | AQ27: - | AR27: - | AS27: - | AT27: - | AU27: - | AV27: - | AW27: - | AX27: - | AY27: - | AZ27: - | BA27: - | BB27: - | BC27: - | BD27: - | BE27: - | BF27: - | BG27: - | BH27: - | BI27: - | BJ27: - | BK27: - | BL27: - | BM27: - | BN27: - | BO27: - | BP27: - | BQ27: - | BR27: - | BS27: - | BT27: - | BU27: - | BV27: - | BW27: 0 | BX27: 0 | BY27: 0 | BZ27: 0 | CA27: 0 | CB27: 0 | CC27: 0 | CD27: 0 | CE27: 0 | CF27: 0 | CG27: 0 | CH27: 0 | CI27: 0 | CJ27: 0 | CK27: 0 | CL27: 0 | CM27: 0 | CN27: 0 | CO27: 0 | CP27: 0 | CQ27: 0 | CR27: 0 | CS27: 0 | CT27: 0 | CU27: 0 | CV27: 0 | CW27: 0 | CX27: 0 | CY27: 0 | CZ27: 0 | DA27: 0 | DB27: 0 | DC27: 0 | DD27: 0 | DE27: 0 | DF27: 0 | DG27: 0 | DH27: 0
C28: > 132 kV; Concrete | D28: 0 | E28: 0 | F28: - | G28: - | H28: - | I28: - | J28: - | K28: - | L28: - | M28: - | N28: - | O28: - | P28: - | Q28: - | R28: - | S28: - | T28: - | U28: - | V28: - | W28: - | X28: - | Y28: - | Z28: - | AA28: - | AB28: - | AC28: - | AD28: - | AE28: - | AF28: - | AG28: - | AH28: - | AI28: - | AJ28: - | AK28: - | AL28: - | AM28: - | AN28: - | AO28: - | AP28: - | AQ28: - | AR28: - | AS28: - | AT28: - | AU28: - | AV28: - | AW28: - | AX28: - | AY28: - | AZ28: - | BA28: - | BB28: - | BC28: - | BD28: - | BE28: - | BF28: - | BG28: - | BH28: - | BI28: - | BJ28: - | BK28: - | BL28: - | BM28: - | BN28: - | BO28: - | BP28: - | BQ28: - | BR28: - | BS28: - | BT28: - | BU28: - | BV28: - | BW28: 0 | BX28: 0 | BY28: 0 | BZ28: 0 | CA28: 0 | CB28: 0 | CC28: 0 | CD28: 0 | CE28: 0 | CF28: 0 | CG28: 0 | CH28: 0 | CI28: 0 | CJ28: 0 | CK28: 0 | CL28: 0 | CM28: 0 | CN28: 0 | CO28: 0 | CP28: 0 | CQ28: 0 | CR28: 0 | CS28: 0 | CT28: 0 | CU28: 0 | CV28: 0 | CW28: 0 | CX28: 0 | CY28: 0 | CZ28: 0 | DA28: 0 | DB28: 0 | DC28: 0 | DD28: 0 | DE28: 0 | DF28: 0 | DG28: 0 | DH28: 0
C29: ˂ = 1 kV; Steel | D29: 60 | E29: 7.7 | F29: 91 | G29: 100 | H29: 189 | I29: 111 | J29: 293 | K29: 59 | L29: 134 | M29: 392 | N29: 252 | O29: 491 | P29: 156 | Q29: 233 | R29: 449 | S29: 78 | T29: 70 | U29: 75 | V29: 56 | W29: 53 | X29: 87 | Y29: 129 | Z29: 26 | AA29: 80 | AB29: 66 | AC29: 91 | AD29: 60 | AE29: 54 | AF29: 64 | AG29: 6 | AH29: 95 | AI29: 100 | AJ29: 63 | AK29: 174 | AL29: 76 | AM29: 3,670 | AN29: 34 | AO29: 172 | AP29: 247 | AQ29: 41 | AR29: 1,224 | AS29: 75 | AT29: 158 | AU29: 88 | AV29: 177 | AW29: 583 | AX29: 446 | AY29: 91 | AZ29: 328 | BA29: 175 | BB29: 122 | BC29: 227 | BD29: 156 | BE29: 175 | BF29: - | BG29: 161 | BH29: - | BI29: 18 | BJ29: 86 | BK29: 4 | BL29: 202 | BM29: - | BN29: - | BO29: - | BP29: 1 | BQ29: 66 | BR29: - | BS29: - | BT29: - | BU29: - | BV29: 22 | BW29: 0 | BX29: 0 | BY29: 0 | BZ29: 0 | CA29: 0 | CB29: 0 | CC29: 0 | CD29: 0 | CE29: 0 | CF29: 0 | CG29: 0 | CH29: 0 | CI29: 0 | CJ29: 0 | CK29: 0 | CL29: 0 | CM29: 0 | CN29: 0 | CO29: 0 | CP29: 0 | CQ29: 0 | CR29: 0 | CS29: 0 | CT29: 0 | CU29: 0 | CV29: 0 | CW29: 0 | CX29: 0 | CY29: 0 | CZ29: 0 | DA29: 0 | DB29: 0 | DC29: 0 | DD29: 0 | DE29: 0 | DF29: 0 | DG29: 0 | DH29: 0
C30: > 1 kV & < = 11 kV; Steel | D30: 60 | E30: 7.7 | F30: 29 | G30: 71 | H30: 152 | I30: 40 | J30: 44 | K30: 76 | L30: 35 | M30: 146 | N30: 112 | O30: 24 | P30: 28 | Q30: 37 | R30: 16 | S30: 21 | T30: 88 | U30: 10 | V30: 34 | W30: 8 | X30: 62 | Y30: 87 | Z30: 30 | AA30: 27 | AB30: 2 | AC30: 11 | AD30: 10 | AE30: 3 | AF30: - | AG30: - | AH30: 3 | AI30: 410 | AJ30: 124 | AK30: 114 | AL30: 6 | AM30: 1,084 | AN30: - | AO30: 8 | AP30: 715 | AQ30: 19 | AR30: 617 | AS30: 3 | AT30: - | AU30: - | AV30: 10 | AW30: 348 | AX30: 149 | AY30: 54 | AZ30: 60 | BA30: - | BB30: 156 | BC30: 223 | BD30: 67 | BE30: 226 | BF30: - | BG30: 114 | BH30: - | BI30: - | BJ30: 3 | BK30: - | BL30: 11 | BM30: - | BN30: - | BO30: - | BP30: - | BQ30: 40 | BR30: - | BS30: - | BT30: - | BU30: - | BV30: - | BW30: 0 | BX30: 0 | BY30: 0 | BZ30: 0 | CA30: 0 | CB30: 0 | CC30: 0 | CD30: 0 | CE30: 0 | CF30: 0 | CG30: 0 | CH30: 0 | CI30: 0 | CJ30: 0 | CK30: 0 | CL30: 0 | CM30: 0 | CN30: 0 | CO30: 0 | CP30: 0 | CQ30: 0 | CR30: 0 | CS30: 0 | CT30: 0 | CU30: 0 | CV30: 0 | CW30: 0 | CX30: 0 | CY30: 0 | CZ30: 0 | DA30: 0 | DB30: 0 | DC30: 0 | DD30: 0 | DE30: 0 | DF30: 0 | DG30: 0 | DH30: 0
C31: ˃ 11 kV & < = 22 kV; Steel | D31: 60 | E31: 7.7 | F31: 280 | G31: 127 | H31: 154 | I31: 246 | J31: 690 | K31: 161 | L31: 120 | M31: 184 | N31: 213 | O31: 273 | P31: 716 | Q31: 792 | R31: 1,007 | S31: 126 | T31: 271 | U31: 254 | V31: 167 | W31: 291 | X31: 295 | Y31: 257 | Z31: 216 | AA31: 265 | AB31: 266 | AC31: 136 | AD31: 154 | AE31: 39 | AF31: 189 | AG31: 313 | AH31: 301 | AI31: 178 | AJ31: 212 | AK31: 454 | AL31: 103 | AM31: 5,307 | AN31: 194 | AO31: 512 | AP31: 78 | AQ31: 103 | AR31: 3,360 | AS31: 40 | AT31: 175 | AU31: 124 | AV31: 83 | AW31: 816 | AX31: 182 | AY31: 253 | AZ31: 392 | BA31: 187 | BB31: 229 | BC31: 257 | BD31: 23 | BE31: 89 | BF31: - | BG31: 81 | BH31: - | BI31: 375 | BJ31: 140 | BK31: 64 | BL31: 163 | BM31: - | BN31: - | BO31: - | BP31: - | BQ31: - | BR31: - | BS31: - | BT31: - | BU31: - | BV31: 44 | BW31: 0 | BX31: 0 | BY31: 0 | BZ31: 0 | CA31: 0 | CB31: 0 | CC31: 0 | CD31: 0 | CE31: 0 | CF31: 0 | CG31: 0 | CH31: 0 | CI31: 0 | CJ31: 0 | CK31: 0 | CL31: 0 | CM31: 0 | CN31: 0 | CO31: 0 | CP31: 0 | CQ31: 0 | CR31: 0 | CS31: 0 | CT31: 0 | CU31: 0 | CV31: 0 | CW31: 0 | CX31: 0 | CY31: 0 | CZ31: 0 | DA31: 0 | DB31: 0 | DC31: 0 | DD31: 0 | DE31: 0 | DF31: 0 | DG31: 0 | DH31: 0
C32: > 22 kV & < = 66 kV; Steel | D32: 45 | E32: 6.7 | F32: 1 | G32: 14 | H32: 8 | I32: 9 | J32: 2 | K32: 6 | L32: 144 | M32: 295 | N32: 3 | O32: - | P32: 12 | Q32: - | R32: - | S32: - | T32: 66 | U32: - | V32: - | W32: - | X32: - | Y32: 57 | Z32: 72 | AA32: 1 | AB32: 1 | AC32: 4 | AD32: 1 | AE32: - | AF32: - | AG32: - | AH32: - | AI32: 22 | AJ32: - | AK32: - | AL32: - | AM32: 1,259 | AN32: - | AO32: - | AP32: 61 | AQ32: - | AR32: 22 | AS32: - | AT32: - | AU32: - | AV32: - | AW32: 76 | AX32: - | AY32: - | AZ32: 106 | BA32: - | BB32: - | BC32: - | BD32: - | BE32: - | BF32: - | BG32: - | BH32: - | BI32: - | BJ32: - | BK32: - | BL32: - | BM32: - | BN32: - | BO32: - | BP32: - | BQ32: - | BR32: - | BS32: - | BT32: - | BU32: - | BV32: - | BW32: 0 | BX32: 0 | BY32: 0 | BZ32: 0 | CA32: 0 | CB32: 0 | CC32: 0 | CD32: 0 | CE32: 0 | CF32: 0 | CG32: 0 | CH32: 0 | CI32: 0 | CJ32: 0 | CK32: 0 | CL32: 0 | CM32: 0 | CN32: 0 | CO32: 0 | CP32: 0 | CQ32: 0 | CR32: 0 | CS32: 0 | CT32: 0 | CU32: 0 | CV32: 0 | CW32: 0 | CX32: 0 | CY32: 0 | CZ32: 0 | DA32: 0 | DB32: 0 | DC32: 0 | DD32: 0 | DE32: 0 | DF32: 0 | DG32: 0 | DH32: 0
C33: > 66 kV & < = 132 kV; Steel | D33: 45 | E33: 6.7 | F33: 6 | G33: 2 | H33: - | I33: - | J33: - | K33: 3 | L33: 22 | M33: - | N33: - | O33: - | P33: 17 | Q33: - | R33: - | S33: - | T33: - | U33: - | V33: - | W33: - | X33: - | Y33: - | Z33: - | AA33: - | AB33: - | AC33: - | AD33: - | AE33: - | AF33: - | AG33: - | AH33: - | AI33: - | AJ33: - | AK33: 55 | AL33: 146 | AM33: 449 | AN33: - | AO33: - | AP33: - | AQ33: - | AR33: 32 | AS33: - | AT33: - | AU33: - | AV33: - | AW33: 164 | AX33: - | AY33: - | AZ33: 24 | BA33: - | BB33: - | BC33: - | BD33: - | BE33: - | BF33: - | BG33: 44 | BH33: - | BI33: - | BJ33: - | BK33: - | BL33: - | BM33: - | BN33: - | BO33: - | BP33: - | BQ33: - | BR33: - | BS33: - | BT33: - | BU33: - | BV33: - | BW33: 0 | BX33: 0 | BY33: 0 | BZ33: 0 | CA33: 0 | CB33: 0 | CC33: 0 | CD33: 0 | CE33: 0 | CF33: 0 | CG33: 0 | CH33: 0 | CI33: 0 | CJ33: 0 | CK33: 0 | CL33: 0 | CM33: 0 | CN33: 0 | CO33: 0 | CP33: 0 | CQ33: 0 | CR33: 0 | CS33: 0 | CT33: 0 | CU33: 0 | CV33: 0 | CW33: 0 | CX33: 0 | CY33: 0 | CZ33: 0 | DA33: 0 | DB33: 0 | DC33: 0 | DD33: 0 | DE33: 0 | DF33: 0 | DG33: 0 | DH33: 0
C34: > 132 kV; Steel | D34: 0 | E34: 0 | F34: - | G34: - | H34: - | I34: - | J34: - | K34: - | L34: - | M34: - | N34: - | O34: - | P34: - | Q34: - | R34: - | S34: - | T34: - | U34: - | V34: - | W34: - | X34: - | Y34: - | Z34: - | AA34: - | AB34: - | AC34: - | AD34: - | AE34: - | AF34: - | AG34: - | AH34: - | AI34: - | AJ34: - | AK34: - | AL34: - | AM34: - | AN34: - | AO34: - | AP34: - | AQ34: - | AR34: - | AS34: - | AT34: - | AU34: - | AV34: - | AW34: - | AX34: - | AY34: - | AZ34: - | BA34: - | BB34: - | BC34: - | BD34: - | BE34: - | BF34: - | BG34: - | BH34: - | BI34: - | BJ34: - | BK34: - | BL34: - | BM34: - | BN34: - | BO34: - | BP34: - | BQ34: - | BR34: - | BS34: - | BT34: - | BU34: - | BV34: - | BW34: 0 | BX34: 0 | BY34: 0 | BZ34: 0 | CA34: 0 | CB34: 0 | CC34: 0 | CD34: 0 | CE34: 0 | CF34: 0 | CG34: 0 | CH34: 0 | CI34: 0 | CJ34: 0 | CK34: 0 | CL34: 0 | CM34: 0 | CN34: 0 | CO34: 0 | CP34: 0 | CQ34: 0 | CR34: 0 | CS34: 0 | CT34: 0 | CU34: 0 | CV34: 0 | CW34: 0 | CX34: 0 | CY34: 0 | CZ34: 0 | DA34: 0 | DB34: 0 | DC34: 0 | DD34: 0 | DE34: 0 | DF34: 0 | DG34: 0 | DH34: 0
C35: Other | D35: 0 | E35: 0 | F35: - | G35: - | H35: - | I35: - | J35: - | K35: - | L35: - | M35: - | N35: - | O35: - | P35: - | Q35: - | R35: - | S35: - | T35: - | U35: - | V35: - | W35: - | X35: - | Y35: - | Z35: - | AA35: - | AB35: - | AC35: - | AD35: - | AE35: - | AF35: - | AG35: - | AH35: - | AI35: - | AJ35: - | AK35: - | AL35: - | AM35: - | AN35: - | AO35: - | AP35: - | AQ35: - | AR35: - | AS35: - | AT35: - | AU35: - | AV35: - | AW35: - | AX35: - | AY35: - | AZ35: - | BA35: - | BB35: - | BC35: - | BD35: - | BE35: - | BF35: - | BG35: - | BH35: - | BI35: - | BJ35: - | BK35: - | BL35: - | BM35: - | BN35: - | BO35: - | BP35: - | BQ35: - | BR35: - | BS35: - | BT35: - | BU35: - | BV35: - | BW35: 0 | BX35: 0 | BY35: 0 | BZ35: 0 | CA35: 0 | CB35: 0 | CC35: 0 | CD35: 0 | CE35: 0 | CF35: 0 | CG35: 0 | CH35: 0 | CI35: 0 | CJ35: 0 | CK35: 0 | CL35: 0 | CM35: 0 | CN35: 0 | CO35: 0 | CP35: 0 | CQ35: 0 | CR35: 0 | CS35: 0 | CT35: 0 | CU35: 0 | CV35: 0 | CW35: 0 | CX35: 0 | CY35: 0 | CZ35: 0 | DA35: 0 | DB35: 0 | DC35: 0 | DD35: 0 | DE35: 0 | DF35: 0 | DG35: 0 | DH35: 0
B36: OVERHEAD CONDUCTORS BY: HIGHEST OPERATING VOLTAGE; NUMBER OF PHASES (AT HV) | C36: ˂ = 1 kV | D36: 60 | E36: 7.7 | F36: 11.2 | G36: 5.1 | H36: 5.5 | I36: 8.4 | J36: 12.5 | K36: 8.3 | L36: 8.2 | M36: 16.4 | N36: 11.6 | O36: 6.4 | P36: 20.6 | Q36: 28.5 | R36: 34.8 | S36: 7.3 | T36: 7.2 | U36: 10.5 | V36: 11.4 | W36: 11.2 | X36: 36.6 | Y36: 18.8 | Z36: 15.1 | AA36: 23.1 | AB36: 5.6 | AC36: 5.3 | AD36: 4.9 | AE36: 1.3 | AF36: 2.2 | AG36: 1.2 | AH36: 11.4 | AI36: 13.1 | AJ36: 1.3 | AK36: 12.9 | AL36: 3.3 | AM36: 322.6 | AN36: 26.7 | AO36: 21.4 | AP36: 27.8 | AQ36: 4.2 | AR36: 147.5 | AS36: 2.6 | AT36: 5.8 | AU36: 3.4 | AV36: 13.2 | AW36: 51.3 | AX36: 20.9 | AY36: 6 | AZ36: 24 | BA36: 5 | BB36: 5.3 | BC36: 14.9 | BD36: 5.3 | BE36: 8.6 | BF36: 0 | BG36: 49.7 | BH36: 0 | BI36: 0.3 | BJ36: 29.1 | BK36: 0 | BL36: 7.8 | BM36: 0.1 | BN36: 0 | BO36: 0 | BP36: 0 | BQ36: 0.2 | BR36: 0 | BS36: 0 | BT36: 0 | BU36: 0 | BV36: 2.7 | BW36: 0 | BX36: 0 | BY36: 0 | BZ36: 0 | CA36: 0 | CB36: 0 | CC36: 0 | CD36: 0 | CE36: 0 | CF36: 0 | CG36: 0 | CH36: 0 | CI36: 0 | CJ36: 0 | CK36: 0 | CL36: 0 | CM36: 0 | CN36: 0 | CO36: 0 | CP36: 0 | CQ36: 0 | CR36: 0 | CS36: 0 | CT36: 0 | CU36: 0 | CV36: 0 | CW36: 0 | CX36: 0 | CY36: 0 | CZ36: 0 | DA36: 0 | DB36: 0 | DC36: 0 | DD36: 0 | DE36: 0 | DF36: 0 | DG36: 0 | DH36: 0
C37: > 1 kV & < = 11 kV | D37: 60 | E37: 7.7 | F37: 4.2 | G37: 2.3 | H37: 20.9 | I37: 1.6 | J37: 2 | K37: 3.5 | L37: 1.4 | M37: 7.6 | N37: 6.7 | O37: 1.1 | P37: 1.6 | Q37: 1.9 | R37: 0.8 | S37: 1.8 | T37: 4.2 | U37: 0.3 | V37: 2.3 | W37: 1.7 | X37: 4.6 | Y37: 5.5 | Z37: 2.3 | AA37: 1.7 | AB37: 0.4 | AC37: 1.6 | AD37: 0.7 | AE37: 0 | AF37: 0 | AG37: 0 | AH37: 0.2 | AI37: 0.9 | AJ37: 9.2 | AK37: 7.7 | AL37: 0.2 | AM37: 70.9 | AN37: 0 | AO37: 0 | AP37: 71.8 | AQ37: 1.3 | AR37: 31.2 | AS37: 0.6 | AT37: 0 | AU37: 1 | AV37: 0.7 | AW37: 19.6 | AX37: 6 | AY37: 2.1 | AZ37: 5.1 | BA37: 8.6 | BB37: 4.1 | BC37: 11.1 | BD37: 0 | BE37: 8.3 | BF37: 0 | BG37: 2.4 | BH37: 0 | BI37: 0 | BJ37: 25.8 | BK37: 0 | BL37: 0 | BM37: 0 | BN37: 0 | BO37: 0 | BP37: 0 | BQ37: 0 | BR37: 0 | BS37: 0 | BT37: 0 | BU37: 0 | BV37: 0 | BW37: 0 | BX37: 0 | BY37: 0 | BZ37: 0 | CA37: 0 | CB37: 0 | CC37: 0 | CD37: 0 | CE37: 0 | CF37: 0 | CG37: 0 | CH37: 0 | CI37: 0 | CJ37: 0 | CK37: 0 | CL37: 0 | CM37: 0 | CN37: 0 | CO37: 0 | CP37: 0 | CQ37: 0 | CR37: 0 | CS37: 0 | CT37: 0 | CU37: 0 | CV37: 0 | CW37: 0 | CX37: 0 | CY37: 0 | CZ37: 0 | DA37: 0 | DB37: 0 | DC37: 0 | DD37: 0 | DE37: 0 | DF37: 0 | DG37: 0 | DH37: 0
C38: ˃ 11 kV & < = 22 kV ; SWER | D38: 60 | E38: 7.7 | F38: 0 | G38: 0 | H38: 0 | I38: 0 | J38: 0 | K38: 0 | L38: 0 | M38: 0 | N38: 0 | O38: 0 | P38: 0 | Q38: 0.3 | R38: 0 | S38: 0 | T38: 0 | U38: 0 | V38: 0 | W38: 0 | X38: 0 | Y38: 0 | Z38: 0 | AA38: 0 | AB38: 8.3 | AC38: 0 | AD38: 0 | AE38: 0 | AF38: 0 | AG38: 0 | AH38: 0 | AI38: 0 | AJ38: 0 | AK38: 0 | AL38: 0 | AM38: 0 | AN38: 0 | AO38: 0 | AP38: 0 | AQ38: 0 | AR38: 0 | AS38: 0 | AT38: 0 | AU38: 0 | AV38: 0 | AW38: 0 | AX38: 0 | AY38: 0 | AZ38: 0 | BA38: 0 | BB38: 0 | BC38: 0 | BD38: 0 | BE38: 0 | BF38: 0 | BG38: 0 | BH38: 0 | BI38: 0 | BJ38: 0 | BK38: 0 | BL38: 0 | BM38: 0 | BN38: 0 | BO38: 0 | BP38: 0 | BQ38: 0 | BR38: 0 | BS38: 0 | BT38: 0 | BU38: 0 | BV38: 0 | BW38: 0 | BX38: 0 | BY38: 0 | BZ38: 0 | CA38: 0 | CB38: 0 | CC38: 0 | CD38: 0 | CE38: 0 | CF38: 0 | CG38: 0 | CH38: 0 | CI38: 0 | CJ38: 0 | CK38: 0 | CL38: 0 | CM38: 0 | CN38: 0 | CO38: 0 | CP38: 0 | CQ38: 0 | CR38: 0 | CS38: 0 | CT38: 0 | CU38: 0 | CV38: 0 | CW38: 0 | CX38: 0 | CY38: 0 | CZ38: 0 | DA38: 0 | DB38: 0 | DC38: 0 | DD38: 0 | DE38: 0 | DF38: 0 | DG38: 0 | DH38: 0
C39: ˃ 11 kV & < = 22 kV ; Single-Phase | D39: 0 | E39: 0 | F39: 0 | G39: 0 | H39: 0 | I39: 0 | J39: 0 | K39: 0 | L39: 0 | M39: 0 | N39: 0 | O39: 0 | P39: 0 | Q39: 0 | R39: 0 | S39: 0 | T39: 0 | U39: 0 | V39: 0 | W39: 0 | X39: 0 | Y39: 0 | Z39: 0 | AA39: 0 | AB39: 0 | AC39: 0 | AD39: 0 | AE39: 0 | AF39: 0 | AG39: 0 | AH39: 0 | AI39: 0 | AJ39: 0 | AK39: 0 | AL39: 0 | AM39: 0 | AN39: 0 | AO39: 0 | AP39: 0 | AQ39: 0 | AR39: 0 | AS39: 0 | AT39: 0 | AU39: 0 | AV39: 0 | AW39: 0 | AX39: 0 | AY39: 0 | AZ39: 0 | BA39: 0 | BB39: 0 | BC39: 0 | BD39: 0 | BE39: 0 | BF39: 0 | BG39: 0 | BH39: 0 | BI39: 0 | BJ39: 0 | BK39: 0 | BL39: 0 | BM39: 0 | BN39: 0 | BO39: 0 | BP39: 0 | BQ39: 0 | BR39: 0 | BS39: 0 | BT39: 0 | BU39: 0 | BV39: 0 | BW39: 0 | BX39: 0 | BY39: 0 | BZ39: 0 | CA39: 0 | CB39: 0 | CC39: 0 | CD39: 0 | CE39: 0 | CF39: 0 | CG39: 0 | CH39: 0 | CI39: 0 | CJ39: 0 | CK39: 0 | CL39: 0 | CM39: 0 | CN39: 0 | CO39: 0 | CP39: 0 | CQ39: 0 | CR39: 0 | CS39: 0 | CT39: 0 | CU39: 0 | CV39: 0 | CW39: 0 | CX39: 0 | CY39: 0 | CZ39: 0 | DA39: 0 | DB39: 0 | DC39: 0 | DD39: 0 | DE39: 0 | DF39: 0 | DG39: 0 | DH39: 0
C40: ˃ 11 kV & < = 22 kV ; Multiple-Phase | D40: 60 | E40: 7.7 | F40: 31.5 | G40: 10 | H40: 11.8 | I40: 124.3 | J40: 13.1 | K40: 42 | L40: 8.5 | M40: 14.6 | N40: 18.4 | O40: 42.9 | P40: 116 | Q40: 111.2 | R40: 124.7 | S40: 19.1 | T40: 35.3 | U40: 38.7 | V40: 22.5 | W40: 61.3 | X40: 28 | Y40: 87.6 | Z40: 34 | AA40: 27.8 | AB40: 40 | AC40: 7.2 | AD40: 9.3 | AE40: 2.7 | AF40: 25.4 | AG40: 66.7 | AH40: 29.5 | AI40: 23.2 | AJ40: 18.5 | AK40: 50.8 | AL40: 21.6 | AM40: 765.4 | AN40: 54.2 | AO40: 149.8 | AP40: 3.7 | AQ40: 7.1 | AR40: 421.1 | AS40: 2.7 | AT40: 12.9 | AU40: 13.3 | AV40: 14 | AW40: 91 | AX40: 23.9 | AY40: 17.4 | AZ40: 30.7 | BA40: 11.1 | BB40: 43.3 | BC40: 33.8 | BD40: 3.4 | BE40: 15.2 | BF40: 0 | BG40: 32.5 | BH40: 0 | BI40: 41.4 | BJ40: 16.4 | BK40: 0 | BL40: 7.6 | BM40: 0 | BN40: 0 | BO40: 0 | BP40: 0 | BQ40: 0 | BR40: 0 | BS40: 0 | BT40: 0 | BU40: 0 | BV40: 2.1 | BW40: 0 | BX40: 0 | BY40: 0 | BZ40: 0 | CA40: 0 | CB40: 0 | CC40: 0 | CD40: 0 | CE40: 0 | CF40: 0 | CG40: 0 | CH40: 0 | CI40: 0 | CJ40: 0 | CK40: 0 | CL40: 0 | CM40: 0 | CN40: 0 | CO40: 0 | CP40: 0 | CQ40: 0 | CR40: 0 | CS40: 0 | CT40: 0 | CU40: 0 | CV40: 0 | CW40: 0 | CX40: 0 | CY40: 0 | CZ40: 0 | DA40: 0 | DB40: 0 | DC40: 0 | DD40: 0 | DE40: 0 | DF40: 0 | DG40: 0 | DH40: 0
C41: > 22 kV & < = 66 kV | D41: 45 | E41: 6.7 | F41: 0.1 | G41: 1 | H41: 0 | I41: 0.3 | J41: 0.1 | K41: 0 | L41: 28.1 | M41: 39.4 | N41: 0 | O41: 0 | P41: 1.9 | Q41: 0 | R41: 0 | S41: 0 | T41: 5.6 | U41: 0.1 | V41: 0 | W41: 0 | X41: 0 | Y41: 0 | Z41: 6.1 | AA41: 13.3 | AB41: 0 | AC41: 0 | AD41: 66.1 | AE41: 0 | AF41: 0 | AG41: 0.1 | AH41: 10 | AI41: 0.1 | AJ41: 0 | AK41: 0 | AL41: 39.4 | AM41: 86.6 | AN41: 0 | AO41: 0 | AP41: 24 | AQ41: 0 | AR41: 20.1 | AS41: 0 | AT41: 5.8 | AU41: 0 | AV41: 0 | AW41: 4.1 | AX41: 0 | AY41: 0 | AZ41: 0.2 | BA41: 2.5 | BB41: 0 | BC41: 0 | BD41: 0 | BE41: 19 | BF41: 0 | BG41: 0 | BH41: 0 | BI41: 0 | BJ41: 0 | BK41: 0 | BL41: 0 | BM41: 0 | BN41: 0 | BO41: 0 | BP41: 0 | BQ41: 0 | BR41: 0 | BS41: 0 | BT41: 0 | BU41: 0 | BV41: 0 | BW41: 0 | BX41: 0 | BY41: 0 | BZ41: 0 | CA41: 0 | CB41: 0 | CC41: 0 | CD41: 0 | CE41: 0 | CF41: 0 | CG41: 0 | CH41: 0 | CI41: 0 | CJ41: 0 | CK41: 0 | CL41: 0 | CM41: 0 | CN41: 0 | CO41: 0 | CP41: 0 | CQ41: 0 | CR41: 0 | CS41: 0 | CT41: 0 | CU41: 0 | CV41: 0 | CW41: 0 | CX41: 0 | CY41: 0 | CZ41: 0 | DA41: 0 | DB41: 0 | DC41: 0 | DD41: 0 | DE41: 0 | DF41: 0 | DG41: 0 | DH41: 0
C42: > 66 kV & < = 132 kV | D42: 45 | E42: 6.7 | F42: 4.2 | G42: 0 | H42: 0 | I42: 0 | J42: 0 | K42: 0 | L42: 0 | M42: 0 | N42: 0 | O42: 0 | P42: 4.2 | Q42: 0 | R42: 0 | S42: 0 | T42: 0 | U42: 0 | V42: 0 | W42: 0 | X42: 0 | Y42: 0 | Z42: 0 | AA42: 0 | AB42: 0 | AC42: 0 | AD42: 0 | AE42: 0 | AF42: 0 | AG42: 0 | AH42: 0 | AI42: 0 | AJ42: 0.1 | AK42: 0 | AL42: 340.1 | AM42: 2.3 | AN42: 0 | AO42: 0 | AP42: 0 | AQ42: 0 | AR42: 0 | AS42: 0 | AT42: 0 | AU42: 0 | AV42: 0 | AW42: 2.8 | AX42: 0 | AY42: 0 | AZ42: 0 | BA42: 0 | BB42: 0 | BC42: 0 | BD42: 0 | BE42: 0 | BF42: 0 | BG42: 0 | BH42: 0 | BI42: 0 | BJ42: 0 | BK42: 0 | BL42: 0 | BM42: 0 | BN42: 0 | BO42: 0 | BP42: 0 | BQ42: 0 | BR42: 0 | BS42: 0 | BT42: 0 | BU42: 0 | BV42: 0 | BW42: 0 | BX42: 0 | BY42: 0 | BZ42: 0 | CA42: 0 | CB42: 0 | CC42: 0 | CD42: 0 | CE42: 0 | CF42: 0 | CG42: 0 | CH42: 0 | CI42: 0 | CJ42: 0 | CK42: 0 | CL42: 0 | CM42: 0 | CN42: 0 | CO42: 0 | CP42: 0 | CQ42: 0 | CR42: 0 | CS42: 0 | CT42: 0 | CU42: 0 | CV42: 0 | CW42: 0 | CX42: 0 | CY42: 0 | CZ42: 0 | DA42: 0 | DB42: 0 | DC42: 0 | DD42: 0 | DE42: 0 | DF42: 0 | DG42: 0 | DH42: 0
C43: > 132 kV | D43: 0 | E43: 0 | F43: 0 | G43: 0 | H43: 0 | I43: 0 | J43: 0 | K43: 0 | L43: 0 | M43: 0 | N43: 0 | O43: 0 | P43: 0 | Q43: 0 | R43: 0 | S43: 0 | T43: 0 | U43: 0 | V43: 0 | W43: 0 | X43: 0 | Y43: 0 | Z43: 0 | AA43: 0 | AB43: 0 | AC43: 0 | AD43: 0 | AE43: 0 | AF43: 0 | AG43: 0 | AH43: 0 | AI43: 0 | AJ43: 0 | AK43: 0 | AL43: 0 | AM43: 0 | AN43: 0 | AO43: 0 | AP43: 0 | AQ43: 0 | AR43: 0 | AS43: 0 | AT43: 0 | AU43: 0 | AV43: 0 | AW43: 0 | AX43: 0 | AY43: 0 | AZ43: 0 | BA43: 0 | BB43: 0 | BC43: 0 | BD43: 0 | BE43: 0 | BF43: 0 | BG43: 0 | BH43: 0 | BI43: 0 | BJ43: 0 | BK43: 0 | BL43: 0 | BM43: 0 | BN43: 0 | BO43: 0 | BP43: 0 | BQ43: 0 | BR43: 0 | BS43: 0 | BT43: 0 | BU43: 0 | BV43: 0 | BW43: 0 | BX43: 0 | BY43: 0 | BZ43: 0 | CA43: 0 | CB43: 0 | CC43: 0 | CD43: 0 | CE43: 0 | CF43: 0 | CG43: 0 | CH43: 0 | CI43: 0 | CJ43: 0 | CK43: 0 | CL43: 0 | CM43: 0 | CN43: 0 | CO43: 0 | CP43: 0 | CQ43: 0 | CR43: 0 | CS43: 0 | CT43: 0 | CU43: 0 | CV43: 0 | CW43: 0 | CX43: 0 | CY43: 0 | CZ43: 0 | DA43: 0 | DB43: 0 | DC43: 0 | DD43: 0 | DE43: 0 | DF43: 0 | DG43: 0 | DH43: 0
C44: Other | D44: 0 | E44: 0 | F44: 0 | G44: 0 | H44: 0 | I44: 0 | J44: 0 | K44: 0 | L44: 0 | M44: 0 | N44: 0 | O44: 0 | P44: 0 | Q44: 0 | R44: 0 | S44: 0 | T44: 0 | U44: 0 | V44: 0 | W44: 0 | X44: 0 | Y44: 0 | Z44: 0 | AA44: 0 | AB44: 0 | AC44: 0 | AD44: 0 | AE44: 0 | AF44: 0 | AG44: 0 | AH44: 0 | AI44: 0 | AJ44: 0 | AK44: 0 | AL44: 0 | AM44: 0 | AN44: 0 | AO44: 0 | AP44: 0 | AQ44: 0 | AR44: 0 | AS44: 0 | AT44: 0 | AU44: 0 | AV44: 0 | AW44: 0 | AX44: 0 | AY44: 0 | AZ44: 0 | BA44: 0 | BB44: 0 | BC44: 0 | BD44: 0 | BE44: 0 | BF44: 0 | BG44: 0 | BH44: 0 | BI44: 0 | BJ44: 0 | BK44: 0 | BL44: 0 | BM44: 0 | BN44: 0 | BO44: 0 | BP44: 0 | BQ44: 0 | BR44: 0 | BS44: 0 | BT44: 0 | BU44: 0 | BV44: 0 | BW44: 0 | BX44: 0 | BY44: 0 | BZ44: 0 | CA44: 0 | CB44: 0 | CC44: 0 | CD44: 0 | CE44: 0 | CF44: 0 | CG44: 0 | CH44: 0 | CI44: 0 | CJ44: 0 | CK44: 0 | CL44: 0 | CM44: 0 | CN44: 0 | CO44: 0 | CP44: 0 | CQ44: 0 | CR44: 0 | CS44: 0 | CT44: 0 | CU44: 0 | CV44: 0 | CW44: 0 | CX44: 0 | CY44: 0 | CZ44: 0 | DA44: 0 | DB44: 0 | DC44: 0 | DD44: 0 | DE44: 0 | DF44: 0 | DG44: 0 | DH44: 0
B45: UNDERGROUND CABLES BY: HIGHEST OPERATING VOLTAGE | C45: ˂ = 1 kV | D45: 55 | E45: 7.4 | F45: 7.2 | G45: 17.1 | H45: 23.7 | I45: 28.2 | J45: 17.1 | K45: 19 | L45: 4.1 | M45: 21.3 | N45: 50.5 | O45: 6.9 | P45: 13.4 | Q45: 25.4 | R45: 15.8 | S45: 21.5 | T45: 7.9 | U45: 5.4 | V45: 5 | W45: 8.6 | X45: 11.6 | Y45: 23 | Z45: 21.4 | AA45: 32.7 | AB45: 7.6 | AC45: 4.6 | AD45: 1.8 | AE45: 10.3 | AF45: 1.1 | AG45: 0.3 | AH45: 1.5 | AI45: 12.8 | AJ45: 0.6 | AK45: 4.5 | AL45: 9.5 | AM45: 87.7 | AN45: 2.2 | AO45: 66.5 | AP45: 90.8 | AQ45: 5.8 | AR45: 7.7 | AS45: 0 | AT45: 0 | AU45: 1 | AV45: 0.2 | AW45: 12.9 | AX45: 1.1 | AY45: 0 | AZ45: 0.4 | BA45: 0 | BB45: 0.2 | BC45: 0 | BD45: 0 | BE45: 0 | BF45: 0 | BG45: 0 | BH45: 0 | BI45: 0.1 | BJ45: 6.9 | BK45: 0 | BL45: 0 | BM45: 0 | BN45: 0 | BO45: 0 | BP45: 0 | BQ45: 0 | BR45: 0 | BS45: 0 | BT45: 0 | BU45: 0 | BV45: 0 | BW45: 0 | BX45: 0 | BY45: 0 | BZ45: 0 | CA45: 0 | CB45: 0 | CC45: 0 | CD45: 0 | CE45: 0 | CF45: 0 | CG45: 0 | CH45: 0 | CI45: 0 | CJ45: 0 | CK45: 0 | CL45: 0 | CM45: 0 | CN45: 0 | CO45: 0 | CP45: 0 | CQ45: 0 | CR45: 0 | CS45: 0 | CT45: 0 | CU45: 0 | CV45: 0 | CW45: 0 | CX45: 0 | CY45: 0 | CZ45: 0 | DA45: 0 | DB45: 0 | DC45: 0 | DD45: 0 | DE45: 0 | DF45: 0 | DG45: 0 | DH45: 0
C46: > 1 kV & < = 11 kV | D46: 55 | E46: 7.4 | F46: 7.5 | G46: 18.8 | H46: 25.6 | I46: 19.4 | J46: 19.4 | K46: 20 | L46: 19.8 | M46: 35.8 | N46: 32.1 | O46: 16.8 | P46: 17.6 | Q46: 13.7 | R46: 11.6 | S46: 11.6 | T46: 5.5 | U46: 11.1 | V46: 6.4 | W46: 11.1 | X46: 8.2 | Y46: 9.8 | Z46: 18.2 | AA46: 26.8 | AB46: 11.9 | AC46: 0.7 | AD46: 4 | AE46: 5 | AF46: 0 | AG46: 0.5 | AH46: 1.4 | AI46: 33.6 | AJ46: 1 | AK46: 1.2 | AL46: 4.6 | AM46: 46.9 | AN46: 1.4 | AO46: 32.8 | AP46: 203.7 | AQ46: 2.8 | AR46: 22.5 | AS46: 0 | AT46: 0 | AU46: 0.1 | AV46: 0.2 | AW46: 16.6 | AX46: 0.7 | AY46: 0.2 | AZ46: 0.1 | BA46: 2 | BB46: 0.1 | BC46: 0 | BD46: 0 | BE46: 0 | BF46: 0 | BG46: 0 | BH46: 0 | BI46: 0 | BJ46: 6.7 | BK46: 0 | BL46: 0 | BM46: 0 | BN46: 0 | BO46: 0 | BP46: 0 | BQ46: 0 | BR46: 0 | BS46: 0 | BT46: 0 | BU46: 0 | BV46: 0 | BW46: 0 | BX46: 0 | BY46: 0 | BZ46: 0 | CA46: 0 | CB46: 0 | CC46: 0 | CD46: 0 | CE46: 0 | CF46: 0 | CG46: 0 | CH46: 0 | CI46: 0 | CJ46: 0 | CK46: 0 | CL46: 0 | CM46: 0 | CN46: 0 | CO46: 0 | CP46: 0 | CQ46: 0 | CR46: 0 | CS46: 0 | CT46: 0 | CU46: 0 | CV46: 0 | CW46: 0 | CX46: 0 | CY46: 0 | CZ46: 0 | DA46: 0 | DB46: 0 | DC46: 0 | DD46: 0 | DE46: 0 | DF46: 0 | DG46: 0 | DH46: 0
C47: > 11 kV & < = 22 kV | D47: 55 | E47: 7.4 | F47: 4.7 | G47: 8.2 | H47: 8.7 | I47: 3.9 | J47: 1.1 | K47: 14.3 | L47: 4.3 | M47: 1.2 | N47: 0.9 | O47: 0.5 | P47: 3 | Q47: 0.9 | R47: 0.2 | S47: 0 | T47: 1.6 | U47: 0.1 | V47: 0.4 | W47: 4.5 | X47: 5.2 | Y47: 2.2 | Z47: 3.6 | AA47: 0.1 | AB47: 0.1 | AC47: 0 | AD47: 0.1 | AE47: 0.1 | AF47: 0.1 | AG47: 0.1 | AH47: 3.1 | AI47: 0.6 | AJ47: 6 | AK47: 0.8 | AL47: 0.3 | AM47: 2.1 | AN47: 0.7 | AO47: 0 | AP47: 0.6 | AQ47: 0 | AR47: 2.9 | AS47: 0 | AT47: 0.3 | AU47: 1.1 | AV47: 0 | AW47: 1.3 | AX47: 2.5 | AY47: 0 | AZ47: 0.4 | BA47: 0.2 | BB47: 0.4 | BC47: 0 | BD47: 0 | BE47: 0 | BF47: 0 | BG47: 0.3 | BH47: 0 | BI47: 0 | BJ47: 0 | BK47: 0 | BL47: 0.2 | BM47: 0 | BN47: 0 | BO47: 0 | BP47: 0 | BQ47: 0 | BR47: 0 | BS47: 0 | BT47: 0 | BU47: 0 | BV47: 0 | BW47: 0 | BX47: 0 | BY47: 0 | BZ47: 0 | CA47: 0 | CB47: 0 | CC47: 0 | CD47: 0 | CE47: 0 | CF47: 0 | CG47: 0 | CH47: 0 | CI47: 0 | CJ47: 0 | CK47: 0 | CL47: 0 | CM47: 0 | CN47: 0 | CO47: 0 | CP47: 0 | CQ47: 0 | CR47: 0 | CS47: 0 | CT47: 0 | CU47: 0 | CV47: 0 | CW47: 0 | CX47: 0 | CY47: 0 | CZ47: 0 | DA47: 0 | DB47: 0 | DC47: 0 | DD47: 0 | DE47: 0 | DF47: 0 | DG47: 0 | DH47: 0
C48: > 22 kV & < = 33 kV | D48: 0 | E48: 0 | F48: 0 | G48: 0 | H48: 0 | I48: 0 | J48: 0 | K48: 0 | L48: 0 | M48: 0 | N48: 0 | O48: 0 | P48: 0 | Q48: 0 | R48: 0 | S48: 0 | T48: 0 | U48: 0 | V48: 0 | W48: 0 | X48: 0 | Y48: 0 | Z48: 0 | AA48: 0 | AB48: 0 | AC48: 0 | AD48: 0 | AE48: 0 | AF48: 0 | AG48: 0 | AH48: 0 | AI48: 0 | AJ48: 0 | AK48: 0 | AL48: 0 | AM48: 0 | AN48: 0 | AO48: 0 | AP48: 0 | AQ48: 0 | AR48: 0 | AS48: 0 | AT48: 0 | AU48: 0 | AV48: 0 | AW48: 0 | AX48: 0 | AY48: 0 | AZ48: 0 | BA48: 0 | BB48: 0 | BC48: 0 | BD48: 0 | BE48: 0 | BF48: 0 | BG48: 0 | BH48: 0 | BI48: 0 | BJ48: 0 | BK48: 0 | BL48: 0 | BM48: 0 | BN48: 0 | BO48: 0 | BP48: 0 | BQ48: 0 | BR48: 0 | BS48: 0 | BT48: 0 | BU48: 0 | BV48: 0 | BW48: 0 | BX48: 0 | BY48: 0 | BZ48: 0 | CA48: 0 | CB48: 0 | CC48: 0 | CD48: 0 | CE48: 0 | CF48: 0 | CG48: 0 | CH48: 0 | CI48: 0 | CJ48: 0 | CK48: 0 | CL48: 0 | CM48: 0 | CN48: 0 | CO48: 0 | CP48: 0 | CQ48: 0 | CR48: 0 | CS48: 0 | CT48: 0 | CU48: 0 | CV48: 0 | CW48: 0 | CX48: 0 | CY48: 0 | CZ48: 0 | DA48: 0 | DB48: 0 | DC48: 0 | DD48: 0 | DE48: 0 | DF48: 0 | DG48: 0 | DH48: 0
C49: > 33 kV & < = 66 kV | D49: 60 | E49: 7.7 | F49: 1.6 | G49: 0.1 | H49: 0.5 | I49: 1.5 | J49: 0 | K49: 5 | L49: 0.9 | M49: 14.1 | N49: 0 | O49: 0 | P49: 0.7 | Q49: 0 | R49: 0 | S49: 0 | T49: 0 | U49: 0 | V49: 0 | W49: 0 | X49: 0 | Y49: 0 | Z49: 0 | AA49: 0 | AB49: 0 | AC49: 0 | AD49: 0 | AE49: 0 | AF49: 0 | AG49: 0 | AH49: 0 | AI49: 0 | AJ49: 0 | AK49: 0 | AL49: 0 | AM49: 0 | AN49: 0 | AO49: 0 | AP49: 1.6 | AQ49: 7.2 | AR49: 0 | AS49: 0 | AT49: 0 | AU49: 0 | AV49: 0 | AW49: 1.7 | AX49: 0 | AY49: 0 | AZ49: 0 | BA49: 0 | BB49: 0 | BC49: 0 | BD49: 0 | BE49: 0 | BF49: 0 | BG49: 0 | BH49: 0 | BI49: 0 | BJ49: 0 | BK49: 0 | BL49: 0 | BM49: 0 | BN49: 0 | BO49: 0 | BP49: 0 | BQ49: 0 | BR49: 0 | BS49: 0 | BT49: 0 | BU49: 0 | BV49: 0 | BW49: 0 | BX49: 0 | BY49: 0 | BZ49: 0 | CA49: 0 | CB49: 0 | CC49: 0 | CD49: 0 | CE49: 0 | CF49: 0 | CG49: 0 | CH49: 0 | CI49: 0 | CJ49: 0 | CK49: 0 | CL49: 0 | CM49: 0 | CN49: 0 | CO49: 0 | CP49: 0 | CQ49: 0 | CR49: 0 | CS49: 0 | CT49: 0 | CU49: 0 | CV49: 0 | CW49: 0 | CX49: 0 | CY49: 0 | CZ49: 0 | DA49: 0 | DB49: 0 | DC49: 0 | DD49: 0 | DE49: 0 | DF49: 0 | DG49: 0 | DH49: 0
C50: > 66 kV & < = 132 kV | D50: 0 | E50: 0 | F50: 0 | G50: 0 | H50: 0 | I50: 0 | J50: 0 | K50: 0 | L50: 0 | M50: 0 | N50: 0 | O50: 0 | P50: 0 | Q50: 0 | R50: 0 | S50: 0 | T50: 0 | U50: 0 | V50: 0 | W50: 0 | X50: 0 | Y50: 0 | Z50: 0 | AA50: 0 | AB50: 0 | AC50: 0 | AD50: 0 | AE50: 0 | AF50: 0 | AG50: 0 | AH50: 0 | AI50: 0 | AJ50: 0 | AK50: 0 | AL50: 0 | AM50: 0 | AN50: 0 | AO50: 0 | AP50: 0 | AQ50: 0 | AR50: 0 | AS50: 0 | AT50: 0 | AU50: 0 | AV50: 0 | AW50: 0 | AX50: 0 | AY50: 0 | AZ50: 0 | BA50: 0 | BB50: 0 | BC50: 0 | BD50: 0 | BE50: 0 | BF50: 0 | BG50: 0 | BH50: 0 | BI50: 0 | BJ50: 0 | BK50: 0 | BL50: 0 | BM50: 0 | BN50: 0 | BO50: 0 | BP50: 0 | BQ50: 0 | BR50: 0 | BS50: 0 | BT50: 0 | BU50: 0 | BV50: 0 | BW50: 0 | BX50: 0 | BY50: 0 | BZ50: 0 | CA50: 0 | CB50: 0 | CC50: 0 | CD50: 0 | CE50: 0 | CF50: 0 | CG50: 0 | CH50: 0 | CI50: 0 | CJ50: 0 | CK50: 0 | CL50: 0 | CM50: 0 | CN50: 0 | CO50: 0 | CP50: 0 | CQ50: 0 | CR50: 0 | CS50: 0 | CT50: 0 | CU50: 0 | CV50: 0 | CW50: 0 | CX50: 0 | CY50: 0 | CZ50: 0 | DA50: 0 | DB50: 0 | DC50: 0 | DD50: 0 | DE50: 0 | DF50: 0 | DG50: 0 | DH50: 0
C51: > 132 kV | D51: 0 | E51: 0 | F51: 0 | G51: 0 | H51: 0 | I51: 0 | J51: 0 | K51: 0 | L51: 0 | M51: 0 | N51: 0 | O51: 0 | P51: 0 | Q51: 0 | R51: 0 | S51: 0 | T51: 0 | U51: 0 | V51: 0 | W51: 0 | X51: 0 | Y51: 0 | Z51: 0 | AA51: 0 | AB51: 0 | AC51: 0 | AD51: 0 | AE51: 0 | AF51: 0 | AG51: 0 | AH51: 0 | AI51: 0 | AJ51: 0 | AK51: 0 | AL51: 0 | AM51: 0 | AN51: 0 | AO51: 0 | AP51: 0 | AQ51: 0 | AR51: 0 | AS51: 0 | AT51: 0 | AU51: 0 | AV51: 0 | AW51: 0 | AX51: 0 | AY51: 0 | AZ51: 0 | BA51: 0 | BB51: 0 | BC51: 0 | BD51: 0 | BE51: 0 | BF51: 0 | BG51: 0 | BH51: 0 | BI51: 0 | BJ51: 0 | BK51: 0 | BL51: 0 | BM51: 0 | BN51: 0 | BO51: 0 | BP51: 0 | BQ51: 0 | BR51: 0 | BS51: 0 | BT51: 0 | BU51: 0 | BV51: 0 | BW51: 0 | BX51: 0 | BY51: 0 | BZ51: 0 | CA51: 0 | CB51: 0 | CC51: 0 | CD51: 0 | CE51: 0 | CF51: 0 | CG51: 0 | CH51: 0 | CI51: 0 | CJ51: 0 | CK51: 0 | CL51: 0 | CM51: 0 | CN51: 0 | CO51: 0 | CP51: 0 | CQ51: 0 | CR51: 0 | CS51: 0 | CT51: 0 | CU51: 0 | CV51: 0 | CW51: 0 | CX51: 0 | CY51: 0 | CZ51: 0 | DA51: 0 | DB51: 0 | DC51: 0 | DD51: 0 | DE51: 0 | DF51: 0 | DG51: 0 | DH51: 0
C52: Other | D52: 0 | E52: 0 | F52: 0 | G52: 0 | H52: 0 | I52: 0 | J52: 0 | K52: 0 | L52: 0 | M52: 0 | N52: 0 | O52: 0 | P52: 0 | Q52: 0 | R52: 0 | S52: 0 | T52: 0 | U52: 0 | V52: 0 | W52: 0 | X52: 0 | Y52: 0 | Z52: 0 | AA52: 0 | AB52: 0 | AC52: 0 | AD52: 0 | AE52: 0 | AF52: 0 | AG52: 0 | AH52: 0 | AI52: 0 | AJ52: 0 | AK52: 0 | AL52: 0 | AM52: 0 | AN52: 0 | AO52: 0 | AP52: 0 | AQ52: 0 | AR52: 0 | AS52: 0 | AT52: 0 | AU52: 0 | AV52: 0 | AW52: 0 | AX52: 0 | AY52: 0 | AZ52: 0 | BA52: 0 | BB52: 0 | BC52: 0 | BD52: 0 | BE52: 0 | BF52: 0 | BG52: 0 | BH52: 0 | BI52: 0 | BJ52: 0 | BK52: 0 | BL52: 0 | BM52: 0 | BN52: 0 | BO52: 0 | BP52: 0 | BQ52: 0 | BR52: 0 | BS52: 0 | BT52: 0 | BU52: 0 | BV52: 0 | BW52: 0 | BX52: 0 | BY52: 0 | BZ52: 0 | CA52: 0 | CB52: 0 | CC52: 0 | CD52: 0 | CE52: 0 | CF52: 0 | CG52: 0 | CH52: 0 | CI52: 0 | CJ52: 0 | CK52: 0 | CL52: 0 | CM52: 0 | CN52: 0 | CO52: 0 | CP52: 0 | CQ52: 0 | CR52: 0 | CS52: 0 | CT52: 0 | CU52: 0 | CV52: 0 | CW52: 0 | CX52: 0 | CY52: 0 | CZ52: 0 | DA52: 0 | DB52: 0 | DC52: 0 | DD52: 0 | DE52: 0 | DF52: 0 | DG52: 0 | DH52: 0
B53: SERVICE LINES BY: CONNECTION VOLTAGE; CUSTOMER TYPE; CONNECTION COMPLEXITY | C53: ˂ = 11 kV ; Residential ; Simple Type | D53: 35 | E53: 5.9 | F53: 318 | G53: 426 | H53: 658 | I53: 561 | J53: 647 | K53: 422 | L53: 310 | M53: 869 | N53: 1,739 | O53: 628 | P53: 446 | Q53: 936 | R53: 746 | S53: 969 | T53: 281 | U53: 261 | V53: 290 | W53: 433 | X53: 555 | Y53: 658 | Z53: 766 | AA53: 1,366 | AB53: 287 | AC53: 306 | AD53: 104 | AE53: 336 | AF53: 46 | AG53: 1 | AH53: 184 | AI53: 764 | AJ53: 216 | AK53: 392 | AL53: 511 | AM53: 8,993 | AN53: 232 | AO53: 3,155 | AP53: 8,859 | AQ53: 343 | AR53: 1,227 | AS53: 42 | AT53: 180 | AU53: 122 | AV53: 289 | AW53: 1,466 | AX53: 897 | AY53: 159 | AZ53: 513 | BA53: 267 | BB53: 84 | BC53: 364 | BD53: 108 | BE53: 189 | BF53: - | BG53: 515 | BH53: 1 | BI53: 4 | BJ53: 718 | BK53: - | BL53: 298 | BM53: - | BN53: - | BO53: - | BP53: - | BQ53: - | BR53: - | BS53: - | BT53: - | BU53: - | BV53: 5 | BW53: 0 | BX53: 0 | BY53: 0 | BZ53: 0 | CA53: 0 | CB53: 0 | CC53: 0 | CD53: 0 | CE53: 0 | CF53: 0 | CG53: 0 | CH53: 0 | CI53: 0 | CJ53: 0 | CK53: 0 | CL53: 0 | CM53: 0 | CN53: 0 | CO53: 0 | CP53: 0 | CQ53: 0 | CR53: 0 | CS53: 0 | CT53: 0 | CU53: 0 | CV53: 0 | CW53: 0 | CX53: 0 | CY53: 0 | CZ53: 0 | DA53: 0 | DB53: 0 | DC53: 0 | DD53: 0 | DE53: 0 | DF53: 0 | DG53: 0 | DH53: 0
C54: ˂ = 11 kV ; Commercial & Industrial ; Simple Type | D54: 35 | E54: 5.9 | F54: 151 | G54: 163 | H54: 524 | I54: 624 | J54: 696 | K54: 302 | L54: 189 | M54: 434 | N54: 145 | O54: 270 | P54: 152 | Q54: 154 | R54: 217 | S54: 66 | T54: 104 | U54: 84 | V54: 78 | W54: 182 | X54: 152 | Y54: 179 | Z54: 70 | AA54: 82 | AB54: 43 | AC54: 43 | AD54: 40 | AE54: 49 | AF54: 8 | AG54: 6 | AH54: 224 | AI54: 206 | AJ54: 8 | AK54: 61 | AL54: 67 | AM54: 942 | AN54: 38 | AO54: 93 | AP54: 176 | AQ54: 24 | AR54: 974 | AS54: - | AT54: 59 | AU54: 28 | AV54: 20 | AW54: 259 | AX54: 49 | AY54: 63 | AZ54: 178 | BA54: 44 | BB54: 82 | BC54: 62 | BD54: 6 | BE54: 28 | BF54: - | BG54: 20 | BH54: 1 | BI54: 10 | BJ54: 204 | BK54: - | BL54: 40 | BM54: - | BN54: - | BO54: - | BP54: - | BQ54: 18 | BR54: - | BS54: - | BT54: - | BU54: - | BV54: 30 | BW54: 0 | BX54: 0 | BY54: 0 | BZ54: 0 | CA54: 0 | CB54: 0 | CC54: 0 | CD54: 0 | CE54: 0 | CF54: 0 | CG54: 0 | CH54: 0 | CI54: 0 | CJ54: 0 | CK54: 0 | CL54: 0 | CM54: 0 | CN54: 0 | CO54: 0 | CP54: 0 | CQ54: 0 | CR54: 0 | CS54: 0 | CT54: 0 | CU54: 0 | CV54: 0 | CW54: 0 | CX54: 0 | CY54: 0 | CZ54: 0 | DA54: 0 | DB54: 0 | DC54: 0 | DD54: 0 | DE54: 0 | DF54: 0 | DG54: 0 | DH54: 0
C55: ˂ = 11 kV ; Residential ; Complex Type | D55: 0 | E55: 0 | F55: - | G55: - | H55: - | I55: - | J55: - | K55: - | L55: - | M55: - | N55: - | O55: - | P55: - | Q55: - | R55: - | S55: - | T55: - | U55: - | V55: - | W55: - | X55: - | Y55: - | Z55: - | AA55: - | AB55: - | AC55: - | AD55: - | AE55: - | AF55: - | AG55: - | AH55: - | AI55: - | AJ55: - | AK55: - | AL55: - | AM55: - | AN55: - | AO55: - | AP55: - | AQ55: - | AR55: - | AS55: - | AT55: - | AU55: - | AV55: - | AW55: - | AX55: - | AY55: - | AZ55: - | BA55: - | BB55: - | BC55: - | BD55: - | BE55: - | BF55: - | BG55: - | BH55: - | BI55: - | BJ55: - | BK55: - | BL55: - | BM55: - | BN55: - | BO55: - | BP55: - | BQ55: - | BR55: - | BS55: - | BT55: - | BU55: - | BV55: - | BW55: 0 | BX55: 0 | BY55: 0 | BZ55: 0 | CA55: 0 | CB55: 0 | CC55: 0 | CD55: 0 | CE55: 0 | CF55: 0 | CG55: 0 | CH55: 0 | CI55: 0 | CJ55: 0 | CK55: 0 | CL55: 0 | CM55: 0 | CN55: 0 | CO55: 0 | CP55: 0 | CQ55: 0 | CR55: 0 | CS55: 0 | CT55: 0 | CU55: 0 | CV55: 0 | CW55: 0 | CX55: 0 | CY55: 0 | CZ55: 0 | DA55: 0 | DB55: 0 | DC55: 0 | DD55: 0 | DE55: 0 | DF55: 0 | DG55: 0 | DH55: 0
C56: ˂ = 11 kV ; Commercial & Industrial ; Complex Type | D56: 0 | E56: 0 | F56: - | G56: - | H56: - | I56: - | J56: - | K56: - | L56: - | M56: - | N56: - | O56: - | P56: - | Q56: - | R56: - | S56: - | T56: - | U56: - | V56: - | W56: - | X56: - | Y56: - | Z56: - | AA56: - | AB56: - | AC56: - | AD56: - | AE56: - | AF56: - | AG56: - | AH56: - | AI56: - | AJ56: - | AK56: - | AL56: - | AM56: - | AN56: - | AO56: - | AP56: - | AQ56: - | AR56: - | AS56: - | AT56: - | AU56: - | AV56: - | AW56: - | AX56: - | AY56: - | AZ56: - | BA56: - | BB56: - | BC56: - | BD56: - | BE56: - | BF56: - | BG56: - | BH56: - | BI56: - | BJ56: - | BK56: - | BL56: - | BM56: - | BN56: - | BO56: - | BP56: - | BQ56: - | BR56: - | BS56: - | BT56: - | BU56: - | BV56: - | BW56: 0 | BX56: 0 | BY56: 0 | BZ56: 0 | CA56: 0 | CB56: 0 | CC56: 0 | CD56: 0 | CE56: 0 | CF56: 0 | CG56: 0 | CH56: 0 | CI56: 0 | CJ56: 0 | CK56: 0 | CL56: 0 | CM56: 0 | CN56: 0 | CO56: 0 | CP56: 0 | CQ56: 0 | CR56: 0 | CS56: 0 | CT56: 0 | CU56: 0 | CV56: 0 | CW56: 0 | CX56: 0 | CY56: 0 | CZ56: 0 | DA56: 0 | DB56: 0 | DC56: 0 | DD56: 0 | DE56: 0 | DF56: 0 | DG56: 0 | DH56: 0
C57: ˂ = 11 kV ; Subdivision ; Complex Type | D57: 0 | E57: 0 | F57: - | G57: - | H57: - | I57: - | J57: - | K57: - | L57: - | M57: - | N57: - | O57: - | P57: - | Q57: - | R57: - | S57: - | T57: - | U57: - | V57: - | W57: - | X57: - | Y57: - | Z57: - | AA57: - | AB57: - | AC57: - | AD57: - | AE57: - | AF57: - | AG57: - | AH57: - | AI57: - | AJ57: - | AK57: - | AL57: - | AM57: - | AN57: - | AO57: - | AP57: - | AQ57: - | AR57: - | AS57: - | AT57: - | AU57: - | AV57: - | AW57: - | AX57: - | AY57: - | AZ57: - | BA57: - | BB57: - | BC57: - | BD57: - | BE57: - | BF57: - | BG57: - | BH57: - | BI57: - | BJ57: - | BK57: - | BL57: - | BM57: - | BN57: - | BO57: - | BP57: - | BQ57: - | BR57: - | BS57: - | BT57: - | BU57: - | BV57: - | BW57: 0 | BX57: 0 | BY57: 0 | BZ57: 0 | CA57: 0 | CB57: 0 | CC57: 0 | CD57: 0 | CE57: 0 | CF57: 0 | CG57: 0 | CH57: 0 | CI57: 0 | CJ57: 0 | CK57: 0 | CL57: 0 | CM57: 0 | CN57: 0 | CO57: 0 | CP57: 0 | CQ57: 0 | CR57: 0 | CS57: 0 | CT57: 0 | CU57: 0 | CV57: 0 | CW57: 0 | CX57: 0 | CY57: 0 | CZ57: 0 | DA57: 0 | DB57: 0 | DC57: 0 | DD57: 0 | DE57: 0 | DF57: 0 | DG57: 0 | DH57: 0
C58: > 11 kV & < = 22 kV ; Commercial & Industrial | D58: 0 | E58: 0 | F58: - | G58: - | H58: - | I58: - | J58: - | K58: - | L58: - | M58: - | N58: - | O58: - | P58: - | Q58: - | R58: - | S58: - | T58: - | U58: - | V58: - | W58: - | X58: - | Y58: - | Z58: - | AA58: - | AB58: - | AC58: - | AD58: - | AE58: - | AF58: - | AG58: - | AH58: - | AI58: - | AJ58: - | AK58: - | AL58: - | AM58: - | AN58: - | AO58: - | AP58: - | AQ58: - | AR58: - | AS58: - | AT58: - | AU58: - | AV58: - | AW58: - | AX58: - | AY58: - | AZ58: - | BA58: - | BB58: - | BC58: - | BD58: - | BE58: - | BF58: - | BG58: - | BH58: - | BI58: - | BJ58: - | BK58: - | BL58: - | BM58: - | BN58: - | BO58: - | BP58: - | BQ58: - | BR58: - | BS58: - | BT58: - | BU58: - | BV58: - | BW58: 0 | BX58: 0 | BY58: 0 | BZ58: 0 | CA58: 0 | CB58: 0 | CC58: 0 | CD58: 0 | CE58: 0 | CF58: 0 | CG58: 0 | CH58: 0 | CI58: 0 | CJ58: 0 | CK58: 0 | CL58: 0 | CM58: 0 | CN58: 0 | CO58: 0 | CP58: 0 | CQ58: 0 | CR58: 0 | CS58: 0 | CT58: 0 | CU58: 0 | CV58: 0 | CW58: 0 | CX58: 0 | CY58: 0 | CZ58: 0 | DA58: 0 | DB58: 0 | DC58: 0 | DD58: 0 | DE58: 0 | DF58: 0 | DG58: 0 | DH58: 0
C59: > 11 kV & < = 22 kV ; Subdivision | D59: 0 | E59: 0 | F59: - | G59: - | H59: - | I59: - | J59: - | K59: - | L59: - | M59: - | N59: - | O59: - | P59: - | Q59: - | R59: - | S59: - | T59: - | U59: - | V59: - | W59: - | X59: - | Y59: - | Z59: - | AA59: - | AB59: - | AC59: - | AD59: - | AE59: - | AF59: - | AG59: - | AH59: - | AI59: - | AJ59: - | AK59: - | AL59: - | AM59: - | AN59: - | AO59: - | AP59: - | AQ59: - | AR59: - | AS59: - | AT59: - | AU59: - | AV59: - | AW59: - | AX59: - | AY59: - | AZ59: - | BA59: - | BB59: - | BC59: - | BD59: - | BE59: - | BF59: - | BG59: - | BH59: - | BI59: - | BJ59: - | BK59: - | BL59: - | BM59: - | BN59: - | BO59: - | BP59: - | BQ59: - | BR59: - | BS59: - | BT59: - | BU59: - | BV59: - | BW59: 0 | BX59: 0 | BY59: 0 | BZ59: 0 | CA59: 0 | CB59: 0 | CC59: 0 | CD59: 0 | CE59: 0 | CF59: 0 | CG59: 0 | CH59: 0 | CI59: 0 | CJ59: 0 | CK59: 0 | CL59: 0 | CM59: 0 | CN59: 0 | CO59: 0 | CP59: 0 | CQ59: 0 | CR59: 0 | CS59: 0 | CT59: 0 | CU59: 0 | CV59: 0 | CW59: 0 | CX59: 0 | CY59: 0 | CZ59: 0 | DA59: 0 | DB59: 0 | DC59: 0 | DD59: 0 | DE59: 0 | DF59: 0 | DG59: 0 | DH59: 0
C60: > 22 kV & < = 33 kV ; Commercial & Industrial | D60: 0 | E60: 0 | F60: - | G60: - | H60: - | I60: - | J60: - | K60: - | L60: - | M60: - | N60: - | O60: - | P60: - | Q60: - | R60: - | S60: - | T60: - | U60: - | V60: - | W60: - | X60: - | Y60: - | Z60: - | AA60: - | AB60: - | AC60: - | AD60: - | AE60: - | AF60: - | AG60: - | AH60: - | AI60: - | AJ60: - | AK60: - | AL60: - | AM60: - | AN60: - | AO60: - | AP60: - | AQ60: - | AR60: - | AS60: - | AT60: - | AU60: - | AV60: - | AW60: - | AX60: - | AY60: - | AZ60: - | BA60: - | BB60: - | BC60: - | BD60: - | BE60: - | BF60: - | BG60: - | BH60: - | BI60: - | BJ60: - | BK60: - | BL60: - | BM60: - | BN60: - | BO60: - | BP60: - | BQ60: - | BR60: - | BS60: - | BT60: - | BU60: - | BV60: - | BW60: 0 | BX60: 0 | BY60: 0 | BZ60: 0 | CA60: 0 | CB60: 0 | CC60: 0 | CD60: 0 | CE60: 0 | CF60: 0 | CG60: 0 | CH60: 0 | CI60: 0 | CJ60: 0 | CK60: 0 | CL60: 0 | CM60: 0 | CN60: 0 | CO60: 0 | CP60: 0 | CQ60: 0 | CR60: 0 | CS60: 0 | CT60: 0 | CU60: 0 | CV60: 0 | CW60: 0 | CX60: 0 | CY60: 0 | CZ60: 0 | DA60: 0 | DB60: 0 | DC60: 0 | DD60: 0 | DE60: 0 | DF60: 0 | DG60: 0 | DH60: 0
C61: > 22 kV & < = 33 kV ; Subdivision | D61: 0 | E61: 0 | F61: - | G61: - | H61: - | I61: - | J61: - | K61: - | L61: - | M61: - | N61: - | O61: - | P61: - | Q61: - | R61: - | S61: - | T61: - | U61: - | V61: - | W61: - | X61: - | Y61: - | Z61: - | AA61: - | AB61: - | AC61: - | AD61: - | AE61: - | AF61: - | AG61: - | AH61: - | AI61: - | AJ61: - | AK61: - | AL61: - | AM61: - | AN61: - | AO61: - | AP61: - | AQ61: - | AR61: - | AS61: - | AT61: - | AU61: - | AV61: - | AW61: - | AX61: - | AY61: - | AZ61: - | BA61: - | BB61: - | BC61: - | BD61: - | BE61: - | BF61: - | BG61: - | BH61: - | BI61: - | BJ61: - | BK61: - | BL61: - | BM61: - | BN61: - | BO61: - | BP61: - | BQ61: - | BR61: - | BS61: - | BT61: - | BU61: - | BV61: - | BW61: 0 | BX61: 0 | BY61: 0 | BZ61: 0 | CA61: 0 | CB61: 0 | CC61: 0 | CD61: 0 | CE61: 0 | CF61: 0 | CG61: 0 | CH61: 0 | CI61: 0 | CJ61: 0 | CK61: 0 | CL61: 0 | CM61: 0 | CN61: 0 | CO61: 0 | CP61: 0 | CQ61: 0 | CR61: 0 | CS61: 0 | CT61: 0 | CU61: 0 | CV61: 0 | CW61: 0 | CX61: 0 | CY61: 0 | CZ61: 0 | DA61: 0 | DB61: 0 | DC61: 0 | DD61: 0 | DE61: 0 | DF61: 0 | DG61: 0 | DH61: 0
C62: > 33 kV & < = 66 kV ; Commercial & Industrial | D62: 0 | E62: 0 | F62: - | G62: - | H62: - | I62: - | J62: - | K62: - | L62: - | M62: - | N62: - | O62: - | P62: - | Q62: - | R62: - | S62: - | T62: - | U62: - | V62: - | W62: - | X62: - | Y62: - | Z62: - | AA62: - | AB62: - | AC62: - | AD62: - | AE62: - | AF62: - | AG62: - | AH62: - | AI62: - | AJ62: - | AK62: - | AL62: - | AM62: - | AN62: - | AO62: - | AP62: - | AQ62: - | AR62: - | AS62: - | AT62: - | AU62: - | AV62: - | AW62: - | AX62: - | AY62: - | AZ62: - | BA62: - | BB62: - | BC62: - | BD62: - | BE62: - | BF62: - | BG62: - | BH62: - | BI62: - | BJ62: - | BK62: - | BL62: - | BM62: - | BN62: - | BO62: - | BP62: - | BQ62: - | BR62: - | BS62: - | BT62: - | BU62: - | BV62: - | BW62: 0 | BX62: 0 | BY62: 0 | BZ62: 0 | CA62: 0 | CB62: 0 | CC62: 0 | CD62: 0 | CE62: 0 | CF62: 0 | CG62: 0 | CH62: 0 | CI62: 0 | CJ62: 0 | CK62: 0 | CL62: 0 | CM62: 0 | CN62: 0 | CO62: 0 | CP62: 0 | CQ62: 0 | CR62: 0 | CS62: 0 | CT62: 0 | CU62: 0 | CV62: 0 | CW62: 0 | CX62: 0 | CY62: 0 | CZ62: 0 | DA62: 0 | DB62: 0 | DC62: 0 | DD62: 0 | DE62: 0 | DF62: 0 | DG62: 0 | DH62: 0
C63: > 33 kV & < = 66 kV ; Subdivision | D63: 0 | E63: 0 | F63: - | G63: - | H63: - | I63: - | J63: - | K63: - | L63: - | M63: - | N63: - | O63: - | P63: - | Q63: - | R63: - | S63: - | T63: - | U63: - | V63: - | W63: - | X63: - | Y63: - | Z63: - | AA63: - | AB63: - | AC63: - | AD63: - | AE63: - | AF63: - | AG63: - | AH63: - | AI63: - | AJ63: - | AK63: - | AL63: - | AM63: - | AN63: - | AO63: - | AP63: - | AQ63: - | AR63: - | AS63: - | AT63: - | AU63: - | AV63: - | AW63: - | AX63: - | AY63: - | AZ63: - | BA63: - | BB63: - | BC63: - | BD63: - | BE63: - | BF63: - | BG63: - | BH63: - | BI63: - | BJ63: - | BK63: - | BL63: - | BM63: - | BN63: - | BO63: - | BP63: - | BQ63: - | BR63: - | BS63: - | BT63: - | BU63: - | BV63: - | BW63: 0 | BX63: 0 | BY63: 0 | BZ63: 0 | CA63: 0 | CB63: 0 | CC63: 0 | CD63: 0 | CE63: 0 | CF63: 0 | CG63: 0 | CH63: 0 | CI63: 0 | CJ63: 0 | CK63: 0 | CL63: 0 | CM63: 0 | CN63: 0 | CO63: 0 | CP63: 0 | CQ63: 0 | CR63: 0 | CS63: 0 | CT63: 0 | CU63: 0 | CV63: 0 | CW63: 0 | CX63: 0 | CY63: 0 | CZ63: 0 | DA63: 0 | DB63: 0 | DC63: 0 | DD63: 0 | DE63: 0 | DF63: 0 | DG63: 0 | DH63: 0
C64: > 66 kV & < = 132 kV ; Commercial & Industrial | D64: 0 | E64: 0 | F64: - | G64: - | H64: - | I64: - | J64: - | K64: - | L64: - | M64: - | N64: - | O64: - | P64: - | Q64: - | R64: - | S64: - | T64: - | U64: - | V64: - | W64: - | X64: - | Y64: - | Z64: - | AA64: - | AB64: - | AC64: - | AD64: - | AE64: - | AF64: - | AG64: - | AH64: - | AI64: - | AJ64: - | AK64: - | AL64: - | AM64: - | AN64: - | AO64: - | AP64: - | AQ64: - | AR64: - | AS64: - | AT64: - | AU64: - | AV64: - | AW64: - | AX64: - | AY64: - | AZ64: - | BA64: - | BB64: - | BC64: - | BD64: - | BE64: - | BF64: - | BG64: - | BH64: - | BI64: - | BJ64: - | BK64: - | BL64: - | BM64: - | BN64: - | BO64: - | BP64: - | BQ64: - | BR64: - | BS64: - | BT64: - | BU64: - | BV64: - | BW64: 0 | BX64: 0 | BY64: 0 | BZ64: 0 | CA64: 0 | CB64: 0 | CC64: 0 | CD64: 0 | CE64: 0 | CF64: 0 | CG64: 0 | CH64: 0 | CI64: 0 | CJ64: 0 | CK64: 0 | CL64: 0 | CM64: 0 | CN64: 0 | CO64: 0 | CP64: 0 | CQ64: 0 | CR64: 0 | CS64: 0 | CT64: 0 | CU64: 0 | CV64: 0 | CW64: 0 | CX64: 0 | CY64: 0 | CZ64: 0 | DA64: 0 | DB64: 0 | DC64: 0 | DD64: 0 | DE64: 0 | DF64: 0 | DG64: 0 | DH64: 0
C65: > 66 kV & < = 132 kV ; Subdivision | D65: 0 | E65: 0 | F65: - | G65: - | H65: - | I65: - | J65: - | K65: - | L65: - | M65: - | N65: - | O65: - | P65: - | Q65: - | R65: - | S65: - | T65: - | U65: - | V65: - | W65: - | X65: - | Y65: - | Z65: - | AA65: - | AB65: - | AC65: - | AD65: - | AE65: - | AF65: - | AG65: - | AH65: - | AI65: - | AJ65: - | AK65: - | AL65: - | AM65: - | AN65: - | AO65: - | AP65: - | AQ65: - | AR65: - | AS65: - | AT65: - | AU65: - | AV65: - | AW65: - | AX65: - | AY65: - | AZ65: - | BA65: - | BB65: - | BC65: - | BD65: - | BE65: - | BF65: - | BG65: - | BH65: - | BI65: - | BJ65: - | BK65: - | BL65: - | BM65: - | BN65: - | BO65: - | BP65: - | BQ65: - | BR65: - | BS65: - | BT65: - | BU65: - | BV65: - | BW65: 0 | BX65: 0 | BY65: 0 | BZ65: 0 | CA65: 0 | CB65: 0 | CC65: 0 | CD65: 0 | CE65: 0 | CF65: 0 | CG65: 0 | CH65: 0 | CI65: 0 | CJ65: 0 | CK65: 0 | CL65: 0 | CM65: 0 | CN65: 0 | CO65: 0 | CP65: 0 | CQ65: 0 | CR65: 0 | CS65: 0 | CT65: 0 | CU65: 0 | CV65: 0 | CW65: 0 | CX65: 0 | CY65: 0 | CZ65: 0 | DA65: 0 | DB65: 0 | DC65: 0 | DD65: 0 | DE65: 0 | DF65: 0 | DG65: 0 | DH65: 0
C66: > 132 kV ; Commercial & Industrial | D66: 0 | E66: 0 | F66: - | G66: - | H66: - | I66: - | J66: - | K66: - | L66: - | M66: - | N66: - | O66: - | P66: - | Q66: - | R66: - | S66: - | T66: - | U66: - | V66: - | W66: - | X66: - | Y66: - | Z66: - | AA66: - | AB66: - | AC66: - | AD66: - | AE66: - | AF66: - | AG66: - | AH66: - | AI66: - | AJ66: - | AK66: - | AL66: - | AM66: - | AN66: - | AO66: - | AP66: - | AQ66: - | AR66: - | AS66: - | AT66: - | AU66: - | AV66: - | AW66: - | AX66: - | AY66: - | AZ66: - | BA66: - | BB66: - | BC66: - | BD66: - | BE66: - | BF66: - | BG66: - | BH66: - | BI66: - | BJ66: - | BK66: - | BL66: - | BM66: - | BN66: - | BO66: - | BP66: - | BQ66: - | BR66: - | BS66: - | BT66: - | BU66: - | BV66: - | BW66: 0 | BX66: 0 | BY66: 0 | BZ66: 0 | CA66: 0 | CB66: 0 | CC66: 0 | CD66: 0 | CE66: 0 | CF66: 0 | CG66: 0 | CH66: 0 | CI66: 0 | CJ66: 0 | CK66: 0 | CL66: 0 | CM66: 0 | CN66: 0 | CO66: 0 | CP66: 0 | CQ66: 0 | CR66: 0 | CS66: 0 | CT66: 0 | CU66: 0 | CV66: 0 | CW66: 0 | CX66: 0 | CY66: 0 | CZ66: 0 | DA66: 0 | DB66: 0 | DC66: 0 | DD66: 0 | DE66: 0 | DF66: 0 | DG66: 0 | DH66: 0
C67: > 132 kV ; Subdivision | D67: 0 | E67: 0 | F67: - | G67: - | H67: - | I67: - | J67: - | K67: - | L67: - | M67: - | N67: - | O67: - | P67: - | Q67: - | R67: - | S67: - | T67: - | U67: - | V67: - | W67: - | X67: - | Y67: - | Z67: - | AA67: - | AB67: - | AC67: - | AD67: - | AE67: - | AF67: - | AG67: - | AH67: - | AI67: - | AJ67: - | AK67: - | AL67: - | AM67: - | AN67: - | AO67: - | AP67: - | AQ67: - | AR67: - | AS67: - | AT67: - | AU67: - | AV67: - | AW67: - | AX67: - | AY67: - | AZ67: - | BA67: - | BB67: - | BC67: - | BD67: - | BE67: - | BF67: - | BG67: - | BH67: - | BI67: - | BJ67: - | BK67: - | BL67: - | BM67: - | BN67: - | BO67: - | BP67: - | BQ67: - | BR67: - | BS67: - | BT67: - | BU67: - | BV67: - | BW67: 0 | BX67: 0 | BY67: 0 | BZ67: 0 | CA67: 0 | CB67: 0 | CC67: 0 | CD67: 0 | CE67: 0 | CF67: 0 | CG67: 0 | CH67: 0 | CI67: 0 | CJ67: 0 | CK67: 0 | CL67: 0 | CM67: 0 | CN67: 0 | CO67: 0 | CP67: 0 | CQ67: 0 | CR67: 0 | CS67: 0 | CT67: 0 | CU67: 0 | CV67: 0 | CW67: 0 | CX67: 0 | CY67: 0 | CZ67: 0 | DA67: 0 | DB67: 0 | DC67: 0 | DD67: 0 | DE67: 0 | DF67: 0 | DG67: 0 | DH67: 0
C68: Other | D68: 0 | E68: 0 | F68: - | G68: - | H68: - | I68: - | J68: - | K68: - | L68: - | M68: - | N68: - | O68: - | P68: - | Q68: - | R68: - | S68: - | T68: - | U68: - | V68: - | W68: - | X68: - | Y68: - | Z68: - | AA68: - | AB68: - | AC68: - | AD68: - | AE68: - | AF68: - | AG68: - | AH68: - | AI68: - | AJ68: - | AK68: - | AL68: - | AM68: - | AN68: - | AO68: - | AP68: - | AQ68: - | AR68: - | AS68: - | AT68: - | AU68: - | AV68: - | AW68: - | AX68: - | AY68: - | AZ68: - | BA68: - | BB68: - | BC68: - | BD68: - | BE68: - | BF68: - | BG68: - | BH68: - | BI68: - | BJ68: - | BK68: - | BL68: - | BM68: - | BN68: - | BO68: - | BP68: - | BQ68: - | BR68: - | BS68: - | BT68: - | BU68: - | BV68: - | BW68: 0 | BX68: 0 | BY68: 0 | BZ68: 0 | CA68: 0 | CB68: 0 | CC68: 0 | CD68: 0 | CE68: 0 | CF68: 0 | CG68: 0 | CH68: 0 | CI68: 0 | CJ68: 0 | CK68: 0 | CL68: 0 | CM68: 0 | CN68: 0 | CO68: 0 | CP68: 0 | CQ68: 0 | CR68: 0 | CS68: 0 | CT68: 0 | CU68: 0 | CV68: 0 | CW68: 0 | CX68: 0 | CY68: 0 | CZ68: 0 | DA68: 0 | DB68: 0 | DC68: 0 | DD68: 0 | DE68: 0 | DF68: 0 | DG68: 0 | DH68: 0
B69: TRANSFORMERS BY: MOUNTING TYPE; HIGHEST OPERATING VOLTAGE ; AMPERE RATING; NUMBER OF PHASES (AT LV) | C69: Pole Mounted ; < = 22kV ; < = 60 kVA ; Single Phase | D69: 45 | E69: 6.7 | F69: 2 | G69: - | H69: - | I69: 1 | J69: 1 | K69: 2 | L69: - | M69: 3 | N69: 4 | O69: 2 | P69: 12 | Q69: 5 | R69: 7 | S69: 12 | T69: 2 | U69: 3 | V69: 10 | W69: 1 | X69: - | Y69: - | Z69: 7 | AA69: 4 | AB69: 14 | AC69: 2 | AD69: 4 | AE69: 2 | AF69: 1 | AG69: - | AH69: 1 | AI69: 8 | AJ69: - | AK69: - | AL69: 6 | AM69: - | AN69: 3 | AO69: - | AP69: - | AQ69: - | AR69: - | AS69: - | AT69: - | AU69: - | AV69: - | AW69: - | AX69: - | AY69: - | AZ69: - | BA69: - | BB69: - | BC69: - | BD69: - | BE69: - | BF69: - | BG69: - | BH69: - | BI69: - | BJ69: - | BK69: - | BL69: - | BM69: - | BN69: - | BO69: - | BP69: - | BQ69: - | BR69: - | BS69: - | BT69: - | BU69: - | BV69: - | BW69: 0 | BX69: 0 | BY69: 0 | BZ69: 0 | CA69: 0 | CB69: 0 | CC69: 0 | CD69: 0 | CE69: 0 | CF69: 0 | CG69: 0 | CH69: 0 | CI69: 0 | CJ69: 0 | CK69: 0 | CL69: 0 | CM69: 0 | CN69: 0 | CO69: 0 | CP69: 0 | CQ69: 0 | CR69: 0 | CS69: 0 | CT69: 0 | CU69: 0 | CV69: 0 | CW69: 0 | CX69: 0 | CY69: 0 | CZ69: 0 | DA69: 0 | DB69: 0 | DC69: 0 | DD69: 0 | DE69: 0 | DF69: 0 | DG69: 0 | DH69: 0
C70: Pole Mounted ; < = 22kV ; > 60 kVA and < = 600 kVA ; Single Phase | D70: 45 | E70: 6.7 | F70: - | G70: - | H70: - | I70: - | J70: - | K70: - | L70: - | M70: - | N70: 1 | O70: - | P70: - | Q70: - | R70: - | S70: - | T70: - | U70: - | V70: - | W70: - | X70: - | Y70: - | Z70: - | AA70: - | AB70: - | AC70: - | AD70: - | AE70: - | AF70: - | AG70: - | AH70: - | AI70: - | AJ70: - | AK70: - | AL70: - | AM70: - | AN70: - | AO70: - | AP70: - | AQ70: - | AR70: - | AS70: - | AT70: - | AU70: - | AV70: - | AW70: - | AX70: - | AY70: - | AZ70: - | BA70: - | BB70: - | BC70: - | BD70: - | BE70: - | BF70: - | BG70: - | BH70: - | BI70: - | BJ70: - | BK70: - | BL70: - | BM70: - | BN70: - | BO70: - | BP70: - | BQ70: - | BR70: - | BS70: - | BT70: - | BU70: - | BV70: - | BW70: 0 | BX70: 0 | BY70: 0 | BZ70: 0 | CA70: 0 | CB70: 0 | CC70: 0 | CD70: 0 | CE70: 0 | CF70: 0 | CG70: 0 | CH70: 0 | CI70: 0 | CJ70: 0 | CK70: 0 | CL70: 0 | CM70: 0 | CN70: 0 | CO70: 0 | CP70: 0 | CQ70: 0 | CR70: 0 | CS70: 0 | CT70: 0 | CU70: 0 | CV70: 0 | CW70: 0 | CX70: 0 | CY70: 0 | CZ70: 0 | DA70: 0 | DB70: 0 | DC70: 0 | DD70: 0 | DE70: 0 | DF70: 0 | DG70: 0 | DH70: 0
C71: Pole Mounted ; < = 22kV ; > 600 kVA ; Single Phase | D71: 0 | E71: 0 | F71: - | G71: - | H71: - | I71: - | J71: - | K71: - | L71: - | M71: - | N71: - | O71: - | P71: - | Q71: - | R71: - | S71: - | T71: - | U71: - | V71: - | W71: - | X71: - | Y71: - | Z71: - | AA71: - | AB71: - | AC71: - | AD71: - | AE71: - | AF71: - | AG71: - | AH71: - | AI71: - | AJ71: - | AK71: - | AL71: - | AM71: - | AN71: - | AO71: - | AP71: - | AQ71: - | AR71: - | AS71: - | AT71: - | AU71: - | AV71: - | AW71: - | AX71: - | AY71: - | AZ71: - | BA71: - | BB71: - | BC71: - | BD71: - | BE71: - | BF71: - | BG71: - | BH71: - | BI71: - | BJ71: - | BK71: - | BL71: - | BM71: - | BN71: - | BO71: - | BP71: - | BQ71: - | BR71: - | BS71: - | BT71: - | BU71: - | BV71: - | BW71: 0 | BX71: 0 | BY71: 0 | BZ71: 0 | CA71: 0 | CB71: 0 | CC71: 0 | CD71: 0 | CE71: 0 | CF71: 0 | CG71: 0 | CH71: 0 | CI71: 0 | CJ71: 0 | CK71: 0 | CL71: 0 | CM71: 0 | CN71: 0 | CO71: 0 | CP71: 0 | CQ71: 0 | CR71: 0 | CS71: 0 | CT71: 0 | CU71: 0 | CV71: 0 | CW71: 0 | CX71: 0 | CY71: 0 | CZ71: 0 | DA71: 0 | DB71: 0 | DC71: 0 | DD71: 0 | DE71: 0 | DF71: 0 | DG71: 0 | DH71: 0
C72: Pole Mounted ; < = 22kV ; < = 60 kVA ; Multiple Phase | D72: 45 | E72: 6.7 | F72: 7 | G72: 14 | H72: 14 | I72: 13 | J72: 14 | K72: 24 | L72: 23 | M72: 11 | N72: 26 | O72: 31 | P72: 73 | Q72: 48 | R72: 25 | S72: 10 | T72: 13 | U72: 5 | V72: 3 | W72: 11 | X72: 8 | Y72: 16 | Z72: 38 | AA72: 18 | AB72: 27 | AC72: 18 | AD72: 17 | AE72: 10 | AF72: 14 | AG72: - | AH72: 4 | AI72: 8 | AJ72: 16 | AK72: - | AL72: 40 | AM72: 6 | AN72: 4 | AO72: - | AP72: 5 | AQ72: 5 | AR72: - | AS72: - | AT72: 3 | AU72: 1 | AV72: - | AW72: 7 | AX72: 9 | AY72: 3 | AZ72: 1 | BA72: 1 | BB72: 9 | BC72: 1 | BD72: 2 | BE72: - | BF72: - | BG72: 2 | BH72: 2 | BI72: 4 | BJ72: - | BK72: - | BL72: - | BM72: - | BN72: - | BO72: - | BP72: - | BQ72: - | BR72: - | BS72: - | BT72: - | BU72: - | BV72: - | BW72: 0 | BX72: 0 | BY72: 0 | BZ72: 0 | CA72: 0 | CB72: 0 | CC72: 0 | CD72: 0 | CE72: 0 | CF72: 0 | CG72: 0 | CH72: 0 | CI72: 0 | CJ72: 0 | CK72: 0 | CL72: 0 | CM72: 0 | CN72: 0 | CO72: 0 | CP72: 0 | CQ72: 0 | CR72: 0 | CS72: 0 | CT72: 0 | CU72: 0 | CV72: 0 | CW72: 0 | CX72: 0 | CY72: 0 | CZ72: 0 | DA72: 0 | DB72: 0 | DC72: 0 | DD72: 0 | DE72: 0 | DF72: 0 | DG72: 0 | DH72: 0
C73: Pole Mounted ; < = 22kV ; > 60 kVA and < = 600 kVA ; Multiple Phase | D73: 45 | E73: 6.7 | F73: 58 | G73: 61 | H73: 109 | I73: 65 | J73: 40 | K73: 108 | L73: 65 | M73: 77 | N73: 127 | O73: 114 | P73: 84 | Q73: 96 | R73: 94 | S73: 105 | T73: 66 | U73: 44 | V73: 38 | W73: 57 | X73: 24 | Y73: 50 | Z73: 75 | AA73: 46 | AB73: 54 | AC73: 24 | AD73: 39 | AE73: 14 | AF73: 26 | AG73: 1 | AH73: 24 | AI73: 46 | AJ73: 7 | AK73: 10 | AL73: 39 | AM73: 5 | AN73: 9 | AO73: 5 | AP73: 21 | AQ73: 9 | AR73: 10 | AS73: - | AT73: - | AU73: 10 | AV73: 2 | AW73: 10 | AX73: 19 | AY73: 3 | AZ73: 15 | BA73: 8 | BB73: 10 | BC73: 2 | BD73: 2 | BE73: 1 | BF73: 2 | BG73: 5 | BH73: - | BI73: 5 | BJ73: 2 | BK73: - | BL73: - | BM73: - | BN73: - | BO73: - | BP73: - | BQ73: - | BR73: - | BS73: - | BT73: - | BU73: - | BV73: - | BW73: 0 | BX73: 0 | BY73: 0 | BZ73: 0 | CA73: 0 | CB73: 0 | CC73: 0 | CD73: 0 | CE73: 0 | CF73: 0 | CG73: 0 | CH73: 0 | CI73: 0 | CJ73: 0 | CK73: 0 | CL73: 0 | CM73: 0 | CN73: 0 | CO73: 0 | CP73: 0 | CQ73: 0 | CR73: 0 | CS73: 0 | CT73: 0 | CU73: 0 | CV73: 0 | CW73: 0 | CX73: 0 | CY73: 0 | CZ73: 0 | DA73: 0 | DB73: 0 | DC73: 0 | DD73: 0 | DE73: 0 | DF73: 0 | DG73: 0 | DH73: 0
C74: Pole Mounted ; < = 22kV ; > 600 kVA ; Multiple Phase | D74: 45 | E74: 6.7 | F74: - | G74: - | H74: - | I74: - | J74: - | K74: - | L74: - | M74: - | N74: - | O74: - | P74: - | Q74: - | R74: - | S74: - | T74: - | U74: 1 | V74: - | W74: - | X74: - | Y74: - | Z74: - | AA74: - | AB74: 1 | AC74: - | AD74: - | AE74: - | AF74: - | AG74: - | AH74: - | AI74: - | AJ74: - | AK74: - | AL74: - | AM74: - | AN74: - | AO74: - | AP74: - | AQ74: - | AR74: - | AS74: - | AT74: - | AU74: - | AV74: - | AW74: - | AX74: - | AY74: - | AZ74: - | BA74: - | BB74: - | BC74: - | BD74: - | BE74: 1 | BF74: - | BG74: - | BH74: - | BI74: - | BJ74: - | BK74: - | BL74: - | BM74: - | BN74: - | BO74: - | BP74: - | BQ74: - | BR74: - | BS74: - | BT74: - | BU74: - | BV74: - | BW74: 0 | BX74: 0 | BY74: 0 | BZ74: 0 | CA74: 0 | CB74: 0 | CC74: 0 | CD74: 0 | CE74: 0 | CF74: 0 | CG74: 0 | CH74: 0 | CI74: 0 | CJ74: 0 | CK74: 0 | CL74: 0 | CM74: 0 | CN74: 0 | CO74: 0 | CP74: 0 | CQ74: 0 | CR74: 0 | CS74: 0 | CT74: 0 | CU74: 0 | CV74: 0 | CW74: 0 | CX74: 0 | CY74: 0 | CZ74: 0 | DA74: 0 | DB74: 0 | DC74: 0 | DD74: 0 | DE74: 0 | DF74: 0 | DG74: 0 | DH74: 0
C75: Kiosk Mounted ; < = 22kV ; < = 60 kVA ; Single Phase | D75: 45 | E75: 6.7 | F75: - | G75: - | H75: - | I75: - | J75: - | K75: - | L75: - | M75: - | N75: - | O75: 2 | P75: - | Q75: 3 | R75: - | S75: - | T75: - | U75: - | V75: - | W75: - | X75: - | Y75: 4 | Z75: - | AA75: - | AB75: 1 | AC75: - | AD75: - | AE75: - | AF75: - | AG75: - | AH75: - | AI75: 3 | AJ75: - | AK75: - | AL75: - | AM75: - | AN75: 7 | AO75: 36 | AP75: 56 | AQ75: 94 | AR75: 92 | AS75: 4 | AT75: - | AU75: 1 | AV75: - | AW75: 1 | AX75: - | AY75: - | AZ75: - | BA75: - | BB75: - | BC75: - | BD75: - | BE75: - | BF75: - | BG75: - | BH75: - | BI75: - | BJ75: - | BK75: - | BL75: - | BM75: - | BN75: - | BO75: - | BP75: - | BQ75: - | BR75: - | BS75: - | BT75: - | BU75: - | BV75: - | BW75: 0 | BX75: 0 | BY75: 0 | BZ75: 0 | CA75: 0 | CB75: 0 | CC75: 0 | CD75: 0 | CE75: 0 | CF75: 0 | CG75: 0 | CH75: 0 | CI75: 0 | CJ75: 0 | CK75: 0 | CL75: 0 | CM75: 0 | CN75: 0 | CO75: 0 | CP75: 0 | CQ75: 0 | CR75: 0 | CS75: 0 | CT75: 0 | CU75: 0 | CV75: 0 | CW75: 0 | CX75: 0 | CY75: 0 | CZ75: 0 | DA75: 0 | DB75: 0 | DC75: 0 | DD75: 0 | DE75: 0 | DF75: 0 | DG75: 0 | DH75: 0
C76: Kiosk Mounted ; < = 22kV ; > 60 kVA and < = 600 kVA ; Single Phase | D76: 45 | E76: 6.7 | F76: - | G76: - | H76: 1 | I76: - | J76: 1 | K76: - | L76: - | M76: 3 | N76: 4 | O76: 3 | P76: - | Q76: - | R76: - | S76: - | T76: - | U76: - | V76: - | W76: - | X76: - | Y76: - | Z76: - | AA76: - | AB76: - | AC76: - | AD76: - | AE76: - | AF76: - | AG76: - | AH76: - | AI76: - | AJ76: - | AK76: - | AL76: - | AM76: - | AN76: - | AO76: - | AP76: 1 | AQ76: - | AR76: - | AS76: - | AT76: - | AU76: - | AV76: - | AW76: - | AX76: - | AY76: - | AZ76: - | BA76: - | BB76: - | BC76: - | BD76: - | BE76: - | BF76: - | BG76: - | BH76: - | BI76: - | BJ76: - | BK76: - | BL76: - | BM76: - | BN76: - | BO76: - | BP76: - | BQ76: - | BR76: - | BS76: - | BT76: - | BU76: - | BV76: - | BW76: 0 | BX76: 0 | BY76: 0 | BZ76: 0 | CA76: 0 | CB76: 0 | CC76: 0 | CD76: 0 | CE76: 0 | CF76: 0 | CG76: 0 | CH76: 0 | CI76: 0 | CJ76: 0 | CK76: 0 | CL76: 0 | CM76: 0 | CN76: 0 | CO76: 0 | CP76: 0 | CQ76: 0 | CR76: 0 | CS76: 0 | CT76: 0 | CU76: 0 | CV76: 0 | CW76: 0 | CX76: 0 | CY76: 0 | CZ76: 0 | DA76: 0 | DB76: 0 | DC76: 0 | DD76: 0 | DE76: 0 | DF76: 0 | DG76: 0 | DH76: 0
C77: Kiosk Mounted ; < = 22kV ; > 600 kVA ; Single Phase | D77: 0 | E77: 0 | F77: - | G77: - | H77: - | I77: - | J77: - | K77: - | L77: - | M77: - | N77: - | O77: - | P77: - | Q77: - | R77: - | S77: - | T77: - | U77: - | V77: - | W77: - | X77: - | Y77: - | Z77: - | AA77: - | AB77: - | AC77: - | AD77: - | AE77: - | AF77: - | AG77: - | AH77: - | AI77: - | AJ77: - | AK77: - | AL77: - | AM77: - | AN77: - | AO77: - | AP77: - | AQ77: - | AR77: - | AS77: - | AT77: - | AU77: - | AV77: - | AW77: - | AX77: - | AY77: - | AZ77: - | BA77: - | BB77: - | BC77: - | BD77: - | BE77: - | BF77: - | BG77: - | BH77: - | BI77: - | BJ77: - | BK77: - | BL77: - | BM77: - | BN77: - | BO77: - | BP77: - | BQ77: - | BR77: - | BS77: - | BT77: - | BU77: - | BV77: - | BW77: 0 | BX77: 0 | BY77: 0 | BZ77: 0 | CA77: 0 | CB77: 0 | CC77: 0 | CD77: 0 | CE77: 0 | CF77: 0 | CG77: 0 | CH77: 0 | CI77: 0 | CJ77: 0 | CK77: 0 | CL77: 0 | CM77: 0 | CN77: 0 | CO77: 0 | CP77: 0 | CQ77: 0 | CR77: 0 | CS77: 0 | CT77: 0 | CU77: 0 | CV77: 0 | CW77: 0 | CX77: 0 | CY77: 0 | CZ77: 0 | DA77: 0 | DB77: 0 | DC77: 0 | DD77: 0 | DE77: 0 | DF77: 0 | DG77: 0 | DH77: 0
C78: Kiosk Mounted ; < = 22kV ; < = 60 kVA ; Multiple Phase | D78: 45 | E78: 6.7 | F78: - | G78: - | H78: - | I78: - | J78: - | K78: - | L78: - | M78: - | N78: - | O78: - | P78: - | Q78: - | R78: - | S78: - | T78: - | U78: - | V78: - | W78: - | X78: - | Y78: - | Z78: - | AA78: - | AB78: - | AC78: - | AD78: - | AE78: - | AF78: - | AG78: - | AH78: - | AI78: - | AJ78: - | AK78: - | AL78: - | AM78: - | AN78: - | AO78: - | AP78: - | AQ78: - | AR78: - | AS78: - | AT78: - | AU78: - | AV78: - | AW78: - | AX78: - | AY78: - | AZ78: - | BA78: - | BB78: - | BC78: - | BD78: - | BE78: - | BF78: - | BG78: - | BH78: - | BI78: - | BJ78: - | BK78: - | BL78: - | BM78: - | BN78: - | BO78: - | BP78: - | BQ78: - | BR78: - | BS78: - | BT78: - | BU78: - | BV78: - | BW78: 0 | BX78: 0 | BY78: 0 | BZ78: 0 | CA78: 0 | CB78: 0 | CC78: 0 | CD78: 0 | CE78: 0 | CF78: 0 | CG78: 0 | CH78: 0 | CI78: 0 | CJ78: 0 | CK78: 0 | CL78: 0 | CM78: 0 | CN78: 0 | CO78: 0 | CP78: 0 | CQ78: 0 | CR78: 0 | CS78: 0 | CT78: 0 | CU78: 0 | CV78: 0 | CW78: 0 | CX78: 0 | CY78: 0 | CZ78: 0 | DA78: 0 | DB78: 0 | DC78: 0 | DD78: 0 | DE78: 0 | DF78: 0 | DG78: 0 | DH78: 0
C79: Kiosk Mounted ; < = 22kV ; > 60 kVA and < = 600 kVA ; Multiple Phase | D79: 45 | E79: 6.7 | F79: 5 | G79: 25 | H79: 24 | I79: 22 | J79: 32 | K79: 41 | L79: 42 | M79: 37 | N79: 58 | O79: 46 | P79: 49 | Q79: 28 | R79: 32 | S79: 37 | T79: 39 | U79: 6 | V79: 17 | W79: 11 | X79: 6 | Y79: 23 | Z79: 67 | AA79: 24 | AB79: 16 | AC79: 30 | AD79: 17 | AE79: 13 | AF79: 2 | AG79: 1 | AH79: 11 | AI79: 14 | AJ79: 8 | AK79: 12 | AL79: 26 | AM79: 50 | AN79: 22 | AO79: 21 | AP79: 23 | AQ79: 26 | AR79: 8 | AS79: - | AT79: 5 | AU79: 18 | AV79: 42 | AW79: 10 | AX79: - | AY79: - | AZ79: 1 | BA79: 1 | BB79: 1 | BC79: - | BD79: - | BE79: - | BF79: - | BG79: - | BH79: - | BI79: - | BJ79: - | BK79: - | BL79: - | BM79: - | BN79: - | BO79: - | BP79: - | BQ79: - | BR79: - | BS79: - | BT79: - | BU79: - | BV79: - | BW79: 0 | BX79: 0 | BY79: 0 | BZ79: 0 | CA79: 0 | CB79: 0 | CC79: 0 | CD79: 0 | CE79: 0 | CF79: 0 | CG79: 0 | CH79: 0 | CI79: 0 | CJ79: 0 | CK79: 0 | CL79: 0 | CM79: 0 | CN79: 0 | CO79: 0 | CP79: 0 | CQ79: 0 | CR79: 0 | CS79: 0 | CT79: 0 | CU79: 0 | CV79: 0 | CW79: 0 | CX79: 0 | CY79: 0 | CZ79: 0 | DA79: 0 | DB79: 0 | DC79: 0 | DD79: 0 | DE79: 0 | DF79: 0 | DG79: 0 | DH79: 0
C80: Kiosk Mounted ; < = 22kV ; > 600 kVA ; Multiple Phase | D80: 45 | E80: 6.7 | F80: 9 | G80: 9 | H80: 6 | I80: 17 | J80: 11 | K80: 18 | L80: 16 | M80: 14 | N80: 11 | O80: 5 | P80: 11 | Q80: 8 | R80: 13 | S80: 4 | T80: 7 | U80: 11 | V80: 2 | W80: 3 | X80: 4 | Y80: 3 | Z80: 3 | AA80: 2 | AB80: 7 | AC80: 1 | AD80: - | AE80: - | AF80: - | AG80: - | AH80: 9 | AI80: - | AJ80: 1 | AK80: - | AL80: 3 | AM80: 2 | AN80: - | AO80: 1 | AP80: 3 | AQ80: - | AR80: 1 | AS80: - | AT80: - | AU80: 2 | AV80: - | AW80: - | AX80: - | AY80: 2 | AZ80: - | BA80: - | BB80: - | BC80: - | BD80: - | BE80: - | BF80: - | BG80: - | BH80: - | BI80: - | BJ80: - | BK80: - | BL80: - | BM80: - | BN80: - | BO80: - | BP80: - | BQ80: - | BR80: - | BS80: - | BT80: - | BU80: - | BV80: - | BW80: 0 | BX80: 0 | BY80: 0 | BZ80: 0 | CA80: 0 | CB80: 0 | CC80: 0 | CD80: 0 | CE80: 0 | CF80: 0 | CG80: 0 | CH80: 0 | CI80: 0 | CJ80: 0 | CK80: 0 | CL80: 0 | CM80: 0 | CN80: 0 | CO80: 0 | CP80: 0 | CQ80: 0 | CR80: 0 | CS80: 0 | CT80: 0 | CU80: 0 | CV80: 0 | CW80: 0 | CX80: 0 | CY80: 0 | CZ80: 0 | DA80: 0 | DB80: 0 | DC80: 0 | DD80: 0 | DE80: 0 | DF80: 0 | DG80: 0 | DH80: 0
C81: Ground Outdoor / Indoor Chamber Mounted; ˂ 22 kV ; < = 60 kVA ; Single Phase | D81: 0 | E81: 0 | F81: - | G81: - | H81: - | I81: - | J81: - | K81: - | L81: - | M81: - | N81: - | O81: - | P81: - | Q81: - | R81: - | S81: - | T81: - | U81: - | V81: - | W81: - | X81: - | Y81: - | Z81: - | AA81: - | AB81: - | AC81: - | AD81: - | AE81: - | AF81: - | AG81: - | AH81: - | AI81: - | AJ81: - | AK81: - | AL81: - | AM81: - | AN81: - | AO81: - | AP81: - | AQ81: - | AR81: - | AS81: - | AT81: - | AU81: - | AV81: - | AW81: - | AX81: - | AY81: - | AZ81: - | BA81: - | BB81: - | BC81: - | BD81: - | BE81: - | BF81: - | BG81: - | BH81: - | BI81: - | BJ81: - | BK81: - | BL81: - | BM81: - | BN81: - | BO81: - | BP81: - | BQ81: - | BR81: - | BS81: - | BT81: - | BU81: - | BV81: - | BW81: 0 | BX81: 0 | BY81: 0 | BZ81: 0 | CA81: 0 | CB81: 0 | CC81: 0 | CD81: 0 | CE81: 0 | CF81: 0 | CG81: 0 | CH81: 0 | CI81: 0 | CJ81: 0 | CK81: 0 | CL81: 0 | CM81: 0 | CN81: 0 | CO81: 0 | CP81: 0 | CQ81: 0 | CR81: 0 | CS81: 0 | CT81: 0 | CU81: 0 | CV81: 0 | CW81: 0 | CX81: 0 | CY81: 0 | CZ81: 0 | DA81: 0 | DB81: 0 | DC81: 0 | DD81: 0 | DE81: 0 | DF81: 0 | DG81: 0 | DH81: 0
C82: Ground Outdoor / Indoor Chamber Mounted; ˂ 22 kV ; > 60 kVA and < = 600 kVA ; Single Phase | D82: 0 | E82: 0 | F82: - | G82: - | H82: - | I82: - | J82: - | K82: - | L82: - | M82: - | N82: - | O82: - | P82: - | Q82: - | R82: - | S82: - | T82: - | U82: - | V82: - | W82: - | X82: - | Y82: - | Z82: - | AA82: - | AB82: - | AC82: - | AD82: - | AE82: - | AF82: - | AG82: - | AH82: - | AI82: - | AJ82: - | AK82: - | AL82: - | AM82: - | AN82: - | AO82: - | AP82: - | AQ82: - | AR82: - | AS82: - | AT82: - | AU82: - | AV82: - | AW82: - | AX82: - | AY82: - | AZ82: - | BA82: - | BB82: - | BC82: - | BD82: - | BE82: - | BF82: - | BG82: - | BH82: - | BI82: - | BJ82: - | BK82: - | BL82: - | BM82: - | BN82: - | BO82: - | BP82: - | BQ82: - | BR82: - | BS82: - | BT82: - | BU82: - | BV82: - | BW82: 0 | BX82: 0 | BY82: 0 | BZ82: 0 | CA82: 0 | CB82: 0 | CC82: 0 | CD82: 0 | CE82: 0 | CF82: 0 | CG82: 0 | CH82: 0 | CI82: 0 | CJ82: 0 | CK82: 0 | CL82: 0 | CM82: 0 | CN82: 0 | CO82: 0 | CP82: 0 | CQ82: 0 | CR82: 0 | CS82: 0 | CT82: 0 | CU82: 0 | CV82: 0 | CW82: 0 | CX82: 0 | CY82: 0 | CZ82: 0 | DA82: 0 | DB82: 0 | DC82: 0 | DD82: 0 | DE82: 0 | DF82: 0 | DG82: 0 | DH82: 0
C83: Ground Outdoor / Indoor Chamber Mounted; ˂ 22 kV ; > 600 kVA ; Single Phase | D83: 0 | E83: 0 | F83: - | G83: - | H83: - | I83: - | J83: - | K83: - | L83: - | M83: - | N83: - | O83: - | P83: - | Q83: - | R83: - | S83: - | T83: - | U83: - | V83: - | W83: - | X83: - | Y83: - | Z83: - | AA83: - | AB83: - | AC83: - | AD83: - | AE83: - | AF83: - | AG83: - | AH83: - | AI83: - | AJ83: - | AK83: - | AL83: - | AM83: - | AN83: - | AO83: - | AP83: - | AQ83: - | AR83: - | AS83: - | AT83: - | AU83: - | AV83: - | AW83: - | AX83: - | AY83: - | AZ83: - | BA83: - | BB83: - | BC83: - | BD83: - | BE83: - | BF83: - | BG83: - | BH83: - | BI83: - | BJ83: - | BK83: - | BL83: - | BM83: - | BN83: - | BO83: - | BP83: - | BQ83: - | BR83: - | BS83: - | BT83: - | BU83: - | BV83: - | BW83: 0 | BX83: 0 | BY83: 0 | BZ83: 0 | CA83: 0 | CB83: 0 | CC83: 0 | CD83: 0 | CE83: 0 | CF83: 0 | CG83: 0 | CH83: 0 | CI83: 0 | CJ83: 0 | CK83: 0 | CL83: 0 | CM83: 0 | CN83: 0 | CO83: 0 | CP83: 0 | CQ83: 0 | CR83: 0 | CS83: 0 | CT83: 0 | CU83: 0 | CV83: 0 | CW83: 0 | CX83: 0 | CY83: 0 | CZ83: 0 | DA83: 0 | DB83: 0 | DC83: 0 | DD83: 0 | DE83: 0 | DF83: 0 | DG83: 0 | DH83: 0
C84: Ground Outdoor / Indoor Chamber Mounted; ˂ 22 kV ; < = 60 kVA ; Multiple Phase | D84: 0 | E84: 0 | F84: - | G84: - | H84: - | I84: - | J84: - | K84: - | L84: - | M84: - | N84: - | O84: - | P84: - | Q84: - | R84: - | S84: - | T84: - | U84: - | V84: - | W84: - | X84: - | Y84: - | Z84: - | AA84: - | AB84: - | AC84: - | AD84: - | AE84: - | AF84: - | AG84: - | AH84: - | AI84: - | AJ84: - | AK84: - | AL84: - | AM84: - | AN84: - | AO84: - | AP84: - | AQ84: - | AR84: - | AS84: - | AT84: - | AU84: - | AV84: - | AW84: - | AX84: - | AY84: - | AZ84: - | BA84: - | BB84: - | BC84: - | BD84: - | BE84: - | BF84: - | BG84: - | BH84: - | BI84: - | BJ84: - | BK84: - | BL84: - | BM84: - | BN84: - | BO84: - | BP84: - | BQ84: - | BR84: - | BS84: - | BT84: - | BU84: - | BV84: - | BW84: 0 | BX84: 0 | BY84: 0 | BZ84: 0 | CA84: 0 | CB84: 0 | CC84: 0 | CD84: 0 | CE84: 0 | CF84: 0 | CG84: 0 | CH84: 0 | CI84: 0 | CJ84: 0 | CK84: 0 | CL84: 0 | CM84: 0 | CN84: 0 | CO84: 0 | CP84: 0 | CQ84: 0 | CR84: 0 | CS84: 0 | CT84: 0 | CU84: 0 | CV84: 0 | CW84: 0 | CX84: 0 | CY84: 0 | CZ84: 0 | DA84: 0 | DB84: 0 | DC84: 0 | DD84: 0 | DE84: 0 | DF84: 0 | DG84: 0 | DH84: 0
C85: Ground Outdoor / Indoor Chamber Mounted; ˂ 22 kV ; > 60 kVA and < = 600 kVA ; Multiple Phase | D85: 45 | E85: 6.7 | F85: 1 | G85: 6 | H85: 1 | I85: 1 | J85: 1 | K85: 1 | L85: - | M85: 2 | N85: 3 | O85: 4 | P85: 2 | Q85: 2 | R85: 2 | S85: - | T85: 1 | U85: 1 | V85: 1 | W85: - | X85: - | Y85: - | Z85: 1 | AA85: 2 | AB85: 2 | AC85: - | AD85: - | AE85: - | AF85: - | AG85: 4 | AH85: - | AI85: - | AJ85: - | AK85: - | AL85: - | AM85: - | AN85: 1 | AO85: - | AP85: 5 | AQ85: 2 | AR85: 2 | AS85: - | AT85: - | AU85: 2 | AV85: - | AW85: 1 | AX85: 11 | AY85: 2 | AZ85: 2 | BA85: 1 | BB85: 6 | BC85: 3 | BD85: - | BE85: 2 | BF85: - | BG85: - | BH85: - | BI85: - | BJ85: - | BK85: - | BL85: - | BM85: - | BN85: - | BO85: - | BP85: - | BQ85: - | BR85: - | BS85: - | BT85: - | BU85: - | BV85: - | BW85: 0 | BX85: 0 | BY85: 0 | BZ85: 0 | CA85: 0 | CB85: 0 | CC85: 0 | CD85: 0 | CE85: 0 | CF85: 0 | CG85: 0 | CH85: 0 | CI85: 0 | CJ85: 0 | CK85: 0 | CL85: 0 | CM85: 0 | CN85: 0 | CO85: 0 | CP85: 0 | CQ85: 0 | CR85: 0 | CS85: 0 | CT85: 0 | CU85: 0 | CV85: 0 | CW85: 0 | CX85: 0 | CY85: 0 | CZ85: 0 | DA85: 0 | DB85: 0 | DC85: 0 | DD85: 0 | DE85: 0 | DF85: 0 | DG85: 0 | DH85: 0
C86: Ground Outdoor / Indoor Chamber Mounted; ˂ 22 kV ; > 600 kVA ; Multiple Phase | D86: 45 | E86: 6.7 | F86: 7 | G86: 5 | H86: 18 | I86: 8 | J86: 8 | K86: 4 | L86: 5 | M86: 15 | N86: 1 | O86: 6 | P86: 8 | Q86: 8 | R86: 8 | S86: 2 | T86: 6 | U86: 2 | V86: 5 | W86: 5 | X86: 1 | Y86: 3 | Z86: 6 | AA86: 6 | AB86: 10 | AC86: - | AD86: - | AE86: - | AF86: - | AG86: - | AH86: 1 | AI86: 13 | AJ86: - | AK86: - | AL86: 6 | AM86: 9 | AN86: 1 | AO86: 12 | AP86: 5 | AQ86: 3 | AR86: 6 | AS86: - | AT86: - | AU86: 1 | AV86: 1 | AW86: 3 | AX86: - | AY86: - | AZ86: - | BA86: 1 | BB86: - | BC86: - | BD86: - | BE86: - | BF86: - | BG86: 1 | BH86: - | BI86: - | BJ86: - | BK86: - | BL86: - | BM86: - | BN86: - | BO86: - | BP86: - | BQ86: - | BR86: - | BS86: - | BT86: - | BU86: - | BV86: - | BW86: 0 | BX86: 0 | BY86: 0 | BZ86: 0 | CA86: 0 | CB86: 0 | CC86: 0 | CD86: 0 | CE86: 0 | CF86: 0 | CG86: 0 | CH86: 0 | CI86: 0 | CJ86: 0 | CK86: 0 | CL86: 0 | CM86: 0 | CN86: 0 | CO86: 0 | CP86: 0 | CQ86: 0 | CR86: 0 | CS86: 0 | CT86: 0 | CU86: 0 | CV86: 0 | CW86: 0 | CX86: 0 | CY86: 0 | CZ86: 0 | DA86: 0 | DB86: 0 | DC86: 0 | DD86: 0 | DE86: 0 | DF86: 0 | DG86: 0 | DH86: 0
C87: Ground Outdoor / Indoor Chamber Mounted; > = 22 kV & < = 33 kV ; < = 15 MVA | D87: 45 | E87: 6.7 | F87: - | G87: 5 | H87: 2 | I87: 3 | J87: - | K87: 1 | L87: 1 | M87: - | N87: - | O87: 1 | P87: 1 | Q87: 2 | R87: 2 | S87: 1 | T87: - | U87: - | V87: 2 | W87: - | X87: - | Y87: 2 | Z87: 9 | AA87: 2 | AB87: 3 | AC87: 6 | AD87: - | AE87: 1 | AF87: - | AG87: - | AH87: 2 | AI87: - | AJ87: - | AK87: - | AL87: 2 | AM87: 6 | AN87: 2 | AO87: - | AP87: 1 | AQ87: - | AR87: - | AS87: - | AT87: - | AU87: 1 | AV87: - | AW87: 1 | AX87: - | AY87: 1 | AZ87: 2 | BA87: - | BB87: 3 | BC87: 2 | BD87: - | BE87: - | BF87: - | BG87: 1 | BH87: - | BI87: - | BJ87: - | BK87: - | BL87: - | BM87: - | BN87: - | BO87: - | BP87: - | BQ87: - | BR87: - | BS87: - | BT87: - | BU87: - | BV87: - | BW87: 0 | BX87: 0 | BY87: 0 | BZ87: 0 | CA87: 0 | CB87: 0 | CC87: 0 | CD87: 0 | CE87: 0 | CF87: 0 | CG87: 0 | CH87: 0 | CI87: 0 | CJ87: 0 | CK87: 0 | CL87: 0 | CM87: 0 | CN87: 0 | CO87: 0 | CP87: 0 | CQ87: 0 | CR87: 0 | CS87: 0 | CT87: 0 | CU87: 0 | CV87: 0 | CW87: 0 | CX87: 0 | CY87: 0 | CZ87: 0 | DA87: 0 | DB87: 0 | DC87: 0 | DD87: 0 | DE87: 0 | DF87: 0 | DG87: 0 | DH87: 0
C88: Ground Outdoor / Indoor Chamber Mounted; > = 22 kV & < = 33 kV ; > 15 MVA and < = 40 MVA | D88: 0 | E88: 0 | F88: - | G88: - | H88: - | I88: - | J88: - | K88: - | L88: - | M88: - | N88: - | O88: - | P88: - | Q88: - | R88: - | S88: - | T88: - | U88: - | V88: - | W88: - | X88: - | Y88: - | Z88: - | AA88: - | AB88: - | AC88: - | AD88: - | AE88: - | AF88: - | AG88: 2 | AH88: - | AI88: - | AJ88: - | AK88: - | AL88: - | AM88: - | AN88: - | AO88: - | AP88: - | AQ88: - | AR88: - | AS88: - | AT88: - | AU88: - | AV88: - | AW88: - | AX88: - | AY88: - | AZ88: - | BA88: - | BB88: - | BC88: - | BD88: - | BE88: - | BF88: - | BG88: - | BH88: - | BI88: - | BJ88: - | BK88: - | BL88: - | BM88: - | BN88: - | BO88: - | BP88: - | BQ88: - | BR88: - | BS88: - | BT88: - | BU88: - | BV88: - | BW88: 0 | BX88: 0 | BY88: 0 | BZ88: 0 | CA88: 0 | CB88: 0 | CC88: 0 | CD88: 0 | CE88: 0 | CF88: 0 | CG88: 0 | CH88: 0 | CI88: 0 | CJ88: 0 | CK88: 0 | CL88: 0 | CM88: 0 | CN88: 0 | CO88: 0 | CP88: 0 | CQ88: 0 | CR88: 0 | CS88: 0 | CT88: 0 | CU88: 0 | CV88: 0 | CW88: 0 | CX88: 0 | CY88: 0 | CZ88: 0 | DA88: 0 | DB88: 0 | DC88: 0 | DD88: 0 | DE88: 0 | DF88: 0 | DG88: 0 | DH88: 0
C89: Ground Outdoor / Indoor Chamber Mounted; > = 22 kV & < = 33 kV ; > 40 MVA | D89: 0 | E89: 0 | F89: - | G89: - | H89: - | I89: - | J89: - | K89: - | L89: - | M89: - | N89: - | O89: - | P89: - | Q89: - | R89: - | S89: - | T89: - | U89: - | V89: - | W89: - | X89: - | Y89: - | Z89: - | AA89: - | AB89: - | AC89: - | AD89: - | AE89: - | AF89: - | AG89: - | AH89: - | AI89: - | AJ89: - | AK89: - | AL89: - | AM89: - | AN89: - | AO89: - | AP89: - | AQ89: - | AR89: - | AS89: - | AT89: - | AU89: - | AV89: - | AW89: - | AX89: - | AY89: - | AZ89: - | BA89: - | BB89: - | BC89: - | BD89: - | BE89: - | BF89: - | BG89: - | BH89: - | BI89: - | BJ89: - | BK89: - | BL89: - | BM89: - | BN89: - | BO89: - | BP89: - | BQ89: - | BR89: - | BS89: - | BT89: - | BU89: - | BV89: - | BW89: 0 | BX89: 0 | BY89: 0 | BZ89: 0 | CA89: 0 | CB89: 0 | CC89: 0 | CD89: 0 | CE89: 0 | CF89: 0 | CG89: 0 | CH89: 0 | CI89: 0 | CJ89: 0 | CK89: 0 | CL89: 0 | CM89: 0 | CN89: 0 | CO89: 0 | CP89: 0 | CQ89: 0 | CR89: 0 | CS89: 0 | CT89: 0 | CU89: 0 | CV89: 0 | CW89: 0 | CX89: 0 | CY89: 0 | CZ89: 0 | DA89: 0 | DB89: 0 | DC89: 0 | DD89: 0 | DE89: 0 | DF89: 0 | DG89: 0 | DH89: 0
C90: Ground Outdoor / Indoor Chamber Mounted; > 33 kV & < = 66 kV ; < = 15 MVA | D90: 45 | E90: 6.7 | F90: - | G90: - | H90: - | I90: 2 | J90: - | K90: 1 | L90: - | M90: 2 | N90: 2 | O90: 1 | P90: - | Q90: 2 | R90: - | S90: - | T90: - | U90: - | V90: - | W90: - | X90: - | Y90: - | Z90: - | AA90: - | AB90: - | AC90: - | AD90: - | AE90: 3 | AF90: - | AG90: - | AH90: - | AI90: - | AJ90: - | AK90: - | AL90: - | AM90: - | AN90: - | AO90: - | AP90: - | AQ90: - | AR90: - | AS90: - | AT90: - | AU90: - | AV90: - | AW90: - | AX90: - | AY90: - | AZ90: - | BA90: - | BB90: - | BC90: - | BD90: - | BE90: 2 | BF90: - | BG90: - | BH90: - | BI90: 2 | BJ90: - | BK90: 2 | BL90: - | BM90: - | BN90: - | BO90: - | BP90: - | BQ90: - | BR90: - | BS90: - | BT90: - | BU90: - | BV90: - | BW90: 0 | BX90: 0 | BY90: 0 | BZ90: 0 | CA90: 0 | CB90: 0 | CC90: 0 | CD90: 0 | CE90: 0 | CF90: 0 | CG90: 0 | CH90: 0 | CI90: 0 | CJ90: 0 | CK90: 0 | CL90: 0 | CM90: 0 | CN90: 0 | CO90: 0 | CP90: 0 | CQ90: 0 | CR90: 0 | CS90: 0 | CT90: 0 | CU90: 0 | CV90: 0 | CW90: 0 | CX90: 0 | CY90: 0 | CZ90: 0 | DA90: 0 | DB90: 0 | DC90: 0 | DD90: 0 | DE90: 0 | DF90: 0 | DG90: 0 | DH90: 0
C91: Ground Outdoor / Indoor Chamber Mounted; > 33 kV & < = 66 kV ; > 15 MVA and < = 40 MVA | D91: 45 | E91: 6.7 | F91: 2 | G91: 2 | H91: - | I91: - | J91: - | K91: 5 | L91: 1 | M91: - | N91: 4 | O91: 2 | P91: - | Q91: 1 | R91: - | S91: - | T91: - | U91: - | V91: - | W91: - | X91: - | Y91: - | Z91: - | AA91: - | AB91: - | AC91: - | AD91: - | AE91: - | AF91: - | AG91: - | AH91: - | AI91: - | AJ91: - | AK91: - | AL91: - | AM91: - | AN91: - | AO91: - | AP91: - | AQ91: - | AR91: 2 | AS91: - | AT91: - | AU91: - | AV91: - | AW91: - | AX91: - | AY91: - | AZ91: - | BA91: 2 | BB91: - | BC91: - | BD91: - | BE91: - | BF91: 2 | BG91: - | BH91: - | BI91: - | BJ91: - | BK91: - | BL91: - | BM91: - | BN91: - | BO91: - | BP91: - | BQ91: - | BR91: - | BS91: - | BT91: - | BU91: - | BV91: - | BW91: 0 | BX91: 0 | BY91: 0 | BZ91: 0 | CA91: 0 | CB91: 0 | CC91: 0 | CD91: 0 | CE91: 0 | CF91: 0 | CG91: 0 | CH91: 0 | CI91: 0 | CJ91: 0 | CK91: 0 | CL91: 0 | CM91: 0 | CN91: 0 | CO91: 0 | CP91: 0 | CQ91: 0 | CR91: 0 | CS91: 0 | CT91: 0 | CU91: 0 | CV91: 0 | CW91: 0 | CX91: 0 | CY91: 0 | CZ91: 0 | DA91: 0 | DB91: 0 | DC91: 0 | DD91: 0 | DE91: 0 | DF91: 0 | DG91: 0 | DH91: 0
C92: Ground Outdoor / Indoor Chamber Mounted; > 33 kV & < = 66 kV ; > 40 MVA | D92: 0 | E92: 0 | F92: - | G92: - | H92: - | I92: - | J92: - | K92: - | L92: - | M92: - | N92: - | O92: - | P92: 4 | Q92: - | R92: - | S92: - | T92: - | U92: - | V92: - | W92: - | X92: - | Y92: - | Z92: - | AA92: - | AB92: - | AC92: - | AD92: - | AE92: - | AF92: - | AG92: - | AH92: - | AI92: - | AJ92: - | AK92: - | AL92: - | AM92: - | AN92: - | AO92: - | AP92: - | AQ92: - | AR92: - | AS92: - | AT92: - | AU92: - | AV92: - | AW92: - | AX92: - | AY92: - | AZ92: - | BA92: - | BB92: - | BC92: - | BD92: - | BE92: - | BF92: - | BG92: - | BH92: - | BI92: - | BJ92: - | BK92: - | BL92: - | BM92: - | BN92: - | BO92: - | BP92: - | BQ92: - | BR92: - | BS92: - | BT92: - | BU92: - | BV92: - | BW92: 0 | BX92: 0 | BY92: 0 | BZ92: 0 | CA92: 0 | CB92: 0 | CC92: 0 | CD92: 0 | CE92: 0 | CF92: 0 | CG92: 0 | CH92: 0 | CI92: 0 | CJ92: 0 | CK92: 0 | CL92: 0 | CM92: 0 | CN92: 0 | CO92: 0 | CP92: 0 | CQ92: 0 | CR92: 0 | CS92: 0 | CT92: 0 | CU92: 0 | CV92: 0 | CW92: 0 | CX92: 0 | CY92: 0 | CZ92: 0 | DA92: 0 | DB92: 0 | DC92: 0 | DD92: 0 | DE92: 0 | DF92: 0 | DG92: 0 | DH92: 0
C93: Ground Outdoor / Indoor Chamber Mounted; > 66 kV & < = 132 kV ; < = 100 MVA | D93: 45 | E93: 6.7 | F93: - | G93: - | H93: - | I93: - | J93: - | K93: - | L93: - | M93: - | N93: 1 | O93: - | P93: - | Q93: - | R93: - | S93: - | T93: - | U93: - | V93: - | W93: - | X93: - | Y93: - | Z93: - | AA93: - | AB93: - | AC93: - | AD93: - | AE93: - | AF93: - | AG93: - | AH93: - | AI93: 3 | AJ93: - | AK93: - | AL93: - | AM93: - | AN93: - | AO93: - | AP93: - | AQ93: - | AR93: - | AS93: - | AT93: - | AU93: - | AV93: - | AW93: - | AX93: - | AY93: - | AZ93: - | BA93: - | BB93: - | BC93: - | BD93: - | BE93: - | BF93: 1 | BG93: - | BH93: - | BI93: - | BJ93: - | BK93: - | BL93: - | BM93: - | BN93: - | BO93: - | BP93: - | BQ93: - | BR93: - | BS93: - | BT93: - | BU93: - | BV93: - | BW93: 0 | BX93: 0 | BY93: 0 | BZ93: 0 | CA93: 0 | CB93: 0 | CC93: 0 | CD93: 0 | CE93: 0 | CF93: 0 | CG93: 0 | CH93: 0 | CI93: 0 | CJ93: 0 | CK93: 0 | CL93: 0 | CM93: 0 | CN93: 0 | CO93: 0 | CP93: 0 | CQ93: 0 | CR93: 0 | CS93: 0 | CT93: 0 | CU93: 0 | CV93: 0 | CW93: 0 | CX93: 0 | CY93: 0 | CZ93: 0 | DA93: 0 | DB93: 0 | DC93: 0 | DD93: 0 | DE93: 0 | DF93: 0 | DG93: 0 | DH93: 0
C94: Ground Outdoor / Indoor Chamber Mounted; > 66 kV & < = 132 kV ; > 100 MVA | D94: 0 | E94: 0 | F94: - | G94: - | H94: - | I94: - | J94: - | K94: - | L94: - | M94: - | N94: - | O94: - | P94: - | Q94: - | R94: - | S94: - | T94: - | U94: - | V94: - | W94: - | X94: - | Y94: - | Z94: - | AA94: - | AB94: - | AC94: - | AD94: - | AE94: - | AF94: - | AG94: - | AH94: - | AI94: - | AJ94: 1 | AK94: - | AL94: 2 | AM94: - | AN94: - | AO94: - | AP94: - | AQ94: - | AR94: - | AS94: - | AT94: - | AU94: - | AV94: - | AW94: - | AX94: - | AY94: - | AZ94: - | BA94: - | BB94: - | BC94: - | BD94: - | BE94: - | BF94: - | BG94: - | BH94: - | BI94: - | BJ94: - | BK94: - | BL94: - | BM94: - | BN94: - | BO94: - | BP94: - | BQ94: - | BR94: - | BS94: - | BT94: - | BU94: - | BV94: - | BW94: 0 | BX94: 0 | BY94: 0 | BZ94: 0 | CA94: 0 | CB94: 0 | CC94: 0 | CD94: 0 | CE94: 0 | CF94: 0 | CG94: 0 | CH94: 0 | CI94: 0 | CJ94: 0 | CK94: 0 | CL94: 0 | CM94: 0 | CN94: 0 | CO94: 0 | CP94: 0 | CQ94: 0 | CR94: 0 | CS94: 0 | CT94: 0 | CU94: 0 | CV94: 0 | CW94: 0 | CX94: 0 | CY94: 0 | CZ94: 0 | DA94: 0 | DB94: 0 | DC94: 0 | DD94: 0 | DE94: 0 | DF94: 0 | DG94: 0 | DH94: 0
C95: Ground Outdoor / Indoor Chamber Mounted; > 132 kV ; < = 100 MVA | D95: 45 | E95: 6.7 | F95: - | G95: - | H95: - | I95: - | J95: - | K95: - | L95: - | M95: - | N95: - | O95: - | P95: - | Q95: - | R95: - | S95: - | T95: - | U95: - | V95: - | W95: - | X95: - | Y95: - | Z95: - | AA95: - | AB95: - | AC95: - | AD95: - | AE95: - | AF95: - | AG95: - | AH95: - | AI95: - | AJ95: - | AK95: - | AL95: - | AM95: - | AN95: - | AO95: - | AP95: - | AQ95: - | AR95: - | AS95: - | AT95: - | AU95: - | AV95: - | AW95: - | AX95: - | AY95: - | AZ95: - | BA95: - | BB95: - | BC95: - | BD95: - | BE95: - | BF95: - | BG95: - | BH95: - | BI95: - | BJ95: - | BK95: - | BL95: - | BM95: - | BN95: - | BO95: - | BP95: - | BQ95: - | BR95: - | BS95: - | BT95: - | BU95: - | BV95: - | BW95: 0 | BX95: 0 | BY95: 0 | BZ95: 0 | CA95: 0 | CB95: 0 | CC95: 0 | CD95: 0 | CE95: 0 | CF95: 0 | CG95: 0 | CH95: 0 | CI95: 0 | CJ95: 0 | CK95: 0 | CL95: 0 | CM95: 0 | CN95: 0 | CO95: 0 | CP95: 0 | CQ95: 0 | CR95: 0 | CS95: 0 | CT95: 0 | CU95: 0 | CV95: 0 | CW95: 0 | CX95: 0 | CY95: 0 | CZ95: 0 | DA95: 0 | DB95: 0 | DC95: 0 | DD95: 0 | DE95: 0 | DF95: 0 | DG95: 0 | DH95: 0
C96: Ground Outdoor / Indoor Chamber Mounted; > 132 kV ; > 100 MVA | D96: 0 | E96: 0 | F96: - | G96: - | H96: - | I96: - | J96: - | K96: - | L96: - | M96: - | N96: - | O96: - | P96: - | Q96: - | R96: - | S96: - | T96: - | U96: - | V96: - | W96: - | X96: - | Y96: - | Z96: - | AA96: - | AB96: - | AC96: - | AD96: - | AE96: - | AF96: - | AG96: - | AH96: - | AI96: - | AJ96: - | AK96: - | AL96: - | AM96: - | AN96: - | AO96: - | AP96: - | AQ96: - | AR96: - | AS96: - | AT96: - | AU96: - | AV96: - | AW96: - | AX96: - | AY96: - | AZ96: - | BA96: - | BB96: - | BC96: - | BD96: - | BE96: - | BF96: - | BG96: - | BH96: - | BI96: - | BJ96: - | BK96: - | BL96: - | BM96: - | BN96: - | BO96: - | BP96: - | BQ96: - | BR96: - | BS96: - | BT96: - | BU96: - | BV96: - | BW96: 0 | BX96: 0 | BY96: 0 | BZ96: 0 | CA96: 0 | CB96: 0 | CC96: 0 | CD96: 0 | CE96: 0 | CF96: 0 | CG96: 0 | CH96: 0 | CI96: 0 | CJ96: 0 | CK96: 0 | CL96: 0 | CM96: 0 | CN96: 0 | CO96: 0 | CP96: 0 | CQ96: 0 | CR96: 0 | CS96: 0 | CT96: 0 | CU96: 0 | CV96: 0 | CW96: 0 | CX96: 0 | CY96: 0 | CZ96: 0 | DA96: 0 | DB96: 0 | DC96: 0 | DD96: 0 | DE96: 0 | DF96: 0 | DG96: 0 | DH96: 0
C97: Other | D97: 0 | E97: 0 | F97: - | G97: - | H97: - | I97: - | J97: - | K97: - | L97: - | M97: - | N97: - | O97: 1 | P97: - | Q97: - | R97: - | S97: - | T97: - | U97: - | V97: - | W97: - | X97: - | Y97: - | Z97: - | AA97: - | AB97: - | AC97: - | AD97: 3 | AE97: - | AF97: - | AG97: - | AH97: - | AI97: - | AJ97: - | AK97: - | AL97: - | AM97: - | AN97: - | AO97: - | AP97: - | AQ97: - | AR97: - | AS97: - | AT97: - | AU97: - | AV97: - | AW97: - | AX97: - | AY97: - | AZ97: - | BA97: - | BB97: - | BC97: - | BD97: - | BE97: - | BF97: - | BG97: - | BH97: - | BI97: - | BJ97: - | BK97: - | BL97: - | BM97: - | BN97: - | BO97: - | BP97: - | BQ97: - | BR97: - | BS97: - | BT97: - | BU97: - | BV97: - | BW97: 0 | BX97: 0 | BY97: 0 | BZ97: 0 | CA97: 0 | CB97: 0 | CC97: 0 | CD97: 0 | CE97: 0 | CF97: 0 | CG97: 0 | CH97: 0 | CI97: 0 | CJ97: 0 | CK97: 0 | CL97: 0 | CM97: 0 | CN97: 0 | CO97: 0 | CP97: 0 | CQ97: 0 | CR97: 0 | CS97: 0 | CT97: 0 | CU97: 0 | CV97: 0 | CW97: 0 | CX97: 0 | CY97: 0 | CZ97: 0 | DA97: 0 | DB97: 0 | DC97: 0 | DD97: 0 | DE97: 0 | DF97: 0 | DG97: 0 | DH97: 0
B98: SWITCHGEAR BY: HIGHEST OPERATING VOLTAGE ; SWITCH FUNCTION | C98: ˂ = 11 kV ; Fuse | D98: 0 | E98: 0 | F98: - | G98: - | H98: - | I98: - | J98: - | K98: - | L98: - | M98: - | N98: - | O98: - | P98: - | Q98: - | R98: - | S98: - | T98: - | U98: - | V98: - | W98: - | X98: - | Y98: - | Z98: - | AA98: - | AB98: - | AC98: - | AD98: - | AE98: - | AF98: - | AG98: - | AH98: - | AI98: - | AJ98: - | AK98: - | AL98: - | AM98: - | AN98: - | AO98: - | AP98: - | AQ98: - | AR98: - | AS98: - | AT98: - | AU98: - | AV98: - | AW98: - | AX98: - | AY98: - | AZ98: - | BA98: - | BB98: - | BC98: - | BD98: - | BE98: - | BF98: - | BG98: - | BH98: - | BI98: - | BJ98: - | BK98: - | BL98: - | BM98: - | BN98: - | BO98: - | BP98: - | BQ98: - | BR98: - | BS98: - | BT98: - | BU98: - | BV98: - | BW98: 0 | BX98: 0 | BY98: 0 | BZ98: 0 | CA98: 0 | CB98: 0 | CC98: 0 | CD98: 0 | CE98: 0 | CF98: 0 | CG98: 0 | CH98: 0 | CI98: 0 | CJ98: 0 | CK98: 0 | CL98: 0 | CM98: 0 | CN98: 0 | CO98: 0 | CP98: 0 | CQ98: 0 | CR98: 0 | CS98: 0 | CT98: 0 | CU98: 0 | CV98: 0 | CW98: 0 | CX98: 0 | CY98: 0 | CZ98: 0 | DA98: 0 | DB98: 0 | DC98: 0 | DD98: 0 | DE98: 0 | DF98: 0 | DG98: 0 | DH98: 0
C99: ˂ = 11 kV ; Switch | D99: 35 | E99: 5.9 | F99: 63 | G99: 126 | H99: 181 | I99: 128 | J99: 120 | K99: 153 | L99: 81 | M99: 87 | N99: 187 | O99: 90 | P99: 71 | Q99: 46 | R99: 26 | S99: 44 | T99: 33 | U99: 29 | V99: 33 | W99: 29 | X99: 41 | Y99: 47 | Z99: 36 | AA99: 23 | AB99: 23 | AC99: 13 | AD99: 4 | AE99: 6 | AF99: - | AG99: - | AH99: 24 | AI99: 3 | AJ99: 21 | AK99: 10 | AL99: 10 | AM99: 92 | AN99: 3 | AO99: 31 | AP99: 445 | AQ99: 3 | AR99: 195 | AS99: - | AT99: 3 | AU99: 21 | AV99: 3 | AW99: 102 | AX99: 45 | AY99: 10 | AZ99: 45 | BA99: 10 | BB99: 24 | BC99: 48 | BD99: - | BE99: 38 | BF99: 3 | BG99: 34 | BH99: - | BI99: - | BJ99: 38 | BK99: - | BL99: - | BM99: - | BN99: - | BO99: - | BP99: - | BQ99: 3 | BR99: - | BS99: - | BT99: - | BU99: - | BV99: - | BW99: 0 | BX99: 0 | BY99: 0 | BZ99: 0 | CA99: 0 | CB99: 0 | CC99: 0 | CD99: 0 | CE99: 0 | CF99: 0 | CG99: 0 | CH99: 0 | CI99: 0 | CJ99: 0 | CK99: 0 | CL99: 0 | CM99: 0 | CN99: 0 | CO99: 0 | CP99: 0 | CQ99: 0 | CR99: 0 | CS99: 0 | CT99: 0 | CU99: 0 | CV99: 0 | CW99: 0 | CX99: 0 | CY99: 0 | CZ99: 0 | DA99: 0 | DB99: 0 | DC99: 0 | DD99: 0 | DE99: 0 | DF99: 0 | DG99: 0 | DH99: 0
C100: ˂ = 11 kV ; Circuit Breaker | D100: 45 | E100: 6.7 | F100: 3 | G100: 18 | H100: - | I100: - | J100: 1 | K100: 26 | L100: 29 | M100: 22 | N100: 45 | O100: 30 | P100: - | Q100: 29 | R100: 11 | S100: 7 | T100: - | U100: - | V100: - | W100: - | X100: 2 | Y100: - | Z100: 1 | AA100: 4 | AB100: - | AC100: 1 | AD100: - | AE100: - | AF100: - | AG100: - | AH100: - | AI100: - | AJ100: - | AK100: 10 | AL100: 4 | AM100: 3 | AN100: 7 | AO100: 26 | AP100: 2 | AQ100: - | AR100: - | AS100: - | AT100: - | AU100: - | AV100: - | AW100: 2 | AX100: - | AY100: - | AZ100: - | BA100: 11 | BB100: - | BC100: - | BD100: - | BE100: - | BF100: 9 | BG100: - | BH100: - | BI100: - | BJ100: - | BK100: - | BL100: - | BM100: - | BN100: - | BO100: - | BP100: - | BQ100: - | BR100: - | BS100: - | BT100: - | BU100: - | BV100: - | BW100: 0 | BX100: 0 | BY100: 0 | BZ100: 0 | CA100: 0 | CB100: 0 | CC100: 0 | CD100: 0 | CE100: 0 | CF100: 0 | CG100: 0 | CH100: 0 | CI100: 0 | CJ100: 0 | CK100: 0 | CL100: 0 | CM100: 0 | CN100: 0 | CO100: 0 | CP100: 0 | CQ100: 0 | CR100: 0 | CS100: 0 | CT100: 0 | CU100: 0 | CV100: 0 | CW100: 0 | CX100: 0 | CY100: 0 | CZ100: 0 | DA100: 0 | DB100: 0 | DC100: 0 | DD100: 0 | DE100: 0 | DF100: 0 | DG100: 0 | DH100: 0
C101: > 11 kV & < = 22 kV ; Switch | D101: 35 | E101: 5.9 | F101: 32 | G101: 73 | H101: 68 | I101: 54 | J101: 45 | K101: 59 | L101: 61 | M101: 70 | N101: 86 | O101: 101 | P101: 185 | Q101: 137 | R101: 114 | S101: 60 | T101: 44 | U101: 52 | V101: 55 | W101: 73 | X101: 61 | Y101: 161 | Z101: 33 | AA101: 37 | AB101: 32 | AC101: 8 | AD101: 19 | AE101: - | AF101: 7 | AG101: 7 | AH101: 78 | AI101: 58 | AJ101: 20 | AK101: 33 | AL101: 13 | AM101: 184 | AN101: 22 | AO101: 7 | AP101: 16 | AQ101: 16 | AR101: 653 | AS101: 11 | AT101: 7 | AU101: 33 | AV101: 24 | AW101: 128 | AX101: 20 | AY101: 18 | AZ101: 31 | BA101: 22 | BB101: 71 | BC101: 2 | BD101: 16 | BE101: 4 | BF101: - | BG101: 31 | BH101: - | BI101: 33 | BJ101: 2 | BK101: - | BL101: 14 | BM101: - | BN101: - | BO101: - | BP101: - | BQ101: - | BR101: - | BS101: - | BT101: - | BU101: - | BV101: - | BW101: 0 | BX101: 0 | BY101: 0 | BZ101: 0 | CA101: 0 | CB101: 0 | CC101: 0 | CD101: 0 | CE101: 0 | CF101: 0 | CG101: 0 | CH101: 0 | CI101: 0 | CJ101: 0 | CK101: 0 | CL101: 0 | CM101: 0 | CN101: 0 | CO101: 0 | CP101: 0 | CQ101: 0 | CR101: 0 | CS101: 0 | CT101: 0 | CU101: 0 | CV101: 0 | CW101: 0 | CX101: 0 | CY101: 0 | CZ101: 0 | DA101: 0 | DB101: 0 | DC101: 0 | DD101: 0 | DE101: 0 | DF101: 0 | DG101: 0 | DH101: 0
C102: > 11 kV & < = 22 kV ; Circuit Breaker | D102: 45 | E102: 6.7 | F102: 16 | G102: 36 | H102: 12 | I102: 8 | J102: 5 | K102: 12 | L102: 4 | M102: 5 | N102: 24 | O102: 11 | P102: 14 | Q102: 11 | R102: 3 | S102: - | T102: 2 | U102: - | V102: 1 | W102: 4 | X102: 1 | Y102: 1 | Z102: - | AA102: 2 | AB102: - | AC102: - | AD102: - | AE102: - | AF102: - | AG102: 1 | AH102: 12 | AI102: 1 | AJ102: 1 | AK102: - | AL102: 5 | AM102: 7 | AN102: 3 | AO102: - | AP102: - | AQ102: - | AR102: 3 | AS102: - | AT102: - | AU102: - | AV102: 1 | AW102: 5 | AX102: - | AY102: - | AZ102: - | BA102: - | BB102: - | BC102: - | BD102: - | BE102: - | BF102: - | BG102: - | BH102: - | BI102: - | BJ102: - | BK102: - | BL102: - | BM102: - | BN102: - | BO102: - | BP102: - | BQ102: - | BR102: - | BS102: - | BT102: - | BU102: - | BV102: - | BW102: 0 | BX102: 0 | BY102: 0 | BZ102: 0 | CA102: 0 | CB102: 0 | CC102: 0 | CD102: 0 | CE102: 0 | CF102: 0 | CG102: 0 | CH102: 0 | CI102: 0 | CJ102: 0 | CK102: 0 | CL102: 0 | CM102: 0 | CN102: 0 | CO102: 0 | CP102: 0 | CQ102: 0 | CR102: 0 | CS102: 0 | CT102: 0 | CU102: 0 | CV102: 0 | CW102: 0 | CX102: 0 | CY102: 0 | CZ102: 0 | DA102: 0 | DB102: 0 | DC102: 0 | DD102: 0 | DE102: 0 | DF102: 0 | DG102: 0 | DH102: 0
C103: > 22 kV & < = 33 kV ; Switch | D103: 0 | E103: 0 | F103: - | G103: - | H103: - | I103: - | J103: - | K103: - | L103: - | M103: - | N103: - | O103: - | P103: - | Q103: - | R103: - | S103: - | T103: - | U103: - | V103: - | W103: - | X103: - | Y103: - | Z103: - | AA103: - | AB103: - | AC103: - | AD103: - | AE103: - | AF103: - | AG103: - | AH103: - | AI103: - | AJ103: - | AK103: - | AL103: - | AM103: - | AN103: - | AO103: - | AP103: - | AQ103: - | AR103: - | AS103: - | AT103: - | AU103: - | AV103: - | AW103: - | AX103: - | AY103: - | AZ103: - | BA103: - | BB103: - | BC103: - | BD103: - | BE103: - | BF103: - | BG103: - | BH103: - | BI103: - | BJ103: - | BK103: - | BL103: - | BM103: - | BN103: - | BO103: - | BP103: - | BQ103: - | BR103: - | BS103: - | BT103: - | BU103: - | BV103: - | BW103: 0 | BX103: 0 | BY103: 0 | BZ103: 0 | CA103: 0 | CB103: 0 | CC103: 0 | CD103: 0 | CE103: 0 | CF103: 0 | CG103: 0 | CH103: 0 | CI103: 0 | CJ103: 0 | CK103: 0 | CL103: 0 | CM103: 0 | CN103: 0 | CO103: 0 | CP103: 0 | CQ103: 0 | CR103: 0 | CS103: 0 | CT103: 0 | CU103: 0 | CV103: 0 | CW103: 0 | CX103: 0 | CY103: 0 | CZ103: 0 | DA103: 0 | DB103: 0 | DC103: 0 | DD103: 0 | DE103: 0 | DF103: 0 | DG103: 0 | DH103: 0
C104: > 22 kV & < = 33 kV ; Circuit Breaker | D104: 0 | E104: 0 | F104: - | G104: - | H104: - | I104: - | J104: - | K104: - | L104: - | M104: - | N104: - | O104: - | P104: - | Q104: - | R104: - | S104: - | T104: - | U104: - | V104: - | W104: - | X104: - | Y104: - | Z104: - | AA104: - | AB104: - | AC104: - | AD104: - | AE104: - | AF104: - | AG104: - | AH104: - | AI104: - | AJ104: - | AK104: - | AL104: - | AM104: - | AN104: - | AO104: - | AP104: - | AQ104: - | AR104: - | AS104: - | AT104: - | AU104: - | AV104: - | AW104: - | AX104: - | AY104: - | AZ104: - | BA104: - | BB104: - | BC104: - | BD104: - | BE104: - | BF104: - | BG104: - | BH104: - | BI104: - | BJ104: - | BK104: - | BL104: - | BM104: - | BN104: - | BO104: - | BP104: - | BQ104: - | BR104: - | BS104: - | BT104: - | BU104: - | BV104: - | BW104: 0 | BX104: 0 | BY104: 0 | BZ104: 0 | CA104: 0 | CB104: 0 | CC104: 0 | CD104: 0 | CE104: 0 | CF104: 0 | CG104: 0 | CH104: 0 | CI104: 0 | CJ104: 0 | CK104: 0 | CL104: 0 | CM104: 0 | CN104: 0 | CO104: 0 | CP104: 0 | CQ104: 0 | CR104: 0 | CS104: 0 | CT104: 0 | CU104: 0 | CV104: 0 | CW104: 0 | CX104: 0 | CY104: 0 | CZ104: 0 | DA104: 0 | DB104: 0 | DC104: 0 | DD104: 0 | DE104: 0 | DF104: 0 | DG104: 0 | DH104: 0
C105: > 33 kV & < = 66 kV ; Switch | D105: 45 | E105: 6.7 | F105: 24 | G105: 1 | H105: - | I105: 2 | J105: - | K105: - | L105: 5 | M105: 4 | N105: - | O105: 11 | P105: 1 | Q105: - | R105: - | S105: - | T105: 3 | U105: 4 | V105: 1 | W105: - | X105: - | Y105: - | Z105: 1 | AA105: - | AB105: - | AC105: 2 | AD105: - | AE105: - | AF105: - | AG105: 9 | AH105: - | AI105: 5 | AJ105: - | AK105: - | AL105: 28 | AM105: 2 | AN105: - | AO105: - | AP105: 2 | AQ105: - | AR105: 11 | AS105: 2 | AT105: - | AU105: - | AV105: - | AW105: 4 | AX105: - | AY105: - | AZ105: 2 | BA105: - | BB105: - | BC105: - | BD105: - | BE105: - | BF105: - | BG105: - | BH105: - | BI105: - | BJ105: - | BK105: - | BL105: - | BM105: - | BN105: - | BO105: - | BP105: - | BQ105: - | BR105: - | BS105: - | BT105: - | BU105: - | BV105: - | BW105: 0 | BX105: 0 | BY105: 0 | BZ105: 0 | CA105: 0 | CB105: 0 | CC105: 0 | CD105: 0 | CE105: 0 | CF105: 0 | CG105: 0 | CH105: 0 | CI105: 0 | CJ105: 0 | CK105: 0 | CL105: 0 | CM105: 0 | CN105: 0 | CO105: 0 | CP105: 0 | CQ105: 0 | CR105: 0 | CS105: 0 | CT105: 0 | CU105: 0 | CV105: 0 | CW105: 0 | CX105: 0 | CY105: 0 | CZ105: 0 | DA105: 0 | DB105: 0 | DC105: 0 | DD105: 0 | DE105: 0 | DF105: 0 | DG105: 0 | DH105: 0
C106: > 33 kV & < = 66 kV ; Circuit Breaker | D106: 45 | E106: 6.7 | F106: 9 | G106: 6 | H106: - | I106: 16 | J106: 12 | K106: - | L106: - | M106: 2 | N106: 3 | O106: 17 | P106: 1 | Q106: 6 | R106: - | S106: - | T106: - | U106: - | V106: 1 | W106: - | X106: - | Y106: - | Z106: - | AA106: - | AB106: - | AC106: - | AD106: - | AE106: - | AF106: - | AG106: - | AH106: - | AI106: 1 | AJ106: - | AK106: - | AL106: 1 | AM106: - | AN106: - | AO106: 5 | AP106: - | AQ106: - | AR106: 5 | AS106: - | AT106: - | AU106: 2 | AV106: - | AW106: 1 | AX106: - | AY106: 1 | AZ106: - | BA106: - | BB106: 3 | BC106: - | BD106: - | BE106: - | BF106: - | BG106: - | BH106: - | BI106: - | BJ106: - | BK106: - | BL106: - | BM106: - | BN106: - | BO106: - | BP106: - | BQ106: - | BR106: - | BS106: - | BT106: - | BU106: - | BV106: - | BW106: 0 | BX106: 0 | BY106: 0 | BZ106: 0 | CA106: 0 | CB106: 0 | CC106: 0 | CD106: 0 | CE106: 0 | CF106: 0 | CG106: 0 | CH106: 0 | CI106: 0 | CJ106: 0 | CK106: 0 | CL106: 0 | CM106: 0 | CN106: 0 | CO106: 0 | CP106: 0 | CQ106: 0 | CR106: 0 | CS106: 0 | CT106: 0 | CU106: 0 | CV106: 0 | CW106: 0 | CX106: 0 | CY106: 0 | CZ106: 0 | DA106: 0 | DB106: 0 | DC106: 0 | DD106: 0 | DE106: 0 | DF106: 0 | DG106: 0 | DH106: 0
C107: > 66 kV & < = 132 kV ; Switch | D107: 45 | E107: 6.7 | F107: - | G107: 4 | H107: - | I107: - | J107: - | K107: - | L107: - | M107: - | N107: 13 | O107: - | P107: 1 | Q107: - | R107: - | S107: - | T107: - | U107: - | V107: - | W107: - | X107: - | Y107: - | Z107: - | AA107: - | AB107: - | AC107: - | AD107: - | AE107: - | AF107: - | AG107: - | AH107: - | AI107: - | AJ107: 7 | AK107: - | AL107: 100 | AM107: 5 | AN107: - | AO107: - | AP107: - | AQ107: - | AR107: - | AS107: - | AT107: - | AU107: - | AV107: - | AW107: 1 | AX107: - | AY107: - | AZ107: - | BA107: - | BB107: - | BC107: - | BD107: - | BE107: - | BF107: - | BG107: - | BH107: - | BI107: - | BJ107: - | BK107: - | BL107: - | BM107: - | BN107: - | BO107: - | BP107: - | BQ107: - | BR107: - | BS107: - | BT107: - | BU107: - | BV107: - | BW107: 0 | BX107: 0 | BY107: 0 | BZ107: 0 | CA107: 0 | CB107: 0 | CC107: 0 | CD107: 0 | CE107: 0 | CF107: 0 | CG107: 0 | CH107: 0 | CI107: 0 | CJ107: 0 | CK107: 0 | CL107: 0 | CM107: 0 | CN107: 0 | CO107: 0 | CP107: 0 | CQ107: 0 | CR107: 0 | CS107: 0 | CT107: 0 | CU107: 0 | CV107: 0 | CW107: 0 | CX107: 0 | CY107: 0 | CZ107: 0 | DA107: 0 | DB107: 0 | DC107: 0 | DD107: 0 | DE107: 0 | DF107: 0 | DG107: 0 | DH107: 0
C108: > 66 kV & < = 132 kV ; Circuit Breaker | D108: 45 | E108: 6.7 | F108: - | G108: - | H108: - | I108: 2 | J108: - | K108: - | L108: - | M108: 2 | N108: 3 | O108: - | P108: - | Q108: - | R108: 1 | S108: - | T108: - | U108: - | V108: - | W108: - | X108: - | Y108: - | Z108: - | AA108: - | AB108: - | AC108: - | AD108: - | AE108: - | AF108: - | AG108: - | AH108: - | AI108: 2 | AJ108: 4 | AK108: - | AL108: 9 | AM108: - | AN108: - | AO108: - | AP108: - | AQ108: - | AR108: - | AS108: - | AT108: - | AU108: - | AV108: - | AW108: - | AX108: - | AY108: - | AZ108: - | BA108: - | BB108: - | BC108: - | BD108: - | BE108: - | BF108: - | BG108: - | BH108: - | BI108: - | BJ108: - | BK108: - | BL108: - | BM108: - | BN108: - | BO108: - | BP108: - | BQ108: - | BR108: - | BS108: - | BT108: - | BU108: - | BV108: - | BW108: 0 | BX108: 0 | BY108: 0 | BZ108: 0 | CA108: 0 | CB108: 0 | CC108: 0 | CD108: 0 | CE108: 0 | CF108: 0 | CG108: 0 | CH108: 0 | CI108: 0 | CJ108: 0 | CK108: 0 | CL108: 0 | CM108: 0 | CN108: 0 | CO108: 0 | CP108: 0 | CQ108: 0 | CR108: 0 | CS108: 0 | CT108: 0 | CU108: 0 | CV108: 0 | CW108: 0 | CX108: 0 | CY108: 0 | CZ108: 0 | DA108: 0 | DB108: 0 | DC108: 0 | DD108: 0 | DE108: 0 | DF108: 0 | DG108: 0 | DH108: 0
C109: > 132 kV ; Switch | D109: 0 | E109: 0 | F109: - | G109: - | H109: - | I109: - | J109: - | K109: - | L109: - | M109: - | N109: - | O109: - | P109: - | Q109: - | R109: - | S109: - | T109: - | U109: - | V109: - | W109: - | X109: - | Y109: - | Z109: - | AA109: - | AB109: - | AC109: - | AD109: - | AE109: - | AF109: - | AG109: - | AH109: - | AI109: - | AJ109: - | AK109: - | AL109: - | AM109: - | AN109: - | AO109: - | AP109: - | AQ109: - | AR109: - | AS109: - | AT109: - | AU109: - | AV109: - | AW109: - | AX109: - | AY109: - | AZ109: - | BA109: - | BB109: - | BC109: - | BD109: - | BE109: - | BF109: - | BG109: - | BH109: - | BI109: - | BJ109: - | BK109: - | BL109: - | BM109: - | BN109: - | BO109: - | BP109: - | BQ109: - | BR109: - | BS109: - | BT109: - | BU109: - | BV109: - | BW109: 0 | BX109: 0 | BY109: 0 | BZ109: 0 | CA109: 0 | CB109: 0 | CC109: 0 | CD109: 0 | CE109: 0 | CF109: 0 | CG109: 0 | CH109: 0 | CI109: 0 | CJ109: 0 | CK109: 0 | CL109: 0 | CM109: 0 | CN109: 0 | CO109: 0 | CP109: 0 | CQ109: 0 | CR109: 0 | CS109: 0 | CT109: 0 | CU109: 0 | CV109: 0 | CW109: 0 | CX109: 0 | CY109: 0 | CZ109: 0 | DA109: 0 | DB109: 0 | DC109: 0 | DD109: 0 | DE109: 0 | DF109: 0 | DG109: 0 | DH109: 0
C110: > 132 kV ; Circuit Breaker | D110: 0 | E110: 0 | F110: - | G110: - | H110: - | I110: - | J110: - | K110: - | L110: - | M110: - | N110: - | O110: - | P110: - | Q110: - | R110: - | S110: - | T110: - | U110: - | V110: - | W110: - | X110: - | Y110: - | Z110: - | AA110: - | AB110: - | AC110: - | AD110: - | AE110: - | AF110: - | AG110: - | AH110: - | AI110: - | AJ110: - | AK110: - | AL110: - | AM110: - | AN110: - | AO110: - | AP110: - | AQ110: - | AR110: - | AS110: - | AT110: - | AU110: - | AV110: - | AW110: - | AX110: - | AY110: - | AZ110: - | BA110: - | BB110: - | BC110: - | BD110: - | BE110: - | BF110: - | BG110: - | BH110: - | BI110: - | BJ110: - | BK110: - | BL110: - | BM110: - | BN110: - | BO110: - | BP110: - | BQ110: - | BR110: - | BS110: - | BT110: - | BU110: - | BV110: - | BW110: 0 | BX110: 0 | BY110: 0 | BZ110: 0 | CA110: 0 | CB110: 0 | CC110: 0 | CD110: 0 | CE110: 0 | CF110: 0 | CG110: 0 | CH110: 0 | CI110: 0 | CJ110: 0 | CK110: 0 | CL110: 0 | CM110: 0 | CN110: 0 | CO110: 0 | CP110: 0 | CQ110: 0 | CR110: 0 | CS110: 0 | CT110: 0 | CU110: 0 | CV110: 0 | CW110: 0 | CX110: 0 | CY110: 0 | CZ110: 0 | DA110: 0 | DB110: 0 | DC110: 0 | DD110: 0 | DE110: 0 | DF110: 0 | DG110: 0 | DH110: 0
C111: Other | D111: 0 | E111: 0 | F111: - | G111: - | H111: - | I111: - | J111: - | K111: - | L111: - | M111: - | N111: - | O111: - | P111: - | Q111: - | R111: - | S111: - | T111: - | U111: - | V111: - | W111: - | X111: - | Y111: - | Z111: - | AA111: - | AB111: - | AC111: - | AD111: - | AE111: - | AF111: - | AG111: - | AH111: - | AI111: - | AJ111: - | AK111: - | AL111: - | AM111: - | AN111: - | AO111: - | AP111: - | AQ111: - | AR111: - | AS111: - | AT111: - | AU111: - | AV111: - | AW111: - | AX111: - | AY111: - | AZ111: - | BA111: - | BB111: - | BC111: - | BD111: - | BE111: - | BF111: - | BG111: - | BH111: - | BI111: - | BJ111: - | BK111: - | BL111: - | BM111: - | BN111: - | BO111: - | BP111: - | BQ111: - | BR111: - | BS111: - | BT111: - | BU111: - | BV111: - | BW111: 0 | BX111: 0 | BY111: 0 | BZ111: 0 | CA111: 0 | CB111: 0 | CC111: 0 | CD111: 0 | CE111: 0 | CF111: 0 | CG111: 0 | CH111: 0 | CI111: 0 | CJ111: 0 | CK111: 0 | CL111: 0 | CM111: 0 | CN111: 0 | CO111: 0 | CP111: 0 | CQ111: 0 | CR111: 0 | CS111: 0 | CT111: 0 | CU111: 0 | CV111: 0 | CW111: 0 | CX111: 0 | CY111: 0 | CZ111: 0 | DA111: 0 | DB111: 0 | DC111: 0 | DD111: 0 | DE111: 0 | DF111: 0 | DG111: 0 | DH111: 0
B112: PUBLIC LIGHTING BY: ASSET TYPE ; LIGHTING OBLIGATION | C112: Luminaires ; Major Road | D112: 0 | E112: 0 | F112: 0 | G112: 0 | H112: 0 | I112: 0 | J112: 0 | K112: 0 | L112: 0 | M112: 0 | N112: 0 | O112: 0 | P112: 0 | Q112: 0 | R112: 0 | S112: 0 | T112: 0 | U112: 0 | V112: 0 | W112: 0 | X112: 0 | Y112: 0 | Z112: 0 | AA112: 0 | AB112: 0 | AC112: 0 | AD112: 0 | AE112: 0 | AF112: 0 | AG112: 0 | AH112: 0 | AI112: 0 | AJ112: 0 | AK112: 0 | AL112: 0 | AM112: 0 | AN112: 0 | AO112: 0 | AP112: 0 | AQ112: 0 | AR112: 0 | AS112: 0 | AT112: 0 | AU112: 0 | AV112: 0 | AW112: 0 | AX112: 0 | AY112: 0 | AZ112: 0 | BA112: 0 | BB112: 0 | BC112: 0 | BD112: 0 | BE112: 0 | BF112: 0 | BG112: 0 | BH112: 0 | BI112: 0 | BJ112: 0 | BK112: 0 | BL112: 0 | BM112: 0 | BN112: 0 | BO112: 0 | BP112: 0 | BQ112: 0 | BR112: 0 | BS112: 0 | BT112: 0 | BU112: 0 | BV112: 0 | BW112: 0 | BX112: 0 | BY112: 0 | BZ112: 0 | CA112: 0 | CB112: 0 | CC112: 0 | CD112: 0 | CE112: 0 | CF112: 0 | CG112: 0 | CH112: 0 | CI112: 0 | CJ112: 0 | CK112: 0 | CL112: 0 | CM112: 0 | CN112: 0 | CO112: 0 | CP112: 0 | CQ112: 0 | CR112: 0 | CS112: 0 | CT112: 0 | CU112: 0 | CV112: 0 | CW112: 0 | CX112: 0 | CY112: 0 | CZ112: 0 | DA112: 0 | DB112: 0 | DC112: 0 | DD112: 0 | DE112: 0 | DF112: 0 | DG112: 0 | DH112: 0
C113: Luminaires ; Minor Road | D113: 0 | E113: 0 | F113: 0 | G113: 0 | H113: 0 | I113: 0 | J113: 0 | K113: 0 | L113: 0 | M113: 0 | N113: 0 | O113: 0 | P113: 0 | Q113: 0 | R113: 0 | S113: 0 | T113: 0 | U113: 0 | V113: 0 | W113: 0 | X113: 0 | Y113: 0 | Z113: 0 | AA113: 0 | AB113: 0 | AC113: 0 | AD113: 0 | AE113: 0 | AF113: 0 | AG113: 0 | AH113: 0 | AI113: 0 | AJ113: 0 | AK113: 0 | AL113: 0 | AM113: 0 | AN113: 0 | AO113: 0 | AP113: 0 | AQ113: 0 | AR113: 0 | AS113: 0 | AT113: 0 | AU113: 0 | AV113: 0 | AW113: 0 | AX113: 0 | AY113: 0 | AZ113: 0 | BA113: 0 | BB113: 0 | BC113: 0 | BD113: 0 | BE113: 0 | BF113: 0 | BG113: 0 | BH113: 0 | BI113: 0 | BJ113: 0 | BK113: 0 | BL113: 0 | BM113: 0 | BN113: 0 | BO113: 0 | BP113: 0 | BQ113: 0 | BR113: 0 | BS113: 0 | BT113: 0 | BU113: 0 | BV113: 0 | BW113: 0 | BX113: 0 | BY113: 0 | BZ113: 0 | CA113: 0 | CB113: 0 | CC113: 0 | CD113: 0 | CE113: 0 | CF113: 0 | CG113: 0 | CH113: 0 | CI113: 0 | CJ113: 0 | CK113: 0 | CL113: 0 | CM113: 0 | CN113: 0 | CO113: 0 | CP113: 0 | CQ113: 0 | CR113: 0 | CS113: 0 | CT113: 0 | CU113: 0 | CV113: 0 | CW113: 0 | CX113: 0 | CY113: 0 | CZ113: 0 | DA113: 0 | DB113: 0 | DC113: 0 | DD113: 0 | DE113: 0 | DF113: 0 | DG113: 0 | DH113: 0
C114: Brackets ; Major Road | D114: 0 | E114: 0 | F114: 0 | G114: 0 | H114: 0 | I114: 0 | J114: 0 | K114: 0 | L114: 0 | M114: 0 | N114: 0 | O114: 0 | P114: 0 | Q114: 0 | R114: 0 | S114: 0 | T114: 0 | U114: 0 | V114: 0 | W114: 0 | X114: 0 | Y114: 0 | Z114: 0 | AA114: 0 | AB114: 0 | AC114: 0 | AD114: 0 | AE114: 0 | AF114: 0 | AG114: 0 | AH114: 0 | AI114: 0 | AJ114: 0 | AK114: 0 | AL114: 0 | AM114: 0 | AN114: 0 | AO114: 0 | AP114: 0 | AQ114: 0 | AR114: 0 | AS114: 0 | AT114: 0 | AU114: 0 | AV114: 0 | AW114: 0 | AX114: 0 | AY114: 0 | AZ114: 0 | BA114: 0 | BB114: 0 | BC114: 0 | BD114: 0 | BE114: 0 | BF114: 0 | BG114: 0 | BH114: 0 | BI114: 0 | BJ114: 0 | BK114: 0 | BL114: 0 | BM114: 0 | BN114: 0 | BO114: 0 | BP114: 0 | BQ114: 0 | BR114: 0 | BS114: 0 | BT114: 0 | BU114: 0 | BV114: 0 | BW114: 0 | BX114: 0 | BY114: 0 | BZ114: 0 | CA114: 0 | CB114: 0 | CC114: 0 | CD114: 0 | CE114: 0 | CF114: 0 | CG114: 0 | CH114: 0 | CI114: 0 | CJ114: 0 | CK114: 0 | CL114: 0 | CM114: 0 | CN114: 0 | CO114: 0 | CP114: 0 | CQ114: 0 | CR114: 0 | CS114: 0 | CT114: 0 | CU114: 0 | CV114: 0 | CW114: 0 | CX114: 0 | CY114: 0 | CZ114: 0 | DA114: 0 | DB114: 0 | DC114: 0 | DD114: 0 | DE114: 0 | DF114: 0 | DG114: 0 | DH114: 0
C115: Brackets ; Minor Road | D115: 0 | E115: 0 | F115: 0 | G115: 0 | H115: 0 | I115: 0 | J115: 0 | K115: 0 | L115: 0 | M115: 0 | N115: 0 | O115: 0 | P115: 0 | Q115: 0 | R115: 0 | S115: 0 | T115: 0 | U115: 0 | V115: 0 | W115: 0 | X115: 0 | Y115: 0 | Z115: 0 | AA115: 0 | AB115: 0 | AC115: 0 | AD115: 0 | AE115: 0 | AF115: 0 | AG115: 0 | AH115: 0 | AI115: 0 | AJ115: 0 | AK115: 0 | AL115: 0 | AM115: 0 | AN115: 0 | AO115: 0 | AP115: 0 | AQ115: 0 | AR115: 0 | AS115: 0 | AT115: 0 | AU115: 0 | AV115: 0 | AW115: 0 | AX115: 0 | AY115: 0 | AZ115: 0 | BA115: 0 | BB115: 0 | BC115: 0 | BD115: 0 | BE115: 0 | BF115: 0 | BG115: 0 | BH115: 0 | BI115: 0 | BJ115: 0 | BK115: 0 | BL115: 0 | BM115: 0 | BN115: 0 | BO115: 0 | BP115: 0 | BQ115: 0 | BR115: 0 | BS115: 0 | BT115: 0 | BU115: 0 | BV115: 0 | BW115: 0 | BX115: 0 | BY115: 0 | BZ115: 0 | CA115: 0 | CB115: 0 | CC115: 0 | CD115: 0 | CE115: 0 | CF115: 0 | CG115: 0 | CH115: 0 | CI115: 0 | CJ115: 0 | CK115: 0 | CL115: 0 | CM115: 0 | CN115: 0 | CO115: 0 | CP115: 0 | CQ115: 0 | CR115: 0 | CS115: 0 | CT115: 0 | CU115: 0 | CV115: 0 | CW115: 0 | CX115: 0 | CY115: 0 | CZ115: 0 | DA115: 0 | DB115: 0 | DC115: 0 | DD115: 0 | DE115: 0 | DF115: 0 | DG115: 0 | DH115: 0
C116: Lamps ; Major Road | D116: 0 | E116: 0 | F116: 0 | G116: 0 | H116: 0 | I116: 0 | J116: 0 | K116: 0 | L116: 0 | M116: 0 | N116: 0 | O116: 0 | P116: 0 | Q116: 0 | R116: 0 | S116: 0 | T116: 0 | U116: 0 | V116: 0 | W116: 0 | X116: 0 | Y116: 0 | Z116: 0 | AA116: 0 | AB116: 0 | AC116: 0 | AD116: 0 | AE116: 0 | AF116: 0 | AG116: 0 | AH116: 0 | AI116: 0 | AJ116: 0 | AK116: 0 | AL116: 0 | AM116: 0 | AN116: 0 | AO116: 0 | AP116: 0 | AQ116: 0 | AR116: 0 | AS116: 0 | AT116: 0 | AU116: 0 | AV116: 0 | AW116: 0 | AX116: 0 | AY116: 0 | AZ116: 0 | BA116: 0 | BB116: 0 | BC116: 0 | BD116: 0 | BE116: 0 | BF116: 0 | BG116: 0 | BH116: 0 | BI116: 0 | BJ116: 0 | BK116: 0 | BL116: 0 | BM116: 0 | BN116: 0 | BO116: 0 | BP116: 0 | BQ116: 0 | BR116: 0 | BS116: 0 | BT116: 0 | BU116: 0 | BV116: 0 | BW116: 0 | BX116: 0 | BY116: 0 | BZ116: 0 | CA116: 0 | CB116: 0 | CC116: 0 | CD116: 0 | CE116: 0 | CF116: 0 | CG116: 0 | CH116: 0 | CI116: 0 | CJ116: 0 | CK116: 0 | CL116: 0 | CM116: 0 | CN116: 0 | CO116: 0 | CP116: 0 | CQ116: 0 | CR116: 0 | CS116: 0 | CT116: 0 | CU116: 0 | CV116: 0 | CW116: 0 | CX116: 0 | CY116: 0 | CZ116: 0 | DA116: 0 | DB116: 0 | DC116: 0 | DD116: 0 | DE116: 0 | DF116: 0 | DG116: 0 | DH116: 0
C117: Lamps ; Minor Road | D117: 0 | E117: 0 | F117: 0 | G117: 0 | H117: 0 | I117: 0 | J117: 0 | K117: 0 | L117: 0 | M117: 0 | N117: 0 | O117: 0 | P117: 0 | Q117: 0 | R117: 0 | S117: 0 | T117: 0 | U117: 0 | V117: 0 | W117: 0 | X117: 0 | Y117: 0 | Z117: 0 | AA117: 0 | AB117: 0 | AC117: 0 | AD117: 0 | AE117: 0 | AF117: 0 | AG117: 0 | AH117: 0 | AI117: 0 | AJ117: 0 | AK117: 0 | AL117: 0 | AM117: 0 | AN117: 0 | AO117: 0 | AP117: 0 | AQ117: 0 | AR117: 0 | AS117: 0 | AT117: 0 | AU117: 0 | AV117: 0 | AW117: 0 | AX117: 0 | AY117: 0 | AZ117: 0 | BA117: 0 | BB117: 0 | BC117: 0 | BD117: 0 | BE117: 0 | BF117: 0 | BG117: 0 | BH117: 0 | BI117: 0 | BJ117: 0 | BK117: 0 | BL117: 0 | BM117: 0 | BN117: 0 | BO117: 0 | BP117: 0 | BQ117: 0 | BR117: 0 | BS117: 0 | BT117: 0 | BU117: 0 | BV117: 0 | BW117: 0 | BX117: 0 | BY117: 0 | BZ117: 0 | CA117: 0 | CB117: 0 | CC117: 0 | CD117: 0 | CE117: 0 | CF117: 0 | CG117: 0 | CH117: 0 | CI117: 0 | CJ117: 0 | CK117: 0 | CL117: 0 | CM117: 0 | CN117: 0 | CO117: 0 | CP117: 0 | CQ117: 0 | CR117: 0 | CS117: 0 | CT117: 0 | CU117: 0 | CV117: 0 | CW117: 0 | CX117: 0 | CY117: 0 | CZ117: 0 | DA117: 0 | DB117: 0 | DC117: 0 | DD117: 0 | DE117: 0 | DF117: 0 | DG117: 0 | DH117: 0
C118: Poles / Columns ; Major Road | D118: 0 | E118: 0 | F118: 0 | G118: 0 | H118: 0 | I118: 0 | J118: 0 | K118: 0 | L118: 0 | M118: 0 | N118: 0 | O118: 0 | P118: 0 | Q118: 0 | R118: 0 | S118: 0 | T118: 0 | U118: 0 | V118: 0 | W118: 0 | X118: 0 | Y118: 0 | Z118: 0 | AA118: 0 | AB118: 0 | AC118: 0 | AD118: 0 | AE118: 0 | AF118: 0 | AG118: 0 | AH118: 0 | AI118: 0 | AJ118: 0 | AK118: 0 | AL118: 0 | AM118: 0 | AN118: 0 | AO118: 0 | AP118: 0 | AQ118: 0 | AR118: 0 | AS118: 0 | AT118: 0 | AU118: 0 | AV118: 0 | AW118: 0 | AX118: 0 | AY118: 0 | AZ118: 0 | BA118: 0 | BB118: 0 | BC118: 0 | BD118: 0 | BE118: 0 | BF118: 0 | BG118: 0 | BH118: 0 | BI118: 0 | BJ118: 0 | BK118: 0 | BL118: 0 | BM118: 0 | BN118: 0 | BO118: 0 | BP118: 0 | BQ118: 0 | BR118: 0 | BS118: 0 | BT118: 0 | BU118: 0 | BV118: 0 | BW118: 0 | BX118: 0 | BY118: 0 | BZ118: 0 | CA118: 0 | CB118: 0 | CC118: 0 | CD118: 0 | CE118: 0 | CF118: 0 | CG118: 0 | CH118: 0 | CI118: 0 | CJ118: 0 | CK118: 0 | CL118: 0 | CM118: 0 | CN118: 0 | CO118: 0 | CP118: 0 | CQ118: 0 | CR118: 0 | CS118: 0 | CT118: 0 | CU118: 0 | CV118: 0 | CW118: 0 | CX118: 0 | CY118: 0 | CZ118: 0 | DA118: 0 | DB118: 0 | DC118: 0 | DD118: 0 | DE118: 0 | DF118: 0 | DG118: 0 | DH118: 0
C119: Poles / Columns ; Minor Road | D119: 0 | E119: 0 | F119: 0 | G119: 0 | H119: 0 | I119: 0 | J119: 0 | K119: 0 | L119: 0 | M119: 0 | N119: 0 | O119: 0 | P119: 0 | Q119: 0 | R119: 0 | S119: 0 | T119: 0 | U119: 0 | V119: 0 | W119: 0 | X119: 0 | Y119: 0 | Z119: 0 | AA119: 0 | AB119: 0 | AC119: 0 | AD119: 0 | AE119: 0 | AF119: 0 | AG119: 0 | AH119: 0 | AI119: 0 | AJ119: 0 | AK119: 0 | AL119: 0 | AM119: 0 | AN119: 0 | AO119: 0 | AP119: 0 | AQ119: 0 | AR119: 0 | AS119: 0 | AT119: 0 | AU119: 0 | AV119: 0 | AW119: 0 | AX119: 0 | AY119: 0 | AZ119: 0 | BA119: 0 | BB119: 0 | BC119: 0 | BD119: 0 | BE119: 0 | BF119: 0 | BG119: 0 | BH119: 0 | BI119: 0 | BJ119: 0 | BK119: 0 | BL119: 0 | BM119: 0 | BN119: 0 | BO119: 0 | BP119: 0 | BQ119: 0 | BR119: 0 | BS119: 0 | BT119: 0 | BU119: 0 | BV119: 0 | BW119: 0 | BX119: 0 | BY119: 0 | BZ119: 0 | CA119: 0 | CB119: 0 | CC119: 0 | CD119: 0 | CE119: 0 | CF119: 0 | CG119: 0 | CH119: 0 | CI119: 0 | CJ119: 0 | CK119: 0 | CL119: 0 | CM119: 0 | CN119: 0 | CO119: 0 | CP119: 0 | CQ119: 0 | CR119: 0 | CS119: 0 | CT119: 0 | CU119: 0 | CV119: 0 | CW119: 0 | CX119: 0 | CY119: 0 | CZ119: 0 | DA119: 0 | DB119: 0 | DC119: 0 | DD119: 0 | DE119: 0 | DF119: 0 | DG119: 0 | DH119: 0
C120: Other | D120: 0 | E120: 0 | F120: 0 | G120: 0 | H120: 0 | I120: 0 | J120: 0 | K120: 0 | L120: 0 | M120: 0 | N120: 0 | O120: 0 | P120: 0 | Q120: 0 | R120: 0 | S120: 0 | T120: 0 | U120: 0 | V120: 0 | W120: 0 | X120: 0 | Y120: 0 | Z120: 0 | AA120: 0 | AB120: 0 | AC120: 0 | AD120: 0 | AE120: 0 | AF120: 0 | AG120: 0 | AH120: 0 | AI120: 0 | AJ120: 0 | AK120: 0 | AL120: 0 | AM120: 0 | AN120: 0 | AO120: 0 | AP120: 0 | AQ120: 0 | AR120: 0 | AS120: 0 | AT120: 0 | AU120: 0 | AV120: 0 | AW120: 0 | AX120: 0 | AY120: 0 | AZ120: 0 | BA120: 0 | BB120: 0 | BC120: 0 | BD120: 0 | BE120: 0 | BF120: 0 | BG120: 0 | BH120: 0 | BI120: 0 | BJ120: 0 | BK120: 0 | BL120: 0 | BM120: 0 | BN120: 0 | BO120: 0 | BP120: 0 | BQ120: 0 | BR120: 0 | BS120: 0 | BT120: 0 | BU120: 0 | BV120: 0 | BW120: 0 | BX120: 0 | BY120: 0 | BZ120: 0 | CA120: 0 | CB120: 0 | CC120: 0 | CD120: 0 | CE120: 0 | CF120: 0 | CG120: 0 | CH120: 0 | CI120: 0 | CJ120: 0 | CK120: 0 | CL120: 0 | CM120: 0 | CN120: 0 | CO120: 0 | CP120: 0 | CQ120: 0 | CR120: 0 | CS120: 0 | CT120: 0 | CU120: 0 | CV120: 0 | CW120: 0 | CX120: 0 | CY120: 0 | CZ120: 0 | DA120: 0 | DB120: 0 | DC120: 0 | DD120: 0 | DE120: 0 | DF120: 0 | DG120: 0 | DH120: 0
B121: SCADA, NETWORK CONTROL AND PROTECTION SYSTEMS BY: FUNCTION | C121: Field Devices | D121: 15 | E121: 3.9 | F121: 47 | G121: 57 | H121: 254 | I121: 76 | J121: 27 | K121: 136 | L121: 188 | M121: 49 | N121: 9 | O121: 51 | P121: 41 | Q121: 5 | R121: 9 | S121: 8 | T121: 7 | U121: 6 | V121: - | W121: 24 | X121: 14 | Y121: 1 | Z121: - | AA121: 5 | AB121: 5 | AC121: 66 | AD121: 5 | AE121: 17 | AF121: - | AG121: 14 | AH121: 12 | AI121: 65 | AJ121: 23 | AK121: 89 | AL121: 47 | AM121: 6 | AN121: 8 | AO121: 46 | AP121: - | AQ121: - | AR121: - | AS121: - | AT121: - | AU121: - | AV121: - | AW121: - | AX121: - | AY121: - | AZ121: - | BA121: - | BB121: - | BC121: - | BD121: 2 | BE121: - | BF121: - | BG121: - | BH121: - | BI121: - | BJ121: - | BK121: - | BL121: - | BM121: - | BN121: - | BO121: - | BP121: - | BQ121: - | BR121: - | BS121: - | BT121: - | BU121: - | BV121: - | BW121: 0 | BX121: 0 | BY121: 0 | BZ121: 0 | CA121: 0 | CB121: 0 | CC121: 0 | CD121: 0 | CE121: 0 | CF121: 0 | CG121: 0 | CH121: 0 | CI121: 0 | CJ121: 0 | CK121: 0 | CL121: 0 | CM121: 0 | CN121: 0 | CO121: 0 | CP121: 0 | CQ121: 0 | CR121: 0 | CS121: 0 | CT121: 0 | CU121: 0 | CV121: 0 | CW121: 0 | CX121: 0 | CY121: 0 | CZ121: 0 | DA121: 0 | DB121: 0 | DC121: 0 | DD121: 0 | DE121: 0 | DF121: 0 | DG121: 0 | DH121: 0
C122: Local Network Wiring Assets | D122: 45 | E122: 6.7 | F122: - | G122: 17 | H122: 15 | I122: 116 | J122: 1 | K122: 14 | L122: 111 | M122: 19 | N122: 50 | O122: 13 | P122: 11 | Q122: 5 | R122: - | S122: - | T122: - | U122: 3 | V122: - | W122: - | X122: - | Y122: - | Z122: - | AA122: - | AB122: - | AC122: - | AD122: - | AE122: - | AF122: 17 | AG122: 2 | AH122: - | AI122: 14 | AJ122: 32 | AK122: - | AL122: 37 | AM122: 41 | AN122: 26 | AO122: 10 | AP122: 72 | AQ122: - | AR122: - | AS122: - | AT122: - | AU122: - | AV122: - | AW122: - | AX122: - | AY122: - | AZ122: - | BA122: - | BB122: - | BC122: - | BD122: 2 | BE122: - | BF122: - | BG122: - | BH122: - | BI122: - | BJ122: - | BK122: - | BL122: - | BM122: - | BN122: - | BO122: - | BP122: - | BQ122: - | BR122: - | BS122: - | BT122: - | BU122: - | BV122: - | BW122: 0 | BX122: 0 | BY122: 0 | BZ122: 0 | CA122: 0 | CB122: 0 | CC122: 0 | CD122: 0 | CE122: 0 | CF122: 0 | CG122: 0 | CH122: 0 | CI122: 0 | CJ122: 0 | CK122: 0 | CL122: 0 | CM122: 0 | CN122: 0 | CO122: 0 | CP122: 0 | CQ122: 0 | CR122: 0 | CS122: 0 | CT122: 0 | CU122: 0 | CV122: 0 | CW122: 0 | CX122: 0 | CY122: 0 | CZ122: 0 | DA122: 0 | DB122: 0 | DC122: 0 | DD122: 0 | DE122: 0 | DF122: 0 | DG122: 0 | DH122: 0
C123: Communications Network Assets | D123: 15 | E123: 3.9 | F123: 4 | G123: 15 | H123: 28 | I123: 61 | J123: 23 | K123: 16 | L123: 46 | M123: 82 | N123: 63 | O123: 36 | P123: 45 | Q123: - | R123: 15 | S123: - | T123: - | U123: 5 | V123: - | W123: 1 | X123: - | Y123: - | Z123: - | AA123: - | AB123: 8 | AC123: - | AD123: - | AE123: 11 | AF123: - | AG123: 18 | AH123: - | AI123: - | AJ123: 31 | AK123: - | AL123: - | AM123: - | AN123: - | AO123: - | AP123: - | AQ123: - | AR123: - | AS123: - | AT123: - | AU123: - | AV123: - | AW123: - | AX123: - | AY123: - | AZ123: - | BA123: - | BB123: - | BC123: - | BD123: - | BE123: - | BF123: - | BG123: - | BH123: - | BI123: - | BJ123: - | BK123: - | BL123: - | BM123: - | BN123: - | BO123: - | BP123: - | BQ123: - | BR123: - | BS123: - | BT123: - | BU123: - | BV123: - | BW123: 0 | BX123: 0 | BY123: 0 | BZ123: 0 | CA123: 0 | CB123: 0 | CC123: 0 | CD123: 0 | CE123: 0 | CF123: 0 | CG123: 0 | CH123: 0 | CI123: 0 | CJ123: 0 | CK123: 0 | CL123: 0 | CM123: 0 | CN123: 0 | CO123: 0 | CP123: 0 | CQ123: 0 | CR123: 0 | CS123: 0 | CT123: 0 | CU123: 0 | CV123: 0 | CW123: 0 | CX123: 0 | CY123: 0 | CZ123: 0 | DA123: 0 | DB123: 0 | DC123: 0 | DD123: 0 | DE123: 0 | DF123: 0 | DG123: 0 | DH123: 0
C124: Master Station Assets | D124: 15 | E124: 3.9 | F124: - | G124: - | H124: - | I124: - | J124: - | K124: - | L124: - | M124: 1 | N124: - | O124: - | P124: - | Q124: - | R124: - | S124: - | T124: - | U124: - | V124: - | W124: - | X124: - | Y124: - | Z124: - | AA124: - | AB124: - | AC124: - | AD124: - | AE124: - | AF124: - | AG124: - | AH124: - | AI124: - | AJ124: - | AK124: - | AL124: - | AM124: - | AN124: - | AO124: - | AP124: - | AQ124: - | AR124: - | AS124: - | AT124: - | AU124: - | AV124: - | AW124: - | AX124: - | AY124: - | AZ124: - | BA124: - | BB124: - | BC124: - | BD124: - | BE124: - | BF124: - | BG124: - | BH124: - | BI124: - | BJ124: - | BK124: - | BL124: - | BM124: - | BN124: - | BO124: - | BP124: - | BQ124: - | BR124: - | BS124: - | BT124: - | BU124: - | BV124: - | BW124: 0 | BX124: 0 | BY124: 0 | BZ124: 0 | CA124: 0 | CB124: 0 | CC124: 0 | CD124: 0 | CE124: 0 | CF124: 0 | CG124: 0 | CH124: 0 | CI124: 0 | CJ124: 0 | CK124: 0 | CL124: 0 | CM124: 0 | CN124: 0 | CO124: 0 | CP124: 0 | CQ124: 0 | CR124: 0 | CS124: 0 | CT124: 0 | CU124: 0 | CV124: 0 | CW124: 0 | CX124: 0 | CY124: 0 | CZ124: 0 | DA124: 0 | DB124: 0 | DC124: 0 | DD124: 0 | DE124: 0 | DF124: 0 | DG124: 0 | DH124: 0
